Workbook

Sheet Demonstrator (hidden)
L5: AS 2 | S5: AS 3
L8: Parameter | S8: Parameter
L9: Durchlaufzeit | M9: 12 | S9: Durchlaufzeit | T9: 0.4
L10: Leistung | M10: 1 | S10: Leistung | T10: 5
L11: Bestand | M11: 12 | S11: Bestand | T11: 2
L12: gesp. RZ / BKT | M12: 17.47372963 | S12: gesp. RZ / BKT | T12: 21.26792819
L13: RZ-Potential | M13: 0.7025583 | S13: RZ-Potential | T13: 0.3364549029
AC17: Sicherheitzeit Puffer (SZ)
AC18: 13 | AD18: BKT
J19: 0.2
B20: Systemeingang | AF20: Systemausgang
B21: reihenfolgebedingte | F21: AS 1 | Y21: AS 6
B22: Standardabweichung | AF22: Termineinhaltung
B23: 9 | C23: BKT | AF23: =_xlfn.NORM.DIST(AC18,0,Berechnung!B10,TRUE) -> 0.8716061081
B24: TT ± 5 BKT | C24: ='Daten Diagramm'!C28-'Daten Diagramm'!C18 -> 0.4214852785 | F24: Parameter | J24: 0.8 | Y24: Parameter | AF24: TT [-5;5+SZ] | AG24: =INDIRECT("'Daten Diagramm'!Q"&28+ROUNDDOWN(AC18,0))+(INDIRECT("'Daten Diagramm'!Q"&28+ROUNDUP(AC18,0))- INDIRECT("'Daten Diagramm'!Q"&28+ROUNDDOWN(AC18,0)))*ROUND((AC18-ROUNDDOWN(AC18,0)),1)-'Daten Diagramm'!Q18 -> 0.6104526284
B25: TT ± 10 BKT | C25: ='Daten Diagramm'!C33-'Daten Diagramm'!C13 -> 0.7334794742 | F25: Durchlaufzeit | G25: 5 | Y25: Durchlaufzeit | Z25: 5 | AF25: TT [-10;10+SZ] | AG25: =INDIRECT("'Daten Diagramm'!Q"&33+ROUNDDOWN(AC18,0))+(INDIRECT("'Daten Diagramm'!Q"&33+ROUNDUP(AC18,0))- INDIRECT("'Daten Diagramm'!Q"&33+ROUNDDOWN(AC18,0)))*ROUND((AC18-ROUNDDOWN(AC18,0)),1)-'Daten Diagramm'!Q13 -> 0.7860729175
B26: TT ± 15 BKT | C26: ='Daten Diagramm'!C38-'Daten Diagramm'!C8 -> 0.9044192955 | F26: Leistung | G26: 2 | Y26: Leistung | Z26: 5
F27: Bestand | G27: 10 | Y27: Bestand | Z27: 25
F28: gesp. RZ / BKT | G28: 18.87498304 | Y28: gesp. RZ / BKT | Z28: 93.20632716
F29: RZ-Potential | G29: 0.791834688 | Y29: RZ-Potential | Z29: 0.9267655739
L34: AS 4 | S34: AS 5
L37: Parameter | S37: Parameter
L38: Durchlaufzeit | M38: 4 | S38: Durchlaufzeit | T38: 2
L39: Leistung | M39: 2.5 | S39: Leistung | T39: 5
L40: Bestand | M40: 10 | S40: Bestand | T40: 10
L41: gesp. RZ / BKT | M41: 24.99947455 | S41: gesp. RZ / BKT | T41: 47.69746581
L42: RZ-Potential | M42: 0.7808302657 | S42: RZ-Potential | T42: 0.8227693656

Sheet Start

Sheet Einzelbetrachtung (hidden)
B2: Terminabweichungssäulendiagramm Einzelsysteme
E25: Kennzahlen | M25: Eingang | N25: Ausgang
E26: Arbeitssystem | G26: 2 | K26: Stdabw. TA [Tagen] | M26: 9 | N26: =TAA(M26,INDIRECT("Berechnung!M" & 1+G26),G29,G27) -> 14.59451952
E27: mittlere Bestand [Auftr.] | G27: 12 | K27: Termintreue für ± 5 BKT | M27: =IFERROR(NORMDIST(5,0,M26,TRUE)-NORMDIST(-5,0,M26,TRUE),1) -> 0.4214852785 | N27: =IFERROR(NORMDIST(5,0,N26,TRUE)-NORMDIST(-5,0,N26,TRUE),1) -> 0.2680963505
E28: Mittlere Leistung [Auftr./Tag] | G28: 1 | K28: Termintreue für ± 10 BKT | M28: =IFERROR(NORMDIST(10,0,M26,TRUE)-NORMDIST(-10,0,M26,TRUE),1) -> 0.7334794742 | N28: =IFERROR(NORMDIST(10,0,N26,TRUE)-NORMDIST(-10,0,N26,TRUE),1) -> 0.5067751527
E29: vir. Durchlaufzeit/WIP [Tagen] | G29: 12 | K29: Termintreue für ± 15 BKT | M29: =IFERROR(NORMDIST(15,0,M26,TRUE)-NORMDIST(-15,0,M26,TRUE),1) -> 0.9044192955 | N29: =IFERROR(NORMDIST(15,0,N26,TRUE)-NORMDIST(-15,0,N26,TRUE),1) -> 0.6959481158
E30: gesparte RZ pro BKT [Min/Tag] | G30: 14.65652137

Sheet Berechnung (hidden)
E1: FIFO | G1: Gleichverteilung | I1: Arbeitssystem | J1: FIFO | K1: FPA | L1: Rüst | M1: Reihenfolgeregel | Q1: Max Durchlaufzeit | T1: Knoten 6 | W1: ='Daten Diagramm'!T24*('Daten Diagramm'!A24^2) -> 0.04069648933 | X1: ='Daten Diagramm'!T3 -> 0.005140229689
A2: Knoten | B2: Streuung | E2: FPA | G2: Erlang-1 | I2: AS1 | J2: TRUE | K2: FALSE | L2: FALSE | M2: =IF(J2,"FIFO",IF(K2,"FPA","Rüstoptimiert")) -> FIFO | P2: =Demonstrator!G25+Demonstrator!M9+Demonstrator!T9+Demonstrator!Z25+Demonstrator!AC18 -> 35.4 | Q2: =MAX(P2:P3) -> 35.4 | T2: FALSE | W2: ='Daten Diagramm'!T25*('Daten Diagramm'!A25^2) -> 0.1600463517
A3: 0 | B3: =Demonstrator!B23 -> 9 | E3: Rüstoptimiert | G3: Erlang-2 | I3: AS2 | J3: FALSE | K3: FALSE | L3: TRUE | M3: Rüstoptimiert | P3: =Demonstrator!G25+Demonstrator!M38+Demonstrator!T38+Demonstrator!Z25+Demonstrator!AC18 -> 29 | T3: TRUE | W3: ='Daten Diagramm'!T26*('Daten Diagramm'!A26^2) -> 0.3500724551
A4: 1 | B4: =TAA(B3,M2,Demonstrator!G25,Demonstrator!G27) -> 9 | G4: Normalverteilung | I4: AS3 | J4: FALSE | K4: FALSE | L4: TRUE | M4: Rüstoptimiert | W4: ='Daten Diagramm'!T27*('Daten Diagramm'!A27^2) -> 0.5982582015
A5: 2 | B5: =TAA(B4,M3,Demonstrator!M9,Demonstrator!M11) -> 14.59451952 | I5: AS4 | J5: TRUE | K5: FALSE | L5: FALSE | M5: FIFO | W5: ='Daten Diagramm'!T28*('Daten Diagramm'!A28^2) -> 0.8886246305
A6: 3 | B6: =TAA(B5,M4,Demonstrator!T9,Demonstrator!T11) -> 14.59726002 | I6: AS5 | J6: TRUE | K6: FALSE | L6: FALSE | M6: FIFO | W6: ='Daten Diagramm'!T29*('Daten Diagramm'!A29^2) -> 1.203069269
A7: 4 | B7: =TAA(B4,M5,Demonstrator!M38,Demonstrator!M40) -> 9 | I7: AS6 | J7: FALSE | K7: FALSE | L7: TRUE | M7: Rüstoptimiert | W7: ='Daten Diagramm'!T30*('Daten Diagramm'!A30^2) -> 1.522824923
A8: 5 | B8: =TAA(B7,M6,Demonstrator!T38,Demonstrator!T40) -> 9 | W8: ='Daten Diagramm'!T31*('Daten Diagramm'!A31^2) -> 1.829890264
A9: 6 | B9: =SQRT(B6^2*Demonstrator!J19+Demonstrator!J24*B8^2) -> 10.36416905 | C9: =IFERROR(SQRT(2*SUM(W:W)),0) -> 10.36416853 | W9: ='Daten Diagramm'!T32*('Daten Diagramm'!A32^2) -> 2.108295868
A10: 7 | B10: =TAA(B9,M7,Demonstrator!Z25,Demonstrator!Z27) -> 11.46368178 | W10: ='Daten Diagramm'!T33*('Daten Diagramm'!A33^2) -> 2.345096689
A11: Knoten 8 | W11: ='Daten Diagramm'!T34*('Daten Diagramm'!A34^2) -> 2.531020119
W12: ='Daten Diagramm'!T35*('Daten Diagramm'!A35^2) -> 2.660742076
W13: ='Daten Diagramm'!T36*('Daten Diagramm'!A36^2) -> 2.732805705
W14: ='Daten Diagramm'!T37*('Daten Diagramm'!A37^2) -> 2.749233277
W15: ='Daten Diagramm'!T38*('Daten Diagramm'!A38^2) -> 2.71490756
W16: ='Daten Diagramm'!T39*('Daten Diagramm'!A39^2) -> 2.636812562
W17: ='Daten Diagramm'!T40*('Daten Diagramm'!A40^2) -> 2.523224895
W18: ='Daten Diagramm'!T41*('Daten Diagramm'!A41^2) -> 2.382937785
W19: ='Daten Diagramm'!T42*('Daten Diagramm'!A42^2) -> 2.224582667
W20: ='Daten Diagramm'!T43*('Daten Diagramm'!A43^2) -> 2.056091876
W21: ='Daten Diagramm'!T44*('Daten Diagramm'!A44^2) -> 1.884323496
W22: ='Daten Diagramm'!T45*('Daten Diagramm'!A45^2) -> 1.714848939
W23: ='Daten Diagramm'!T46*('Daten Diagramm'!A46^2) -> 1.551887383
W24: ='Daten Diagramm'!T47*('Daten Diagramm'!A47^2) -> 1.398359992
W25: ='Daten Diagramm'!T48*('Daten Diagramm'!A48^2) -> 1.256031072
W26: ='Daten Diagramm'!T49*('Daten Diagramm'!A49^2) -> 1.12570244
W27: ='Daten Diagramm'!T50*('Daten Diagramm'!A50^2) -> 1.007430344
W28: ='Daten Diagramm'!T51*('Daten Diagramm'!A51^2) -> 0.9007398218
W29: ='Daten Diagramm'!T52*('Daten Diagramm'!A52^2) -> 0.8048183016
W30: ='Daten Diagramm'!T53*('Daten Diagramm'!A53^2) -> 0.7186772088
W31: ='Daten Diagramm'!T54*('Daten Diagramm'!A54^2) -> 0.6412766624
W32: ='Daten Diagramm'!T55*('Daten Diagramm'!A55^2) -> 0.5716133599
W33: ='Daten Diagramm'!T56*('Daten Diagramm'!A56^2) -> 0.5087753237
W34: ='Daten Diagramm'!T57*('Daten Diagramm'!A57^2) -> 0.4519692867
W35: ='Daten Diagramm'!T58*('Daten Diagramm'!A58^2) -> 0.4005273533
W36: ='Daten Diagramm'!T59*('Daten Diagramm'!A59^2) -> 0.3538994567
W37: ='Daten Diagramm'!T60*('Daten Diagramm'!A60^2) -> 0.3116373761
W38: ='Daten Diagramm'!T61*('Daten Diagramm'!A61^2) -> 0.2733749588
W39: ='Daten Diagramm'!T62*('Daten Diagramm'!A62^2) -> 0.2388079694
W40: ='Daten Diagramm'!T63*('Daten Diagramm'!A63^2) -> 0.2076758179
W41: ='Daten Diagramm'!T64*('Daten Diagramm'!A64^2) -> 0.1797464269
W42: ='Daten Diagramm'!T65*('Daten Diagramm'!A65^2) -> 0.1548047158
W43: ='Daten Diagramm'!T66*('Daten Diagramm'!A66^2) -> 0.1326446346
W44: ='Daten Diagramm'!T67*('Daten Diagramm'!A67^2) -> 0.1130643302
W45: ='Daten Diagramm'!T68*('Daten Diagramm'!A68^2) -> 0.09586385392
W46: ='Daten Diagramm'!T69*('Daten Diagramm'!A69^2) -> 0.08084476438
W47: ='Daten Diagramm'!T70*('Daten Diagramm'!A70^2) -> 0.06781101235
W48: ='Daten Diagramm'!T71*('Daten Diagramm'!A71^2) -> 0.05657057662
W49: ='Daten Diagramm'!T72*('Daten Diagramm'!A72^2) -> 0.0469374245
W50: ='Daten Diagramm'!T73*('Daten Diagramm'!A73^2) -> 0.03873347945
W51: ='Daten Diagramm'!T74*('Daten Diagramm'!A74^2) -> 0.03179037905
W52: ='Daten Diagramm'!T75*('Daten Diagramm'!A75^2) -> 0.02595089251
W53: ='Daten Diagramm'!T76*('Daten Diagramm'!A76^2) -> 0.02106993504
W54: ='Daten Diagramm'!T77*('Daten Diagramm'!A77^2) -> 0.01701516793
W55: ='Daten Diagramm'!T78*('Daten Diagramm'!A78^2) -> 0.01366720832
W56: ='Daten Diagramm'!T79*('Daten Diagramm'!A79^2) -> 0.01091949541
W57: ='Daten Diagramm'!T80*('Daten Diagramm'!A80^2) -> 0.008677871565
W58: ='Daten Diagramm'!T81*('Daten Diagramm'!A81^2) -> 0.00685994112
W59: ='Daten Diagramm'!T82*('Daten Diagramm'!A82^2) -> 0.005394268153
W60: ='Daten Diagramm'!T83*('Daten Diagramm'!A83^2) -> 0.004219469592
W61: ='Daten Diagramm'!T84*('Daten Diagramm'!A84^2) -> 0.003283252716
W62: ='Daten Diagramm'!T85*('Daten Diagramm'!A85^2) -> 0.00254143801
W63: ='Daten Diagramm'!T86*('Daten Diagramm'!A86^2) -> 0.001956999974
W64: ='Daten Diagramm'!T87*('Daten Diagramm'!A87^2) -> 0.001499150506
W65: ='Daten Diagramm'!T88*('Daten Diagramm'!A88^2) -> 0.001142482341
W66: ='Daten Diagramm'!T89*('Daten Diagramm'!A89^2) -> 0.0008661837627
W67: ='Daten Diagramm'!T90*('Daten Diagramm'!A90^2) -> 0.0006533306343
W68: ='Daten Diagramm'!T91*('Daten Diagramm'!A91^2) -> 0.0004902576082
W69: ='Daten Diagramm'!T92*('Daten Diagramm'!A92^2) -> 0.0003660072075
W70: ='Daten Diagramm'!T93*('Daten Diagramm'!A93^2) -> 0.0002718531125
W71: ='Daten Diagramm'!T94*('Daten Diagramm'!A94^2) -> 0.0002008924108
W72: ='Daten Diagramm'!T95*('Daten Diagramm'!A95^2) -> 0.0001477005992
W73: ='Daten Diagramm'!T96*('Daten Diagramm'!A96^2) -> 0.0001080426536
W74: ='Daten Diagramm'!T97*('Daten Diagramm'!A97^2) -> 7.863339819e-05
W75: ='Daten Diagramm'!T98*('Daten Diagramm'!A98^2) -> 5.694060008e-05
W76: ='Daten Diagramm'!T99*('Daten Diagramm'!A99^2) -> 4.102460709e-05
W77: ='Daten Diagramm'!T100*('Daten Diagramm'!A100^2) -> 2.94088643e-05
W78: ='Daten Diagramm'!T101*('Daten Diagramm'!A101^2) -> 2.097622777e-05
W79: ='Daten Diagramm'!T102*('Daten Diagramm'!A102^2) -> 1.488660186e-05
W80: ='Daten Diagramm'!T103*('Daten Diagramm'!A103^2) -> 1.051202525e-05
W81: ='Daten Diagramm'!T104*('Daten Diagramm'!A104^2) -> 7.385898136e-06
W82: ='Daten Diagramm'!T105*('Daten Diagramm'!A105^2) -> 5.163565134e-06
W83: ='Daten Diagramm'!T106*('Daten Diagramm'!A106^2) -> 3.591936439e-06
W84: ='Daten Diagramm'!T107*('Daten Diagramm'!A107^2) -> 2.486241766e-06

Sheet Daten Diagramm (hidden)
A1: x | B1: Eingang | D1: Knoten 1 | F1: Knoten 2 | H1: Knoten 3 | J1: Knoten 4 | L1: Knoten 5 | N1: Knoten 6 | P1: Knoten 7 | R1: Knoten 8 | T1: Knoten 6 neu
B2: einzel | C2: kumuliert | D2: einzel | E2: kumuliert | F2: einzel | G2: kumuliert | H2: einzel | I2: kumuliert | J2: einzel | K2: kumuliert | L2: einzel | M2: kumuliert | N2: einzel | O2: kumuliert | P2: einzel | Q2: kumuliert | R2: einzel | S2: kumuliert | T2: einzel | U2: kumuliert
A3: -20 | B3: =IF(AND($A3=0,Berechnung!$B$3=0),1,IF(Berechnung!$B$3<>0,_xlfn.NORM.DIST($A3,0,Berechnung!$B$3,FALSE),0)) -> 0.003752627893 | C3: =IF(AND($A3>=0,Berechnung!$B$3=0),1,IF(Berechnung!$B$3<>0,_xlfn.NORM.DIST($A3,0,Berechnung!$B$3,TRUE),0)) -> 0.01313414569 | D3: =IF(AND($A3=0,Berechnung!$B$4=0),1,IF(Berechnung!$B$4<>0,_xlfn.NORM.DIST($A3,0,Berechnung!$B$4,FALSE),0)) -> 0.003752627893 | E3: =IF(AND($A3>=0,Berechnung!$B$4=0),1,IF(Berechnung!$B$4<>0,_xlfn.NORM.DIST($A3,0,Berechnung!$B$4,TRUE),0)) -> 0.01313414569 | F3: =IF(AND($A3=0,Berechnung!$B$5=0),1,IF(Berechnung!$B$5<>0,_xlfn.NORM.DIST($A3,0,Berechnung!$B$5,FALSE),0)) -> 0.01068887549 | G3: =IF(AND($A3>=0,Berechnung!$B$5=0),1,IF(Berechnung!$B$5<>0,_xlfn.NORM.DIST($A3,0,Berechnung!$B$5,TRUE),0)) -> 0.08528455851 | H3: =IF(AND($A3=0,Berechnung!$B$6=0),1,IF(Berechnung!$B$6<>0,_xlfn.NORM.DIST($A3,0,Berechnung!$B$6,FALSE),0)) -> 0.01069063687 | I3: =IF(AND($A3>=0,Berechnung!$B$6=0),1,IF(Berechnung!$B$6<>0,_xlfn.NORM.DIST($A3,0,Berechnung!$B$6,TRUE),0)) -> 0.08532470029 | J3: =IF(AND($A3=0,Berechnung!$B$7=0),1,IF(Berechnung!$B$7<>0,_xlfn.NORM.DIST($A3,0,Berechnung!$B$7,FALSE),0)) -> 0.003752627893 | K3: =IF(AND($A3>=0,Berechnung!$B$7=0),1,IF(Berechnung!$B$7<>0,_xlfn.NORM.DIST($A3,0,Berechnung!$B$7,TRUE),0)) -> 0.01313414569 | L3: =IF(AND($A3=0,Berechnung!$B$8=0),1,IF(Berechnung!$B$8<>0,_xlfn.NORM.DIST($A3,0,Berechnung!$B$8,FALSE),0)) -> 0.003752627893 | M3: =IF(AND($A3>=0,Berechnung!$B$8=0),1,IF(Berechnung!$B$8<>0,_xlfn.NORM.DIST($A3,0,Berechnung!$B$8,TRUE),0)) -> 0.01313414569 | N3: =IF(AND($A3=0,Berechnung!$B$9=0),1,IF(Berechnung!$B$9<>0,_xlfn.NORM.DIST($A3,0,Berechnung!$B$9,FALSE),0)) -> 0.005980727167 | O3: =IF(AND($A3>=0,Berechnung!$B$9=0),1,IF(Berechnung!$B$9<>0,_xlfn.NORM.DIST($A3,0,Berechnung!$B$9,TRUE),0)) -> 0.02682043706 | P3: =IF(AND($A3=0,Berechnung!$B$10=0),1,IF(Berechnung!$B$10<>0,_xlfn.NORM.DIST($A3,0,Berechnung!$B$10,FALSE),0)) -> 0.007596959577 | Q3: =IF(AND($A3>=0,Berechnung!$B$10=0),1,IF(Berechnung!$B$10<>0,_xlfn.NORM.DIST($A3,0,Berechnung!$B$10,TRUE),0)) -> 0.0405237599 | R3: =IF(AND($A3=0,Berechnung!$B$11=0),1,IF(Berechnung!$B$11<>0,_xlfn.NORM.DIST($A3,0,Berechnung!$B$11,FALSE),0)) -> 0 | S3: =IF(AND($A3>=0,Berechnung!$B$11=0),1,IF(Berechnung!$B$11<>0,_xlfn.NORM.DIST($A3,0,Berechnung!$B$11,TRUE),0)) -> 0 | T3: =Demonstrator!$J$19*'Daten Diagramm'!H3+Demonstrator!$J$24*'Daten Diagramm'!L3 -> 0.005140229689 | U3: =Demonstrator!$J$19*'Daten Diagramm'!I3+Demonstrator!$J$24*'Daten Diagramm'!M3 -> 0.02757225661
A4: -19 | B4: =IF(AND(A4=0,Berechnung!$B$3=0),1,IF(Berechnung!$B$3<>0,_xlfn.NORM.DIST(A4,0,Berechnung!$B$3,FALSE),0)) -> 0.004774060052 | C4: =IF(AND($A4>=0,Berechnung!$B$3=0),1,IF(Berechnung!$B$3<>0,_xlfn.NORM.DIST($A4,0,Berechnung!$B$3,TRUE),0)) -> 0.01738138131 | D4: =IF(AND($A4=0,Berechnung!$B$4=0),1,IF(Berechnung!$B$4<>0,_xlfn.NORM.DIST($A4,0,Berechnung!$B$4,FALSE),0)) -> 0.004774060052 | E4: =IF(AND($A4>=0,Berechnung!$B$4=0),1,IF(Berechnung!$B$4<>0,_xlfn.NORM.DIST($A4,0,Berechnung!$B$4,TRUE),0)) -> 0.01738138131 | F4: =IF(AND($A4=0,Berechnung!$B$5=0),1,IF(Berechnung!$B$5<>0,_xlfn.NORM.DIST($A4,0,Berechnung!$B$5,FALSE),0)) -> 0.0117136265 | G4: =IF(AND($A4>=0,Berechnung!$B$5=0),1,IF(Berechnung!$B$5<>0,_xlfn.NORM.DIST($A4,0,Berechnung!$B$5,TRUE),0)) -> 0.09648237235 | H4: =IF(AND($A4=0,Berechnung!$B$6=0),1,IF(Berechnung!$B$6<>0,_xlfn.NORM.DIST($A4,0,Berechnung!$B$6,FALSE),0)) -> 0.01171515408 | I4: =IF(AND($A4>=0,Berechnung!$B$6=0),1,IF(Berechnung!$B$6<>0,_xlfn.NORM.DIST($A4,0,Berechnung!$B$6,TRUE),0)) -> 0.09652416233 | J4: =IF(AND($A4=0,Berechnung!$B$7=0),1,IF(Berechnung!$B$7<>0,_xlfn.NORM.DIST($A4,0,Berechnung!$B$7,FALSE),0)) -> 0.004774060052 | K4: =IF(AND($A4>=0,Berechnung!$B$7=0),1,IF(Berechnung!$B$7<>0,_xlfn.NORM.DIST($A4,0,Berechnung!$B$7,TRUE),0)) -> 0.01738138131 | L4: =IF(AND($A4=0,Berechnung!$B$8=0),1,IF(Berechnung!$B$8<>0,_xlfn.NORM.DIST($A4,0,Berechnung!$B$8,FALSE),0)) -> 0.004774060052 | M4: =IF(AND($A4>=0,Berechnung!$B$8=0),1,IF(Berechnung!$B$8<>0,_xlfn.NORM.DIST($A4,0,Berechnung!$B$8,TRUE),0)) -> 0.01738138131 | N4: =IF(AND($A4=0,Berechnung!$B$9=0),1,IF(Berechnung!$B$9<>0,_xlfn.NORM.DIST($A4,0,Berechnung!$B$9,FALSE),0)) -> 0.007171245588 | O4: =IF(AND($A4>=0,Berechnung!$B$9=0),1,IF(Berechnung!$B$9<>0,_xlfn.NORM.DIST($A4,0,Berechnung!$B$9,TRUE),0)) -> 0.0333835103 | P4: =IF(AND($A4=0,Berechnung!$B$10=0),1,IF(Berechnung!$B$10<>0,_xlfn.NORM.DIST($A4,0,Berechnung!$B$10,FALSE),0)) -> 0.008812153693 | Q4: =IF(AND($A4>=0,Berechnung!$B$10=0),1,IF(Berechnung!$B$10<>0,_xlfn.NORM.DIST($A4,0,Berechnung!$B$10,TRUE),0)) -> 0.048718489 | R4: =IF(AND($A4=0,Berechnung!$B$11=0),1,IF(Berechnung!$B$11<>0,_xlfn.NORM.DIST($A4,0,Berechnung!$B$11,FALSE),0)) -> 0 | S4: =IF(AND($A4>=0,Berechnung!$B$11=0),1,IF(Berechnung!$B$11<>0,_xlfn.NORM.DIST($A4,0,Berechnung!$B$11,TRUE),0)) -> 0 | T4: =Demonstrator!$J$19*'Daten Diagramm'!H4+Demonstrator!$J$24*'Daten Diagramm'!L4 -> 0.006162278856 | U4: =Demonstrator!$J$19*'Daten Diagramm'!I4+Demonstrator!$J$24*'Daten Diagramm'!M4 -> 0.03320993751
A5: -18 | B5: =IF(AND(A5=0,Berechnung!$B$3=0),1,IF(Berechnung!$B$3<>0,_xlfn.NORM.DIST(A5,0,Berechnung!$B$3,FALSE),0)) -> 0.005998996279 | C5: =IF(AND($A5>=0,Berechnung!$B$3=0),1,IF(Berechnung!$B$3<>0,_xlfn.NORM.DIST($A5,0,Berechnung!$B$3,TRUE),0)) -> 0.02275013195 | D5: =IF(AND($A5=0,Berechnung!$B$4=0),1,IF(Berechnung!$B$4<>0,_xlfn.NORM.DIST($A5,0,Berechnung!$B$4,FALSE),0)) -> 0.005998996279 | E5: =IF(AND($A5>=0,Berechnung!$B$4=0),1,IF(Berechnung!$B$4<>0,_xlfn.NORM.DIST($A5,0,Berechnung!$B$4,TRUE),0)) -> 0.02275013195 | F5: =IF(AND($A5=0,Berechnung!$B$5=0),1,IF(Berechnung!$B$5<>0,_xlfn.NORM.DIST($A5,0,Berechnung!$B$5,FALSE),0)) -> 0.01277649663 | G5: =IF(AND($A5>=0,Berechnung!$B$5=0),1,IF(Berechnung!$B$5<>0,_xlfn.NORM.DIST($A5,0,Berechnung!$B$5,TRUE),0)) -> 0.1087245302 | H5: =IF(AND($A5=0,Berechnung!$B$6=0),1,IF(Berechnung!$B$6<>0,_xlfn.NORM.DIST($A5,0,Berechnung!$B$6,FALSE),0)) -> 0.01277774614 | I5: =IF(AND($A5>=0,Berechnung!$B$6=0),1,IF(Berechnung!$B$6<>0,_xlfn.NORM.DIST($A5,0,Berechnung!$B$6,TRUE),0)) -> 0.1087677124 | J5: =IF(AND($A5=0,Berechnung!$B$7=0),1,IF(Berechnung!$B$7<>0,_xlfn.NORM.DIST($A5,0,Berechnung!$B$7,FALSE),0)) -> 0.005998996279 | K5: =IF(AND($A5>=0,Berechnung!$B$7=0),1,IF(Berechnung!$B$7<>0,_xlfn.NORM.DIST($A5,0,Berechnung!$B$7,TRUE),0)) -> 0.02275013195 | L5: =IF(AND($A5=0,Berechnung!$B$8=0),1,IF(Berechnung!$B$8<>0,_xlfn.NORM.DIST($A5,0,Berechnung!$B$8,FALSE),0)) -> 0.005998996279 | M5: =IF(AND($A5>=0,Berechnung!$B$8=0),1,IF(Berechnung!$B$8<>0,_xlfn.NORM.DIST($A5,0,Berechnung!$B$8,TRUE),0)) -> 0.02275013195 | N5: =IF(AND($A5=0,Berechnung!$B$9=0),1,IF(Berechnung!$B$9<>0,_xlfn.NORM.DIST($A5,0,Berechnung!$B$9,FALSE),0)) -> 0.00851906815 | O5: =IF(AND($A5>=0,Berechnung!$B$9=0),1,IF(Berechnung!$B$9<>0,_xlfn.NORM.DIST($A5,0,Berechnung!$B$9,TRUE),0)) -> 0.04121540347 | P5: =IF(AND($A5=0,Berechnung!$B$10=0),1,IF(Berechnung!$B$10<>0,_xlfn.NORM.DIST($A5,0,Berechnung!$B$10,FALSE),0)) -> 0.0101442415 | Q5: =IF(AND($A5>=0,Berechnung!$B$10=0),1,IF(Berechnung!$B$10<>0,_xlfn.NORM.DIST($A5,0,Berechnung!$B$10,TRUE),0)) -> 0.05818706547 | R5: =IF(AND($A5=0,Berechnung!$B$11=0),1,IF(Berechnung!$B$11<>0,_xlfn.NORM.DIST($A5,0,Berechnung!$B$11,FALSE),0)) -> 0 | S5: =IF(AND($A5>=0,Berechnung!$B$11=0),1,IF(Berechnung!$B$11<>0,_xlfn.NORM.DIST($A5,0,Berechnung!$B$11,TRUE),0)) -> 0 | T5: =Demonstrator!$J$19*'Daten Diagramm'!H5+Demonstrator!$J$24*'Daten Diagramm'!L5 -> 0.007354746251 | U5: =Demonstrator!$J$19*'Daten Diagramm'!I5+Demonstrator!$J$24*'Daten Diagramm'!M5 -> 0.03995364803
A6: -17 | B6: =IF(AND(A6=0,Berechnung!$B$3=0),1,IF(Berechnung!$B$3<>0,_xlfn.NORM.DIST(A6,0,Berechnung!$B$3,FALSE),0)) -> 0.007445736235 | C6: =IF(AND($A6>=0,Berechnung!$B$3=0),1,IF(Berechnung!$B$3<>0,_xlfn.NORM.DIST($A6,0,Berechnung!$B$3,TRUE),0)) -> 0.02945335931 | D6: =IF(AND($A6=0,Berechnung!$B$4=0),1,IF(Berechnung!$B$4<>0,_xlfn.NORM.DIST($A6,0,Berechnung!$B$4,FALSE),0)) -> 0.007445736235 | E6: =IF(AND($A6>=0,Berechnung!$B$4=0),1,IF(Berechnung!$B$4<>0,_xlfn.NORM.DIST($A6,0,Berechnung!$B$4,TRUE),0)) -> 0.02945335931 | F6: =IF(AND($A6=0,Berechnung!$B$5=0),1,IF(Berechnung!$B$5<>0,_xlfn.NORM.DIST($A6,0,Berechnung!$B$5,FALSE),0)) -> 0.0138705364 | G6: =IF(AND($A6>=0,Berechnung!$B$5=0),1,IF(Berechnung!$B$5<>0,_xlfn.NORM.DIST($A6,0,Berechnung!$B$5,TRUE),0)) -> 0.1220457674 | H6: =IF(AND($A6=0,Berechnung!$B$6=0),1,IF(Berechnung!$B$6<>0,_xlfn.NORM.DIST($A6,0,Berechnung!$B$6,FALSE),0)) -> 0.013871465 | I6: =IF(AND($A6>=0,Berechnung!$B$6=0),1,IF(Berechnung!$B$6<>0,_xlfn.NORM.DIST($A6,0,Berechnung!$B$6,TRUE),0)) -> 0.1220900421 | J6: =IF(AND($A6=0,Berechnung!$B$7=0),1,IF(Berechnung!$B$7<>0,_xlfn.NORM.DIST($A6,0,Berechnung!$B$7,FALSE),0)) -> 0.007445736235 | K6: =IF(AND($A6>=0,Berechnung!$B$7=0),1,IF(Berechnung!$B$7<>0,_xlfn.NORM.DIST($A6,0,Berechnung!$B$7,TRUE),0)) -> 0.02945335931 | L6: =IF(AND($A6=0,Berechnung!$B$8=0),1,IF(Berechnung!$B$8<>0,_xlfn.NORM.DIST($A6,0,Berechnung!$B$8,FALSE),0)) -> 0.007445736235 | M6: =IF(AND($A6>=0,Berechnung!$B$8=0),1,IF(Berechnung!$B$8<>0,_xlfn.NORM.DIST($A6,0,Berechnung!$B$8,TRUE),0)) -> 0.02945335931 | N6: =IF(AND($A6=0,Berechnung!$B$9=0),1,IF(Berechnung!$B$9<>0,_xlfn.NORM.DIST($A6,0,Berechnung!$B$9,FALSE),0)) -> 0.01002643358 | O6: =IF(AND($A6>=0,Berechnung!$B$9=0),1,IF(Berechnung!$B$9<>0,_xlfn.NORM.DIST($A6,0,Berechnung!$B$9,TRUE),0)) -> 0.05047487673 | P6: =IF(AND($A6=0,Berechnung!$B$10=0),1,IF(Berechnung!$B$10<>0,_xlfn.NORM.DIST($A6,0,Berechnung!$B$10,FALSE),0)) -> 0.01158917087 | Q6: =IF(AND($A6>=0,Berechnung!$B$10=0),1,IF(Berechnung!$B$10<>0,_xlfn.NORM.DIST($A6,0,Berechnung!$B$10,TRUE),0)) -> 0.06904462311 | R6: =IF(AND($A6=0,Berechnung!$B$11=0),1,IF(Berechnung!$B$11<>0,_xlfn.NORM.DIST($A6,0,Berechnung!$B$11,FALSE),0)) -> 0 | S6: =IF(AND($A6>=0,Berechnung!$B$11=0),1,IF(Berechnung!$B$11<>0,_xlfn.NORM.DIST($A6,0,Berechnung!$B$11,TRUE),0)) -> 0 | T6: =Demonstrator!$J$19*'Daten Diagramm'!H6+Demonstrator!$J$24*'Daten Diagramm'!L6 -> 0.008730881989 | U6: =Demonstrator!$J$19*'Daten Diagramm'!I6+Demonstrator!$J$24*'Daten Diagramm'!M6 -> 0.04798069587
A7: -16 | B7: =IF(AND(A7=0,Berechnung!$B$3=0),1,IF(Berechnung!$B$3<>0,_xlfn.NORM.DIST(A7,0,Berechnung!$B$3,FALSE),0)) -> 0.009127987607 | C7: =IF(AND($A7>=0,Berechnung!$B$3=0),1,IF(Berechnung!$B$3<>0,_xlfn.NORM.DIST($A7,0,Berechnung!$B$3,TRUE),0)) -> 0.03772017981 | D7: =IF(AND($A7=0,Berechnung!$B$4=0),1,IF(Berechnung!$B$4<>0,_xlfn.NORM.DIST($A7,0,Berechnung!$B$4,FALSE),0)) -> 0.009127987607 | E7: =IF(AND($A7>=0,Berechnung!$B$4=0),1,IF(Berechnung!$B$4<>0,_xlfn.NORM.DIST($A7,0,Berechnung!$B$4,TRUE),0)) -> 0.03772017981 | F7: =IF(AND($A7=0,Berechnung!$B$5=0),1,IF(Berechnung!$B$5<>0,_xlfn.NORM.DIST($A7,0,Berechnung!$B$5,FALSE),0)) -> 0.01498772744 | G7: =IF(AND($A7>=0,Berechnung!$B$5=0),1,IF(Berechnung!$B$5<>0,_xlfn.NORM.DIST($A7,0,Berechnung!$B$5,TRUE),0)) -> 0.1364733313 | H7: =IF(AND($A7=0,Berechnung!$B$6=0),1,IF(Berechnung!$B$6<>0,_xlfn.NORM.DIST($A7,0,Berechnung!$B$6,FALSE),0)) -> 0.01498829492 | I7: =IF(AND($A7>=0,Berechnung!$B$6=0),1,IF(Berechnung!$B$6<>0,_xlfn.NORM.DIST($A7,0,Berechnung!$B$6,TRUE),0)) -> 0.1365183572 | J7: =IF(AND($A7=0,Berechnung!$B$7=0),1,IF(Berechnung!$B$7<>0,_xlfn.NORM.DIST($A7,0,Berechnung!$B$7,FALSE),0)) -> 0.009127987607 | K7: =IF(AND($A7>=0,Berechnung!$B$7=0),1,IF(Berechnung!$B$7<>0,_xlfn.NORM.DIST($A7,0,Berechnung!$B$7,TRUE),0)) -> 0.03772017981 | L7: =IF(AND($A7=0,Berechnung!$B$8=0),1,IF(Berechnung!$B$8<>0,_xlfn.NORM.DIST($A7,0,Berechnung!$B$8,FALSE),0)) -> 0.009127987607 | M7: =IF(AND($A7>=0,Berechnung!$B$8=0),1,IF(Berechnung!$B$8<>0,_xlfn.NORM.DIST($A7,0,Berechnung!$B$8,TRUE),0)) -> 0.03772017981 | N7: =IF(AND($A7=0,Berechnung!$B$9=0),1,IF(Berechnung!$B$9<>0,_xlfn.NORM.DIST($A7,0,Berechnung!$B$9,FALSE),0)) -> 0.01169116426 | O7: =IF(AND($A7>=0,Berechnung!$B$9=0),1,IF(Berechnung!$B$9<>0,_xlfn.NORM.DIST($A7,0,Berechnung!$B$9,TRUE),0)) -> 0.06132078265 | P7: =IF(AND($A7=0,Berechnung!$B$10=0),1,IF(Berechnung!$B$10<>0,_xlfn.NORM.DIST($A7,0,Berechnung!$B$10,FALSE),0)) -> 0.01313954788 | Q7: =IF(AND($A7>=0,Berechnung!$B$10=0),1,IF(Berechnung!$B$10<>0,_xlfn.NORM.DIST($A7,0,Berechnung!$B$10,TRUE),0)) -> 0.08140059632 | R7: =IF(AND($A7=0,Berechnung!$B$11=0),1,IF(Berechnung!$B$11<>0,_xlfn.NORM.DIST($A7,0,Berechnung!$B$11,FALSE),0)) -> 0 | S7: =IF(AND($A7>=0,Berechnung!$B$11=0),1,IF(Berechnung!$B$11<>0,_xlfn.NORM.DIST($A7,0,Berechnung!$B$11,TRUE),0)) -> 0 | T7: =Demonstrator!$J$19*'Daten Diagramm'!H7+Demonstrator!$J$24*'Daten Diagramm'!L7 -> 0.01030004907 | U7: =Demonstrator!$J$19*'Daten Diagramm'!I7+Demonstrator!$J$24*'Daten Diagramm'!M7 -> 0.0574798153
A8: -15 | B8: =IF(AND(A8=0,Berechnung!$B$3=0),1,IF(Berechnung!$B$3<>0,_xlfn.NORM.DIST(A8,0,Berechnung!$B$3,FALSE),0)) -> 0.01105301542 | C8: =IF(AND($A8>=0,Berechnung!$B$3=0),1,IF(Berechnung!$B$3<>0,_xlfn.NORM.DIST($A8,0,Berechnung!$B$3,TRUE),0)) -> 0.04779035227 | D8: =IF(AND($A8=0,Berechnung!$B$4=0),1,IF(Berechnung!$B$4<>0,_xlfn.NORM.DIST($A8,0,Berechnung!$B$4,FALSE),0)) -> 0.01105301542 | E8: =IF(AND($A8>=0,Berechnung!$B$4=0),1,IF(Berechnung!$B$4<>0,_xlfn.NORM.DIST($A8,0,Berechnung!$B$4,TRUE),0)) -> 0.04779035227 | F8: =IF(AND($A8=0,Berechnung!$B$5=0),1,IF(Berechnung!$B$5<>0,_xlfn.NORM.DIST($A8,0,Berechnung!$B$5,FALSE),0)) -> 0.01611904753 | G8: =IF(AND($A8>=0,Berechnung!$B$5=0),1,IF(Berechnung!$B$5<>0,_xlfn.NORM.DIST($A8,0,Berechnung!$B$5,TRUE),0)) -> 0.1520259421 | H8: =IF(AND($A8=0,Berechnung!$B$6=0),1,IF(Berechnung!$B$6<>0,_xlfn.NORM.DIST($A8,0,Berechnung!$B$6,FALSE),0)) -> 0.01611921743 | I8: =IF(AND($A8>=0,Berechnung!$B$6=0),1,IF(Berechnung!$B$6<>0,_xlfn.NORM.DIST($A8,0,Berechnung!$B$6,TRUE),0)) -> 0.1520713396 | J8: =IF(AND($A8=0,Berechnung!$B$7=0),1,IF(Berechnung!$B$7<>0,_xlfn.NORM.DIST($A8,0,Berechnung!$B$7,FALSE),0)) -> 0.01105301542 | K8: =IF(AND($A8>=0,Berechnung!$B$7=0),1,IF(Berechnung!$B$7<>0,_xlfn.NORM.DIST($A8,0,Berechnung!$B$7,TRUE),0)) -> 0.04779035227 | L8: =IF(AND($A8=0,Berechnung!$B$8=0),1,IF(Berechnung!$B$8<>0,_xlfn.NORM.DIST($A8,0,Berechnung!$B$8,FALSE),0)) -> 0.01105301542 | M8: =IF(AND($A8>=0,Berechnung!$B$8=0),1,IF(Berechnung!$B$8<>0,_xlfn.NORM.DIST($A8,0,Berechnung!$B$8,TRUE),0)) -> 0.04779035227 | N8: =IF(AND($A8=0,Berechnung!$B$9=0),1,IF(Berechnung!$B$9<>0,_xlfn.NORM.DIST($A8,0,Berechnung!$B$9,FALSE),0)) -> 0.01350597481 | O8: =IF(AND($A8>=0,Berechnung!$B$9=0),1,IF(Berechnung!$B$9<>0,_xlfn.NORM.DIST($A8,0,Berechnung!$B$9,TRUE),0)) -> 0.07390729503 | P8: =IF(AND($A8=0,Berechnung!$B$10=0),1,IF(Berechnung!$B$10<>0,_xlfn.NORM.DIST($A8,0,Berechnung!$B$10,FALSE),0)) -> 0.01478440145 | Q8: =IF(AND($A8>=0,Berechnung!$B$10=0),1,IF(Berechnung!$B$10<>0,_xlfn.NORM.DIST($A8,0,Berechnung!$B$10,TRUE),0)) -> 0.09535525235 | R8: =IF(AND($A8=0,Berechnung!$B$11=0),1,IF(Berechnung!$B$11<>0,_xlfn.NORM.DIST($A8,0,Berechnung!$B$11,FALSE),0)) -> 0 | S8: =IF(AND($A8>=0,Berechnung!$B$11=0),1,IF(Berechnung!$B$11<>0,_xlfn.NORM.DIST($A8,0,Berechnung!$B$11,TRUE),0)) -> 0 | T8: =Demonstrator!$J$19*'Daten Diagramm'!H8+Demonstrator!$J$24*'Daten Diagramm'!L8 -> 0.01206625582 | U8: =Demonstrator!$J$19*'Daten Diagramm'!I8+Demonstrator!$J$24*'Daten Diagramm'!M8 -> 0.06864654974
A9: -14 | B9: =IF(AND(A9=0,Berechnung!$B$3=0),1,IF(Berechnung!$B$3<>0,_xlfn.NORM.DIST(A9,0,Berechnung!$B$3,FALSE),0)) -> 0.01321979894 | C9: =IF(AND($A9>=0,Berechnung!$B$3=0),1,IF(Berechnung!$B$3<>0,_xlfn.NORM.DIST($A9,0,Berechnung!$B$3,TRUE),0)) -> 0.0599069071 | D9: =IF(AND($A9=0,Berechnung!$B$4=0),1,IF(Berechnung!$B$4<>0,_xlfn.NORM.DIST($A9,0,Berechnung!$B$4,FALSE),0)) -> 0.01321979894 | E9: =IF(AND($A9>=0,Berechnung!$B$4=0),1,IF(Berechnung!$B$4<>0,_xlfn.NORM.DIST($A9,0,Berechnung!$B$4,TRUE),0)) -> 0.0599069071 | F9: =IF(AND($A9=0,Berechnung!$B$5=0),1,IF(Berechnung!$B$5<>0,_xlfn.NORM.DIST($A9,0,Berechnung!$B$5,FALSE),0)) -> 0.01725456535 | G9: =IF(AND($A9>=0,Berechnung!$B$5=0),1,IF(Berechnung!$B$5<>0,_xlfn.NORM.DIST($A9,0,Berechnung!$B$5,TRUE),0)) -> 0.1687128343 | H9: =IF(AND($A9=0,Berechnung!$B$6=0),1,IF(Berechnung!$B$6<>0,_xlfn.NORM.DIST($A9,0,Berechnung!$B$6,FALSE),0)) -> 0.01725430622 | I9: =IF(AND($A9>=0,Berechnung!$B$6=0),1,IF(Berechnung!$B$6<>0,_xlfn.NORM.DIST($A9,0,Berechnung!$B$6,TRUE),0)) -> 0.1687581896 | J9: =IF(AND($A9=0,Berechnung!$B$7=0),1,IF(Berechnung!$B$7<>0,_xlfn.NORM.DIST($A9,0,Berechnung!$B$7,FALSE),0)) -> 0.01321979894 | K9: =IF(AND($A9>=0,Berechnung!$B$7=0),1,IF(Berechnung!$B$7<>0,_xlfn.NORM.DIST($A9,0,Berechnung!$B$7,TRUE),0)) -> 0.0599069071 | L9: =IF(AND($A9=0,Berechnung!$B$8=0),1,IF(Berechnung!$B$8<>0,_xlfn.NORM.DIST($A9,0,Berechnung!$B$8,FALSE),0)) -> 0.01321979894 | M9: =IF(AND($A9>=0,Berechnung!$B$8=0),1,IF(Berechnung!$B$8<>0,_xlfn.NORM.DIST($A9,0,Berechnung!$B$8,TRUE),0)) -> 0.0599069071 | N9: =IF(AND($A9=0,Berechnung!$B$9=0),1,IF(Berechnung!$B$9<>0,_xlfn.NORM.DIST($A9,0,Berechnung!$B$9,FALSE),0)) -> 0.01545791804 | O9: =IF(AND($A9>=0,Berechnung!$B$9=0),1,IF(Berechnung!$B$9<>0,_xlfn.NORM.DIST($A9,0,Berechnung!$B$9,TRUE),0)) -> 0.0883785104 | P9: =IF(AND($A9=0,Berechnung!$B$10=0),1,IF(Berechnung!$B$10<>0,_xlfn.NORM.DIST($A9,0,Berechnung!$B$10,FALSE),0)) -> 0.01650905981 | Q9: =IF(AND($A9>=0,Berechnung!$B$10=0),1,IF(Berechnung!$B$10<>0,_xlfn.NORM.DIST($A9,0,Berechnung!$B$10,TRUE),0)) -> 0.110996042 | R9: =IF(AND($A9=0,Berechnung!$B$11=0),1,IF(Berechnung!$B$11<>0,_xlfn.NORM.DIST($A9,0,Berechnung!$B$11,FALSE),0)) -> 0 | S9: =IF(AND($A9>=0,Berechnung!$B$11=0),1,IF(Berechnung!$B$11<>0,_xlfn.NORM.DIST($A9,0,Berechnung!$B$11,TRUE),0)) -> 0 | T9: =Demonstrator!$J$19*'Daten Diagramm'!H9+Demonstrator!$J$24*'Daten Diagramm'!L9 -> 0.01402670039 | U9: =Demonstrator!$J$19*'Daten Diagramm'!I9+Demonstrator!$J$24*'Daten Diagramm'!M9 -> 0.0816771636
A10: -13 | B10: =IF(AND(A10=0,Berechnung!$B$3=0),1,IF(Berechnung!$B$3<>0,_xlfn.NORM.DIST(A10,0,Berechnung!$B$3,FALSE),0)) -> 0.01561734713 | C10: =IF(AND($A10>=0,Berechnung!$B$3=0),1,IF(Berechnung!$B$3<>0,_xlfn.NORM.DIST($A10,0,Berechnung!$B$3,TRUE),0)) -> 0.07430699823 | D10: =IF(AND($A10=0,Berechnung!$B$4=0),1,IF(Berechnung!$B$4<>0,_xlfn.NORM.DIST($A10,0,Berechnung!$B$4,FALSE),0)) -> 0.01561734713 | E10: =IF(AND($A10>=0,Berechnung!$B$4=0),1,IF(Berechnung!$B$4<>0,_xlfn.NORM.DIST($A10,0,Berechnung!$B$4,TRUE),0)) -> 0.07430699823 | F10: =IF(AND($A10=0,Berechnung!$B$5=0),1,IF(Berechnung!$B$5<>0,_xlfn.NORM.DIST($A10,0,Berechnung!$B$5,FALSE),0)) -> 0.0183835648 | G10: =IF(AND($A10>=0,Berechnung!$B$5=0),1,IF(Berechnung!$B$5<>0,_xlfn.NORM.DIST($A10,0,Berechnung!$B$5,TRUE),0)) -> 0.1865329071 | H10: =IF(AND($A10=0,Berechnung!$B$6=0),1,IF(Berechnung!$B$6<>0,_xlfn.NORM.DIST($A10,0,Berechnung!$B$6,FALSE),0)) -> 0.01838285128 | I10: =IF(AND($A10>=0,Berechnung!$B$6=0),1,IF(Berechnung!$B$6<>0,_xlfn.NORM.DIST($A10,0,Berechnung!$B$6,TRUE),0)) -> 0.1865777779 | J10: =IF(AND($A10=0,Berechnung!$B$7=0),1,IF(Berechnung!$B$7<>0,_xlfn.NORM.DIST($A10,0,Berechnung!$B$7,FALSE),0)) -> 0.01561734713 | K10: =IF(AND($A10>=0,Berechnung!$B$7=0),1,IF(Berechnung!$B$7<>0,_xlfn.NORM.DIST($A10,0,Berechnung!$B$7,TRUE),0)) -> 0.07430699823 | L10: =IF(AND($A10=0,Berechnung!$B$8=0),1,IF(Berechnung!$B$8<>0,_xlfn.NORM.DIST($A10,0,Berechnung!$B$8,FALSE),0)) -> 0.01561734713 | M10: =IF(AND($A10>=0,Berechnung!$B$8=0),1,IF(Berechnung!$B$8<>0,_xlfn.NORM.DIST($A10,0,Berechnung!$B$8,TRUE),0)) -> 0.07430699823 | N10: =IF(AND($A10=0,Berechnung!$B$9=0),1,IF(Berechnung!$B$9<>0,_xlfn.NORM.DIST($A10,0,Berechnung!$B$9,FALSE),0)) -> 0.01752802393 | O10: =IF(AND($A10>=0,Berechnung!$B$9=0),1,IF(Berechnung!$B$9<>0,_xlfn.NORM.DIST($A10,0,Berechnung!$B$9,TRUE),0)) -> 0.1048625873 | P10: =IF(AND($A10=0,Berechnung!$B$10=0),1,IF(Berechnung!$B$10<>0,_xlfn.NORM.DIST($A10,0,Berechnung!$B$10,FALSE),0)) -> 0.01829515969 | Q10: =IF(AND($A10>=0,Berechnung!$B$10=0),1,IF(Berechnung!$B$10<>0,_xlfn.NORM.DIST($A10,0,Berechnung!$B$10,TRUE),0)) -> 0.1283938919 | R10: =IF(AND($A10=0,Berechnung!$B$11=0),1,IF(Berechnung!$B$11<>0,_xlfn.NORM.DIST($A10,0,Berechnung!$B$11,FALSE),0)) -> 0 | S10: =IF(AND($A10>=0,Berechnung!$B$11=0),1,IF(Berechnung!$B$11<>0,_xlfn.NORM.DIST($A10,0,Berechnung!$B$11,TRUE),0)) -> 0 | T10: =Demonstrator!$J$19*'Daten Diagramm'!H10+Demonstrator!$J$24*'Daten Diagramm'!L10 -> 0.01617044796 | U10: =Demonstrator!$J$19*'Daten Diagramm'!I10+Demonstrator!$J$24*'Daten Diagramm'!M10 -> 0.09676115415
A11: -12 | B11: =IF(AND(A11=0,Berechnung!$B$3=0),1,IF(Berechnung!$B$3<>0,_xlfn.NORM.DIST(A11,0,Berechnung!$B$3,FALSE),0)) -> 0.01822334163 | C11: =IF(AND($A11>=0,Berechnung!$B$3=0),1,IF(Berechnung!$B$3<>0,_xlfn.NORM.DIST($A11,0,Berechnung!$B$3,TRUE),0)) -> 0.09121121973 | D11: =IF(AND($A11=0,Berechnung!$B$4=0),1,IF(Berechnung!$B$4<>0,_xlfn.NORM.DIST($A11,0,Berechnung!$B$4,FALSE),0)) -> 0.01822334163 | E11: =IF(AND($A11>=0,Berechnung!$B$4=0),1,IF(Berechnung!$B$4<>0,_xlfn.NORM.DIST($A11,0,Berechnung!$B$4,TRUE),0)) -> 0.09121121973 | F11: =IF(AND($A11=0,Berechnung!$B$5=0),1,IF(Berechnung!$B$5<>0,_xlfn.NORM.DIST($A11,0,Berechnung!$B$5,FALSE),0)) -> 0.01949469727 | G11: =IF(AND($A11>=0,Berechnung!$B$5=0),1,IF(Berechnung!$B$5<>0,_xlfn.NORM.DIST($A11,0,Berechnung!$B$5,TRUE),0)) -> 0.2054740134 | H11: =IF(AND($A11=0,Berechnung!$B$6=0),1,IF(Berechnung!$B$6<>0,_xlfn.NORM.DIST($A11,0,Berechnung!$B$6,FALSE),0)) -> 0.01949351112 | I11: =IF(AND($A11>=0,Berechnung!$B$6=0),1,IF(Berechnung!$B$6<>0,_xlfn.NORM.DIST($A11,0,Berechnung!$B$6,TRUE),0)) -> 0.2055179355 | J11: =IF(AND($A11=0,Berechnung!$B$7=0),1,IF(Berechnung!$B$7<>0,_xlfn.NORM.DIST($A11,0,Berechnung!$B$7,FALSE),0)) -> 0.01822334163 | K11: =IF(AND($A11>=0,Berechnung!$B$7=0),1,IF(Berechnung!$B$7<>0,_xlfn.NORM.DIST($A11,0,Berechnung!$B$7,TRUE),0)) -> 0.09121121973 | L11: =IF(AND($A11=0,Berechnung!$B$8=0),1,IF(Berechnung!$B$8<>0,_xlfn.NORM.DIST($A11,0,Berechnung!$B$8,FALSE),0)) -> 0.01822334163 | M11: =IF(AND($A11>=0,Berechnung!$B$8=0),1,IF(Berechnung!$B$8<>0,_xlfn.NORM.DIST($A11,0,Berechnung!$B$8,TRUE),0)) -> 0.09121121973 | N11: =IF(AND($A11=0,Berechnung!$B$9=0),1,IF(Berechnung!$B$9<>0,_xlfn.NORM.DIST($A11,0,Berechnung!$B$9,FALSE),0)) -> 0.01969118292 | O11: =IF(AND($A11>=0,Berechnung!$B$9=0),1,IF(Berechnung!$B$9<>0,_xlfn.NORM.DIST($A11,0,Berechnung!$B$9,TRUE),0)) -> 0.1234656427 | P11: =IF(AND($A11=0,Berechnung!$B$10=0),1,IF(Berechnung!$B$10<>0,_xlfn.NORM.DIST($A11,0,Berechnung!$B$10,FALSE),0)) -> 0.02012080433 | Q11: =IF(AND($A11>=0,Berechnung!$B$10=0),1,IF(Berechnung!$B$10<>0,_xlfn.NORM.DIST($A11,0,Berechnung!$B$10,TRUE),0)) -> 0.147599579 | R11: =IF(AND($A11=0,Berechnung!$B$11=0),1,IF(Berechnung!$B$11<>0,_xlfn.NORM.DIST($A11,0,Berechnung!$B$11,FALSE),0)) -> 0 | S11: =IF(AND($A11>=0,Berechnung!$B$11=0),1,IF(Berechnung!$B$11<>0,_xlfn.NORM.DIST($A11,0,Berechnung!$B$11,TRUE),0)) -> 0 | T11: =Demonstrator!$J$19*'Daten Diagramm'!H11+Demonstrator!$J$24*'Daten Diagramm'!L11 -> 0.01847737553 | U11: =Demonstrator!$J$19*'Daten Diagramm'!I11+Demonstrator!$J$24*'Daten Diagramm'!M11 -> 0.1140725629
A12: -11 | B12: =IF(AND(A12=0,Berechnung!$B$3=0),1,IF(Berechnung!$B$3<>0,_xlfn.NORM.DIST(A12,0,Berechnung!$B$3,FALSE),0)) -> 0.02100327942 | C12: =IF(AND($A12>=0,Berechnung!$B$3=0),1,IF(Berechnung!$B$3<>0,_xlfn.NORM.DIST($A12,0,Berechnung!$B$3,TRUE),0)) -> 0.1108118012 | D12: =IF(AND($A12=0,Berechnung!$B$4=0),1,IF(Berechnung!$B$4<>0,_xlfn.NORM.DIST($A12,0,Berechnung!$B$4,FALSE),0)) -> 0.02100327942 | E12: =IF(AND($A12>=0,Berechnung!$B$4=0),1,IF(Berechnung!$B$4<>0,_xlfn.NORM.DIST($A12,0,Berechnung!$B$4,TRUE),0)) -> 0.1108118012 | F12: =IF(AND($A12=0,Berechnung!$B$5=0),1,IF(Berechnung!$B$5<>0,_xlfn.NORM.DIST($A12,0,Berechnung!$B$5,FALSE),0)) -> 0.02057615959 | G12: =IF(AND($A12>=0,Berechnung!$B$5=0),1,IF(Berechnung!$B$5<>0,_xlfn.NORM.DIST($A12,0,Berechnung!$B$5,TRUE),0)) -> 0.2255124144 | H12: =IF(AND($A12=0,Berechnung!$B$6=0),1,IF(Berechnung!$B$6<>0,_xlfn.NORM.DIST($A12,0,Berechnung!$B$6,FALSE),0)) -> 0.02057449057 | I12: =IF(AND($A12>=0,Berechnung!$B$6=0),1,IF(Berechnung!$B$6<>0,_xlfn.NORM.DIST($A12,0,Berechnung!$B$6,TRUE),0)) -> 0.2255549095 | J12: =IF(AND($A12=0,Berechnung!$B$7=0),1,IF(Berechnung!$B$7<>0,_xlfn.NORM.DIST($A12,0,Berechnung!$B$7,FALSE),0)) -> 0.02100327942 | K12: =IF(AND($A12>=0,Berechnung!$B$7=0),1,IF(Berechnung!$B$7<>0,_xlfn.NORM.DIST($A12,0,Berechnung!$B$7,TRUE),0)) -> 0.1108118012 | L12: =IF(AND($A12=0,Berechnung!$B$8=0),1,IF(Berechnung!$B$8<>0,_xlfn.NORM.DIST($A12,0,Berechnung!$B$8,FALSE),0)) -> 0.02100327942 | M12: =IF(AND($A12>=0,Berechnung!$B$8=0),1,IF(Berechnung!$B$8<>0,_xlfn.NORM.DIST($A12,0,Berechnung!$B$8,TRUE),0)) -> 0.1108118012 | N12: =IF(AND($A12=0,Berechnung!$B$9=0),1,IF(Berechnung!$B$9<>0,_xlfn.NORM.DIST($A12,0,Berechnung!$B$9,FALSE),0)) -> 0.0219163157 | O12: =IF(AND($A12>=0,Berechnung!$B$9=0),1,IF(Berechnung!$B$9<>0,_xlfn.NORM.DIST($A12,0,Berechnung!$B$9,TRUE),0)) -> 0.1442656724 | P12: =IF(AND($A12=0,Berechnung!$B$10=0),1,IF(Berechnung!$B$10<>0,_xlfn.NORM.DIST($A12,0,Berechnung!$B$10,FALSE),0)) -> 0.02196088006 | Q12: =IF(AND($A12>=0,Berechnung!$B$10=0),1,IF(Berechnung!$B$10<>0,_xlfn.NORM.DIST($A12,0,Berechnung!$B$10,TRUE),0)) -> 0.1686403416 | R12: =IF(AND($A12=0,Berechnung!$B$11=0),1,IF(Berechnung!$B$11<>0,_xlfn.NORM.DIST($A12,0,Berechnung!$B$11,FALSE),0)) -> 0 | S12: =IF(AND($A12>=0,Berechnung!$B$11=0),1,IF(Berechnung!$B$11<>0,_xlfn.NORM.DIST($A12,0,Berechnung!$B$11,TRUE),0)) -> 0 | T12: =Demonstrator!$J$19*'Daten Diagramm'!H12+Demonstrator!$J$24*'Daten Diagramm'!L12 -> 0.02091752165 | U12: =Demonstrator!$J$19*'Daten Diagramm'!I12+Demonstrator!$J$24*'Daten Diagramm'!M12 -> 0.1337604229
A13: -10 | B13: =IF(AND(A13=0,Berechnung!$B$3=0),1,IF(Berechnung!$B$3<>0,_xlfn.NORM.DIST(A13,0,Berechnung!$B$3,FALSE),0)) -> 0.02391027344 | C13: =IF(AND($A13>=0,Berechnung!$B$3=0),1,IF(Berechnung!$B$3<>0,_xlfn.NORM.DIST($A13,0,Berechnung!$B$3,TRUE),0)) -> 0.1332602629 | D13: =IF(AND($A13=0,Berechnung!$B$4=0),1,IF(Berechnung!$B$4<>0,_xlfn.NORM.DIST($A13,0,Berechnung!$B$4,FALSE),0)) -> 0.02391027344 | E13: =IF(AND($A13>=0,Berechnung!$B$4=0),1,IF(Berechnung!$B$4<>0,_xlfn.NORM.DIST($A13,0,Berechnung!$B$4,TRUE),0)) -> 0.1332602629 | F13: =IF(AND($A13=0,Berechnung!$B$5=0),1,IF(Berechnung!$B$5<>0,_xlfn.NORM.DIST($A13,0,Berechnung!$B$5,FALSE),0)) -> 0.02161589403 | G13: =IF(AND($A13>=0,Berechnung!$B$5=0),1,IF(Berechnung!$B$5<>0,_xlfn.NORM.DIST($A13,0,Berechnung!$B$5,TRUE),0)) -> 0.2466124237 | H13: =IF(AND($A13=0,Berechnung!$B$6=0),1,IF(Berechnung!$B$6<>0,_xlfn.NORM.DIST($A13,0,Berechnung!$B$6,FALSE),0)) -> 0.02161374065 | I13: =IF(AND($A13>=0,Berechnung!$B$6=0),1,IF(Berechnung!$B$6<>0,_xlfn.NORM.DIST($A13,0,Berechnung!$B$6,TRUE),0)) -> 0.2466530073 | J13: =IF(AND($A13=0,Berechnung!$B$7=0),1,IF(Berechnung!$B$7<>0,_xlfn.NORM.DIST($A13,0,Berechnung!$B$7,FALSE),0)) -> 0.02391027344 | K13: =IF(AND($A13>=0,Berechnung!$B$7=0),1,IF(Berechnung!$B$7<>0,_xlfn.NORM.DIST($A13,0,Berechnung!$B$7,TRUE),0)) -> 0.1332602629 | L13: =IF(AND($A13=0,Berechnung!$B$8=0),1,IF(Berechnung!$B$8<>0,_xlfn.NORM.DIST($A13,0,Berechnung!$B$8,FALSE),0)) -> 0.02391027344 | M13: =IF(AND($A13>=0,Berechnung!$B$8=0),1,IF(Berechnung!$B$8<>0,_xlfn.NORM.DIST($A13,0,Berechnung!$B$8,TRUE),0)) -> 0.1332602629 | N13: =IF(AND($A13=0,Berechnung!$B$9=0),1,IF(Berechnung!$B$9<>0,_xlfn.NORM.DIST($A13,0,Berechnung!$B$9,FALSE),0)) -> 0.02416685749 | O13: =IF(AND($A13>=0,Berechnung!$B$9=0),1,IF(Berechnung!$B$9<>0,_xlfn.NORM.DIST($A13,0,Berechnung!$B$9,TRUE),0)) -> 0.1673067962 | P13: =IF(AND($A13=0,Berechnung!$B$10=0),1,IF(Berechnung!$B$10<>0,_xlfn.NORM.DIST($A13,0,Berechnung!$B$10,FALSE),0)) -> 0.02378753343 | Q13: =IF(AND($A13>=0,Berechnung!$B$10=0),1,IF(Berechnung!$B$10<>0,_xlfn.NORM.DIST($A13,0,Berechnung!$B$10,TRUE),0)) -> 0.1915168886 | R13: =IF(AND($A13=0,Berechnung!$B$11=0),1,IF(Berechnung!$B$11<>0,_xlfn.NORM.DIST($A13,0,Berechnung!$B$11,FALSE),0)) -> 0 | S13: =IF(AND($A13>=0,Berechnung!$B$11=0),1,IF(Berechnung!$B$11<>0,_xlfn.NORM.DIST($A13,0,Berechnung!$B$11,TRUE),0)) -> 0 | T13: =Demonstrator!$J$19*'Daten Diagramm'!H13+Demonstrator!$J$24*'Daten Diagramm'!L13 -> 0.02345096689 | U13: =Demonstrator!$J$19*'Daten Diagramm'!I13+Demonstrator!$J$24*'Daten Diagramm'!M13 -> 0.1559388118
A14: -9 | B14: =IF(AND(A14=0,Berechnung!$B$3=0),1,IF(Berechnung!$B$3<>0,_xlfn.NORM.DIST(A14,0,Berechnung!$B$3,FALSE),0)) -> 0.02688563606 | C14: =IF(AND($A14>=0,Berechnung!$B$3=0),1,IF(Berechnung!$B$3<>0,_xlfn.NORM.DIST($A14,0,Berechnung!$B$3,TRUE),0)) -> 0.1586552539 | D14: =IF(AND($A14=0,Berechnung!$B$4=0),1,IF(Berechnung!$B$4<>0,_xlfn.NORM.DIST($A14,0,Berechnung!$B$4,FALSE),0)) -> 0.02688563606 | E14: =IF(AND($A14>=0,Berechnung!$B$4=0),1,IF(Berechnung!$B$4<>0,_xlfn.NORM.DIST($A14,0,Berechnung!$B$4,TRUE),0)) -> 0.1586552539 | F14: =IF(AND($A14=0,Berechnung!$B$5=0),1,IF(Berechnung!$B$5<>0,_xlfn.NORM.DIST($A14,0,Berechnung!$B$5,FALSE),0)) -> 0.02260180607 | G14: =IF(AND($A14>=0,Berechnung!$B$5=0),1,IF(Berechnung!$B$5<>0,_xlfn.NORM.DIST($A14,0,Berechnung!$B$5,TRUE),0)) -> 0.2687262596 | H14: =IF(AND($A14=0,Berechnung!$B$6=0),1,IF(Berechnung!$B$6<>0,_xlfn.NORM.DIST($A14,0,Berechnung!$B$6,FALSE),0)) -> 0.02259917604 | I14: =IF(AND($A14>=0,Berechnung!$B$6=0),1,IF(Berechnung!$B$6<>0,_xlfn.NORM.DIST($A14,0,Berechnung!$B$6,TRUE),0)) -> 0.2687644504 | J14: =IF(AND($A14=0,Berechnung!$B$7=0),1,IF(Berechnung!$B$7<>0,_xlfn.NORM.DIST($A14,0,Berechnung!$B$7,FALSE),0)) -> 0.02688563606 | K14: =IF(AND($A14>=0,Berechnung!$B$7=0),1,IF(Berechnung!$B$7<>0,_xlfn.NORM.DIST($A14,0,Berechnung!$B$7,TRUE),0)) -> 0.1586552539 | L14: =IF(AND($A14=0,Berechnung!$B$8=0),1,IF(Berechnung!$B$8<>0,_xlfn.NORM.DIST($A14,0,Berechnung!$B$8,FALSE),0)) -> 0.02688563606 | M14: =IF(AND($A14>=0,Berechnung!$B$8=0),1,IF(Berechnung!$B$8<>0,_xlfn.NORM.DIST($A14,0,Berechnung!$B$8,TRUE),0)) -> 0.1586552539 | N14: =IF(AND($A14=0,Berechnung!$B$9=0),1,IF(Berechnung!$B$9<>0,_xlfn.NORM.DIST($A14,0,Berechnung!$B$9,FALSE),0)) -> 0.02640156715 | O14: =IF(AND($A14>=0,Berechnung!$B$9=0),1,IF(Berechnung!$B$9<>0,_xlfn.NORM.DIST($A14,0,Berechnung!$B$9,TRUE),0)) -> 0.1925941499 | P14: =IF(AND($A14=0,Berechnung!$B$10=0),1,IF(Berechnung!$B$10<>0,_xlfn.NORM.DIST($A14,0,Berechnung!$B$10,FALSE),0)) -> 0.0255708022 | Q14: =IF(AND($A14>=0,Berechnung!$B$10=0),1,IF(Berechnung!$B$10<>0,_xlfn.NORM.DIST($A14,0,Berechnung!$B$10,TRUE),0)) -> 0.216200962 | R14: =IF(AND($A14=0,Berechnung!$B$11=0),1,IF(Berechnung!$B$11<>0,_xlfn.NORM.DIST($A14,0,Berechnung!$B$11,FALSE),0)) -> 0 | S14: =IF(AND($A14>=0,Berechnung!$B$11=0),1,IF(Berechnung!$B$11<>0,_xlfn.NORM.DIST($A14,0,Berechnung!$B$11,TRUE),0)) -> 0 | T14: =Demonstrator!$J$19*'Daten Diagramm'!H14+Demonstrator!$J$24*'Daten Diagramm'!L14 -> 0.02602834405 | U14: =Demonstrator!$J$19*'Daten Diagramm'!I14+Demonstrator!$J$24*'Daten Diagramm'!M14 -> 0.1806770932
A15: -8 | B15: =IF(AND(A15=0,Berechnung!$B$3=0),1,IF(Berechnung!$B$3<>0,_xlfn.NORM.DIST(A15,0,Berechnung!$B$3,FALSE),0)) -> 0.02986031795 | C15: =IF(AND($A15>=0,Berechnung!$B$3=0),1,IF(Berechnung!$B$3<>0,_xlfn.NORM.DIST($A15,0,Berechnung!$B$3,TRUE),0)) -> 0.1870313987 | D15: =IF(AND($A15=0,Berechnung!$B$4=0),1,IF(Berechnung!$B$4<>0,_xlfn.NORM.DIST($A15,0,Berechnung!$B$4,FALSE),0)) -> 0.02986031795 | E15: =IF(AND($A15>=0,Berechnung!$B$4=0),1,IF(Berechnung!$B$4<>0,_xlfn.NORM.DIST($A15,0,Berechnung!$B$4,TRUE),0)) -> 0.1870313987 | F15: =IF(AND($A15=0,Berechnung!$B$5=0),1,IF(Berechnung!$B$5<>0,_xlfn.NORM.DIST($A15,0,Berechnung!$B$5,FALSE),0)) -> 0.02352199454 | G15: =IF(AND($A15>=0,Berechnung!$B$5=0),1,IF(Berechnung!$B$5<>0,_xlfn.NORM.DIST($A15,0,Berechnung!$B$5,TRUE),0)) -> 0.2917941232 | H15: =IF(AND($A15=0,Berechnung!$B$6=0),1,IF(Berechnung!$B$6<>0,_xlfn.NORM.DIST($A15,0,Berechnung!$B$6,FALSE),0)) -> 0.02351890505 | I15: =IF(AND($A15>=0,Berechnung!$B$6=0),1,IF(Berechnung!$B$6<>0,_xlfn.NORM.DIST($A15,0,Berechnung!$B$6,TRUE),0)) -> 0.2918294524 | J15: =IF(AND($A15=0,Berechnung!$B$7=0),1,IF(Berechnung!$B$7<>0,_xlfn.NORM.DIST($A15,0,Berechnung!$B$7,FALSE),0)) -> 0.02986031795 | K15: =IF(AND($A15>=0,Berechnung!$B$7=0),1,IF(Berechnung!$B$7<>0,_xlfn.NORM.DIST($A15,0,Berechnung!$B$7,TRUE),0)) -> 0.1870313987 | L15: =IF(AND($A15=0,Berechnung!$B$8=0),1,IF(Berechnung!$B$8<>0,_xlfn.NORM.DIST($A15,0,Berechnung!$B$8,FALSE),0)) -> 0.02986031795 | M15: =IF(AND($A15>=0,Berechnung!$B$8=0),1,IF(Berechnung!$B$8<>0,_xlfn.NORM.DIST($A15,0,Berechnung!$B$8,TRUE),0)) -> 0.1870313987 | N15: =IF(AND($A15=0,Berechnung!$B$9=0),1,IF(Berechnung!$B$9<>0,_xlfn.NORM.DIST($A15,0,Berechnung!$B$9,FALSE),0)) -> 0.0285756504 | O15: =IF(AND($A15>=0,Berechnung!$B$9=0),1,IF(Berechnung!$B$9<>0,_xlfn.NORM.DIST($A15,0,Berechnung!$B$9,TRUE),0)) -> 0.2200897458 | P15: =IF(AND($A15=0,Berechnung!$B$10=0),1,IF(Berechnung!$B$10<>0,_xlfn.NORM.DIST($A15,0,Berechnung!$B$10,FALSE),0)) -> 0.02727938425 | Q15: =IF(AND($A15>=0,Berechnung!$B$10=0),1,IF(Berechnung!$B$10<>0,_xlfn.NORM.DIST($A15,0,Berechnung!$B$10,TRUE),0)) -> 0.2426336026 | R15: =IF(AND($A15=0,Berechnung!$B$11=0),1,IF(Berechnung!$B$11<>0,_xlfn.NORM.DIST($A15,0,Berechnung!$B$11,FALSE),0)) -> 0 | S15: =IF(AND($A15>=0,Berechnung!$B$11=0),1,IF(Berechnung!$B$11<>0,_xlfn.NORM.DIST($A15,0,Berechnung!$B$11,TRUE),0)) -> 0 | T15: =Demonstrator!$J$19*'Daten Diagramm'!H15+Demonstrator!$J$24*'Daten Diagramm'!L15 -> 0.02859203537 | U15: =Demonstrator!$J$19*'Daten Diagramm'!I15+Demonstrator!$J$24*'Daten Diagramm'!M15 -> 0.2079910095
A16: -7 | B16: =IF(AND(A16=0,Berechnung!$B$3=0),1,IF(Berechnung!$B$3<>0,_xlfn.NORM.DIST(A16,0,Berechnung!$B$3,FALSE),0)) -> 0.0327572081 | C16: =IF(AND($A16>=0,Berechnung!$B$3=0),1,IF(Berechnung!$B$3<>0,_xlfn.NORM.DIST($A16,0,Berechnung!$B$3,TRUE),0)) -> 0.2183500154 | D16: =IF(AND($A16=0,Berechnung!$B$4=0),1,IF(Berechnung!$B$4<>0,_xlfn.NORM.DIST($A16,0,Berechnung!$B$4,FALSE),0)) -> 0.0327572081 | E16: =IF(AND($A16>=0,Berechnung!$B$4=0),1,IF(Berechnung!$B$4<>0,_xlfn.NORM.DIST($A16,0,Berechnung!$B$4,TRUE),0)) -> 0.2183500154 | F16: =IF(AND($A16=0,Berechnung!$B$5=0),1,IF(Berechnung!$B$5<>0,_xlfn.NORM.DIST($A16,0,Berechnung!$B$5,FALSE),0)) -> 0.02436498812 | G16: =IF(AND($A16>=0,Berechnung!$B$5=0),1,IF(Berechnung!$B$5<>0,_xlfn.NORM.DIST($A16,0,Berechnung!$B$5,TRUE),0)) -> 0.3157445096 | H16: =IF(AND($A16=0,Berechnung!$B$6=0),1,IF(Berechnung!$B$6<>0,_xlfn.NORM.DIST($A16,0,Berechnung!$B$6,FALSE),0)) -> 0.02436146585 | I16: =IF(AND($A16>=0,Berechnung!$B$6=0),1,IF(Berechnung!$B$6<>0,_xlfn.NORM.DIST($A16,0,Berechnung!$B$6,TRUE),0)) -> 0.3157765304 | J16: =IF(AND($A16=0,Berechnung!$B$7=0),1,IF(Berechnung!$B$7<>0,_xlfn.NORM.DIST($A16,0,Berechnung!$B$7,FALSE),0)) -> 0.0327572081 | K16: =IF(AND($A16>=0,Berechnung!$B$7=0),1,IF(Berechnung!$B$7<>0,_xlfn.NORM.DIST($A16,0,Berechnung!$B$7,TRUE),0)) -> 0.2183500154 | L16: =IF(AND($A16=0,Berechnung!$B$8=0),1,IF(Berechnung!$B$8<>0,_xlfn.NORM.DIST($A16,0,Berechnung!$B$8,FALSE),0)) -> 0.0327572081 | M16: =IF(AND($A16>=0,Berechnung!$B$8=0),1,IF(Berechnung!$B$8<>0,_xlfn.NORM.DIST($A16,0,Berechnung!$B$8,TRUE),0)) -> 0.2183500154 | N16: =IF(AND($A16=0,Berechnung!$B$9=0),1,IF(Berechnung!$B$9<>0,_xlfn.NORM.DIST($A16,0,Berechnung!$B$9,FALSE),0)) -> 0.03064216406 | O16: =IF(AND($A16>=0,Berechnung!$B$9=0),1,IF(Berechnung!$B$9<>0,_xlfn.NORM.DIST($A16,0,Berechnung!$B$9,TRUE),0)) -> 0.2497096001 | P16: =IF(AND($A16=0,Berechnung!$B$10=0),1,IF(Berechnung!$B$10<>0,_xlfn.NORM.DIST($A16,0,Berechnung!$B$10,FALSE),0)) -> 0.02888151981 | Q16: =IF(AND($A16>=0,Berechnung!$B$10=0),1,IF(Berechnung!$B$10<>0,_xlfn.NORM.DIST($A16,0,Berechnung!$B$10,TRUE),0)) -> 0.2707242428 | R16: =IF(AND($A16=0,Berechnung!$B$11=0),1,IF(Berechnung!$B$11<>0,_xlfn.NORM.DIST($A16,0,Berechnung!$B$11,FALSE),0)) -> 0 | S16: =IF(AND($A16>=0,Berechnung!$B$11=0),1,IF(Berechnung!$B$11<>0,_xlfn.NORM.DIST($A16,0,Berechnung!$B$11,TRUE),0)) -> 0 | T16: =Demonstrator!$J$19*'Daten Diagramm'!H16+Demonstrator!$J$24*'Daten Diagramm'!L16 -> 0.03107805965 | U16: =Demonstrator!$J$19*'Daten Diagramm'!I16+Demonstrator!$J$24*'Daten Diagramm'!M16 -> 0.2378353184
A17: -6 | B17: =IF(AND(A17=0,Berechnung!$B$3=0),1,IF(Berechnung!$B$3<>0,_xlfn.NORM.DIST(A17,0,Berechnung!$B$3,FALSE),0)) -> 0.03549422284 | C17: =IF(AND($A17>=0,Berechnung!$B$3=0),1,IF(Berechnung!$B$3<>0,_xlfn.NORM.DIST($A17,0,Berechnung!$B$3,TRUE),0)) -> 0.2524925375 | D17: =IF(AND($A17=0,Berechnung!$B$4=0),1,IF(Berechnung!$B$4<>0,_xlfn.NORM.DIST($A17,0,Berechnung!$B$4,FALSE),0)) -> 0.03549422284 | E17: =IF(AND($A17>=0,Berechnung!$B$4=0),1,IF(Berechnung!$B$4<>0,_xlfn.NORM.DIST($A17,0,Berechnung!$B$4,TRUE),0)) -> 0.2524925375 | F17: =IF(AND($A17=0,Berechnung!$B$5=0),1,IF(Berechnung!$B$5<>0,_xlfn.NORM.DIST($A17,0,Berechnung!$B$5,FALSE),0)) -> 0.02511998189 | G17: =IF(AND($A17>=0,Berechnung!$B$5=0),1,IF(Berechnung!$B$5<>0,_xlfn.NORM.DIST($A17,0,Berechnung!$B$5,TRUE),0)) -> 0.3404947562 | H17: =IF(AND($A17=0,Berechnung!$B$6=0),1,IF(Berechnung!$B$6<>0,_xlfn.NORM.DIST($A17,0,Berechnung!$B$6,FALSE),0)) -> 0.02511606272 | I17: =IF(AND($A17>=0,Berechnung!$B$6=0),1,IF(Berechnung!$B$6<>0,_xlfn.NORM.DIST($A17,0,Berechnung!$B$6,TRUE),0)) -> 0.3405230529 | J17: =IF(AND($A17=0,Berechnung!$B$7=0),1,IF(Berechnung!$B$7<>0,_xlfn.NORM.DIST($A17,0,Berechnung!$B$7,FALSE),0)) -> 0.03549422284 | K17: =IF(AND($A17>=0,Berechnung!$B$7=0),1,IF(Berechnung!$B$7<>0,_xlfn.NORM.DIST($A17,0,Berechnung!$B$7,TRUE),0)) -> 0.2524925375 | L17: =IF(AND($A17=0,Berechnung!$B$8=0),1,IF(Berechnung!$B$8<>0,_xlfn.NORM.DIST($A17,0,Berechnung!$B$8,FALSE),0)) -> 0.03549422284 | M17: =IF(AND($A17>=0,Berechnung!$B$8=0),1,IF(Berechnung!$B$8<>0,_xlfn.NORM.DIST($A17,0,Berechnung!$B$8,TRUE),0)) -> 0.2524925375 | N17: =IF(AND($A17=0,Berechnung!$B$9=0),1,IF(Berechnung!$B$9<>0,_xlfn.NORM.DIST($A17,0,Berechnung!$B$9,FALSE),0)) -> 0.03255364589 | O17: =IF(AND($A17>=0,Berechnung!$B$9=0),1,IF(Berechnung!$B$9<>0,_xlfn.NORM.DIST($A17,0,Berechnung!$B$9,TRUE),0)) -> 0.2813223827 | P17: =IF(AND($A17=0,Berechnung!$B$10=0),1,IF(Berechnung!$B$10<>0,_xlfn.NORM.DIST($A17,0,Berechnung!$B$10,FALSE),0)) -> 0.03034595379 | Q17: =IF(AND($A17>=0,Berechnung!$B$10=0),1,IF(Berechnung!$B$10<>0,_xlfn.NORM.DIST($A17,0,Berechnung!$B$10,TRUE),0)) -> 0.3003507249 | R17: =IF(AND($A17=0,Berechnung!$B$11=0),1,IF(Berechnung!$B$11<>0,_xlfn.NORM.DIST($A17,0,Berechnung!$B$11,FALSE),0)) -> 0 | S17: =IF(AND($A17>=0,Berechnung!$B$11=0),1,IF(Berechnung!$B$11<>0,_xlfn.NORM.DIST($A17,0,Berechnung!$B$11,TRUE),0)) -> 0 | T17: =Demonstrator!$J$19*'Daten Diagramm'!H17+Demonstrator!$J$24*'Daten Diagramm'!L17 -> 0.03341859081 | U17: =Demonstrator!$J$19*'Daten Diagramm'!I17+Demonstrator!$J$24*'Daten Diagramm'!M17 -> 0.2700986406
A18: -5 | B18: =IF(AND(A18=0,Berechnung!$B$3=0),1,IF(Berechnung!$B$3<>0,_xlfn.NORM.DIST(A18,0,Berechnung!$B$3,FALSE),0)) -> 0.03798803269 | C18: =IF(AND($A18>=0,Berechnung!$B$3=0),1,IF(Berechnung!$B$3<>0,_xlfn.NORM.DIST($A18,0,Berechnung!$B$3,TRUE),0)) -> 0.2892573608 | D18: =IF(AND($A18=0,Berechnung!$B$4=0),1,IF(Berechnung!$B$4<>0,_xlfn.NORM.DIST($A18,0,Berechnung!$B$4,FALSE),0)) -> 0.03798803269 | E18: =IF(AND($A18>=0,Berechnung!$B$4=0),1,IF(Berechnung!$B$4<>0,_xlfn.NORM.DIST($A18,0,Berechnung!$B$4,TRUE),0)) -> 0.2892573608 | F18: =IF(AND($A18=0,Berechnung!$B$5=0),1,IF(Berechnung!$B$5<>0,_xlfn.NORM.DIST($A18,0,Berechnung!$B$5,FALSE),0)) -> 0.0257770669 | G18: =IF(AND($A18>=0,Berechnung!$B$5=0),1,IF(Berechnung!$B$5<>0,_xlfn.NORM.DIST($A18,0,Berechnung!$B$5,TRUE),0)) -> 0.3659518247 | H18: =IF(AND($A18=0,Berechnung!$B$6=0),1,IF(Berechnung!$B$6<>0,_xlfn.NORM.DIST($A18,0,Berechnung!$B$6,FALSE),0)) -> 0.02577279535 | I18: =IF(AND($A18>=0,Berechnung!$B$6=0),1,IF(Berechnung!$B$6<>0,_xlfn.NORM.DIST($A18,0,Berechnung!$B$6,TRUE),0)) -> 0.365976022 | J18: =IF(AND($A18=0,Berechnung!$B$7=0),1,IF(Berechnung!$B$7<>0,_xlfn.NORM.DIST($A18,0,Berechnung!$B$7,FALSE),0)) -> 0.03798803269 | K18: =IF(AND($A18>=0,Berechnung!$B$7=0),1,IF(Berechnung!$B$7<>0,_xlfn.NORM.DIST($A18,0,Berechnung!$B$7,TRUE),0)) -> 0.2892573608 | L18: =IF(AND($A18=0,Berechnung!$B$8=0),1,IF(Berechnung!$B$8<>0,_xlfn.NORM.DIST($A18,0,Berechnung!$B$8,FALSE),0)) -> 0.03798803269 | M18: =IF(AND($A18>=0,Berechnung!$B$8=0),1,IF(Berechnung!$B$8<>0,_xlfn.NORM.DIST($A18,0,Berechnung!$B$8,TRUE),0)) -> 0.2892573608 | N18: =IF(AND($A18=0,Berechnung!$B$9=0),1,IF(Berechnung!$B$9<>0,_xlfn.NORM.DIST($A18,0,Berechnung!$B$9,FALSE),0)) -> 0.03426389486 | O18: =IF(AND($A18>=0,Berechnung!$B$9=0),1,IF(Berechnung!$B$9<>0,_xlfn.NORM.DIST($A18,0,Berechnung!$B$9,TRUE),0)) -> 0.3147497798 | P18: =IF(AND($A18=0,Berechnung!$B$10=0),1,IF(Berechnung!$B$10<>0,_xlfn.NORM.DIST($A18,0,Berechnung!$B$10,FALSE),0)) -> 0.03164293876 | Q18: =IF(AND($A18>=0,Berechnung!$B$10=0),1,IF(Berechnung!$B$10<>0,_xlfn.NORM.DIST($A18,0,Berechnung!$B$10,TRUE),0)) -> 0.3313603061 | R18: =IF(AND($A18=0,Berechnung!$B$11=0),1,IF(Berechnung!$B$11<>0,_xlfn.NORM.DIST($A18,0,Berechnung!$B$11,FALSE),0)) -> 0 | S18: =IF(AND($A18>=0,Berechnung!$B$11=0),1,IF(Berechnung!$B$11<>0,_xlfn.NORM.DIST($A18,0,Berechnung!$B$11,TRUE),0)) -> 0 | T18: =Demonstrator!$J$19*'Daten Diagramm'!H18+Demonstrator!$J$24*'Daten Diagramm'!L18 -> 0.03554498522 | U18: =Demonstrator!$J$19*'Daten Diagramm'!I18+Demonstrator!$J$24*'Daten Diagramm'!M18 -> 0.304601093
A19: -4 | B19: =IF(AND(A19=0,Berechnung!$B$3=0),1,IF(Berechnung!$B$3<>0,_xlfn.NORM.DIST(A19,0,Berechnung!$B$3,FALSE),0)) -> 0.04015820332 | C19: =IF(AND($A19>=0,Berechnung!$B$3=0),1,IF(Berechnung!$B$3<>0,_xlfn.NORM.DIST($A19,0,Berechnung!$B$3,TRUE),0)) -> 0.3283606433 | D19: =IF(AND($A19=0,Berechnung!$B$4=0),1,IF(Berechnung!$B$4<>0,_xlfn.NORM.DIST($A19,0,Berechnung!$B$4,FALSE),0)) -> 0.04015820332 | E19: =IF(AND($A19>=0,Berechnung!$B$4=0),1,IF(Berechnung!$B$4<>0,_xlfn.NORM.DIST($A19,0,Berechnung!$B$4,TRUE),0)) -> 0.3283606433 | F19: =IF(AND($A19=0,Berechnung!$B$5=0),1,IF(Berechnung!$B$5<>0,_xlfn.NORM.DIST($A19,0,Berechnung!$B$5,FALSE),0)) -> 0.02632744622 | G19: =IF(AND($A19>=0,Berechnung!$B$5=0),1,IF(Berechnung!$B$5<>0,_xlfn.NORM.DIST($A19,0,Berechnung!$B$5,TRUE),0)) -> 0.3920133069 | H19: =IF(AND($A19=0,Berechnung!$B$6=0),1,IF(Berechnung!$B$6<>0,_xlfn.NORM.DIST($A19,0,Berechnung!$B$6,FALSE),0)) -> 0.02632287467 | I19: =IF(AND($A19>=0,Berechnung!$B$6=0),1,IF(Berechnung!$B$6<>0,_xlfn.NORM.DIST($A19,0,Berechnung!$B$6,TRUE),0)) -> 0.3920330779 | J19: =IF(AND($A19=0,Berechnung!$B$7=0),1,IF(Berechnung!$B$7<>0,_xlfn.NORM.DIST($A19,0,Berechnung!$B$7,FALSE),0)) -> 0.04015820332 | K19: =IF(AND($A19>=0,Berechnung!$B$7=0),1,IF(Berechnung!$B$7<>0,_xlfn.NORM.DIST($A19,0,Berechnung!$B$7,TRUE),0)) -> 0.3283606433 | L19: =IF(AND($A19=0,Berechnung!$B$8=0),1,IF(Berechnung!$B$8<>0,_xlfn.NORM.DIST($A19,0,Berechnung!$B$8,FALSE),0)) -> 0.04015820332 | M19: =IF(AND($A19>=0,Berechnung!$B$8=0),1,IF(Berechnung!$B$8<>0,_xlfn.NORM.DIST($A19,0,Berechnung!$B$8,TRUE),0)) -> 0.3283606433 | N19: =IF(AND($A19=0,Berechnung!$B$9=0),1,IF(Berechnung!$B$9<>0,_xlfn.NORM.DIST($A19,0,Berechnung!$B$9,FALSE),0)) -> 0.03572981063 | O19: =IF(AND($A19>=0,Berechnung!$B$9=0),1,IF(Berechnung!$B$9<>0,_xlfn.NORM.DIST($A19,0,Berechnung!$B$9,TRUE),0)) -> 0.3497686734 | P19: =IF(AND($A19=0,Berechnung!$B$10=0),1,IF(Berechnung!$B$10<>0,_xlfn.NORM.DIST($A19,0,Berechnung!$B$10,FALSE),0)) -> 0.03274523403 | Q19: =IF(AND($A19>=0,Berechnung!$B$10=0),1,IF(Berechnung!$B$10<>0,_xlfn.NORM.DIST($A19,0,Berechnung!$B$10,TRUE),0)) -> 0.3635716674 | R19: =IF(AND($A19=0,Berechnung!$B$11=0),1,IF(Berechnung!$B$11<>0,_xlfn.NORM.DIST($A19,0,Berechnung!$B$11,FALSE),0)) -> 0 | S19: =IF(AND($A19>=0,Berechnung!$B$11=0),1,IF(Berechnung!$B$11<>0,_xlfn.NORM.DIST($A19,0,Berechnung!$B$11,TRUE),0)) -> 0 | T19: =Demonstrator!$J$19*'Daten Diagramm'!H19+Demonstrator!$J$24*'Daten Diagramm'!L19 -> 0.03739113759 | U19: =Demonstrator!$J$19*'Daten Diagramm'!I19+Demonstrator!$J$24*'Daten Diagramm'!M19 -> 0.3410951302
A20: -3 | B20: =IF(AND(A20=0,Berechnung!$B$3=0),1,IF(Berechnung!$B$3<>0,_xlfn.NORM.DIST(A20,0,Berechnung!$B$3,FALSE),0)) -> 0.04193146974 | C20: =IF(AND($A20>=0,Berechnung!$B$3=0),1,IF(Berechnung!$B$3<>0,_xlfn.NORM.DIST($A20,0,Berechnung!$B$3,TRUE),0)) -> 0.3694413402 | D20: =IF(AND($A20=0,Berechnung!$B$4=0),1,IF(Berechnung!$B$4<>0,_xlfn.NORM.DIST($A20,0,Berechnung!$B$4,FALSE),0)) -> 0.04193146974 | E20: =IF(AND($A20>=0,Berechnung!$B$4=0),1,IF(Berechnung!$B$4<>0,_xlfn.NORM.DIST($A20,0,Berechnung!$B$4,TRUE),0)) -> 0.3694413402 | F20: =IF(AND($A20=0,Berechnung!$B$5=0),1,IF(Berechnung!$B$5<>0,_xlfn.NORM.DIST($A20,0,Berechnung!$B$5,FALSE),0)) -> 0.0267636307 | G20: =IF(AND($A20>=0,Berechnung!$B$5=0),1,IF(Berechnung!$B$5<>0,_xlfn.NORM.DIST($A20,0,Berechnung!$B$5,TRUE),0)) -> 0.4185686358 | H20: =IF(AND($A20=0,Berechnung!$B$6=0),1,IF(Berechnung!$B$6<>0,_xlfn.NORM.DIST($A20,0,Berechnung!$B$6,FALSE),0)) -> 0.02675881833 | I20: =IF(AND($A20>=0,Berechnung!$B$6=0),1,IF(Berechnung!$B$6<>0,_xlfn.NORM.DIST($A20,0,Berechnung!$B$6,TRUE),0)) -> 0.4185837097 | J20: =IF(AND($A20=0,Berechnung!$B$7=0),1,IF(Berechnung!$B$7<>0,_xlfn.NORM.DIST($A20,0,Berechnung!$B$7,FALSE),0)) -> 0.04193146974 | K20: =IF(AND($A20>=0,Berechnung!$B$7=0),1,IF(Berechnung!$B$7<>0,_xlfn.NORM.DIST($A20,0,Berechnung!$B$7,TRUE),0)) -> 0.3694413402 | L20: =IF(AND($A20=0,Berechnung!$B$8=0),1,IF(Berechnung!$B$8<>0,_xlfn.NORM.DIST($A20,0,Berechnung!$B$8,FALSE),0)) -> 0.04193146974 | M20: =IF(AND($A20>=0,Berechnung!$B$8=0),1,IF(Berechnung!$B$8<>0,_xlfn.NORM.DIST($A20,0,Berechnung!$B$8,TRUE),0)) -> 0.3694413402 | N20: =IF(AND($A20=0,Berechnung!$B$9=0),1,IF(Berechnung!$B$9<>0,_xlfn.NORM.DIST($A20,0,Berechnung!$B$9,FALSE),0)) -> 0.0369131912 | O20: =IF(AND($A20>=0,Berechnung!$B$9=0),1,IF(Berechnung!$B$9<>0,_xlfn.NORM.DIST($A20,0,Berechnung!$B$9,TRUE),0)) -> 0.3861151495 | P20: =IF(AND($A20=0,Berechnung!$B$10=0),1,IF(Berechnung!$B$10<>0,_xlfn.NORM.DIST($A20,0,Berechnung!$B$10,FALSE),0)) -> 0.03362905441 | Q20: =IF(AND($A20>=0,Berechnung!$B$10=0),1,IF(Berechnung!$B$10<>0,_xlfn.NORM.DIST($A20,0,Berechnung!$B$10,TRUE),0)) -> 0.3967779011 | R20: =IF(AND($A20=0,Berechnung!$B$11=0),1,IF(Berechnung!$B$11<>0,_xlfn.NORM.DIST($A20,0,Berechnung!$B$11,FALSE),0)) -> 0 | S20: =IF(AND($A20>=0,Berechnung!$B$11=0),1,IF(Berechnung!$B$11<>0,_xlfn.NORM.DIST($A20,0,Berechnung!$B$11,TRUE),0)) -> 0 | T20: =Demonstrator!$J$19*'Daten Diagramm'!H20+Demonstrator!$J$24*'Daten Diagramm'!L20 -> 0.03889693946 | U20: =Demonstrator!$J$19*'Daten Diagramm'!I20+Demonstrator!$J$24*'Daten Diagramm'!M20 -> 0.3792698141
A21: -2 | B21: =IF(AND(A21=0,Berechnung!$B$3=0),1,IF(Berechnung!$B$3<>0,_xlfn.NORM.DIST(A21,0,Berechnung!$B$3,FALSE),0)) -> 0.04324582991 | C21: =IF(AND($A21>=0,Berechnung!$B$3=0),1,IF(Berechnung!$B$3<>0,_xlfn.NORM.DIST($A21,0,Berechnung!$B$3,TRUE),0)) -> 0.4120704479 | D21: =IF(AND($A21=0,Berechnung!$B$4=0),1,IF(Berechnung!$B$4<>0,_xlfn.NORM.DIST($A21,0,Berechnung!$B$4,FALSE),0)) -> 0.04324582991 | E21: =IF(AND($A21>=0,Berechnung!$B$4=0),1,IF(Berechnung!$B$4<>0,_xlfn.NORM.DIST($A21,0,Berechnung!$B$4,TRUE),0)) -> 0.4120704479 | F21: =IF(AND($A21=0,Berechnung!$B$5=0),1,IF(Berechnung!$B$5<>0,_xlfn.NORM.DIST($A21,0,Berechnung!$B$5,FALSE),0)) -> 0.02707960852 | G21: =IF(AND($A21>=0,Berechnung!$B$5=0),1,IF(Berechnung!$B$5<>0,_xlfn.NORM.DIST($A21,0,Berechnung!$B$5,TRUE),0)) -> 0.4455004814 | H21: =IF(AND($A21=0,Berechnung!$B$6=0),1,IF(Berechnung!$B$6<>0,_xlfn.NORM.DIST($A21,0,Berechnung!$B$6,FALSE),0)) -> 0.02707462003 | I21: =IF(AND($A21>=0,Berechnung!$B$6=0),1,IF(Berechnung!$B$6<>0,_xlfn.NORM.DIST($A21,0,Berechnung!$B$6,TRUE),0)) -> 0.4455106493 | J21: =IF(AND($A21=0,Berechnung!$B$7=0),1,IF(Berechnung!$B$7<>0,_xlfn.NORM.DIST($A21,0,Berechnung!$B$7,FALSE),0)) -> 0.04324582991 | K21: =IF(AND($A21>=0,Berechnung!$B$7=0),1,IF(Berechnung!$B$7<>0,_xlfn.NORM.DIST($A21,0,Berechnung!$B$7,TRUE),0)) -> 0.4120704479 | L21: =IF(AND($A21=0,Berechnung!$B$8=0),1,IF(Berechnung!$B$8<>0,_xlfn.NORM.DIST($A21,0,Berechnung!$B$8,FALSE),0)) -> 0.04324582991 | M21: =IF(AND($A21>=0,Berechnung!$B$8=0),1,IF(Berechnung!$B$8<>0,_xlfn.NORM.DIST($A21,0,Berechnung!$B$8,TRUE),0)) -> 0.4120704479 | N21: =IF(AND($A21=0,Berechnung!$B$9=0),1,IF(Berechnung!$B$9<>0,_xlfn.NORM.DIST($A21,0,Berechnung!$B$9,FALSE),0)) -> 0.03778238438 | O21: =IF(AND($A21>=0,Berechnung!$B$9=0),1,IF(Berechnung!$B$9<>0,_xlfn.NORM.DIST($A21,0,Berechnung!$B$9,TRUE),0)) -> 0.4234902379 | P21: =IF(AND($A21=0,Berechnung!$B$10=0),1,IF(Berechnung!$B$10<>0,_xlfn.NORM.DIST($A21,0,Berechnung!$B$10,FALSE),0)) -> 0.03427492258 | Q21: =IF(AND($A21>=0,Berechnung!$B$10=0),1,IF(Berechnung!$B$10<>0,_xlfn.NORM.DIST($A21,0,Berechnung!$B$10,TRUE),0)) -> 0.4307504027 | R21: =IF(AND($A21=0,Berechnung!$B$11=0),1,IF(Berechnung!$B$11<>0,_xlfn.NORM.DIST($A21,0,Berechnung!$B$11,FALSE),0)) -> 0 | S21: =IF(AND($A21>=0,Berechnung!$B$11=0),1,IF(Berechnung!$B$11<>0,_xlfn.NORM.DIST($A21,0,Berechnung!$B$11,TRUE),0)) -> 0 | T21: =Demonstrator!$J$19*'Daten Diagramm'!H21+Demonstrator!$J$24*'Daten Diagramm'!L21 -> 0.04001158793 | U21: =Demonstrator!$J$19*'Daten Diagramm'!I21+Demonstrator!$J$24*'Daten Diagramm'!M21 -> 0.4187584882
A22: -1 | B22: =IF(AND(A22=0,Berechnung!$B$3=0),1,IF(Berechnung!$B$3<>0,_xlfn.NORM.DIST(A22,0,Berechnung!$B$3,FALSE),0)) -> 0.04405413986 | C22: =IF(AND($A22>=0,Berechnung!$B$3=0),1,IF(Berechnung!$B$3<>0,_xlfn.NORM.DIST($A22,0,Berechnung!$B$3,TRUE),0)) -> 0.455764119 | D22: =IF(AND($A22=0,Berechnung!$B$4=0),1,IF(Berechnung!$B$4<>0,_xlfn.NORM.DIST($A22,0,Berechnung!$B$4,FALSE),0)) -> 0.04405413986 | E22: =IF(AND($A22>=0,Berechnung!$B$4=0),1,IF(Berechnung!$B$4<>0,_xlfn.NORM.DIST($A22,0,Berechnung!$B$4,TRUE),0)) -> 0.455764119 | F22: =IF(AND($A22=0,Berechnung!$B$5=0),1,IF(Berechnung!$B$5<>0,_xlfn.NORM.DIST($A22,0,Berechnung!$B$5,FALSE),0)) -> 0.02727098305 | G22: =IF(AND($A22>=0,Berechnung!$B$5=0),1,IF(Berechnung!$B$5<>0,_xlfn.NORM.DIST($A22,0,Berechnung!$B$5,TRUE),0)) -> 0.4726862993 | H22: =IF(AND($A22=0,Berechnung!$B$6=0),1,IF(Berechnung!$B$6<>0,_xlfn.NORM.DIST($A22,0,Berechnung!$B$6,FALSE),0)) -> 0.02726588721 | I22: =IF(AND($A22>=0,Berechnung!$B$6=0),1,IF(Berechnung!$B$6<>0,_xlfn.NORM.DIST($A22,0,Berechnung!$B$6,TRUE),0)) -> 0.4726914191 | J22: =IF(AND($A22=0,Berechnung!$B$7=0),1,IF(Berechnung!$B$7<>0,_xlfn.NORM.DIST($A22,0,Berechnung!$B$7,FALSE),0)) -> 0.04405413986 | K22: =IF(AND($A22>=0,Berechnung!$B$7=0),1,IF(Berechnung!$B$7<>0,_xlfn.NORM.DIST($A22,0,Berechnung!$B$7,TRUE),0)) -> 0.455764119 | L22: =IF(AND($A22=0,Berechnung!$B$8=0),1,IF(Berechnung!$B$8<>0,_xlfn.NORM.DIST($A22,0,Berechnung!$B$8,FALSE),0)) -> 0.04405413986 | M22: =IF(AND($A22>=0,Berechnung!$B$8=0),1,IF(Berechnung!$B$8<>0,_xlfn.NORM.DIST($A22,0,Berechnung!$B$8,TRUE),0)) -> 0.455764119 | N22: =IF(AND($A22=0,Berechnung!$B$9=0),1,IF(Berechnung!$B$9<>0,_xlfn.NORM.DIST($A22,0,Berechnung!$B$9,FALSE),0)) -> 0.03831369378 | O22: =IF(AND($A22>=0,Berechnung!$B$9=0),1,IF(Berechnung!$B$9<>0,_xlfn.NORM.DIST($A22,0,Berechnung!$B$9,TRUE),0)) -> 0.4615671895 | P22: =IF(AND($A22=0,Berechnung!$B$10=0),1,IF(Berechnung!$B$10<>0,_xlfn.NORM.DIST($A22,0,Berechnung!$B$10,FALSE),0)) -> 0.03466838241 | Q22: =IF(AND($A22>=0,Berechnung!$B$10=0),1,IF(Berechnung!$B$10<>0,_xlfn.NORM.DIST($A22,0,Berechnung!$B$10,TRUE),0)) -> 0.4652435481 | R22: =IF(AND($A22=0,Berechnung!$B$11=0),1,IF(Berechnung!$B$11<>0,_xlfn.NORM.DIST($A22,0,Berechnung!$B$11,FALSE),0)) -> 0 | S22: =IF(AND($A22>=0,Berechnung!$B$11=0),1,IF(Berechnung!$B$11<>0,_xlfn.NORM.DIST($A22,0,Berechnung!$B$11,TRUE),0)) -> 0 | T22: =Demonstrator!$J$19*'Daten Diagramm'!H22+Demonstrator!$J$24*'Daten Diagramm'!L22 -> 0.04069648933 | U22: =Demonstrator!$J$19*'Daten Diagramm'!I22+Demonstrator!$J$24*'Daten Diagramm'!M22 -> 0.459149579
A23: 0 | B23: =IF(AND(A23=0,Berechnung!$B$3=0),1,IF(Berechnung!$B$3<>0,_xlfn.NORM.DIST(A23,0,Berechnung!$B$3,FALSE),0)) -> 0.04432692004 | C23: =IF(AND($A23>=0,Berechnung!$B$3=0),1,IF(Berechnung!$B$3<>0,_xlfn.NORM.DIST($A23,0,Berechnung!$B$3,TRUE),0)) -> 0.5 | D23: =IF(AND($A23=0,Berechnung!$B$4=0),1,IF(Berechnung!$B$4<>0,_xlfn.NORM.DIST($A23,0,Berechnung!$B$4,FALSE),0)) -> 0.04432692004 | E23: =IF(AND($A23>=0,Berechnung!$B$4=0),1,IF(Berechnung!$B$4<>0,_xlfn.NORM.DIST($A23,0,Berechnung!$B$4,TRUE),0)) -> 0.5 | F23: =IF(AND($A23=0,Berechnung!$B$5=0),1,IF(Berechnung!$B$5<>0,_xlfn.NORM.DIST($A23,0,Berechnung!$B$5,FALSE),0)) -> 0.02733507464 | G23: =IF(AND($A23>=0,Berechnung!$B$5=0),1,IF(Berechnung!$B$5<>0,_xlfn.NORM.DIST($A23,0,Berechnung!$B$5,TRUE),0)) -> 0.5 | H23: =IF(AND($A23=0,Berechnung!$B$6=0),1,IF(Berechnung!$B$6<>0,_xlfn.NORM.DIST($A23,0,Berechnung!$B$6,FALSE),0)) -> 0.02732994274 | I23: =IF(AND($A23>=0,Berechnung!$B$6=0),1,IF(Berechnung!$B$6<>0,_xlfn.NORM.DIST($A23,0,Berechnung!$B$6,TRUE),0)) -> 0.5 | J23: =IF(AND($A23=0,Berechnung!$B$7=0),1,IF(Berechnung!$B$7<>0,_xlfn.NORM.DIST($A23,0,Berechnung!$B$7,FALSE),0)) -> 0.04432692004 | K23: =IF(AND($A23>=0,Berechnung!$B$7=0),1,IF(Berechnung!$B$7<>0,_xlfn.NORM.DIST($A23,0,Berechnung!$B$7,TRUE),0)) -> 0.5 | L23: =IF(AND($A23=0,Berechnung!$B$8=0),1,IF(Berechnung!$B$8<>0,_xlfn.NORM.DIST($A23,0,Berechnung!$B$8,FALSE),0)) -> 0.04432692004 | M23: =IF(AND($A23>=0,Berechnung!$B$8=0),1,IF(Berechnung!$B$8<>0,_xlfn.NORM.DIST($A23,0,Berechnung!$B$8,TRUE),0)) -> 0.5 | N23: =IF(AND($A23=0,Berechnung!$B$9=0),1,IF(Berechnung!$B$9<>0,_xlfn.NORM.DIST($A23,0,Berechnung!$B$9,FALSE),0)) -> 0.03849245209 | O23: =IF(AND($A23>=0,Berechnung!$B$9=0),1,IF(Berechnung!$B$9<>0,_xlfn.NORM.DIST($A23,0,Berechnung!$B$9,TRUE),0)) -> 0.5 | P23: =IF(AND($A23=0,Berechnung!$B$10=0),1,IF(Berechnung!$B$10<>0,_xlfn.NORM.DIST($A23,0,Berechnung!$B$10,FALSE),0)) -> 0.03480053686 | Q23: =IF(AND($A23>=0,Berechnung!$B$10=0),1,IF(Berechnung!$B$10<>0,_xlfn.NORM.DIST($A23,0,Berechnung!$B$10,TRUE),0)) -> 0.5 | R23: =IF(AND($A23=0,Berechnung!$B$11=0),1,IF(Berechnung!$B$11<>0,_xlfn.NORM.DIST($A23,0,Berechnung!$B$11,FALSE),0)) -> 1 | S23: =IF(AND($A23>=0,Berechnung!$B$11=0),1,IF(Berechnung!$B$11<>0,_xlfn.NORM.DIST($A23,0,Berechnung!$B$11,TRUE),0)) -> 1 | T23: =Demonstrator!$J$19*'Daten Diagramm'!H23+Demonstrator!$J$24*'Daten Diagramm'!L23 -> 0.04092752458 | U23: =Demonstrator!$J$19*'Daten Diagramm'!I23+Demonstrator!$J$24*'Daten Diagramm'!M23 -> 0.5
A24: 1 | B24: =IF(AND(A24=0,Berechnung!$B$3=0),1,IF(Berechnung!$B$3<>0,_xlfn.NORM.DIST(A24,0,Berechnung!$B$3,FALSE),0)) -> 0.04405413986 | C24: =IF(AND($A24>=0,Berechnung!$B$3=0),1,IF(Berechnung!$B$3<>0,_xlfn.NORM.DIST($A24,0,Berechnung!$B$3,TRUE),0)) -> 0.544235881 | D24: =IF(AND($A24=0,Berechnung!$B$4=0),1,IF(Berechnung!$B$4<>0,_xlfn.NORM.DIST($A24,0,Berechnung!$B$4,FALSE),0)) -> 0.04405413986 | E24: =IF(AND($A24>=0,Berechnung!$B$4=0),1,IF(Berechnung!$B$4<>0,_xlfn.NORM.DIST($A24,0,Berechnung!$B$4,TRUE),0)) -> 0.544235881 | F24: =IF(AND($A24=0,Berechnung!$B$5=0),1,IF(Berechnung!$B$5<>0,_xlfn.NORM.DIST($A24,0,Berechnung!$B$5,FALSE),0)) -> 0.02727098305 | G24: =IF(AND($A24>=0,Berechnung!$B$5=0),1,IF(Berechnung!$B$5<>0,_xlfn.NORM.DIST($A24,0,Berechnung!$B$5,TRUE),0)) -> 0.5273137007 | H24: =IF(AND($A24=0,Berechnung!$B$6=0),1,IF(Berechnung!$B$6<>0,_xlfn.NORM.DIST($A24,0,Berechnung!$B$6,FALSE),0)) -> 0.02726588721 | I24: =IF(AND($A24>=0,Berechnung!$B$6=0),1,IF(Berechnung!$B$6<>0,_xlfn.NORM.DIST($A24,0,Berechnung!$B$6,TRUE),0)) -> 0.5273085809 | J24: =IF(AND($A24=0,Berechnung!$B$7=0),1,IF(Berechnung!$B$7<>0,_xlfn.NORM.DIST($A24,0,Berechnung!$B$7,FALSE),0)) -> 0.04405413986 | K24: =IF(AND($A24>=0,Berechnung!$B$7=0),1,IF(Berechnung!$B$7<>0,_xlfn.NORM.DIST($A24,0,Berechnung!$B$7,TRUE),0)) -> 0.544235881 | L24: =IF(AND($A24=0,Berechnung!$B$8=0),1,IF(Berechnung!$B$8<>0,_xlfn.NORM.DIST($A24,0,Berechnung!$B$8,FALSE),0)) -> 0.04405413986 | M24: =IF(AND($A24>=0,Berechnung!$B$8=0),1,IF(Berechnung!$B$8<>0,_xlfn.NORM.DIST($A24,0,Berechnung!$B$8,TRUE),0)) -> 0.544235881 | N24: =IF(AND($A24=0,Berechnung!$B$9=0),1,IF(Berechnung!$B$9<>0,_xlfn.NORM.DIST($A24,0,Berechnung!$B$9,FALSE),0)) -> 0.03831369378 | O24: =IF(AND($A24>=0,Berechnung!$B$9=0),1,IF(Berechnung!$B$9<>0,_xlfn.NORM.DIST($A24,0,Berechnung!$B$9,TRUE),0)) -> 0.5384328105 | P24: =IF(AND($A24=0,Berechnung!$B$10=0),1,IF(Berechnung!$B$10<>0,_xlfn.NORM.DIST($A24,0,Berechnung!$B$10,FALSE),0)) -> 0.03466838241 | Q24: =IF(AND($A24>=0,Berechnung!$B$10=0),1,IF(Berechnung!$B$10<>0,_xlfn.NORM.DIST($A24,0,Berechnung!$B$10,TRUE),0)) -> 0.5347564519 | R24: =IF(AND($A24=0,Berechnung!$B$11=0),1,IF(Berechnung!$B$11<>0,_xlfn.NORM.DIST($A24,0,Berechnung!$B$11,FALSE),0)) -> 0 | S24: =IF(AND($A24>=0,Berechnung!$B$11=0),1,IF(Berechnung!$B$11<>0,_xlfn.NORM.DIST($A24,0,Berechnung!$B$11,TRUE),0)) -> 1 | T24: =Demonstrator!$J$19*'Daten Diagramm'!H24+Demonstrator!$J$24*'Daten Diagramm'!L24 -> 0.04069648933 | U24: =Demonstrator!$J$19*'Daten Diagramm'!I24+Demonstrator!$J$24*'Daten Diagramm'!M24 -> 0.540850421
A25: 2 | B25: =IF(AND(A25=0,Berechnung!$B$3=0),1,IF(Berechnung!$B$3<>0,_xlfn.NORM.DIST(A25,0,Berechnung!$B$3,FALSE),0)) -> 0.04324582991 | C25: =IF(AND($A25>=0,Berechnung!$B$3=0),1,IF(Berechnung!$B$3<>0,_xlfn.NORM.DIST($A25,0,Berechnung!$B$3,TRUE),0)) -> 0.5879295521 | D25: =IF(AND($A25=0,Berechnung!$B$4=0),1,IF(Berechnung!$B$4<>0,_xlfn.NORM.DIST($A25,0,Berechnung!$B$4,FALSE),0)) -> 0.04324582991 | E25: =IF(AND($A25>=0,Berechnung!$B$4=0),1,IF(Berechnung!$B$4<>0,_xlfn.NORM.DIST($A25,0,Berechnung!$B$4,TRUE),0)) -> 0.5879295521 | F25: =IF(AND($A25=0,Berechnung!$B$5=0),1,IF(Berechnung!$B$5<>0,_xlfn.NORM.DIST($A25,0,Berechnung!$B$5,FALSE),0)) -> 0.02707960852 | G25: =IF(AND($A25>=0,Berechnung!$B$5=0),1,IF(Berechnung!$B$5<>0,_xlfn.NORM.DIST($A25,0,Berechnung!$B$5,TRUE),0)) -> 0.5544995186 | H25: =IF(AND($A25=0,Berechnung!$B$6=0),1,IF(Berechnung!$B$6<>0,_xlfn.NORM.DIST($A25,0,Berechnung!$B$6,FALSE),0)) -> 0.02707462003 | I25: =IF(AND($A25>=0,Berechnung!$B$6=0),1,IF(Berechnung!$B$6<>0,_xlfn.NORM.DIST($A25,0,Berechnung!$B$6,TRUE),0)) -> 0.5544893507 | J25: =IF(AND($A25=0,Berechnung!$B$7=0),1,IF(Berechnung!$B$7<>0,_xlfn.NORM.DIST($A25,0,Berechnung!$B$7,FALSE),0)) -> 0.04324582991 | K25: =IF(AND($A25>=0,Berechnung!$B$7=0),1,IF(Berechnung!$B$7<>0,_xlfn.NORM.DIST($A25,0,Berechnung!$B$7,TRUE),0)) -> 0.5879295521 | L25: =IF(AND($A25=0,Berechnung!$B$8=0),1,IF(Berechnung!$B$8<>0,_xlfn.NORM.DIST($A25,0,Berechnung!$B$8,FALSE),0)) -> 0.04324582991 | M25: =IF(AND($A25>=0,Berechnung!$B$8=0),1,IF(Berechnung!$B$8<>0,_xlfn.NORM.DIST($A25,0,Berechnung!$B$8,TRUE),0)) -> 0.5879295521 | N25: =IF(AND($A25=0,Berechnung!$B$9=0),1,IF(Berechnung!$B$9<>0,_xlfn.NORM.DIST($A25,0,Berechnung!$B$9,FALSE),0)) -> 0.03778238438 | O25: =IF(AND($A25>=0,Berechnung!$B$9=0),1,IF(Berechnung!$B$9<>0,_xlfn.NORM.DIST($A25,0,Berechnung!$B$9,TRUE),0)) -> 0.5765097621 | P25: =IF(AND($A25=0,Berechnung!$B$10=0),1,IF(Berechnung!$B$10<>0,_xlfn.NORM.DIST($A25,0,Berechnung!$B$10,FALSE),0)) -> 0.03427492258 | Q25: =IF(AND($A25>=0,Berechnung!$B$10=0),1,IF(Berechnung!$B$10<>0,_xlfn.NORM.DIST($A25,0,Berechnung!$B$10,TRUE),0)) -> 0.5692495973 | R25: =IF(AND($A25=0,Berechnung!$B$11=0),1,IF(Berechnung!$B$11<>0,_xlfn.NORM.DIST($A25,0,Berechnung!$B$11,FALSE),0)) -> 0 | S25: =IF(AND($A25>=0,Berechnung!$B$11=0),1,IF(Berechnung!$B$11<>0,_xlfn.NORM.DIST($A25,0,Berechnung!$B$11,TRUE),0)) -> 1 | T25: =Demonstrator!$J$19*'Daten Diagramm'!H25+Demonstrator!$J$24*'Daten Diagramm'!L25 -> 0.04001158793 | U25: =Demonstrator!$J$19*'Daten Diagramm'!I25+Demonstrator!$J$24*'Daten Diagramm'!M25 -> 0.5812415118
A26: 3 | B26: =IF(AND(A26=0,Berechnung!$B$3=0),1,IF(Berechnung!$B$3<>0,_xlfn.NORM.DIST(A26,0,Berechnung!$B$3,FALSE),0)) -> 0.04193146974 | C26: =IF(AND($A26>=0,Berechnung!$B$3=0),1,IF(Berechnung!$B$3<>0,_xlfn.NORM.DIST($A26,0,Berechnung!$B$3,TRUE),0)) -> 0.6305586598 | D26: =IF(AND($A26=0,Berechnung!$B$4=0),1,IF(Berechnung!$B$4<>0,_xlfn.NORM.DIST($A26,0,Berechnung!$B$4,FALSE),0)) -> 0.04193146974 | E26: =IF(AND($A26>=0,Berechnung!$B$4=0),1,IF(Berechnung!$B$4<>0,_xlfn.NORM.DIST($A26,0,Berechnung!$B$4,TRUE),0)) -> 0.6305586598 | F26: =IF(AND($A26=0,Berechnung!$B$5=0),1,IF(Berechnung!$B$5<>0,_xlfn.NORM.DIST($A26,0,Berechnung!$B$5,FALSE),0)) -> 0.0267636307 | G26: =IF(AND($A26>=0,Berechnung!$B$5=0),1,IF(Berechnung!$B$5<>0,_xlfn.NORM.DIST($A26,0,Berechnung!$B$5,TRUE),0)) -> 0.5814313642 | H26: =IF(AND($A26=0,Berechnung!$B$6=0),1,IF(Berechnung!$B$6<>0,_xlfn.NORM.DIST($A26,0,Berechnung!$B$6,FALSE),0)) -> 0.02675881833 | I26: =IF(AND($A26>=0,Berechnung!$B$6=0),1,IF(Berechnung!$B$6<>0,_xlfn.NORM.DIST($A26,0,Berechnung!$B$6,TRUE),0)) -> 0.5814162903 | J26: =IF(AND($A26=0,Berechnung!$B$7=0),1,IF(Berechnung!$B$7<>0,_xlfn.NORM.DIST($A26,0,Berechnung!$B$7,FALSE),0)) -> 0.04193146974 | K26: =IF(AND($A26>=0,Berechnung!$B$7=0),1,IF(Berechnung!$B$7<>0,_xlfn.NORM.DIST($A26,0,Berechnung!$B$7,TRUE),0)) -> 0.6305586598 | L26: =IF(AND($A26=0,Berechnung!$B$8=0),1,IF(Berechnung!$B$8<>0,_xlfn.NORM.DIST($A26,0,Berechnung!$B$8,FALSE),0)) -> 0.04193146974 | M26: =IF(AND($A26>=0,Berechnung!$B$8=0),1,IF(Berechnung!$B$8<>0,_xlfn.NORM.DIST($A26,0,Berechnung!$B$8,TRUE),0)) -> 0.6305586598 | N26: =IF(AND($A26=0,Berechnung!$B$9=0),1,IF(Berechnung!$B$9<>0,_xlfn.NORM.DIST($A26,0,Berechnung!$B$9,FALSE),0)) -> 0.0369131912 | O26: =IF(AND($A26>=0,Berechnung!$B$9=0),1,IF(Berechnung!$B$9<>0,_xlfn.NORM.DIST($A26,0,Berechnung!$B$9,TRUE),0)) -> 0.6138848505 | P26: =IF(AND($A26=0,Berechnung!$B$10=0),1,IF(Berechnung!$B$10<>0,_xlfn.NORM.DIST($A26,0,Berechnung!$B$10,FALSE),0)) -> 0.03362905441 | Q26: =IF(AND($A26>=0,Berechnung!$B$10=0),1,IF(Berechnung!$B$10<>0,_xlfn.NORM.DIST($A26,0,Berechnung!$B$10,TRUE),0)) -> 0.6032220989 | R26: =IF(AND($A26=0,Berechnung!$B$11=0),1,IF(Berechnung!$B$11<>0,_xlfn.NORM.DIST($A26,0,Berechnung!$B$11,FALSE),0)) -> 0 | S26: =IF(AND($A26>=0,Berechnung!$B$11=0),1,IF(Berechnung!$B$11<>0,_xlfn.NORM.DIST($A26,0,Berechnung!$B$11,TRUE),0)) -> 1 | T26: =Demonstrator!$J$19*'Daten Diagramm'!H26+Demonstrator!$J$24*'Daten Diagramm'!L26 -> 0.03889693946 | U26: =Demonstrator!$J$19*'Daten Diagramm'!I26+Demonstrator!$J$24*'Daten Diagramm'!M26 -> 0.6207301859
A27: 4 | B27: =IF(AND(A27=0,Berechnung!$B$3=0),1,IF(Berechnung!$B$3<>0,_xlfn.NORM.DIST(A27,0,Berechnung!$B$3,FALSE),0)) -> 0.04015820332 | C27: =IF(AND($A27>=0,Berechnung!$B$3=0),1,IF(Berechnung!$B$3<>0,_xlfn.NORM.DIST($A27,0,Berechnung!$B$3,TRUE),0)) -> 0.6716393567 | D27: =IF(AND($A27=0,Berechnung!$B$4=0),1,IF(Berechnung!$B$4<>0,_xlfn.NORM.DIST($A27,0,Berechnung!$B$4,FALSE),0)) -> 0.04015820332 | E27: =IF(AND($A27>=0,Berechnung!$B$4=0),1,IF(Berechnung!$B$4<>0,_xlfn.NORM.DIST($A27,0,Berechnung!$B$4,TRUE),0)) -> 0.6716393567 | F27: =IF(AND($A27=0,Berechnung!$B$5=0),1,IF(Berechnung!$B$5<>0,_xlfn.NORM.DIST($A27,0,Berechnung!$B$5,FALSE),0)) -> 0.02632744622 | G27: =IF(AND($A27>=0,Berechnung!$B$5=0),1,IF(Berechnung!$B$5<>0,_xlfn.NORM.DIST($A27,0,Berechnung!$B$5,TRUE),0)) -> 0.6079866931 | H27: =IF(AND($A27=0,Berechnung!$B$6=0),1,IF(Berechnung!$B$6<>0,_xlfn.NORM.DIST($A27,0,Berechnung!$B$6,FALSE),0)) -> 0.02632287467 | I27: =IF(AND($A27>=0,Berechnung!$B$6=0),1,IF(Berechnung!$B$6<>0,_xlfn.NORM.DIST($A27,0,Berechnung!$B$6,TRUE),0)) -> 0.6079669221 | J27: =IF(AND($A27=0,Berechnung!$B$7=0),1,IF(Berechnung!$B$7<>0,_xlfn.NORM.DIST($A27,0,Berechnung!$B$7,FALSE),0)) -> 0.04015820332 | K27: =IF(AND($A27>=0,Berechnung!$B$7=0),1,IF(Berechnung!$B$7<>0,_xlfn.NORM.DIST($A27,0,Berechnung!$B$7,TRUE),0)) -> 0.6716393567 | L27: =IF(AND($A27=0,Berechnung!$B$8=0),1,IF(Berechnung!$B$8<>0,_xlfn.NORM.DIST($A27,0,Berechnung!$B$8,FALSE),0)) -> 0.04015820332 | M27: =IF(AND($A27>=0,Berechnung!$B$8=0),1,IF(Berechnung!$B$8<>0,_xlfn.NORM.DIST($A27,0,Berechnung!$B$8,TRUE),0)) -> 0.6716393567 | N27: =IF(AND($A27=0,Berechnung!$B$9=0),1,IF(Berechnung!$B$9<>0,_xlfn.NORM.DIST($A27,0,Berechnung!$B$9,FALSE),0)) -> 0.03572981063 | O27: =IF(AND($A27>=0,Berechnung!$B$9=0),1,IF(Berechnung!$B$9<>0,_xlfn.NORM.DIST($A27,0,Berechnung!$B$9,TRUE),0)) -> 0.6502313266 | P27: =IF(AND($A27=0,Berechnung!$B$10=0),1,IF(Berechnung!$B$10<>0,_xlfn.NORM.DIST($A27,0,Berechnung!$B$10,FALSE),0)) -> 0.03274523403 | Q27: =IF(AND($A27>=0,Berechnung!$B$10=0),1,IF(Berechnung!$B$10<>0,_xlfn.NORM.DIST($A27,0,Berechnung!$B$10,TRUE),0)) -> 0.6364283326 | R27: =IF(AND($A27=0,Berechnung!$B$11=0),1,IF(Berechnung!$B$11<>0,_xlfn.NORM.DIST($A27,0,Berechnung!$B$11,FALSE),0)) -> 0 | S27: =IF(AND($A27>=0,Berechnung!$B$11=0),1,IF(Berechnung!$B$11<>0,_xlfn.NORM.DIST($A27,0,Berechnung!$B$11,TRUE),0)) -> 1 | T27: =Demonstrator!$J$19*'Daten Diagramm'!H27+Demonstrator!$J$24*'Daten Diagramm'!L27 -> 0.03739113759 | U27: =Demonstrator!$J$19*'Daten Diagramm'!I27+Demonstrator!$J$24*'Daten Diagramm'!M27 -> 0.6589048698
A28: 5 | B28: =IF(AND(A28=0,Berechnung!$B$3=0),1,IF(Berechnung!$B$3<>0,_xlfn.NORM.DIST(A28,0,Berechnung!$B$3,FALSE),0)) -> 0.03798803269 | C28: =IF(AND($A28>=0,Berechnung!$B$3=0),1,IF(Berechnung!$B$3<>0,_xlfn.NORM.DIST($A28,0,Berechnung!$B$3,TRUE),0)) -> 0.7107426392 | D28: =IF(AND($A28=0,Berechnung!$B$4=0),1,IF(Berechnung!$B$4<>0,_xlfn.NORM.DIST($A28,0,Berechnung!$B$4,FALSE),0)) -> 0.03798803269 | E28: =IF(AND($A28>=0,Berechnung!$B$4=0),1,IF(Berechnung!$B$4<>0,_xlfn.NORM.DIST($A28,0,Berechnung!$B$4,TRUE),0)) -> 0.7107426392 | F28: =IF(AND($A28=0,Berechnung!$B$5=0),1,IF(Berechnung!$B$5<>0,_xlfn.NORM.DIST($A28,0,Berechnung!$B$5,FALSE),0)) -> 0.0257770669 | G28: =IF(AND($A28>=0,Berechnung!$B$5=0),1,IF(Berechnung!$B$5<>0,_xlfn.NORM.DIST($A28,0,Berechnung!$B$5,TRUE),0)) -> 0.6340481753 | H28: =IF(AND($A28=0,Berechnung!$B$6=0),1,IF(Berechnung!$B$6<>0,_xlfn.NORM.DIST($A28,0,Berechnung!$B$6,FALSE),0)) -> 0.02577279535 | I28: =IF(AND($A28>=0,Berechnung!$B$6=0),1,IF(Berechnung!$B$6<>0,_xlfn.NORM.DIST($A28,0,Berechnung!$B$6,TRUE),0)) -> 0.634023978 | J28: =IF(AND($A28=0,Berechnung!$B$7=0),1,IF(Berechnung!$B$7<>0,_xlfn.NORM.DIST($A28,0,Berechnung!$B$7,FALSE),0)) -> 0.03798803269 | K28: =IF(AND($A28>=0,Berechnung!$B$7=0),1,IF(Berechnung!$B$7<>0,_xlfn.NORM.DIST($A28,0,Berechnung!$B$7,TRUE),0)) -> 0.7107426392 | L28: =IF(AND($A28=0,Berechnung!$B$8=0),1,IF(Berechnung!$B$8<>0,_xlfn.NORM.DIST($A28,0,Berechnung!$B$8,FALSE),0)) -> 0.03798803269 | M28: =IF(AND($A28>=0,Berechnung!$B$8=0),1,IF(Berechnung!$B$8<>0,_xlfn.NORM.DIST($A28,0,Berechnung!$B$8,TRUE),0)) -> 0.7107426392 | N28: =IF(AND($A28=0,Berechnung!$B$9=0),1,IF(Berechnung!$B$9<>0,_xlfn.NORM.DIST($A28,0,Berechnung!$B$9,FALSE),0)) -> 0.03426389486 | O28: =IF(AND($A28>=0,Berechnung!$B$9=0),1,IF(Berechnung!$B$9<>0,_xlfn.NORM.DIST($A28,0,Berechnung!$B$9,TRUE),0)) -> 0.6852502202 | P28: =IF(AND($A28=0,Berechnung!$B$10=0),1,IF(Berechnung!$B$10<>0,_xlfn.NORM.DIST($A28,0,Berechnung!$B$10,FALSE),0)) -> 0.03164293876 | Q28: =IF(AND($A28>=0,Berechnung!$B$10=0),1,IF(Berechnung!$B$10<>0,_xlfn.NORM.DIST($A28,0,Berechnung!$B$10,TRUE),0)) -> 0.6686396939 | R28: =IF(AND($A28=0,Berechnung!$B$11=0),1,IF(Berechnung!$B$11<>0,_xlfn.NORM.DIST($A28,0,Berechnung!$B$11,FALSE),0)) -> 0 | S28: =IF(AND($A28>=0,Berechnung!$B$11=0),1,IF(Berechnung!$B$11<>0,_xlfn.NORM.DIST($A28,0,Berechnung!$B$11,TRUE),0)) -> 1 | T28: =Demonstrator!$J$19*'Daten Diagramm'!H28+Demonstrator!$J$24*'Daten Diagramm'!L28 -> 0.03554498522 | U28: =Demonstrator!$J$19*'Daten Diagramm'!I28+Demonstrator!$J$24*'Daten Diagramm'!M28 -> 0.695398907
A29: 6 | B29: =IF(AND(A29=0,Berechnung!$B$3=0),1,IF(Berechnung!$B$3<>0,_xlfn.NORM.DIST(A29,0,Berechnung!$B$3,FALSE),0)) -> 0.03549422284 | C29: =IF(AND($A29>=0,Berechnung!$B$3=0),1,IF(Berechnung!$B$3<>0,_xlfn.NORM.DIST($A29,0,Berechnung!$B$3,TRUE),0)) -> 0.7475074625 | D29: =IF(AND($A29=0,Berechnung!$B$4=0),1,IF(Berechnung!$B$4<>0,_xlfn.NORM.DIST($A29,0,Berechnung!$B$4,FALSE),0)) -> 0.03549422284 | E29: =IF(AND($A29>=0,Berechnung!$B$4=0),1,IF(Berechnung!$B$4<>0,_xlfn.NORM.DIST($A29,0,Berechnung!$B$4,TRUE),0)) -> 0.7475074625 | F29: =IF(AND($A29=0,Berechnung!$B$5=0),1,IF(Berechnung!$B$5<>0,_xlfn.NORM.DIST($A29,0,Berechnung!$B$5,FALSE),0)) -> 0.02511998189 | G29: =IF(AND($A29>=0,Berechnung!$B$5=0),1,IF(Berechnung!$B$5<>0,_xlfn.NORM.DIST($A29,0,Berechnung!$B$5,TRUE),0)) -> 0.6595052438 | H29: =IF(AND($A29=0,Berechnung!$B$6=0),1,IF(Berechnung!$B$6<>0,_xlfn.NORM.DIST($A29,0,Berechnung!$B$6,FALSE),0)) -> 0.02511606272 | I29: =IF(AND($A29>=0,Berechnung!$B$6=0),1,IF(Berechnung!$B$6<>0,_xlfn.NORM.DIST($A29,0,Berechnung!$B$6,TRUE),0)) -> 0.6594769471 | J29: =IF(AND($A29=0,Berechnung!$B$7=0),1,IF(Berechnung!$B$7<>0,_xlfn.NORM.DIST($A29,0,Berechnung!$B$7,FALSE),0)) -> 0.03549422284 | K29: =IF(AND($A29>=0,Berechnung!$B$7=0),1,IF(Berechnung!$B$7<>0,_xlfn.NORM.DIST($A29,0,Berechnung!$B$7,TRUE),0)) -> 0.7475074625 | L29: =IF(AND($A29=0,Berechnung!$B$8=0),1,IF(Berechnung!$B$8<>0,_xlfn.NORM.DIST($A29,0,Berechnung!$B$8,FALSE),0)) -> 0.03549422284 | M29: =IF(AND($A29>=0,Berechnung!$B$8=0),1,IF(Berechnung!$B$8<>0,_xlfn.NORM.DIST($A29,0,Berechnung!$B$8,TRUE),0)) -> 0.7475074625 | N29: =IF(AND($A29=0,Berechnung!$B$9=0),1,IF(Berechnung!$B$9<>0,_xlfn.NORM.DIST($A29,0,Berechnung!$B$9,FALSE),0)) -> 0.03255364589 | O29: =IF(AND($A29>=0,Berechnung!$B$9=0),1,IF(Berechnung!$B$9<>0,_xlfn.NORM.DIST($A29,0,Berechnung!$B$9,TRUE),0)) -> 0.7186776173 | P29: =IF(AND($A29=0,Berechnung!$B$10=0),1,IF(Berechnung!$B$10<>0,_xlfn.NORM.DIST($A29,0,Berechnung!$B$10,FALSE),0)) -> 0.03034595379 | Q29: =IF(AND($A29>=0,Berechnung!$B$10=0),1,IF(Berechnung!$B$10<>0,_xlfn.NORM.DIST($A29,0,Berechnung!$B$10,TRUE),0)) -> 0.6996492751 | R29: =IF(AND($A29=0,Berechnung!$B$11=0),1,IF(Berechnung!$B$11<>0,_xlfn.NORM.DIST($A29,0,Berechnung!$B$11,FALSE),0)) -> 0 | S29: =IF(AND($A29>=0,Berechnung!$B$11=0),1,IF(Berechnung!$B$11<>0,_xlfn.NORM.DIST($A29,0,Berechnung!$B$11,TRUE),0)) -> 1 | T29: =Demonstrator!$J$19*'Daten Diagramm'!H29+Demonstrator!$J$24*'Daten Diagramm'!L29 -> 0.03341859081 | U29: =Demonstrator!$J$19*'Daten Diagramm'!I29+Demonstrator!$J$24*'Daten Diagramm'!M29 -> 0.7299013594
A30: 7 | B30: =IF(AND(A30=0,Berechnung!$B$3=0),1,IF(Berechnung!$B$3<>0,_xlfn.NORM.DIST(A30,0,Berechnung!$B$3,FALSE),0)) -> 0.0327572081 | C30: =IF(AND($A30>=0,Berechnung!$B$3=0),1,IF(Berechnung!$B$3<>0,_xlfn.NORM.DIST($A30,0,Berechnung!$B$3,TRUE),0)) -> 0.7816499846 | D30: =IF(AND($A30=0,Berechnung!$B$4=0),1,IF(Berechnung!$B$4<>0,_xlfn.NORM.DIST($A30,0,Berechnung!$B$4,FALSE),0)) -> 0.0327572081 | E30: =IF(AND($A30>=0,Berechnung!$B$4=0),1,IF(Berechnung!$B$4<>0,_xlfn.NORM.DIST($A30,0,Berechnung!$B$4,TRUE),0)) -> 0.7816499846 | F30: =IF(AND($A30=0,Berechnung!$B$5=0),1,IF(Berechnung!$B$5<>0,_xlfn.NORM.DIST($A30,0,Berechnung!$B$5,FALSE),0)) -> 0.02436498812 | G30: =IF(AND($A30>=0,Berechnung!$B$5=0),1,IF(Berechnung!$B$5<>0,_xlfn.NORM.DIST($A30,0,Berechnung!$B$5,TRUE),0)) -> 0.6842554904 | H30: =IF(AND($A30=0,Berechnung!$B$6=0),1,IF(Berechnung!$B$6<>0,_xlfn.NORM.DIST($A30,0,Berechnung!$B$6,FALSE),0)) -> 0.02436146585 | I30: =IF(AND($A30>=0,Berechnung!$B$6=0),1,IF(Berechnung!$B$6<>0,_xlfn.NORM.DIST($A30,0,Berechnung!$B$6,TRUE),0)) -> 0.6842234696 | J30: =IF(AND($A30=0,Berechnung!$B$7=0),1,IF(Berechnung!$B$7<>0,_xlfn.NORM.DIST($A30,0,Berechnung!$B$7,FALSE),0)) -> 0.0327572081 | K30: =IF(AND($A30>=0,Berechnung!$B$7=0),1,IF(Berechnung!$B$7<>0,_xlfn.NORM.DIST($A30,0,Berechnung!$B$7,TRUE),0)) -> 0.7816499846 | L30: =IF(AND($A30=0,Berechnung!$B$8=0),1,IF(Berechnung!$B$8<>0,_xlfn.NORM.DIST($A30,0,Berechnung!$B$8,FALSE),0)) -> 0.0327572081 | M30: =IF(AND($A30>=0,Berechnung!$B$8=0),1,IF(Berechnung!$B$8<>0,_xlfn.NORM.DIST($A30,0,Berechnung!$B$8,TRUE),0)) -> 0.7816499846 | N30: =IF(AND($A30=0,Berechnung!$B$9=0),1,IF(Berechnung!$B$9<>0,_xlfn.NORM.DIST($A30,0,Berechnung!$B$9,FALSE),0)) -> 0.03064216406 | O30: =IF(AND($A30>=0,Berechnung!$B$9=0),1,IF(Berechnung!$B$9<>0,_xlfn.NORM.DIST($A30,0,Berechnung!$B$9,TRUE),0)) -> 0.7502903999 | P30: =IF(AND($A30=0,Berechnung!$B$10=0),1,IF(Berechnung!$B$10<>0,_xlfn.NORM.DIST($A30,0,Berechnung!$B$10,FALSE),0)) -> 0.02888151981 | Q30: =IF(AND($A30>=0,Berechnung!$B$10=0),1,IF(Berechnung!$B$10<>0,_xlfn.NORM.DIST($A30,0,Berechnung!$B$10,TRUE),0)) -> 0.7292757572 | R30: =IF(AND($A30=0,Berechnung!$B$11=0),1,IF(Berechnung!$B$11<>0,_xlfn.NORM.DIST($A30,0,Berechnung!$B$11,FALSE),0)) -> 0 | S30: =IF(AND($A30>=0,Berechnung!$B$11=0),1,IF(Berechnung!$B$11<>0,_xlfn.NORM.DIST($A30,0,Berechnung!$B$11,TRUE),0)) -> 1 | T30: =Demonstrator!$J$19*'Daten Diagramm'!H30+Demonstrator!$J$24*'Daten Diagramm'!L30 -> 0.03107805965 | U30: =Demonstrator!$J$19*'Daten Diagramm'!I30+Demonstrator!$J$24*'Daten Diagramm'!M30 -> 0.7621646816
A31: 8 | B31: =IF(AND(A31=0,Berechnung!$B$3=0),1,IF(Berechnung!$B$3<>0,_xlfn.NORM.DIST(A31,0,Berechnung!$B$3,FALSE),0)) -> 0.02986031795 | C31: =IF(AND($A31>=0,Berechnung!$B$3=0),1,IF(Berechnung!$B$3<>0,_xlfn.NORM.DIST($A31,0,Berechnung!$B$3,TRUE),0)) -> 0.8129686013 | D31: =IF(AND($A31=0,Berechnung!$B$4=0),1,IF(Berechnung!$B$4<>0,_xlfn.NORM.DIST($A31,0,Berechnung!$B$4,FALSE),0)) -> 0.02986031795 | E31: =IF(AND($A31>=0,Berechnung!$B$4=0),1,IF(Berechnung!$B$4<>0,_xlfn.NORM.DIST($A31,0,Berechnung!$B$4,TRUE),0)) -> 0.8129686013 | F31: =IF(AND($A31=0,Berechnung!$B$5=0),1,IF(Berechnung!$B$5<>0,_xlfn.NORM.DIST($A31,0,Berechnung!$B$5,FALSE),0)) -> 0.02352199454 | G31: =IF(AND($A31>=0,Berechnung!$B$5=0),1,IF(Berechnung!$B$5<>0,_xlfn.NORM.DIST($A31,0,Berechnung!$B$5,TRUE),0)) -> 0.7082058768 | H31: =IF(AND($A31=0,Berechnung!$B$6=0),1,IF(Berechnung!$B$6<>0,_xlfn.NORM.DIST($A31,0,Berechnung!$B$6,FALSE),0)) -> 0.02351890505 | I31: =IF(AND($A31>=0,Berechnung!$B$6=0),1,IF(Berechnung!$B$6<>0,_xlfn.NORM.DIST($A31,0,Berechnung!$B$6,TRUE),0)) -> 0.7081705476 | J31: =IF(AND($A31=0,Berechnung!$B$7=0),1,IF(Berechnung!$B$7<>0,_xlfn.NORM.DIST($A31,0,Berechnung!$B$7,FALSE),0)) -> 0.02986031795 | K31: =IF(AND($A31>=0,Berechnung!$B$7=0),1,IF(Berechnung!$B$7<>0,_xlfn.NORM.DIST($A31,0,Berechnung!$B$7,TRUE),0)) -> 0.8129686013 | L31: =IF(AND($A31=0,Berechnung!$B$8=0),1,IF(Berechnung!$B$8<>0,_xlfn.NORM.DIST($A31,0,Berechnung!$B$8,FALSE),0)) -> 0.02986031795 | M31: =IF(AND($A31>=0,Berechnung!$B$8=0),1,IF(Berechnung!$B$8<>0,_xlfn.NORM.DIST($A31,0,Berechnung!$B$8,TRUE),0)) -> 0.8129686013 | N31: =IF(AND($A31=0,Berechnung!$B$9=0),1,IF(Berechnung!$B$9<>0,_xlfn.NORM.DIST($A31,0,Berechnung!$B$9,FALSE),0)) -> 0.0285756504 | O31: =IF(AND($A31>=0,Berechnung!$B$9=0),1,IF(Berechnung!$B$9<>0,_xlfn.NORM.DIST($A31,0,Berechnung!$B$9,TRUE),0)) -> 0.7799102542 | P31: =IF(AND($A31=0,Berechnung!$B$10=0),1,IF(Berechnung!$B$10<>0,_xlfn.NORM.DIST($A31,0,Berechnung!$B$10,FALSE),0)) -> 0.02727938425 | Q31: =IF(AND($A31>=0,Berechnung!$B$10=0),1,IF(Berechnung!$B$10<>0,_xlfn.NORM.DIST($A31,0,Berechnung!$B$10,TRUE),0)) -> 0.7573663974 | R31: =IF(AND($A31=0,Berechnung!$B$11=0),1,IF(Berechnung!$B$11<>0,_xlfn.NORM.DIST($A31,0,Berechnung!$B$11,FALSE),0)) -> 0 | S31: =IF(AND($A31>=0,Berechnung!$B$11=0),1,IF(Berechnung!$B$11<>0,_xlfn.NORM.DIST($A31,0,Berechnung!$B$11,TRUE),0)) -> 1 | T31: =Demonstrator!$J$19*'Daten Diagramm'!H31+Demonstrator!$J$24*'Daten Diagramm'!L31 -> 0.02859203537 | U31: =Demonstrator!$J$19*'Daten Diagramm'!I31+Demonstrator!$J$24*'Daten Diagramm'!M31 -> 0.7920089905
A32: 9 | B32: =IF(AND(A32=0,Berechnung!$B$3=0),1,IF(Berechnung!$B$3<>0,_xlfn.NORM.DIST(A32,0,Berechnung!$B$3,FALSE),0)) -> 0.02688563606 | C32: =IF(AND($A32>=0,Berechnung!$B$3=0),1,IF(Berechnung!$B$3<>0,_xlfn.NORM.DIST($A32,0,Berechnung!$B$3,TRUE),0)) -> 0.8413447461 | D32: =IF(AND($A32=0,Berechnung!$B$4=0),1,IF(Berechnung!$B$4<>0,_xlfn.NORM.DIST($A32,0,Berechnung!$B$4,FALSE),0)) -> 0.02688563606 | E32: =IF(AND($A32>=0,Berechnung!$B$4=0),1,IF(Berechnung!$B$4<>0,_xlfn.NORM.DIST($A32,0,Berechnung!$B$4,TRUE),0)) -> 0.8413447461 | F32: =IF(AND($A32=0,Berechnung!$B$5=0),1,IF(Berechnung!$B$5<>0,_xlfn.NORM.DIST($A32,0,Berechnung!$B$5,FALSE),0)) -> 0.02260180607 | G32: =IF(AND($A32>=0,Berechnung!$B$5=0),1,IF(Berechnung!$B$5<>0,_xlfn.NORM.DIST($A32,0,Berechnung!$B$5,TRUE),0)) -> 0.7312737404 | H32: =IF(AND($A32=0,Berechnung!$B$6=0),1,IF(Berechnung!$B$6<>0,_xlfn.NORM.DIST($A32,0,Berechnung!$B$6,FALSE),0)) -> 0.02259917604 | I32: =IF(AND($A32>=0,Berechnung!$B$6=0),1,IF(Berechnung!$B$6<>0,_xlfn.NORM.DIST($A32,0,Berechnung!$B$6,TRUE),0)) -> 0.7312355496 | J32: =IF(AND($A32=0,Berechnung!$B$7=0),1,IF(Berechnung!$B$7<>0,_xlfn.NORM.DIST($A32,0,Berechnung!$B$7,FALSE),0)) -> 0.02688563606 | K32: =IF(AND($A32>=0,Berechnung!$B$7=0),1,IF(Berechnung!$B$7<>0,_xlfn.NORM.DIST($A32,0,Berechnung!$B$7,TRUE),0)) -> 0.8413447461 | L32: =IF(AND($A32=0,Berechnung!$B$8=0),1,IF(Berechnung!$B$8<>0,_xlfn.NORM.DIST($A32,0,Berechnung!$B$8,FALSE),0)) -> 0.02688563606 | M32: =IF(AND($A32>=0,Berechnung!$B$8=0),1,IF(Berechnung!$B$8<>0,_xlfn.NORM.DIST($A32,0,Berechnung!$B$8,TRUE),0)) -> 0.8413447461 | N32: =IF(AND($A32=0,Berechnung!$B$9=0),1,IF(Berechnung!$B$9<>0,_xlfn.NORM.DIST($A32,0,Berechnung!$B$9,FALSE),0)) -> 0.02640156715 | O32: =IF(AND($A32>=0,Berechnung!$B$9=0),1,IF(Berechnung!$B$9<>0,_xlfn.NORM.DIST($A32,0,Berechnung!$B$9,TRUE),0)) -> 0.8074058501 | P32: =IF(AND($A32=0,Berechnung!$B$10=0),1,IF(Berechnung!$B$10<>0,_xlfn.NORM.DIST($A32,0,Berechnung!$B$10,FALSE),0)) -> 0.0255708022 | Q32: =IF(AND($A32>=0,Berechnung!$B$10=0),1,IF(Berechnung!$B$10<>0,_xlfn.NORM.DIST($A32,0,Berechnung!$B$10,TRUE),0)) -> 0.783799038 | R32: =IF(AND($A32=0,Berechnung!$B$11=0),1,IF(Berechnung!$B$11<>0,_xlfn.NORM.DIST($A32,0,Berechnung!$B$11,FALSE),0)) -> 0 | S32: =IF(AND($A32>=0,Berechnung!$B$11=0),1,IF(Berechnung!$B$11<>0,_xlfn.NORM.DIST($A32,0,Berechnung!$B$11,TRUE),0)) -> 1 | T32: =Demonstrator!$J$19*'Daten Diagramm'!H32+Demonstrator!$J$24*'Daten Diagramm'!L32 -> 0.02602834405 | U32: =Demonstrator!$J$19*'Daten Diagramm'!I32+Demonstrator!$J$24*'Daten Diagramm'!M32 -> 0.8193229068
A33: 10 | B33: =IF(AND(A33=0,Berechnung!$B$3=0),1,IF(Berechnung!$B$3<>0,_xlfn.NORM.DIST(A33,0,Berechnung!$B$3,FALSE),0)) -> 0.02391027344 | C33: =IF(AND($A33>=0,Berechnung!$B$3=0),1,IF(Berechnung!$B$3<>0,_xlfn.NORM.DIST($A33,0,Berechnung!$B$3,TRUE),0)) -> 0.8667397371 | D33: =IF(AND($A33=0,Berechnung!$B$4=0),1,IF(Berechnung!$B$4<>0,_xlfn.NORM.DIST($A33,0,Berechnung!$B$4,FALSE),0)) -> 0.02391027344 | E33: =IF(AND($A33>=0,Berechnung!$B$4=0),1,IF(Berechnung!$B$4<>0,_xlfn.NORM.DIST($A33,0,Berechnung!$B$4,TRUE),0)) -> 0.8667397371 | F33: =IF(AND($A33=0,Berechnung!$B$5=0),1,IF(Berechnung!$B$5<>0,_xlfn.NORM.DIST($A33,0,Berechnung!$B$5,FALSE),0)) -> 0.02161589403 | G33: =IF(AND($A33>=0,Berechnung!$B$5=0),1,IF(Berechnung!$B$5<>0,_xlfn.NORM.DIST($A33,0,Berechnung!$B$5,TRUE),0)) -> 0.7533875763 | H33: =IF(AND($A33=0,Berechnung!$B$6=0),1,IF(Berechnung!$B$6<>0,_xlfn.NORM.DIST($A33,0,Berechnung!$B$6,FALSE),0)) -> 0.02161374065 | I33: =IF(AND($A33>=0,Berechnung!$B$6=0),1,IF(Berechnung!$B$6<>0,_xlfn.NORM.DIST($A33,0,Berechnung!$B$6,TRUE),0)) -> 0.7533469927 | J33: =IF(AND($A33=0,Berechnung!$B$7=0),1,IF(Berechnung!$B$7<>0,_xlfn.NORM.DIST($A33,0,Berechnung!$B$7,FALSE),0)) -> 0.02391027344 | K33: =IF(AND($A33>=0,Berechnung!$B$7=0),1,IF(Berechnung!$B$7<>0,_xlfn.NORM.DIST($A33,0,Berechnung!$B$7,TRUE),0)) -> 0.8667397371 | L33: =IF(AND($A33=0,Berechnung!$B$8=0),1,IF(Berechnung!$B$8<>0,_xlfn.NORM.DIST($A33,0,Berechnung!$B$8,FALSE),0)) -> 0.02391027344 | M33: =IF(AND($A33>=0,Berechnung!$B$8=0),1,IF(Berechnung!$B$8<>0,_xlfn.NORM.DIST($A33,0,Berechnung!$B$8,TRUE),0)) -> 0.8667397371 | N33: =IF(AND($A33=0,Berechnung!$B$9=0),1,IF(Berechnung!$B$9<>0,_xlfn.NORM.DIST($A33,0,Berechnung!$B$9,FALSE),0)) -> 0.02416685749 | O33: =IF(AND($A33>=0,Berechnung!$B$9=0),1,IF(Berechnung!$B$9<>0,_xlfn.NORM.DIST($A33,0,Berechnung!$B$9,TRUE),0)) -> 0.8326932038 | P33: =IF(AND($A33=0,Berechnung!$B$10=0),1,IF(Berechnung!$B$10<>0,_xlfn.NORM.DIST($A33,0,Berechnung!$B$10,FALSE),0)) -> 0.02378753343 | Q33: =IF(AND($A33>=0,Berechnung!$B$10=0),1,IF(Berechnung!$B$10<>0,_xlfn.NORM.DIST($A33,0,Berechnung!$B$10,TRUE),0)) -> 0.8084831114 | R33: =IF(AND($A33=0,Berechnung!$B$11=0),1,IF(Berechnung!$B$11<>0,_xlfn.NORM.DIST($A33,0,Berechnung!$B$11,FALSE),0)) -> 0 | S33: =IF(AND($A33>=0,Berechnung!$B$11=0),1,IF(Berechnung!$B$11<>0,_xlfn.NORM.DIST($A33,0,Berechnung!$B$11,TRUE),0)) -> 1 | T33: =Demonstrator!$J$19*'Daten Diagramm'!H33+Demonstrator!$J$24*'Daten Diagramm'!L33 -> 0.02345096689 | U33: =Demonstrator!$J$19*'Daten Diagramm'!I33+Demonstrator!$J$24*'Daten Diagramm'!M33 -> 0.8440611882
A34: 11 | B34: =IF(AND(A34=0,Berechnung!$B$3=0),1,IF(Berechnung!$B$3<>0,_xlfn.NORM.DIST(A34,0,Berechnung!$B$3,FALSE),0)) -> 0.02100327942 | C34: =IF(AND($A34>=0,Berechnung!$B$3=0),1,IF(Berechnung!$B$3<>0,_xlfn.NORM.DIST($A34,0,Berechnung!$B$3,TRUE),0)) -> 0.8891881988 | D34: =IF(AND($A34=0,Berechnung!$B$4=0),1,IF(Berechnung!$B$4<>0,_xlfn.NORM.DIST($A34,0,Berechnung!$B$4,FALSE),0)) -> 0.02100327942 | E34: =IF(AND($A34>=0,Berechnung!$B$4=0),1,IF(Berechnung!$B$4<>0,_xlfn.NORM.DIST($A34,0,Berechnung!$B$4,TRUE),0)) -> 0.8891881988 | F34: =IF(AND($A34=0,Berechnung!$B$5=0),1,IF(Berechnung!$B$5<>0,_xlfn.NORM.DIST($A34,0,Berechnung!$B$5,FALSE),0)) -> 0.02057615959 | G34: =IF(AND($A34>=0,Berechnung!$B$5=0),1,IF(Berechnung!$B$5<>0,_xlfn.NORM.DIST($A34,0,Berechnung!$B$5,TRUE),0)) -> 0.7744875856 | H34: =IF(AND($A34=0,Berechnung!$B$6=0),1,IF(Berechnung!$B$6<>0,_xlfn.NORM.DIST($A34,0,Berechnung!$B$6,FALSE),0)) -> 0.02057449057 | I34: =IF(AND($A34>=0,Berechnung!$B$6=0),1,IF(Berechnung!$B$6<>0,_xlfn.NORM.DIST($A34,0,Berechnung!$B$6,TRUE),0)) -> 0.7744450905 | J34: =IF(AND($A34=0,Berechnung!$B$7=0),1,IF(Berechnung!$B$7<>0,_xlfn.NORM.DIST($A34,0,Berechnung!$B$7,FALSE),0)) -> 0.02100327942 | K34: =IF(AND($A34>=0,Berechnung!$B$7=0),1,IF(Berechnung!$B$7<>0,_xlfn.NORM.DIST($A34,0,Berechnung!$B$7,TRUE),0)) -> 0.8891881988 | L34: =IF(AND($A34=0,Berechnung!$B$8=0),1,IF(Berechnung!$B$8<>0,_xlfn.NORM.DIST($A34,0,Berechnung!$B$8,FALSE),0)) -> 0.02100327942 | M34: =IF(AND($A34>=0,Berechnung!$B$8=0),1,IF(Berechnung!$B$8<>0,_xlfn.NORM.DIST($A34,0,Berechnung!$B$8,TRUE),0)) -> 0.8891881988 | N34: =IF(AND($A34=0,Berechnung!$B$9=0),1,IF(Berechnung!$B$9<>0,_xlfn.NORM.DIST($A34,0,Berechnung!$B$9,FALSE),0)) -> 0.0219163157 | O34: =IF(AND($A34>=0,Berechnung!$B$9=0),1,IF(Berechnung!$B$9<>0,_xlfn.NORM.DIST($A34,0,Berechnung!$B$9,TRUE),0)) -> 0.8557343276 | P34: =IF(AND($A34=0,Berechnung!$B$10=0),1,IF(Berechnung!$B$10<>0,_xlfn.NORM.DIST($A34,0,Berechnung!$B$10,FALSE),0)) -> 0.02196088006 | Q34: =IF(AND($A34>=0,Berechnung!$B$10=0),1,IF(Berechnung!$B$10<>0,_xlfn.NORM.DIST($A34,0,Berechnung!$B$10,TRUE),0)) -> 0.8313596584 | R34: =IF(AND($A34=0,Berechnung!$B$11=0),1,IF(Berechnung!$B$11<>0,_xlfn.NORM.DIST($A34,0,Berechnung!$B$11,FALSE),0)) -> 0 | S34: =IF(AND($A34>=0,Berechnung!$B$11=0),1,IF(Berechnung!$B$11<>0,_xlfn.NORM.DIST($A34,0,Berechnung!$B$11,TRUE),0)) -> 1 | T34: =Demonstrator!$J$19*'Daten Diagramm'!H34+Demonstrator!$J$24*'Daten Diagramm'!L34 -> 0.02091752165 | U34: =Demonstrator!$J$19*'Daten Diagramm'!I34+Demonstrator!$J$24*'Daten Diagramm'!M34 -> 0.8662395771
A35: 12 | B35: =IF(AND(A35=0,Berechnung!$B$3=0),1,IF(Berechnung!$B$3<>0,_xlfn.NORM.DIST(A35,0,Berechnung!$B$3,FALSE),0)) -> 0.01822334163 | C35: =IF(AND($A35>=0,Berechnung!$B$3=0),1,IF(Berechnung!$B$3<>0,_xlfn.NORM.DIST($A35,0,Berechnung!$B$3,TRUE),0)) -> 0.9087887803 | D35: =IF(AND($A35=0,Berechnung!$B$4=0),1,IF(Berechnung!$B$4<>0,_xlfn.NORM.DIST($A35,0,Berechnung!$B$4,FALSE),0)) -> 0.01822334163 | E35: =IF(AND($A35>=0,Berechnung!$B$4=0),1,IF(Berechnung!$B$4<>0,_xlfn.NORM.DIST($A35,0,Berechnung!$B$4,TRUE),0)) -> 0.9087887803 | F35: =IF(AND($A35=0,Berechnung!$B$5=0),1,IF(Berechnung!$B$5<>0,_xlfn.NORM.DIST($A35,0,Berechnung!$B$5,FALSE),0)) -> 0.01949469727 | G35: =IF(AND($A35>=0,Berechnung!$B$5=0),1,IF(Berechnung!$B$5<>0,_xlfn.NORM.DIST($A35,0,Berechnung!$B$5,TRUE),0)) -> 0.7945259866 | H35: =IF(AND($A35=0,Berechnung!$B$6=0),1,IF(Berechnung!$B$6<>0,_xlfn.NORM.DIST($A35,0,Berechnung!$B$6,FALSE),0)) -> 0.01949351112 | I35: =IF(AND($A35>=0,Berechnung!$B$6=0),1,IF(Berechnung!$B$6<>0,_xlfn.NORM.DIST($A35,0,Berechnung!$B$6,TRUE),0)) -> 0.7944820645 | J35: =IF(AND($A35=0,Berechnung!$B$7=0),1,IF(Berechnung!$B$7<>0,_xlfn.NORM.DIST($A35,0,Berechnung!$B$7,FALSE),0)) -> 0.01822334163 | K35: =IF(AND($A35>=0,Berechnung!$B$7=0),1,IF(Berechnung!$B$7<>0,_xlfn.NORM.DIST($A35,0,Berechnung!$B$7,TRUE),0)) -> 0.9087887803 | L35: =IF(AND($A35=0,Berechnung!$B$8=0),1,IF(Berechnung!$B$8<>0,_xlfn.NORM.DIST($A35,0,Berechnung!$B$8,FALSE),0)) -> 0.01822334163 | M35: =IF(AND($A35>=0,Berechnung!$B$8=0),1,IF(Berechnung!$B$8<>0,_xlfn.NORM.DIST($A35,0,Berechnung!$B$8,TRUE),0)) -> 0.9087887803 | N35: =IF(AND($A35=0,Berechnung!$B$9=0),1,IF(Berechnung!$B$9<>0,_xlfn.NORM.DIST($A35,0,Berechnung!$B$9,FALSE),0)) -> 0.01969118292 | O35: =IF(AND($A35>=0,Berechnung!$B$9=0),1,IF(Berechnung!$B$9<>0,_xlfn.NORM.DIST($A35,0,Berechnung!$B$9,TRUE),0)) -> 0.8765343573 | P35: =IF(AND($A35=0,Berechnung!$B$10=0),1,IF(Berechnung!$B$10<>0,_xlfn.NORM.DIST($A35,0,Berechnung!$B$10,FALSE),0)) -> 0.02012080433 | Q35: =IF(AND($A35>=0,Berechnung!$B$10=0),1,IF(Berechnung!$B$10<>0,_xlfn.NORM.DIST($A35,0,Berechnung!$B$10,TRUE),0)) -> 0.852400421 | R35: =IF(AND($A35=0,Berechnung!$B$11=0),1,IF(Berechnung!$B$11<>0,_xlfn.NORM.DIST($A35,0,Berechnung!$B$11,FALSE),0)) -> 0 | S35: =IF(AND($A35>=0,Berechnung!$B$11=0),1,IF(Berechnung!$B$11<>0,_xlfn.NORM.DIST($A35,0,Berechnung!$B$11,TRUE),0)) -> 1 | T35: =Demonstrator!$J$19*'Daten Diagramm'!H35+Demonstrator!$J$24*'Daten Diagramm'!L35 -> 0.01847737553 | U35: =Demonstrator!$J$19*'Daten Diagramm'!I35+Demonstrator!$J$24*'Daten Diagramm'!M35 -> 0.8859274371
A36: 13 | B36: =IF(AND(A36=0,Berechnung!$B$3=0),1,IF(Berechnung!$B$3<>0,_xlfn.NORM.DIST(A36,0,Berechnung!$B$3,FALSE),0)) -> 0.01561734713 | C36: =IF(AND($A36>=0,Berechnung!$B$3=0),1,IF(Berechnung!$B$3<>0,_xlfn.NORM.DIST($A36,0,Berechnung!$B$3,TRUE),0)) -> 0.9256930018 | D36: =IF(AND($A36=0,Berechnung!$B$4=0),1,IF(Berechnung!$B$4<>0,_xlfn.NORM.DIST($A36,0,Berechnung!$B$4,FALSE),0)) -> 0.01561734713 | E36: =IF(AND($A36>=0,Berechnung!$B$4=0),1,IF(Berechnung!$B$4<>0,_xlfn.NORM.DIST($A36,0,Berechnung!$B$4,TRUE),0)) -> 0.9256930018 | F36: =IF(AND($A36=0,Berechnung!$B$5=0),1,IF(Berechnung!$B$5<>0,_xlfn.NORM.DIST($A36,0,Berechnung!$B$5,FALSE),0)) -> 0.0183835648 | G36: =IF(AND($A36>=0,Berechnung!$B$5=0),1,IF(Berechnung!$B$5<>0,_xlfn.NORM.DIST($A36,0,Berechnung!$B$5,TRUE),0)) -> 0.8134670929 | H36: =IF(AND($A36=0,Berechnung!$B$6=0),1,IF(Berechnung!$B$6<>0,_xlfn.NORM.DIST($A36,0,Berechnung!$B$6,FALSE),0)) -> 0.01838285128 | I36: =IF(AND($A36>=0,Berechnung!$B$6=0),1,IF(Berechnung!$B$6<>0,_xlfn.NORM.DIST($A36,0,Berechnung!$B$6,TRUE),0)) -> 0.8134222221 | J36: =IF(AND($A36=0,Berechnung!$B$7=0),1,IF(Berechnung!$B$7<>0,_xlfn.NORM.DIST($A36,0,Berechnung!$B$7,FALSE),0)) -> 0.01561734713 | K36: =IF(AND($A36>=0,Berechnung!$B$7=0),1,IF(Berechnung!$B$7<>0,_xlfn.NORM.DIST($A36,0,Berechnung!$B$7,TRUE),0)) -> 0.9256930018 | L36: =IF(AND($A36=0,Berechnung!$B$8=0),1,IF(Berechnung!$B$8<>0,_xlfn.NORM.DIST($A36,0,Berechnung!$B$8,FALSE),0)) -> 0.01561734713 | M36: =IF(AND($A36>=0,Berechnung!$B$8=0),1,IF(Berechnung!$B$8<>0,_xlfn.NORM.DIST($A36,0,Berechnung!$B$8,TRUE),0)) -> 0.9256930018 | N36: =IF(AND($A36=0,Berechnung!$B$9=0),1,IF(Berechnung!$B$9<>0,_xlfn.NORM.DIST($A36,0,Berechnung!$B$9,FALSE),0)) -> 0.01752802393 | O36: =IF(AND($A36>=0,Berechnung!$B$9=0),1,IF(Berechnung!$B$9<>0,_xlfn.NORM.DIST($A36,0,Berechnung!$B$9,TRUE),0)) -> 0.8951374127 | P36: =IF(AND($A36=0,Berechnung!$B$10=0),1,IF(Berechnung!$B$10<>0,_xlfn.NORM.DIST($A36,0,Berechnung!$B$10,FALSE),0)) -> 0.01829515969 | Q36: =IF(AND($A36>=0,Berechnung!$B$10=0),1,IF(Berechnung!$B$10<>0,_xlfn.NORM.DIST($A36,0,Berechnung!$B$10,TRUE),0)) -> 0.8716061081 | R36: =IF(AND($A36=0,Berechnung!$B$11=0),1,IF(Berechnung!$B$11<>0,_xlfn.NORM.DIST($A36,0,Berechnung!$B$11,FALSE),0)) -> 0 | S36: =IF(AND($A36>=0,Berechnung!$B$11=0),1,IF(Berechnung!$B$11<>0,_xlfn.NORM.DIST($A36,0,Berechnung!$B$11,TRUE),0)) -> 1 | T36: =Demonstrator!$J$19*'Daten Diagramm'!H36+Demonstrator!$J$24*'Daten Diagramm'!L36 -> 0.01617044796 | U36: =Demonstrator!$J$19*'Daten Diagramm'!I36+Demonstrator!$J$24*'Daten Diagramm'!M36 -> 0.9032388458
A37: 14 | B37: =IF(AND(A37=0,Berechnung!$B$3=0),1,IF(Berechnung!$B$3<>0,_xlfn.NORM.DIST(A37,0,Berechnung!$B$3,FALSE),0)) -> 0.01321979894 | C37: =IF(AND($A37>=0,Berechnung!$B$3=0),1,IF(Berechnung!$B$3<>0,_xlfn.NORM.DIST($A37,0,Berechnung!$B$3,TRUE),0)) -> 0.9400930929 | D37: =IF(AND($A37=0,Berechnung!$B$4=0),1,IF(Berechnung!$B$4<>0,_xlfn.NORM.DIST($A37,0,Berechnung!$B$4,FALSE),0)) -> 0.01321979894 | E37: =IF(AND($A37>=0,Berechnung!$B$4=0),1,IF(Berechnung!$B$4<>0,_xlfn.NORM.DIST($A37,0,Berechnung!$B$4,TRUE),0)) -> 0.9400930929 | F37: =IF(AND($A37=0,Berechnung!$B$5=0),1,IF(Berechnung!$B$5<>0,_xlfn.NORM.DIST($A37,0,Berechnung!$B$5,FALSE),0)) -> 0.01725456535 | G37: =IF(AND($A37>=0,Berechnung!$B$5=0),1,IF(Berechnung!$B$5<>0,_xlfn.NORM.DIST($A37,0,Berechnung!$B$5,TRUE),0)) -> 0.8312871657 | H37: =IF(AND($A37=0,Berechnung!$B$6=0),1,IF(Berechnung!$B$6<>0,_xlfn.NORM.DIST($A37,0,Berechnung!$B$6,FALSE),0)) -> 0.01725430622 | I37: =IF(AND($A37>=0,Berechnung!$B$6=0),1,IF(Berechnung!$B$6<>0,_xlfn.NORM.DIST($A37,0,Berechnung!$B$6,TRUE),0)) -> 0.8312418104 | J37: =IF(AND($A37=0,Berechnung!$B$7=0),1,IF(Berechnung!$B$7<>0,_xlfn.NORM.DIST($A37,0,Berechnung!$B$7,FALSE),0)) -> 0.01321979894 | K37: =IF(AND($A37>=0,Berechnung!$B$7=0),1,IF(Berechnung!$B$7<>0,_xlfn.NORM.DIST($A37,0,Berechnung!$B$7,TRUE),0)) -> 0.9400930929 | L37: =IF(AND($A37=0,Berechnung!$B$8=0),1,IF(Berechnung!$B$8<>0,_xlfn.NORM.DIST($A37,0,Berechnung!$B$8,FALSE),0)) -> 0.01321979894 | M37: =IF(AND($A37>=0,Berechnung!$B$8=0),1,IF(Berechnung!$B$8<>0,_xlfn.NORM.DIST($A37,0,Berechnung!$B$8,TRUE),0)) -> 0.9400930929 | N37: =IF(AND($A37=0,Berechnung!$B$9=0),1,IF(Berechnung!$B$9<>0,_xlfn.NORM.DIST($A37,0,Berechnung!$B$9,FALSE),0)) -> 0.01545791804 | O37: =IF(AND($A37>=0,Berechnung!$B$9=0),1,IF(Berechnung!$B$9<>0,_xlfn.NORM.DIST($A37,0,Berechnung!$B$9,TRUE),0)) -> 0.9116214896 | P37: =IF(AND($A37=0,Berechnung!$B$10=0),1,IF(Berechnung!$B$10<>0,_xlfn.NORM.DIST($A37,0,Berechnung!$B$10,FALSE),0)) -> 0.01650905981 | Q37: =IF(AND($A37>=0,Berechnung!$B$10=0),1,IF(Berechnung!$B$10<>0,_xlfn.NORM.DIST($A37,0,Berechnung!$B$10,TRUE),0)) -> 0.889003958 | R37: =IF(AND($A37=0,Berechnung!$B$11=0),1,IF(Berechnung!$B$11<>0,_xlfn.NORM.DIST($A37,0,Berechnung!$B$11,FALSE),0)) -> 0 | S37: =IF(AND($A37>=0,Berechnung!$B$11=0),1,IF(Berechnung!$B$11<>0,_xlfn.NORM.DIST($A37,0,Berechnung!$B$11,TRUE),0)) -> 1 | T37: =Demonstrator!$J$19*'Daten Diagramm'!H37+Demonstrator!$J$24*'Daten Diagramm'!L37 -> 0.01402670039 | U37: =Demonstrator!$J$19*'Daten Diagramm'!I37+Demonstrator!$J$24*'Daten Diagramm'!M37 -> 0.9183228364
A38: 15 | B38: =IF(AND(A38=0,Berechnung!$B$3=0),1,IF(Berechnung!$B$3<>0,_xlfn.NORM.DIST(A38,0,Berechnung!$B$3,FALSE),0)) -> 0.01105301542 | C38: =IF(AND($A38>=0,Berechnung!$B$3=0),1,IF(Berechnung!$B$3<>0,_xlfn.NORM.DIST($A38,0,Berechnung!$B$3,TRUE),0)) -> 0.9522096477 | D38: =IF(AND($A38=0,Berechnung!$B$4=0),1,IF(Berechnung!$B$4<>0,_xlfn.NORM.DIST($A38,0,Berechnung!$B$4,FALSE),0)) -> 0.01105301542 | E38: =IF(AND($A38>=0,Berechnung!$B$4=0),1,IF(Berechnung!$B$4<>0,_xlfn.NORM.DIST($A38,0,Berechnung!$B$4,TRUE),0)) -> 0.9522096477 | F38: =IF(AND($A38=0,Berechnung!$B$5=0),1,IF(Berechnung!$B$5<>0,_xlfn.NORM.DIST($A38,0,Berechnung!$B$5,FALSE),0)) -> 0.01611904753 | G38: =IF(AND($A38>=0,Berechnung!$B$5=0),1,IF(Berechnung!$B$5<>0,_xlfn.NORM.DIST($A38,0,Berechnung!$B$5,TRUE),0)) -> 0.8479740579 | H38: =IF(AND($A38=0,Berechnung!$B$6=0),1,IF(Berechnung!$B$6<>0,_xlfn.NORM.DIST($A38,0,Berechnung!$B$6,FALSE),0)) -> 0.01611921743 | I38: =IF(AND($A38>=0,Berechnung!$B$6=0),1,IF(Berechnung!$B$6<>0,_xlfn.NORM.DIST($A38,0,Berechnung!$B$6,TRUE),0)) -> 0.8479286604 | J38: =IF(AND($A38=0,Berechnung!$B$7=0),1,IF(Berechnung!$B$7<>0,_xlfn.NORM.DIST($A38,0,Berechnung!$B$7,FALSE),0)) -> 0.01105301542 | K38: =IF(AND($A38>=0,Berechnung!$B$7=0),1,IF(Berechnung!$B$7<>0,_xlfn.NORM.DIST($A38,0,Berechnung!$B$7,TRUE),0)) -> 0.9522096477 | L38: =IF(AND($A38=0,Berechnung!$B$8=0),1,IF(Berechnung!$B$8<>0,_xlfn.NORM.DIST($A38,0,Berechnung!$B$8,FALSE),0)) -> 0.01105301542 | M38: =IF(AND($A38>=0,Berechnung!$B$8=0),1,IF(Berechnung!$B$8<>0,_xlfn.NORM.DIST($A38,0,Berechnung!$B$8,TRUE),0)) -> 0.9522096477 | N38: =IF(AND($A38=0,Berechnung!$B$9=0),1,IF(Berechnung!$B$9<>0,_xlfn.NORM.DIST($A38,0,Berechnung!$B$9,FALSE),0)) -> 0.01350597481 | O38: =IF(AND($A38>=0,Berechnung!$B$9=0),1,IF(Berechnung!$B$9<>0,_xlfn.NORM.DIST($A38,0,Berechnung!$B$9,TRUE),0)) -> 0.926092705 | P38: =IF(AND($A38=0,Berechnung!$B$10=0),1,IF(Berechnung!$B$10<>0,_xlfn.NORM.DIST($A38,0,Berechnung!$B$10,FALSE),0)) -> 0.01478440145 | Q38: =IF(AND($A38>=0,Berechnung!$B$10=0),1,IF(Berechnung!$B$10<>0,_xlfn.NORM.DIST($A38,0,Berechnung!$B$10,TRUE),0)) -> 0.9046447477 | R38: =IF(AND($A38=0,Berechnung!$B$11=0),1,IF(Berechnung!$B$11<>0,_xlfn.NORM.DIST($A38,0,Berechnung!$B$11,FALSE),0)) -> 0 | S38: =IF(AND($A38>=0,Berechnung!$B$11=0),1,IF(Berechnung!$B$11<>0,_xlfn.NORM.DIST($A38,0,Berechnung!$B$11,TRUE),0)) -> 1 | T38: =Demonstrator!$J$19*'Daten Diagramm'!H38+Demonstrator!$J$24*'Daten Diagramm'!L38 -> 0.01206625582 | U38: =Demonstrator!$J$19*'Daten Diagramm'!I38+Demonstrator!$J$24*'Daten Diagramm'!M38 -> 0.9313534503
A39: 16 | B39: =IF(AND(A39=0,Berechnung!$B$3=0),1,IF(Berechnung!$B$3<>0,_xlfn.NORM.DIST(A39,0,Berechnung!$B$3,FALSE),0)) -> 0.009127987607 | C39: =IF(AND($A39>=0,Berechnung!$B$3=0),1,IF(Berechnung!$B$3<>0,_xlfn.NORM.DIST($A39,0,Berechnung!$B$3,TRUE),0)) -> 0.9622798202 | D39: =IF(AND($A39=0,Berechnung!$B$4=0),1,IF(Berechnung!$B$4<>0,_xlfn.NORM.DIST($A39,0,Berechnung!$B$4,FALSE),0)) -> 0.009127987607 | E39: =IF(AND($A39>=0,Berechnung!$B$4=0),1,IF(Berechnung!$B$4<>0,_xlfn.NORM.DIST($A39,0,Berechnung!$B$4,TRUE),0)) -> 0.9622798202 | F39: =IF(AND($A39=0,Berechnung!$B$5=0),1,IF(Berechnung!$B$5<>0,_xlfn.NORM.DIST($A39,0,Berechnung!$B$5,FALSE),0)) -> 0.01498772744 | G39: =IF(AND($A39>=0,Berechnung!$B$5=0),1,IF(Berechnung!$B$5<>0,_xlfn.NORM.DIST($A39,0,Berechnung!$B$5,TRUE),0)) -> 0.8635266687 | H39: =IF(AND($A39=0,Berechnung!$B$6=0),1,IF(Berechnung!$B$6<>0,_xlfn.NORM.DIST($A39,0,Berechnung!$B$6,FALSE),0)) -> 0.01498829492 | I39: =IF(AND($A39>=0,Berechnung!$B$6=0),1,IF(Berechnung!$B$6<>0,_xlfn.NORM.DIST($A39,0,Berechnung!$B$6,TRUE),0)) -> 0.8634816428 | J39: =IF(AND($A39=0,Berechnung!$B$7=0),1,IF(Berechnung!$B$7<>0,_xlfn.NORM.DIST($A39,0,Berechnung!$B$7,FALSE),0)) -> 0.009127987607 | K39: =IF(AND($A39>=0,Berechnung!$B$7=0),1,IF(Berechnung!$B$7<>0,_xlfn.NORM.DIST($A39,0,Berechnung!$B$7,TRUE),0)) -> 0.9622798202 | L39: =IF(AND($A39=0,Berechnung!$B$8=0),1,IF(Berechnung!$B$8<>0,_xlfn.NORM.DIST($A39,0,Berechnung!$B$8,FALSE),0)) -> 0.009127987607 | M39: =IF(AND($A39>=0,Berechnung!$B$8=0),1,IF(Berechnung!$B$8<>0,_xlfn.NORM.DIST($A39,0,Berechnung!$B$8,TRUE),0)) -> 0.9622798202 | N39: =IF(AND($A39=0,Berechnung!$B$9=0),1,IF(Berechnung!$B$9<>0,_xlfn.NORM.DIST($A39,0,Berechnung!$B$9,FALSE),0)) -> 0.01169116426 | O39: =IF(AND($A39>=0,Berechnung!$B$9=0),1,IF(Berechnung!$B$9<>0,_xlfn.NORM.DIST($A39,0,Berechnung!$B$9,TRUE),0)) -> 0.9386792174 | P39: =IF(AND($A39=0,Berechnung!$B$10=0),1,IF(Berechnung!$B$10<>0,_xlfn.NORM.DIST($A39,0,Berechnung!$B$10,FALSE),0)) -> 0.01313954788 | Q39: =IF(AND($A39>=0,Berechnung!$B$10=0),1,IF(Berechnung!$B$10<>0,_xlfn.NORM.DIST($A39,0,Berechnung!$B$10,TRUE),0)) -> 0.9185994037 | R39: =IF(AND($A39=0,Berechnung!$B$11=0),1,IF(Berechnung!$B$11<>0,_xlfn.NORM.DIST($A39,0,Berechnung!$B$11,FALSE),0)) -> 0 | S39: =IF(AND($A39>=0,Berechnung!$B$11=0),1,IF(Berechnung!$B$11<>0,_xlfn.NORM.DIST($A39,0,Berechnung!$B$11,TRUE),0)) -> 1 | T39: =Demonstrator!$J$19*'Daten Diagramm'!H39+Demonstrator!$J$24*'Daten Diagramm'!L39 -> 0.01030004907 | U39: =Demonstrator!$J$19*'Daten Diagramm'!I39+Demonstrator!$J$24*'Daten Diagramm'!M39 -> 0.9425201847
A40: 17 | B40: =IF(AND(A40=0,Berechnung!$B$3=0),1,IF(Berechnung!$B$3<>0,_xlfn.NORM.DIST(A40,0,Berechnung!$B$3,FALSE),0)) -> 0.007445736235 | C40: =IF(AND($A40>=0,Berechnung!$B$3=0),1,IF(Berechnung!$B$3<>0,_xlfn.NORM.DIST($A40,0,Berechnung!$B$3,TRUE),0)) -> 0.9705466407 | D40: =IF(AND($A40=0,Berechnung!$B$4=0),1,IF(Berechnung!$B$4<>0,_xlfn.NORM.DIST($A40,0,Berechnung!$B$4,FALSE),0)) -> 0.007445736235 | E40: =IF(AND($A40>=0,Berechnung!$B$4=0),1,IF(Berechnung!$B$4<>0,_xlfn.NORM.DIST($A40,0,Berechnung!$B$4,TRUE),0)) -> 0.9705466407 | F40: =IF(AND($A40=0,Berechnung!$B$5=0),1,IF(Berechnung!$B$5<>0,_xlfn.NORM.DIST($A40,0,Berechnung!$B$5,FALSE),0)) -> 0.0138705364 | G40: =IF(AND($A40>=0,Berechnung!$B$5=0),1,IF(Berechnung!$B$5<>0,_xlfn.NORM.DIST($A40,0,Berechnung!$B$5,TRUE),0)) -> 0.8779542326 | H40: =IF(AND($A40=0,Berechnung!$B$6=0),1,IF(Berechnung!$B$6<>0,_xlfn.NORM.DIST($A40,0,Berechnung!$B$6,FALSE),0)) -> 0.013871465 | I40: =IF(AND($A40>=0,Berechnung!$B$6=0),1,IF(Berechnung!$B$6<>0,_xlfn.NORM.DIST($A40,0,Berechnung!$B$6,TRUE),0)) -> 0.8779099579 | J40: =IF(AND($A40=0,Berechnung!$B$7=0),1,IF(Berechnung!$B$7<>0,_xlfn.NORM.DIST($A40,0,Berechnung!$B$7,FALSE),0)) -> 0.007445736235 | K40: =IF(AND($A40>=0,Berechnung!$B$7=0),1,IF(Berechnung!$B$7<>0,_xlfn.NORM.DIST($A40,0,Berechnung!$B$7,TRUE),0)) -> 0.9705466407 | L40: =IF(AND($A40=0,Berechnung!$B$8=0),1,IF(Berechnung!$B$8<>0,_xlfn.NORM.DIST($A40,0,Berechnung!$B$8,FALSE),0)) -> 0.007445736235 | M40: =IF(AND($A40>=0,Berechnung!$B$8=0),1,IF(Berechnung!$B$8<>0,_xlfn.NORM.DIST($A40,0,Berechnung!$B$8,TRUE),0)) -> 0.9705466407 | N40: =IF(AND($A40=0,Berechnung!$B$9=0),1,IF(Berechnung!$B$9<>0,_xlfn.NORM.DIST($A40,0,Berechnung!$B$9,FALSE),0)) -> 0.01002643358 | O40: =IF(AND($A40>=0,Berechnung!$B$9=0),1,IF(Berechnung!$B$9<>0,_xlfn.NORM.DIST($A40,0,Berechnung!$B$9,TRUE),0)) -> 0.9495251233 | P40: =IF(AND($A40=0,Berechnung!$B$10=0),1,IF(Berechnung!$B$10<>0,_xlfn.NORM.DIST($A40,0,Berechnung!$B$10,FALSE),0)) -> 0.01158917087 | Q40: =IF(AND($A40>=0,Berechnung!$B$10=0),1,IF(Berechnung!$B$10<>0,_xlfn.NORM.DIST($A40,0,Berechnung!$B$10,TRUE),0)) -> 0.9309553769 | R40: =IF(AND($A40=0,Berechnung!$B$11=0),1,IF(Berechnung!$B$11<>0,_xlfn.NORM.DIST($A40,0,Berechnung!$B$11,FALSE),0)) -> 0 | S40: =IF(AND($A40>=0,Berechnung!$B$11=0),1,IF(Berechnung!$B$11<>0,_xlfn.NORM.DIST($A40,0,Berechnung!$B$11,TRUE),0)) -> 1 | T40: =Demonstrator!$J$19*'Daten Diagramm'!H40+Demonstrator!$J$24*'Daten Diagramm'!L40 -> 0.008730881989 | U40: =Demonstrator!$J$19*'Daten Diagramm'!I40+Demonstrator!$J$24*'Daten Diagramm'!M40 -> 0.9520193041
A41: 18 | B41: =IF(AND(A41=0,Berechnung!$B$3=0),1,IF(Berechnung!$B$3<>0,_xlfn.NORM.DIST(A41,0,Berechnung!$B$3,FALSE),0)) -> 0.005998996279 | C41: =IF(AND($A41>=0,Berechnung!$B$3=0),1,IF(Berechnung!$B$3<>0,_xlfn.NORM.DIST($A41,0,Berechnung!$B$3,TRUE),0)) -> 0.9772498681 | D41: =IF(AND($A41=0,Berechnung!$B$4=0),1,IF(Berechnung!$B$4<>0,_xlfn.NORM.DIST($A41,0,Berechnung!$B$4,FALSE),0)) -> 0.005998996279 | E41: =IF(AND($A41>=0,Berechnung!$B$4=0),1,IF(Berechnung!$B$4<>0,_xlfn.NORM.DIST($A41,0,Berechnung!$B$4,TRUE),0)) -> 0.9772498681 | F41: =IF(AND($A41=0,Berechnung!$B$5=0),1,IF(Berechnung!$B$5<>0,_xlfn.NORM.DIST($A41,0,Berechnung!$B$5,FALSE),0)) -> 0.01277649663 | G41: =IF(AND($A41>=0,Berechnung!$B$5=0),1,IF(Berechnung!$B$5<>0,_xlfn.NORM.DIST($A41,0,Berechnung!$B$5,TRUE),0)) -> 0.8912754698 | H41: =IF(AND($A41=0,Berechnung!$B$6=0),1,IF(Berechnung!$B$6<>0,_xlfn.NORM.DIST($A41,0,Berechnung!$B$6,FALSE),0)) -> 0.01277774614 | I41: =IF(AND($A41>=0,Berechnung!$B$6=0),1,IF(Berechnung!$B$6<>0,_xlfn.NORM.DIST($A41,0,Berechnung!$B$6,TRUE),0)) -> 0.8912322876 | J41: =IF(AND($A41=0,Berechnung!$B$7=0),1,IF(Berechnung!$B$7<>0,_xlfn.NORM.DIST($A41,0,Berechnung!$B$7,FALSE),0)) -> 0.005998996279 | K41: =IF(AND($A41>=0,Berechnung!$B$7=0),1,IF(Berechnung!$B$7<>0,_xlfn.NORM.DIST($A41,0,Berechnung!$B$7,TRUE),0)) -> 0.9772498681 | L41: =IF(AND($A41=0,Berechnung!$B$8=0),1,IF(Berechnung!$B$8<>0,_xlfn.NORM.DIST($A41,0,Berechnung!$B$8,FALSE),0)) -> 0.005998996279 | M41: =IF(AND($A41>=0,Berechnung!$B$8=0),1,IF(Berechnung!$B$8<>0,_xlfn.NORM.DIST($A41,0,Berechnung!$B$8,TRUE),0)) -> 0.9772498681 | N41: =IF(AND($A41=0,Berechnung!$B$9=0),1,IF(Berechnung!$B$9<>0,_xlfn.NORM.DIST($A41,0,Berechnung!$B$9,FALSE),0)) -> 0.00851906815 | O41: =IF(AND($A41>=0,Berechnung!$B$9=0),1,IF(Berechnung!$B$9<>0,_xlfn.NORM.DIST($A41,0,Berechnung!$B$9,TRUE),0)) -> 0.9587845965 | P41: =IF(AND($A41=0,Berechnung!$B$10=0),1,IF(Berechnung!$B$10<>0,_xlfn.NORM.DIST($A41,0,Berechnung!$B$10,FALSE),0)) -> 0.0101442415 | Q41: =IF(AND($A41>=0,Berechnung!$B$10=0),1,IF(Berechnung!$B$10<>0,_xlfn.NORM.DIST($A41,0,Berechnung!$B$10,TRUE),0)) -> 0.9418129345 | R41: =IF(AND($A41=0,Berechnung!$B$11=0),1,IF(Berechnung!$B$11<>0,_xlfn.NORM.DIST($A41,0,Berechnung!$B$11,FALSE),0)) -> 0 | S41: =IF(AND($A41>=0,Berechnung!$B$11=0),1,IF(Berechnung!$B$11<>0,_xlfn.NORM.DIST($A41,0,Berechnung!$B$11,TRUE),0)) -> 1 | T41: =Demonstrator!$J$19*'Daten Diagramm'!H41+Demonstrator!$J$24*'Daten Diagramm'!L41 -> 0.007354746251 | U41: =Demonstrator!$J$19*'Daten Diagramm'!I41+Demonstrator!$J$24*'Daten Diagramm'!M41 -> 0.960046352
A42: 19 | B42: =IF(AND(A42=0,Berechnung!$B$3=0),1,IF(Berechnung!$B$3<>0,_xlfn.NORM.DIST(A42,0,Berechnung!$B$3,FALSE),0)) -> 0.004774060052 | C42: =IF(AND($A42>=0,Berechnung!$B$3=0),1,IF(Berechnung!$B$3<>0,_xlfn.NORM.DIST($A42,0,Berechnung!$B$3,TRUE),0)) -> 0.9826186187 | D42: =IF(AND($A42=0,Berechnung!$B$4=0),1,IF(Berechnung!$B$4<>0,_xlfn.NORM.DIST($A42,0,Berechnung!$B$4,FALSE),0)) -> 0.004774060052 | E42: =IF(AND($A42>=0,Berechnung!$B$4=0),1,IF(Berechnung!$B$4<>0,_xlfn.NORM.DIST($A42,0,Berechnung!$B$4,TRUE),0)) -> 0.9826186187 | F42: =IF(AND($A42=0,Berechnung!$B$5=0),1,IF(Berechnung!$B$5<>0,_xlfn.NORM.DIST($A42,0,Berechnung!$B$5,FALSE),0)) -> 0.0117136265 | G42: =IF(AND($A42>=0,Berechnung!$B$5=0),1,IF(Berechnung!$B$5<>0,_xlfn.NORM.DIST($A42,0,Berechnung!$B$5,TRUE),0)) -> 0.9035176276 | H42: =IF(AND($A42=0,Berechnung!$B$6=0),1,IF(Berechnung!$B$6<>0,_xlfn.NORM.DIST($A42,0,Berechnung!$B$6,FALSE),0)) -> 0.01171515408 | I42: =IF(AND($A42>=0,Berechnung!$B$6=0),1,IF(Berechnung!$B$6<>0,_xlfn.NORM.DIST($A42,0,Berechnung!$B$6,TRUE),0)) -> 0.9034758377 | J42: =IF(AND($A42=0,Berechnung!$B$7=0),1,IF(Berechnung!$B$7<>0,_xlfn.NORM.DIST($A42,0,Berechnung!$B$7,FALSE),0)) -> 0.004774060052 | K42: =IF(AND($A42>=0,Berechnung!$B$7=0),1,IF(Berechnung!$B$7<>0,_xlfn.NORM.DIST($A42,0,Berechnung!$B$7,TRUE),0)) -> 0.9826186187 | L42: =IF(AND($A42=0,Berechnung!$B$8=0),1,IF(Berechnung!$B$8<>0,_xlfn.NORM.DIST($A42,0,Berechnung!$B$8,FALSE),0)) -> 0.004774060052 | M42: =IF(AND($A42>=0,Berechnung!$B$8=0),1,IF(Berechnung!$B$8<>0,_xlfn.NORM.DIST($A42,0,Berechnung!$B$8,TRUE),0)) -> 0.9826186187 | N42: =IF(AND($A42=0,Berechnung!$B$9=0),1,IF(Berechnung!$B$9<>0,_xlfn.NORM.DIST($A42,0,Berechnung!$B$9,FALSE),0)) -> 0.007171245588 | O42: =IF(AND($A42>=0,Berechnung!$B$9=0),1,IF(Berechnung!$B$9<>0,_xlfn.NORM.DIST($A42,0,Berechnung!$B$9,TRUE),0)) -> 0.9666164897 | P42: =IF(AND($A42=0,Berechnung!$B$10=0),1,IF(Berechnung!$B$10<>0,_xlfn.NORM.DIST($A42,0,Berechnung!$B$10,FALSE),0)) -> 0.008812153693 | Q42: =IF(AND($A42>=0,Berechnung!$B$10=0),1,IF(Berechnung!$B$10<>0,_xlfn.NORM.DIST($A42,0,Berechnung!$B$10,TRUE),0)) -> 0.951281511 | R42: =IF(AND($A42=0,Berechnung!$B$11=0),1,IF(Berechnung!$B$11<>0,_xlfn.NORM.DIST($A42,0,Berechnung!$B$11,FALSE),0)) -> 0 | S42: =IF(AND($A42>=0,Berechnung!$B$11=0),1,IF(Berechnung!$B$11<>0,_xlfn.NORM.DIST($A42,0,Berechnung!$B$11,TRUE),0)) -> 1 | T42: =Demonstrator!$J$19*'Daten Diagramm'!H42+Demonstrator!$J$24*'Daten Diagramm'!L42 -> 0.006162278856 | U42: =Demonstrator!$J$19*'Daten Diagramm'!I42+Demonstrator!$J$24*'Daten Diagramm'!M42 -> 0.9667900625
A43: 20 | B43: =IF(AND(A43=0,Berechnung!$B$3=0),1,IF(Berechnung!$B$3<>0,_xlfn.NORM.DIST(A43,0,Berechnung!$B$3,FALSE),0)) -> 0.003752627893 | C43: =IF(AND($A43>=0,Berechnung!$B$3=0),1,IF(Berechnung!$B$3<>0,_xlfn.NORM.DIST($A43,0,Berechnung!$B$3,TRUE),0)) -> 0.9868658543 | D43: =IF(AND($A43=0,Berechnung!$B$4=0),1,IF(Berechnung!$B$4<>0,_xlfn.NORM.DIST($A43,0,Berechnung!$B$4,FALSE),0)) -> 0.003752627893 | E43: =IF(AND($A43>=0,Berechnung!$B$4=0),1,IF(Berechnung!$B$4<>0,_xlfn.NORM.DIST($A43,0,Berechnung!$B$4,TRUE),0)) -> 0.9868658543 | F43: =IF(AND($A43=0,Berechnung!$B$5=0),1,IF(Berechnung!$B$5<>0,_xlfn.NORM.DIST($A43,0,Berechnung!$B$5,FALSE),0)) -> 0.01068887549 | G43: =IF(AND($A43>=0,Berechnung!$B$5=0),1,IF(Berechnung!$B$5<>0,_xlfn.NORM.DIST($A43,0,Berechnung!$B$5,TRUE),0)) -> 0.9147154415 | H43: =IF(AND($A43=0,Berechnung!$B$6=0),1,IF(Berechnung!$B$6<>0,_xlfn.NORM.DIST($A43,0,Berechnung!$B$6,FALSE),0)) -> 0.01069063687 | I43: =IF(AND($A43>=0,Berechnung!$B$6=0),1,IF(Berechnung!$B$6<>0,_xlfn.NORM.DIST($A43,0,Berechnung!$B$6,TRUE),0)) -> 0.9146752997 | J43: =IF(AND($A43=0,Berechnung!$B$7=0),1,IF(Berechnung!$B$7<>0,_xlfn.NORM.DIST($A43,0,Berechnung!$B$7,FALSE),0)) -> 0.003752627893 | K43: =IF(AND($A43>=0,Berechnung!$B$7=0),1,IF(Berechnung!$B$7<>0,_xlfn.NORM.DIST($A43,0,Berechnung!$B$7,TRUE),0)) -> 0.9868658543 | L43: =IF(AND($A43=0,Berechnung!$B$8=0),1,IF(Berechnung!$B$8<>0,_xlfn.NORM.DIST($A43,0,Berechnung!$B$8,FALSE),0)) -> 0.003752627893 | M43: =IF(AND($A43>=0,Berechnung!$B$8=0),1,IF(Berechnung!$B$8<>0,_xlfn.NORM.DIST($A43,0,Berechnung!$B$8,TRUE),0)) -> 0.9868658543 | N43: =IF(AND($A43=0,Berechnung!$B$9=0),1,IF(Berechnung!$B$9<>0,_xlfn.NORM.DIST($A43,0,Berechnung!$B$9,FALSE),0)) -> 0.005980727167 | O43: =IF(AND($A43>=0,Berechnung!$B$9=0),1,IF(Berechnung!$B$9<>0,_xlfn.NORM.DIST($A43,0,Berechnung!$B$9,TRUE),0)) -> 0.9731795629 | P43: =IF(AND($A43=0,Berechnung!$B$10=0),1,IF(Berechnung!$B$10<>0,_xlfn.NORM.DIST($A43,0,Berechnung!$B$10,FALSE),0)) -> 0.007596959577 | Q43: =IF(AND($A43>=0,Berechnung!$B$10=0),1,IF(Berechnung!$B$10<>0,_xlfn.NORM.DIST($A43,0,Berechnung!$B$10,TRUE),0)) -> 0.9594762401 | R43: =IF(AND($A43=0,Berechnung!$B$11=0),1,IF(Berechnung!$B$11<>0,_xlfn.NORM.DIST($A43,0,Berechnung!$B$11,FALSE),0)) -> 0 | S43: =IF(AND($A43>=0,Berechnung!$B$11=0),1,IF(Berechnung!$B$11<>0,_xlfn.NORM.DIST($A43,0,Berechnung!$B$11,TRUE),0)) -> 1 | T43: =Demonstrator!$J$19*'Daten Diagramm'!H43+Demonstrator!$J$24*'Daten Diagramm'!L43 -> 0.005140229689 | U43: =Demonstrator!$J$19*'Daten Diagramm'!I43+Demonstrator!$J$24*'Daten Diagramm'!M43 -> 0.9724277434
A44: 21 | B44: =IF(AND(A44=0,Berechnung!$B$3=0),1,IF(Berechnung!$B$3<>0,_xlfn.NORM.DIST(A44,0,Berechnung!$B$3,FALSE),0)) -> 0.002913543233 | C44: =IF(AND($A44>=0,Berechnung!$B$3=0),1,IF(Berechnung!$B$3<>0,_xlfn.NORM.DIST($A44,0,Berechnung!$B$3,TRUE),0)) -> 0.9901846714 | D44: =IF(AND($A44=0,Berechnung!$B$4=0),1,IF(Berechnung!$B$4<>0,_xlfn.NORM.DIST($A44,0,Berechnung!$B$4,FALSE),0)) -> 0.002913543233 | E44: =IF(AND($A44>=0,Berechnung!$B$4=0),1,IF(Berechnung!$B$4<>0,_xlfn.NORM.DIST($A44,0,Berechnung!$B$4,TRUE),0)) -> 0.9901846714 | F44: =IF(AND($A44=0,Berechnung!$B$5=0),1,IF(Berechnung!$B$5<>0,_xlfn.NORM.DIST($A44,0,Berechnung!$B$5,FALSE),0)) -> 0.009708088416 | G44: =IF(AND($A44>=0,Berechnung!$B$5=0),1,IF(Berechnung!$B$5<>0,_xlfn.NORM.DIST($A44,0,Berechnung!$B$5,TRUE),0)) -> 0.9249100457 | H44: =IF(AND($A44=0,Berechnung!$B$6=0),1,IF(Berechnung!$B$6<>0,_xlfn.NORM.DIST($A44,0,Berechnung!$B$6,FALSE),0)) -> 0.00971003904 | I44: =IF(AND($A44>=0,Berechnung!$B$6=0),1,IF(Berechnung!$B$6<>0,_xlfn.NORM.DIST($A44,0,Berechnung!$B$6,TRUE),0)) -> 0.9248717636 | J44: =IF(AND($A44=0,Berechnung!$B$7=0),1,IF(Berechnung!$B$7<>0,_xlfn.NORM.DIST($A44,0,Berechnung!$B$7,FALSE),0)) -> 0.002913543233 | K44: =IF(AND($A44>=0,Berechnung!$B$7=0),1,IF(Berechnung!$B$7<>0,_xlfn.NORM.DIST($A44,0,Berechnung!$B$7,TRUE),0)) -> 0.9901846714 | L44: =IF(AND($A44=0,Berechnung!$B$8=0),1,IF(Berechnung!$B$8<>0,_xlfn.NORM.DIST($A44,0,Berechnung!$B$8,FALSE),0)) -> 0.002913543233 | M44: =IF(AND($A44>=0,Berechnung!$B$8=0),1,IF(Berechnung!$B$8<>0,_xlfn.NORM.DIST($A44,0,Berechnung!$B$8,TRUE),0)) -> 0.9901846714 | N44: =IF(AND($A44=0,Berechnung!$B$9=0),1,IF(Berechnung!$B$9<>0,_xlfn.NORM.DIST($A44,0,Berechnung!$B$9,FALSE),0)) -> 0.004941630608 | O44: =IF(AND($A44>=0,Berechnung!$B$9=0),1,IF(Berechnung!$B$9<>0,_xlfn.NORM.DIST($A44,0,Berechnung!$B$9,TRUE),0)) -> 0.9786284495 | P44: =IF(AND($A44=0,Berechnung!$B$10=0),1,IF(Berechnung!$B$10<>0,_xlfn.NORM.DIST($A44,0,Berechnung!$B$10,FALSE),0)) -> 0.0064996929 | Q44: =IF(AND($A44>=0,Berechnung!$B$10=0),1,IF(Berechnung!$B$10<>0,_xlfn.NORM.DIST($A44,0,Berechnung!$B$10,TRUE),0)) -> 0.9665147686 | R44: =IF(AND($A44=0,Berechnung!$B$11=0),1,IF(Berechnung!$B$11<>0,_xlfn.NORM.DIST($A44,0,Berechnung!$B$11,FALSE),0)) -> 0 | S44: =IF(AND($A44>=0,Berechnung!$B$11=0),1,IF(Berechnung!$B$11<>0,_xlfn.NORM.DIST($A44,0,Berechnung!$B$11,TRUE),0)) -> 1 | T44: =Demonstrator!$J$19*'Daten Diagramm'!H44+Demonstrator!$J$24*'Daten Diagramm'!L44 -> 0.004272842394 | U44: =Demonstrator!$J$19*'Daten Diagramm'!I44+Demonstrator!$J$24*'Daten Diagramm'!M44 -> 0.9771220898
A45: 22 | B45: =IF(AND(A45=0,Berechnung!$B$3=0),1,IF(Berechnung!$B$3<>0,_xlfn.NORM.DIST(A45,0,Berechnung!$B$3,FALSE),0)) -> 0.002234322047 | C45: =IF(AND($A45>=0,Berechnung!$B$3=0),1,IF(Berechnung!$B$3<>0,_xlfn.NORM.DIST($A45,0,Berechnung!$B$3,TRUE),0)) -> 0.9927462289 | D45: =IF(AND($A45=0,Berechnung!$B$4=0),1,IF(Berechnung!$B$4<>0,_xlfn.NORM.DIST($A45,0,Berechnung!$B$4,FALSE),0)) -> 0.002234322047 | E45: =IF(AND($A45>=0,Berechnung!$B$4=0),1,IF(Berechnung!$B$4<>0,_xlfn.NORM.DIST($A45,0,Berechnung!$B$4,TRUE),0)) -> 0.9927462289 | F45: =IF(AND($A45=0,Berechnung!$B$5=0),1,IF(Berechnung!$B$5<>0,_xlfn.NORM.DIST($A45,0,Berechnung!$B$5,FALSE),0)) -> 0.008775997413 | G45: =IF(AND($A45>=0,Berechnung!$B$5=0),1,IF(Berechnung!$B$5<>0,_xlfn.NORM.DIST($A45,0,Berechnung!$B$5,TRUE),0)) -> 0.9341478625 | H45: =IF(AND($A45=0,Berechnung!$B$6=0),1,IF(Berechnung!$B$6<>0,_xlfn.NORM.DIST($A45,0,Berechnung!$B$6,FALSE),0)) -> 0.008778093413 | I45: =IF(AND($A45>=0,Berechnung!$B$6=0),1,IF(Berechnung!$B$6<>0,_xlfn.NORM.DIST($A45,0,Berechnung!$B$6,TRUE),0)) -> 0.9341116074 | J45: =IF(AND($A45=0,Berechnung!$B$7=0),1,IF(Berechnung!$B$7<>0,_xlfn.NORM.DIST($A45,0,Berechnung!$B$7,FALSE),0)) -> 0.002234322047 | K45: =IF(AND($A45>=0,Berechnung!$B$7=0),1,IF(Berechnung!$B$7<>0,_xlfn.NORM.DIST($A45,0,Berechnung!$B$7,TRUE),0)) -> 0.9927462289 | L45: =IF(AND($A45=0,Berechnung!$B$8=0),1,IF(Berechnung!$B$8<>0,_xlfn.NORM.DIST($A45,0,Berechnung!$B$8,FALSE),0)) -> 0.002234322047 | M45: =IF(AND($A45>=0,Berechnung!$B$8=0),1,IF(Berechnung!$B$8<>0,_xlfn.NORM.DIST($A45,0,Berechnung!$B$8,TRUE),0)) -> 0.9927462289 | N45: =IF(AND($A45=0,Berechnung!$B$9=0),1,IF(Berechnung!$B$9<>0,_xlfn.NORM.DIST($A45,0,Berechnung!$B$9,FALSE),0)) -> 0.00404523222 | O45: =IF(AND($A45>=0,Berechnung!$B$9=0),1,IF(Berechnung!$B$9<>0,_xlfn.NORM.DIST($A45,0,Berechnung!$B$9,TRUE),0)) -> 0.983110413 | P45: =IF(AND($A45=0,Berechnung!$B$10=0),1,IF(Berechnung!$B$10<>0,_xlfn.NORM.DIST($A45,0,Berechnung!$B$10,FALSE),0)) -> 0.005518755181 | Q45: =IF(AND($A45>=0,Berechnung!$B$10=0),1,IF(Berechnung!$B$10<>0,_xlfn.NORM.DIST($A45,0,Berechnung!$B$10,TRUE),0)) -> 0.9725144268 | R45: =IF(AND($A45=0,Berechnung!$B$11=0),1,IF(Berechnung!$B$11<>0,_xlfn.NORM.DIST($A45,0,Berechnung!$B$11,FALSE),0)) -> 0 | S45: =IF(AND($A45>=0,Berechnung!$B$11=0),1,IF(Berechnung!$B$11<>0,_xlfn.NORM.DIST($A45,0,Berechnung!$B$11,TRUE),0)) -> 1 | T45: =Demonstrator!$J$19*'Daten Diagramm'!H45+Demonstrator!$J$24*'Daten Diagramm'!L45 -> 0.00354307632 | U45: =Demonstrator!$J$19*'Daten Diagramm'!I45+Demonstrator!$J$24*'Daten Diagramm'!M45 -> 0.9810193046
A46: 23 | B46: =IF(AND(A46=0,Berechnung!$B$3=0),1,IF(Berechnung!$B$3<>0,_xlfn.NORM.DIST(A46,0,Berechnung!$B$3,FALSE),0)) -> 0.001692421036 | C46: =IF(AND($A46>=0,Berechnung!$B$3=0),1,IF(Berechnung!$B$3<>0,_xlfn.NORM.DIST($A46,0,Berechnung!$B$3,TRUE),0)) -> 0.9946990782 | D46: =IF(AND($A46=0,Berechnung!$B$4=0),1,IF(Berechnung!$B$4<>0,_xlfn.NORM.DIST($A46,0,Berechnung!$B$4,FALSE),0)) -> 0.001692421036 | E46: =IF(AND($A46>=0,Berechnung!$B$4=0),1,IF(Berechnung!$B$4<>0,_xlfn.NORM.DIST($A46,0,Berechnung!$B$4,TRUE),0)) -> 0.9946990782 | F46: =IF(AND($A46=0,Berechnung!$B$5=0),1,IF(Berechnung!$B$5<>0,_xlfn.NORM.DIST($A46,0,Berechnung!$B$5,FALSE),0)) -> 0.007896239436 | G46: =IF(AND($A46>=0,Berechnung!$B$5=0),1,IF(Berechnung!$B$5<>0,_xlfn.NORM.DIST($A46,0,Berechnung!$B$5,TRUE),0)) -> 0.9424794966 | H46: =IF(AND($A46=0,Berechnung!$B$6=0),1,IF(Berechnung!$B$6<>0,_xlfn.NORM.DIST($A46,0,Berechnung!$B$6,FALSE),0)) -> 0.007898438564 | I46: =IF(AND($A46>=0,Berechnung!$B$6=0),1,IF(Berechnung!$B$6<>0,_xlfn.NORM.DIST($A46,0,Berechnung!$B$6,TRUE),0)) -> 0.9424453924 | J46: =IF(AND($A46=0,Berechnung!$B$7=0),1,IF(Berechnung!$B$7<>0,_xlfn.NORM.DIST($A46,0,Berechnung!$B$7,FALSE),0)) -> 0.001692421036 | K46: =IF(AND($A46>=0,Berechnung!$B$7=0),1,IF(Berechnung!$B$7<>0,_xlfn.NORM.DIST($A46,0,Berechnung!$B$7,TRUE),0)) -> 0.9946990782 | L46: =IF(AND($A46=0,Berechnung!$B$8=0),1,IF(Berechnung!$B$8<>0,_xlfn.NORM.DIST($A46,0,Berechnung!$B$8,FALSE),0)) -> 0.001692421036 | M46: =IF(AND($A46>=0,Berechnung!$B$8=0),1,IF(Berechnung!$B$8<>0,_xlfn.NORM.DIST($A46,0,Berechnung!$B$8,TRUE),0)) -> 0.9946990782 | N46: =IF(AND($A46=0,Berechnung!$B$9=0),1,IF(Berechnung!$B$9<>0,_xlfn.NORM.DIST($A46,0,Berechnung!$B$9,FALSE),0)) -> 0.003280752959 | O46: =IF(AND($A46>=0,Berechnung!$B$9=0),1,IF(Berechnung!$B$9<>0,_xlfn.NORM.DIST($A46,0,Berechnung!$B$9,TRUE),0)) -> 0.9867629016 | P46: =IF(AND($A46=0,Berechnung!$B$10=0),1,IF(Berechnung!$B$10<>0,_xlfn.NORM.DIST($A46,0,Berechnung!$B$10,FALSE),0)) -> 0.004650339814 | Q46: =IF(AND($A46>=0,Berechnung!$B$10=0),1,IF(Berechnung!$B$10<>0,_xlfn.NORM.DIST($A46,0,Berechnung!$B$10,TRUE),0)) -> 0.9775898061 | R46: =IF(AND($A46=0,Berechnung!$B$11=0),1,IF(Berechnung!$B$11<>0,_xlfn.NORM.DIST($A46,0,Berechnung!$B$11,FALSE),0)) -> 0 | S46: =IF(AND($A46>=0,Berechnung!$B$11=0),1,IF(Berechnung!$B$11<>0,_xlfn.NORM.DIST($A46,0,Berechnung!$B$11,TRUE),0)) -> 1 | T46: =Demonstrator!$J$19*'Daten Diagramm'!H46+Demonstrator!$J$24*'Daten Diagramm'!L46 -> 0.002933624542 | U46: =Demonstrator!$J$19*'Daten Diagramm'!I46+Demonstrator!$J$24*'Daten Diagramm'!M46 -> 0.9842483411
A47: 24 | B47: =IF(AND(A47=0,Berechnung!$B$3=0),1,IF(Berechnung!$B$3<>0,_xlfn.NORM.DIST(A47,0,Berechnung!$B$3,FALSE),0)) -> 0.001266220669 | C47: =IF(AND($A47>=0,Berechnung!$B$3=0),1,IF(Berechnung!$B$3<>0,_xlfn.NORM.DIST($A47,0,Berechnung!$B$3,TRUE),0)) -> 0.9961696194 | D47: =IF(AND($A47=0,Berechnung!$B$4=0),1,IF(Berechnung!$B$4<>0,_xlfn.NORM.DIST($A47,0,Berechnung!$B$4,FALSE),0)) -> 0.001266220669 | E47: =IF(AND($A47>=0,Berechnung!$B$4=0),1,IF(Berechnung!$B$4<>0,_xlfn.NORM.DIST($A47,0,Berechnung!$B$4,TRUE),0)) -> 0.9961696194 | F47: =IF(AND($A47=0,Berechnung!$B$5=0),1,IF(Berechnung!$B$5<>0,_xlfn.NORM.DIST($A47,0,Berechnung!$B$5,FALSE),0)) -> 0.007071396512 | G47: =IF(AND($A47>=0,Berechnung!$B$5=0),1,IF(Berechnung!$B$5<>0,_xlfn.NORM.DIST($A47,0,Berechnung!$B$5,TRUE),0)) -> 0.9499586575 | H47: =IF(AND($A47=0,Berechnung!$B$6=0),1,IF(Berechnung!$B$6<>0,_xlfn.NORM.DIST($A47,0,Berechnung!$B$6,FALSE),0)) -> 0.007073658921 | I47: =IF(AND($A47>=0,Berechnung!$B$6=0),1,IF(Berechnung!$B$6<>0,_xlfn.NORM.DIST($A47,0,Berechnung!$B$6,TRUE),0)) -> 0.9499267873 | J47: =IF(AND($A47=0,Berechnung!$B$7=0),1,IF(Berechnung!$B$7<>0,_xlfn.NORM.DIST($A47,0,Berechnung!$B$7,FALSE),0)) -> 0.001266220669 | K47: =IF(AND($A47>=0,Berechnung!$B$7=0),1,IF(Berechnung!$B$7<>0,_xlfn.NORM.DIST($A47,0,Berechnung!$B$7,TRUE),0)) -> 0.9961696194 | L47: =IF(AND($A47=0,Berechnung!$B$8=0),1,IF(Berechnung!$B$8<>0,_xlfn.NORM.DIST($A47,0,Berechnung!$B$8,FALSE),0)) -> 0.001266220669 | M47: =IF(AND($A47>=0,Berechnung!$B$8=0),1,IF(Berechnung!$B$8<>0,_xlfn.NORM.DIST($A47,0,Berechnung!$B$8,TRUE),0)) -> 0.9961696194 | N47: =IF(AND($A47=0,Berechnung!$B$9=0),1,IF(Berechnung!$B$9<>0,_xlfn.NORM.DIST($A47,0,Berechnung!$B$9,FALSE),0)) -> 0.002636091573 | O47: =IF(AND($A47>=0,Berechnung!$B$9=0),1,IF(Berechnung!$B$9<>0,_xlfn.NORM.DIST($A47,0,Berechnung!$B$9,TRUE),0)) -> 0.9897118655 | P47: =IF(AND($A47=0,Berechnung!$B$10=0),1,IF(Berechnung!$B$10<>0,_xlfn.NORM.DIST($A47,0,Berechnung!$B$10,FALSE),0)) -> 0.003888870839 | Q47: =IF(AND($A47>=0,Berechnung!$B$10=0),1,IF(Berechnung!$B$10<>0,_xlfn.NORM.DIST($A47,0,Berechnung!$B$10,TRUE),0)) -> 0.98185077 | R47: =IF(AND($A47=0,Berechnung!$B$11=0),1,IF(Berechnung!$B$11<>0,_xlfn.NORM.DIST($A47,0,Berechnung!$B$11,FALSE),0)) -> 0 | S47: =IF(AND($A47>=0,Berechnung!$B$11=0),1,IF(Berechnung!$B$11<>0,_xlfn.NORM.DIST($A47,0,Berechnung!$B$11,TRUE),0)) -> 1 | T47: =Demonstrator!$J$19*'Daten Diagramm'!H47+Demonstrator!$J$24*'Daten Diagramm'!L47 -> 0.00242770832 | U47: =Demonstrator!$J$19*'Daten Diagramm'!I47+Demonstrator!$J$24*'Daten Diagramm'!M47 -> 0.986921053
A48: 25 | B48: =IF(AND(A48=0,Berechnung!$B$3=0),1,IF(Berechnung!$B$3<>0,_xlfn.NORM.DIST(A48,0,Berechnung!$B$3,FALSE),0)) -> 0.0009357260538 | C48: =IF(AND($A48>=0,Berechnung!$B$3=0),1,IF(Berechnung!$B$3<>0,_xlfn.NORM.DIST($A48,0,Berechnung!$B$3,TRUE),0)) -> 0.9972633982 | D48: =IF(AND($A48=0,Berechnung!$B$4=0),1,IF(Berechnung!$B$4<>0,_xlfn.NORM.DIST($A48,0,Berechnung!$B$4,FALSE),0)) -> 0.0009357260538 | E48: =IF(AND($A48>=0,Berechnung!$B$4=0),1,IF(Berechnung!$B$4<>0,_xlfn.NORM.DIST($A48,0,Berechnung!$B$4,TRUE),0)) -> 0.9972633982 | F48: =IF(AND($A48=0,Berechnung!$B$5=0),1,IF(Berechnung!$B$5<>0,_xlfn.NORM.DIST($A48,0,Berechnung!$B$5,FALSE),0)) -> 0.00630305548 | G48: =IF(AND($A48>=0,Berechnung!$B$5=0),1,IF(Berechnung!$B$5<>0,_xlfn.NORM.DIST($A48,0,Berechnung!$B$5,TRUE),0)) -> 0.9566411338 | H48: =IF(AND($A48=0,Berechnung!$B$6=0),1,IF(Berechnung!$B$6<>0,_xlfn.NORM.DIST($A48,0,Berechnung!$B$6,FALSE),0)) -> 0.006305344359 | I48: =IF(AND($A48>=0,Berechnung!$B$6=0),1,IF(Berechnung!$B$6<>0,_xlfn.NORM.DIST($A48,0,Berechnung!$B$6,TRUE),0)) -> 0.9566115422 | J48: =IF(AND($A48=0,Berechnung!$B$7=0),1,IF(Berechnung!$B$7<>0,_xlfn.NORM.DIST($A48,0,Berechnung!$B$7,FALSE),0)) -> 0.0009357260538 | K48: =IF(AND($A48>=0,Berechnung!$B$7=0),1,IF(Berechnung!$B$7<>0,_xlfn.NORM.DIST($A48,0,Berechnung!$B$7,TRUE),0)) -> 0.9972633982 | L48: =IF(AND($A48=0,Berechnung!$B$8=0),1,IF(Berechnung!$B$8<>0,_xlfn.NORM.DIST($A48,0,Berechnung!$B$8,FALSE),0)) -> 0.0009357260538 | M48: =IF(AND($A48>=0,Berechnung!$B$8=0),1,IF(Berechnung!$B$8<>0,_xlfn.NORM.DIST($A48,0,Berechnung!$B$8,TRUE),0)) -> 0.9972633982 | N48: =IF(AND($A48=0,Berechnung!$B$9=0),1,IF(Berechnung!$B$9<>0,_xlfn.NORM.DIST($A48,0,Berechnung!$B$9,FALSE),0)) -> 0.002098477651 | O48: =IF(AND($A48>=0,Berechnung!$B$9=0),1,IF(Berechnung!$B$9<>0,_xlfn.NORM.DIST($A48,0,Berechnung!$B$9,TRUE),0)) -> 0.9920707684 | P48: =IF(AND($A48=0,Berechnung!$B$10=0),1,IF(Berechnung!$B$10<>0,_xlfn.NORM.DIST($A48,0,Berechnung!$B$10,FALSE),0)) -> 0.003227435848 | Q48: =IF(AND($A48>=0,Berechnung!$B$10=0),1,IF(Berechnung!$B$10<>0,_xlfn.NORM.DIST($A48,0,Berechnung!$B$10,TRUE),0)) -> 0.9854009026 | R48: =IF(AND($A48=0,Berechnung!$B$11=0),1,IF(Berechnung!$B$11<>0,_xlfn.NORM.DIST($A48,0,Berechnung!$B$11,FALSE),0)) -> 0 | S48: =IF(AND($A48>=0,Berechnung!$B$11=0),1,IF(Berechnung!$B$11<>0,_xlfn.NORM.DIST($A48,0,Berechnung!$B$11,TRUE),0)) -> 1 | T48: =Demonstrator!$J$19*'Daten Diagramm'!H48+Demonstrator!$J$24*'Daten Diagramm'!L48 -> 0.002009649715 | U48: =Demonstrator!$J$19*'Daten Diagramm'!I48+Demonstrator!$J$24*'Daten Diagramm'!M48 -> 0.989133027
A49: 26 | B49: =IF(AND(A49=0,Berechnung!$B$3=0),1,IF(Berechnung!$B$3<>0,_xlfn.NORM.DIST(A49,0,Berechnung!$B$3,FALSE),0)) -> 0.0006830089348 | C49: =IF(AND($A49>=0,Berechnung!$B$3=0),1,IF(Berechnung!$B$3<>0,_xlfn.NORM.DIST($A49,0,Berechnung!$B$3,TRUE),0)) -> 0.9980669717 | D49: =IF(AND($A49=0,Berechnung!$B$4=0),1,IF(Berechnung!$B$4<>0,_xlfn.NORM.DIST($A49,0,Berechnung!$B$4,FALSE),0)) -> 0.0006830089348 | E49: =IF(AND($A49>=0,Berechnung!$B$4=0),1,IF(Berechnung!$B$4<>0,_xlfn.NORM.DIST($A49,0,Berechnung!$B$4,TRUE),0)) -> 0.9980669717 | F49: =IF(AND($A49=0,Berechnung!$B$5=0),1,IF(Berechnung!$B$5<>0,_xlfn.NORM.DIST($A49,0,Berechnung!$B$5,FALSE),0)) -> 0.005591883676 | G49: =IF(AND($A49>=0,Berechnung!$B$5=0),1,IF(Berechnung!$B$5<>0,_xlfn.NORM.DIST($A49,0,Berechnung!$B$5,TRUE),0)) -> 0.9625838341 | H49: =IF(AND($A49=0,Berechnung!$B$6=0),1,IF(Berechnung!$B$6<>0,_xlfn.NORM.DIST($A49,0,Berechnung!$B$6,FALSE),0)) -> 0.00559416574 | I49: =IF(AND($A49>=0,Berechnung!$B$6=0),1,IF(Berechnung!$B$6<>0,_xlfn.NORM.DIST($A49,0,Berechnung!$B$6,TRUE),0)) -> 0.9625565306 | J49: =IF(AND($A49=0,Berechnung!$B$7=0),1,IF(Berechnung!$B$7<>0,_xlfn.NORM.DIST($A49,0,Berechnung!$B$7,FALSE),0)) -> 0.0006830089348 | K49: =IF(AND($A49>=0,Berechnung!$B$7=0),1,IF(Berechnung!$B$7<>0,_xlfn.NORM.DIST($A49,0,Berechnung!$B$7,TRUE),0)) -> 0.9980669717 | L49: =IF(AND($A49=0,Berechnung!$B$8=0),1,IF(Berechnung!$B$8<>0,_xlfn.NORM.DIST($A49,0,Berechnung!$B$8,FALSE),0)) -> 0.0006830089348 | M49: =IF(AND($A49>=0,Berechnung!$B$8=0),1,IF(Berechnung!$B$8<>0,_xlfn.NORM.DIST($A49,0,Berechnung!$B$8,TRUE),0)) -> 0.9980669717 | N49: =IF(AND($A49=0,Berechnung!$B$9=0),1,IF(Berechnung!$B$9<>0,_xlfn.NORM.DIST($A49,0,Berechnung!$B$9,FALSE),0)) -> 0.001655027049 | O49: =IF(AND($A49>=0,Berechnung!$B$9=0),1,IF(Berechnung!$B$9<>0,_xlfn.NORM.DIST($A49,0,Berechnung!$B$9,TRUE),0)) -> 0.9939402047 | P49: =IF(AND($A49=0,Berechnung!$B$10=0),1,IF(Berechnung!$B$10<>0,_xlfn.NORM.DIST($A49,0,Berechnung!$B$10,FALSE),0)) -> 0.00265819592 | Q49: =IF(AND($A49>=0,Berechnung!$B$10=0),1,IF(Berechnung!$B$10<>0,_xlfn.NORM.DIST($A49,0,Berechnung!$B$10,TRUE),0)) -> 0.9883363795 | R49: =IF(AND($A49=0,Berechnung!$B$11=0),1,IF(Berechnung!$B$11<>0,_xlfn.NORM.DIST($A49,0,Berechnung!$B$11,FALSE),0)) -> 0 | S49: =IF(AND($A49>=0,Berechnung!$B$11=0),1,IF(Berechnung!$B$11<>0,_xlfn.NORM.DIST($A49,0,Berechnung!$B$11,TRUE),0)) -> 1 | T49: =Demonstrator!$J$19*'Daten Diagramm'!H49+Demonstrator!$J$24*'Daten Diagramm'!L49 -> 0.001665240296 | U49: =Demonstrator!$J$19*'Daten Diagramm'!I49+Demonstrator!$J$24*'Daten Diagramm'!M49 -> 0.9909648835
A50: 27 | B50: =IF(AND(A50=0,Berechnung!$B$3=0),1,IF(Berechnung!$B$3<>0,_xlfn.NORM.DIST(A50,0,Berechnung!$B$3,FALSE),0)) -> 0.0004924276013 | C50: =IF(AND($A50>=0,Berechnung!$B$3=0),1,IF(Berechnung!$B$3<>0,_xlfn.NORM.DIST($A50,0,Berechnung!$B$3,TRUE),0)) -> 0.998650102 | D50: =IF(AND($A50=0,Berechnung!$B$4=0),1,IF(Berechnung!$B$4<>0,_xlfn.NORM.DIST($A50,0,Berechnung!$B$4,FALSE),0)) -> 0.0004924276013 | E50: =IF(AND($A50>=0,Berechnung!$B$4=0),1,IF(Berechnung!$B$4<>0,_xlfn.NORM.DIST($A50,0,Berechnung!$B$4,TRUE),0)) -> 0.998650102 | F50: =IF(AND($A50=0,Berechnung!$B$5=0),1,IF(Berechnung!$B$5<>0,_xlfn.NORM.DIST($A50,0,Berechnung!$B$5,FALSE),0)) -> 0.004937716895 | G50: =IF(AND($A50>=0,Berechnung!$B$5=0),1,IF(Berechnung!$B$5<>0,_xlfn.NORM.DIST($A50,0,Berechnung!$B$5,TRUE),0)) -> 0.967843911 | H50: =IF(AND($A50=0,Berechnung!$B$6=0),1,IF(Berechnung!$B$6<>0,_xlfn.NORM.DIST($A50,0,Berechnung!$B$6,FALSE),0)) -> 0.004939962734 | I50: =IF(AND($A50>=0,Berechnung!$B$6=0),1,IF(Berechnung!$B$6<>0,_xlfn.NORM.DIST($A50,0,Berechnung!$B$6,TRUE),0)) -> 0.9678188737 | J50: =IF(AND($A50=0,Berechnung!$B$7=0),1,IF(Berechnung!$B$7<>0,_xlfn.NORM.DIST($A50,0,Berechnung!$B$7,FALSE),0)) -> 0.0004924276013 | K50: =IF(AND($A50>=0,Berechnung!$B$7=0),1,IF(Berechnung!$B$7<>0,_xlfn.NORM.DIST($A50,0,Berechnung!$B$7,TRUE),0)) -> 0.998650102 | L50: =IF(AND($A50=0,Berechnung!$B$8=0),1,IF(Berechnung!$B$8<>0,_xlfn.NORM.DIST($A50,0,Berechnung!$B$8,FALSE),0)) -> 0.0004924276013 | M50: =IF(AND($A50>=0,Berechnung!$B$8=0),1,IF(Berechnung!$B$8<>0,_xlfn.NORM.DIST($A50,0,Berechnung!$B$8,TRUE),0)) -> 0.998650102 | N50: =IF(AND($A50=0,Berechnung!$B$9=0),1,IF(Berechnung!$B$9<>0,_xlfn.NORM.DIST($A50,0,Berechnung!$B$9,FALSE),0)) -> 0.001293191185 | O50: =IF(AND($A50>=0,Berechnung!$B$9=0),1,IF(Berechnung!$B$9<>0,_xlfn.NORM.DIST($A50,0,Berechnung!$B$9,TRUE),0)) -> 0.9954080197 | P50: =IF(AND($A50=0,Berechnung!$B$10=0),1,IF(Berechnung!$B$10<>0,_xlfn.NORM.DIST($A50,0,Berechnung!$B$10,FALSE),0)) -> 0.002172759338 | Q50: =IF(AND($A50>=0,Berechnung!$B$10=0),1,IF(Berechnung!$B$10<>0,_xlfn.NORM.DIST($A50,0,Berechnung!$B$10,TRUE),0)) -> 0.9907452314 | R50: =IF(AND($A50=0,Berechnung!$B$11=0),1,IF(Berechnung!$B$11<>0,_xlfn.NORM.DIST($A50,0,Berechnung!$B$11,FALSE),0)) -> 0 | S50: =IF(AND($A50>=0,Berechnung!$B$11=0),1,IF(Berechnung!$B$11<>0,_xlfn.NORM.DIST($A50,0,Berechnung!$B$11,TRUE),0)) -> 1 | T50: =Demonstrator!$J$19*'Daten Diagramm'!H50+Demonstrator!$J$24*'Daten Diagramm'!L50 -> 0.001381934628 | U50: =Demonstrator!$J$19*'Daten Diagramm'!I50+Demonstrator!$J$24*'Daten Diagramm'!M50 -> 0.9924838563
A51: 28 | B51: =IF(AND(A51=0,Berechnung!$B$3=0),1,IF(Berechnung!$B$3<>0,_xlfn.NORM.DIST(A51,0,Berechnung!$B$3,FALSE),0)) -> 0.0003506684796 | C51: =IF(AND($A51>=0,Berechnung!$B$3=0),1,IF(Berechnung!$B$3<>0,_xlfn.NORM.DIST($A51,0,Berechnung!$B$3,TRUE),0)) -> 0.999068076 | D51: =IF(AND($A51=0,Berechnung!$B$4=0),1,IF(Berechnung!$B$4<>0,_xlfn.NORM.DIST($A51,0,Berechnung!$B$4,FALSE),0)) -> 0.0003506684796 | E51: =IF(AND($A51>=0,Berechnung!$B$4=0),1,IF(Berechnung!$B$4<>0,_xlfn.NORM.DIST($A51,0,Berechnung!$B$4,TRUE),0)) -> 0.999068076 | F51: =IF(AND($A51=0,Berechnung!$B$5=0),1,IF(Berechnung!$B$5<>0,_xlfn.NORM.DIST($A51,0,Berechnung!$B$5,FALSE),0)) -> 0.004339655973 | G51: =IF(AND($A51>=0,Berechnung!$B$5=0),1,IF(Berechnung!$B$5<>0,_xlfn.NORM.DIST($A51,0,Berechnung!$B$5,TRUE),0)) -> 0.9724779769 | H51: =IF(AND($A51=0,Berechnung!$B$6=0),1,IF(Berechnung!$B$6<>0,_xlfn.NORM.DIST($A51,0,Berechnung!$B$6,FALSE),0)) -> 0.004341840251 | I51: =IF(AND($A51>=0,Berechnung!$B$6=0),1,IF(Berechnung!$B$6<>0,_xlfn.NORM.DIST($A51,0,Berechnung!$B$6,TRUE),0)) -> 0.9724551566 | J51: =IF(AND($A51=0,Berechnung!$B$7=0),1,IF(Berechnung!$B$7<>0,_xlfn.NORM.DIST($A51,0,Berechnung!$B$7,FALSE),0)) -> 0.0003506684796 | K51: =IF(AND($A51>=0,Berechnung!$B$7=0),1,IF(Berechnung!$B$7<>0,_xlfn.NORM.DIST($A51,0,Berechnung!$B$7,TRUE),0)) -> 0.999068076 | L51: =IF(AND($A51=0,Berechnung!$B$8=0),1,IF(Berechnung!$B$8<>0,_xlfn.NORM.DIST($A51,0,Berechnung!$B$8,FALSE),0)) -> 0.0003506684796 | M51: =IF(AND($A51>=0,Berechnung!$B$8=0),1,IF(Berechnung!$B$8<>0,_xlfn.NORM.DIST($A51,0,Berechnung!$B$8,TRUE),0)) -> 0.999068076 | N51: =IF(AND($A51=0,Berechnung!$B$9=0),1,IF(Berechnung!$B$9<>0,_xlfn.NORM.DIST($A51,0,Berechnung!$B$9,FALSE),0)) -> 0.001001099553 | O51: =IF(AND($A51>=0,Berechnung!$B$9=0),1,IF(Berechnung!$B$9<>0,_xlfn.NORM.DIST($A51,0,Berechnung!$B$9,TRUE),0)) -> 0.9965498248 | P51: =IF(AND($A51=0,Berechnung!$B$10=0),1,IF(Berechnung!$B$10<>0,_xlfn.NORM.DIST($A51,0,Berechnung!$B$10,FALSE),0)) -> 0.001762509768 | Q51: =IF(AND($A51>=0,Berechnung!$B$10=0),1,IF(Berechnung!$B$10<>0,_xlfn.NORM.DIST($A51,0,Berechnung!$B$10,TRUE),0)) -> 0.9927069598 | R51: =IF(AND($A51=0,Berechnung!$B$11=0),1,IF(Berechnung!$B$11<>0,_xlfn.NORM.DIST($A51,0,Berechnung!$B$11,FALSE),0)) -> 0 | S51: =IF(AND($A51>=0,Berechnung!$B$11=0),1,IF(Berechnung!$B$11<>0,_xlfn.NORM.DIST($A51,0,Berechnung!$B$11,TRUE),0)) -> 1 | T51: =Demonstrator!$J$19*'Daten Diagramm'!H51+Demonstrator!$J$24*'Daten Diagramm'!L51 -> 0.001148902834 | U51: =Demonstrator!$J$19*'Daten Diagramm'!I51+Demonstrator!$J$24*'Daten Diagramm'!M51 -> 0.9937454921
A52: 29 | B52: =IF(AND(A52=0,Berechnung!$B$3=0),1,IF(Berechnung!$B$3<>0,_xlfn.NORM.DIST(A52,0,Berechnung!$B$3,FALSE),0)) -> 0.0002466547098 | C52: =IF(AND($A52>=0,Berechnung!$B$3=0),1,IF(Berechnung!$B$3<>0,_xlfn.NORM.DIST($A52,0,Berechnung!$B$3,TRUE),0)) -> 0.9993639978 | D52: =IF(AND($A52=0,Berechnung!$B$4=0),1,IF(Berechnung!$B$4<>0,_xlfn.NORM.DIST($A52,0,Berechnung!$B$4,FALSE),0)) -> 0.0002466547098 | E52: =IF(AND($A52>=0,Berechnung!$B$4=0),1,IF(Berechnung!$B$4<>0,_xlfn.NORM.DIST($A52,0,Berechnung!$B$4,TRUE),0)) -> 0.9993639978 | F52: =IF(AND($A52=0,Berechnung!$B$5=0),1,IF(Berechnung!$B$5<>0,_xlfn.NORM.DIST($A52,0,Berechnung!$B$5,FALSE),0)) -> 0.003796168464 | G52: =IF(AND($A52>=0,Berechnung!$B$5=0),1,IF(Berechnung!$B$5<>0,_xlfn.NORM.DIST($A52,0,Berechnung!$B$5,TRUE),0)) -> 0.97654142 | H52: =IF(AND($A52=0,Berechnung!$B$6=0),1,IF(Berechnung!$B$6<>0,_xlfn.NORM.DIST($A52,0,Berechnung!$B$6,FALSE),0)) -> 0.003798269993 | I52: =IF(AND($A52>=0,Berechnung!$B$6=0),1,IF(Berechnung!$B$6<>0,_xlfn.NORM.DIST($A52,0,Berechnung!$B$6,TRUE),0)) -> 0.9765207442 | J52: =IF(AND($A52=0,Berechnung!$B$7=0),1,IF(Berechnung!$B$7<>0,_xlfn.NORM.DIST($A52,0,Berechnung!$B$7,FALSE),0)) -> 0.0002466547098 | K52: =IF(AND($A52>=0,Berechnung!$B$7=0),1,IF(Berechnung!$B$7<>0,_xlfn.NORM.DIST($A52,0,Berechnung!$B$7,TRUE),0)) -> 0.9993639978 | L52: =IF(AND($A52=0,Berechnung!$B$8=0),1,IF(Berechnung!$B$8<>0,_xlfn.NORM.DIST($A52,0,Berechnung!$B$8,FALSE),0)) -> 0.0002466547098 | M52: =IF(AND($A52>=0,Berechnung!$B$8=0),1,IF(Berechnung!$B$8<>0,_xlfn.NORM.DIST($A52,0,Berechnung!$B$8,TRUE),0)) -> 0.9993639978 | N52: =IF(AND($A52=0,Berechnung!$B$9=0),1,IF(Berechnung!$B$9<>0,_xlfn.NORM.DIST($A52,0,Berechnung!$B$9,FALSE),0)) -> 0.0007678010317 | O52: =IF(AND($A52>=0,Berechnung!$B$9=0),1,IF(Berechnung!$B$9<>0,_xlfn.NORM.DIST($A52,0,Berechnung!$B$9,TRUE),0)) -> 0.9974298045 | P52: =IF(AND($A52=0,Berechnung!$B$10=0),1,IF(Berechnung!$B$10<>0,_xlfn.NORM.DIST($A52,0,Berechnung!$B$10,FALSE),0)) -> 0.001418883405 | Q52: =IF(AND($A52>=0,Berechnung!$B$10=0),1,IF(Berechnung!$B$10<>0,_xlfn.NORM.DIST($A52,0,Berechnung!$B$10,TRUE),0)) -> 0.9942924555 | R52: =IF(AND($A52=0,Berechnung!$B$11=0),1,IF(Berechnung!$B$11<>0,_xlfn.NORM.DIST($A52,0,Berechnung!$B$11,FALSE),0)) -> 0 | S52: =IF(AND($A52>=0,Berechnung!$B$11=0),1,IF(Berechnung!$B$11<>0,_xlfn.NORM.DIST($A52,0,Berechnung!$B$11,TRUE),0)) -> 1 | T52: =Demonstrator!$J$19*'Daten Diagramm'!H52+Demonstrator!$J$24*'Daten Diagramm'!L52 -> 0.0009569777665 | U52: =Demonstrator!$J$19*'Daten Diagramm'!I52+Demonstrator!$J$24*'Daten Diagramm'!M52 -> 0.9947953471
A53: 30 | B53: =IF(AND(A53=0,Berechnung!$B$3=0),1,IF(Berechnung!$B$3<>0,_xlfn.NORM.DIST(A53,0,Berechnung!$B$3,FALSE),0)) -> 0.0001713643329 | C53: =IF(AND($A53>=0,Berechnung!$B$3=0),1,IF(Berechnung!$B$3<>0,_xlfn.NORM.DIST($A53,0,Berechnung!$B$3,TRUE),0)) -> 0.9995709397 | D53: =IF(AND($A53=0,Berechnung!$B$4=0),1,IF(Berechnung!$B$4<>0,_xlfn.NORM.DIST($A53,0,Berechnung!$B$4,FALSE),0)) -> 0.0001713643329 | E53: =IF(AND($A53>=0,Berechnung!$B$4=0),1,IF(Berechnung!$B$4<>0,_xlfn.NORM.DIST($A53,0,Berechnung!$B$4,TRUE),0)) -> 0.9995709397 | F53: =IF(AND($A53=0,Berechnung!$B$5=0),1,IF(Berechnung!$B$5<>0,_xlfn.NORM.DIST($A53,0,Berechnung!$B$5,FALSE),0)) -> 0.003305192136 | G53: =IF(AND($A53>=0,Berechnung!$B$5=0),1,IF(Berechnung!$B$5<>0,_xlfn.NORM.DIST($A53,0,Berechnung!$B$5,TRUE),0)) -> 0.9800878223 | H53: =IF(AND($A53=0,Berechnung!$B$6=0),1,IF(Berechnung!$B$6<>0,_xlfn.NORM.DIST($A53,0,Berechnung!$B$6,FALSE),0)) -> 0.003307193828 | I53: =IF(AND($A53>=0,Berechnung!$B$6=0),1,IF(Berechnung!$B$6<>0,_xlfn.NORM.DIST($A53,0,Berechnung!$B$6,TRUE),0)) -> 0.9800691994 | J53: =IF(AND($A53=0,Berechnung!$B$7=0),1,IF(Berechnung!$B$7<>0,_xlfn.NORM.DIST($A53,0,Berechnung!$B$7,FALSE),0)) -> 0.0001713643329 | K53: =IF(AND($A53>=0,Berechnung!$B$7=0),1,IF(Berechnung!$B$7<>0,_xlfn.NORM.DIST($A53,0,Berechnung!$B$7,TRUE),0)) -> 0.9995709397 | L53: =IF(AND($A53=0,Berechnung!$B$8=0),1,IF(Berechnung!$B$8<>0,_xlfn.NORM.DIST($A53,0,Berechnung!$B$8,FALSE),0)) -> 0.0001713643329 | M53: =IF(AND($A53>=0,Berechnung!$B$8=0),1,IF(Berechnung!$B$8<>0,_xlfn.NORM.DIST($A53,0,Berechnung!$B$8,TRUE),0)) -> 0.9995709397 | N53: =IF(AND($A53=0,Berechnung!$B$9=0),1,IF(Berechnung!$B$9<>0,_xlfn.NORM.DIST($A53,0,Berechnung!$B$9,FALSE),0)) -> 0.000583414216 | O53: =IF(AND($A53>=0,Berechnung!$B$9=0),1,IF(Berechnung!$B$9<>0,_xlfn.NORM.DIST($A53,0,Berechnung!$B$9,TRUE),0)) -> 0.998101718 | P53: =IF(AND($A53=0,Berechnung!$B$10=0),1,IF(Berechnung!$B$10<>0,_xlfn.NORM.DIST($A53,0,Berechnung!$B$10,FALSE),0)) -> 0.001133593 | Q53: =IF(AND($A53>=0,Berechnung!$B$10=0),1,IF(Berechnung!$B$10<>0,_xlfn.NORM.DIST($A53,0,Berechnung!$B$10,TRUE),0)) -> 0.9955641669 | R53: =IF(AND($A53=0,Berechnung!$B$11=0),1,IF(Berechnung!$B$11<>0,_xlfn.NORM.DIST($A53,0,Berechnung!$B$11,FALSE),0)) -> 0 | S53: =IF(AND($A53>=0,Berechnung!$B$11=0),1,IF(Berechnung!$B$11<>0,_xlfn.NORM.DIST($A53,0,Berechnung!$B$11,TRUE),0)) -> 1 | T53: =Demonstrator!$J$19*'Daten Diagramm'!H53+Demonstrator!$J$24*'Daten Diagramm'!L53 -> 0.000798530232 | U53: =Demonstrator!$J$19*'Daten Diagramm'!I53+Demonstrator!$J$24*'Daten Diagramm'!M53 -> 0.9956705916
A54: 31 | B54: =IF(AND(A54=0,Berechnung!$B$3=0),1,IF(Berechnung!$B$3<>0,_xlfn.NORM.DIST(A54,0,Berechnung!$B$3,FALSE),0)) -> 0.0001175952545 | C54: =IF(AND($A54>=0,Berechnung!$B$3=0),1,IF(Berechnung!$B$3<>0,_xlfn.NORM.DIST($A54,0,Berechnung!$B$3,TRUE),0)) -> 0.9997138829 | D54: =IF(AND($A54=0,Berechnung!$B$4=0),1,IF(Berechnung!$B$4<>0,_xlfn.NORM.DIST($A54,0,Berechnung!$B$4,FALSE),0)) -> 0.0001175952545 | E54: =IF(AND($A54>=0,Berechnung!$B$4=0),1,IF(Berechnung!$B$4<>0,_xlfn.NORM.DIST($A54,0,Berechnung!$B$4,TRUE),0)) -> 0.9997138829 | F54: =IF(AND($A54=0,Berechnung!$B$5=0),1,IF(Berechnung!$B$5<>0,_xlfn.NORM.DIST($A54,0,Berechnung!$B$5,FALSE),0)) -> 0.002864237347 | G54: =IF(AND($A54>=0,Berechnung!$B$5=0),1,IF(Berechnung!$B$5<>0,_xlfn.NORM.DIST($A54,0,Berechnung!$B$5,TRUE),0)) -> 0.9831684817 | H54: =IF(AND($A54=0,Berechnung!$B$6=0),1,IF(Berechnung!$B$6<>0,_xlfn.NORM.DIST($A54,0,Berechnung!$B$6,FALSE),0)) -> 0.00286612607 | I54: =IF(AND($A54>=0,Berechnung!$B$6=0),1,IF(Berechnung!$B$6<>0,_xlfn.NORM.DIST($A54,0,Berechnung!$B$6,TRUE),0)) -> 0.9831518049 | J54: =IF(AND($A54=0,Berechnung!$B$7=0),1,IF(Berechnung!$B$7<>0,_xlfn.NORM.DIST($A54,0,Berechnung!$B$7,FALSE),0)) -> 0.0001175952545 | K54: =IF(AND($A54>=0,Berechnung!$B$7=0),1,IF(Berechnung!$B$7<>0,_xlfn.NORM.DIST($A54,0,Berechnung!$B$7,TRUE),0)) -> 0.9997138829 | L54: =IF(AND($A54=0,Berechnung!$B$8=0),1,IF(Berechnung!$B$8<>0,_xlfn.NORM.DIST($A54,0,Berechnung!$B$8,FALSE),0)) -> 0.0001175952545 | M54: =IF(AND($A54>=0,Berechnung!$B$8=0),1,IF(Berechnung!$B$8<>0,_xlfn.NORM.DIST($A54,0,Berechnung!$B$8,TRUE),0)) -> 0.9997138829 | N54: =IF(AND($A54=0,Berechnung!$B$9=0),1,IF(Berechnung!$B$9<>0,_xlfn.NORM.DIST($A54,0,Berechnung!$B$9,FALSE),0)) -> 0.0004391998825 | O54: =IF(AND($A54>=0,Berechnung!$B$9=0),1,IF(Berechnung!$B$9<>0,_xlfn.NORM.DIST($A54,0,Berechnung!$B$9,TRUE),0)) -> 0.9986100109 | P54: =IF(AND($A54=0,Berechnung!$B$10=0),1,IF(Berechnung!$B$10<>0,_xlfn.NORM.DIST($A54,0,Berechnung!$B$10,FALSE),0)) -> 0.0008987996007 | Q54: =IF(AND($A54>=0,Berechnung!$B$10=0),1,IF(Berechnung!$B$10<>0,_xlfn.NORM.DIST($A54,0,Berechnung!$B$10,TRUE),0)) -> 0.9965764674 | R54: =IF(AND($A54=0,Berechnung!$B$11=0),1,IF(Berechnung!$B$11<>0,_xlfn.NORM.DIST($A54,0,Berechnung!$B$11,FALSE),0)) -> 0 | S54: =IF(AND($A54>=0,Berechnung!$B$11=0),1,IF(Berechnung!$B$11<>0,_xlfn.NORM.DIST($A54,0,Berechnung!$B$11,TRUE),0)) -> 1 | T54: =Demonstrator!$J$19*'Daten Diagramm'!H54+Demonstrator!$J$24*'Daten Diagramm'!L54 -> 0.0006673014176 | U54: =Demonstrator!$J$19*'Daten Diagramm'!I54+Demonstrator!$J$24*'Daten Diagramm'!M54 -> 0.9964014673
A55: 32 | B55: =IF(AND(A55=0,Berechnung!$B$3=0),1,IF(Berechnung!$B$3<>0,_xlfn.NORM.DIST(A55,0,Berechnung!$B$3,FALSE),0)) -> 7.970718985e-05 | C55: =IF(AND($A55>=0,Berechnung!$B$3=0),1,IF(Berechnung!$B$3<>0,_xlfn.NORM.DIST($A55,0,Berechnung!$B$3,TRUE),0)) -> 0.9998114094 | D55: =IF(AND($A55=0,Berechnung!$B$4=0),1,IF(Berechnung!$B$4<>0,_xlfn.NORM.DIST($A55,0,Berechnung!$B$4,FALSE),0)) -> 7.970718985e-05 | E55: =IF(AND($A55>=0,Berechnung!$B$4=0),1,IF(Berechnung!$B$4<>0,_xlfn.NORM.DIST($A55,0,Berechnung!$B$4,TRUE),0)) -> 0.9998114094 | F55: =IF(AND($A55=0,Berechnung!$B$5=0),1,IF(Berechnung!$B$5<>0,_xlfn.NORM.DIST($A55,0,Berechnung!$B$5,FALSE),0)) -> 0.002470485758 | G55: =IF(AND($A55>=0,Berechnung!$B$5=0),1,IF(Berechnung!$B$5<>0,_xlfn.NORM.DIST($A55,0,Berechnung!$B$5,TRUE),0)) -> 0.985832034 | H55: =IF(AND($A55=0,Berechnung!$B$6=0),1,IF(Berechnung!$B$6<>0,_xlfn.NORM.DIST($A55,0,Berechnung!$B$6,FALSE),0)) -> 0.002472252099 | I55: =IF(AND($A55>=0,Berechnung!$B$6=0),1,IF(Berechnung!$B$6<>0,_xlfn.NORM.DIST($A55,0,Berechnung!$B$6,TRUE),0)) -> 0.9858171854 | J55: =IF(AND($A55=0,Berechnung!$B$7=0),1,IF(Berechnung!$B$7<>0,_xlfn.NORM.DIST($A55,0,Berechnung!$B$7,FALSE),0)) -> 7.970718985e-05 | K55: =IF(AND($A55>=0,Berechnung!$B$7=0),1,IF(Berechnung!$B$7<>0,_xlfn.NORM.DIST($A55,0,Berechnung!$B$7,TRUE),0)) -> 0.9998114094 | L55: =IF(AND($A55=0,Berechnung!$B$8=0),1,IF(Berechnung!$B$8<>0,_xlfn.NORM.DIST($A55,0,Berechnung!$B$8,FALSE),0)) -> 7.970718985e-05 | M55: =IF(AND($A55>=0,Berechnung!$B$8=0),1,IF(Berechnung!$B$8<>0,_xlfn.NORM.DIST($A55,0,Berechnung!$B$8,TRUE),0)) -> 0.9998114094 | N55: =IF(AND($A55=0,Berechnung!$B$9=0),1,IF(Berechnung!$B$9<>0,_xlfn.NORM.DIST($A55,0,Berechnung!$B$9,FALSE),0)) -> 0.0003275701468 | O55: =IF(AND($A55>=0,Berechnung!$B$9=0),1,IF(Berechnung!$B$9<>0,_xlfn.NORM.DIST($A55,0,Berechnung!$B$9,TRUE),0)) -> 0.9989909669 | P55: =IF(AND($A55=0,Berechnung!$B$10=0),1,IF(Berechnung!$B$10<>0,_xlfn.NORM.DIST($A55,0,Berechnung!$B$10,FALSE),0)) -> 0.0007072351799 | Q55: =IF(AND($A55>=0,Berechnung!$B$10=0),1,IF(Berechnung!$B$10<>0,_xlfn.NORM.DIST($A55,0,Berechnung!$B$10,TRUE),0)) -> 0.9973761685 | R55: =IF(AND($A55=0,Berechnung!$B$11=0),1,IF(Berechnung!$B$11<>0,_xlfn.NORM.DIST($A55,0,Berechnung!$B$11,FALSE),0)) -> 0 | S55: =IF(AND($A55>=0,Berechnung!$B$11=0),1,IF(Berechnung!$B$11<>0,_xlfn.NORM.DIST($A55,0,Berechnung!$B$11,TRUE),0)) -> 1 | T55: =Demonstrator!$J$19*'Daten Diagramm'!H55+Demonstrator!$J$24*'Daten Diagramm'!L55 -> 0.0005582161718 | U55: =Demonstrator!$J$19*'Daten Diagramm'!I55+Demonstrator!$J$24*'Daten Diagramm'!M55 -> 0.9970125646
A56: 33 | B56: =IF(AND(A56=0,Berechnung!$B$3=0),1,IF(Berechnung!$B$3<>0,_xlfn.NORM.DIST(A56,0,Berechnung!$B$3,FALSE),0)) -> 5.336340574e-05 | C56: =IF(AND($A56>=0,Berechnung!$B$3=0),1,IF(Berechnung!$B$3<>0,_xlfn.NORM.DIST($A56,0,Berechnung!$B$3,TRUE),0)) -> 0.9998771336 | D56: =IF(AND($A56=0,Berechnung!$B$4=0),1,IF(Berechnung!$B$4<>0,_xlfn.NORM.DIST($A56,0,Berechnung!$B$4,FALSE),0)) -> 5.336340574e-05 | E56: =IF(AND($A56>=0,Berechnung!$B$4=0),1,IF(Berechnung!$B$4<>0,_xlfn.NORM.DIST($A56,0,Berechnung!$B$4,TRUE),0)) -> 0.9998771336 | F56: =IF(AND($A56=0,Berechnung!$B$5=0),1,IF(Berechnung!$B$5<>0,_xlfn.NORM.DIST($A56,0,Berechnung!$B$5,FALSE),0)) -> 0.002120883262 | G56: =IF(AND($A56>=0,Berechnung!$B$5=0),1,IF(Berechnung!$B$5<>0,_xlfn.NORM.DIST($A56,0,Berechnung!$B$5,TRUE),0)) -> 0.9881241713 | H56: =IF(AND($A56=0,Berechnung!$B$6=0),1,IF(Berechnung!$B$6<>0,_xlfn.NORM.DIST($A56,0,Berechnung!$B$6,FALSE),0)) -> 0.002122521233 | I56: =IF(AND($A56>=0,Berechnung!$B$6=0),1,IF(Berechnung!$B$6<>0,_xlfn.NORM.DIST($A56,0,Berechnung!$B$6,TRUE),0)) -> 0.9881110252 | J56: =IF(AND($A56=0,Berechnung!$B$7=0),1,IF(Berechnung!$B$7<>0,_xlfn.NORM.DIST($A56,0,Berechnung!$B$7,FALSE),0)) -> 5.336340574e-05 | K56: =IF(AND($A56>=0,Berechnung!$B$7=0),1,IF(Berechnung!$B$7<>0,_xlfn.NORM.DIST($A56,0,Berechnung!$B$7,TRUE),0)) -> 0.9998771336 | L56: =IF(AND($A56=0,Berechnung!$B$8=0),1,IF(Berechnung!$B$8<>0,_xlfn.NORM.DIST($A56,0,Berechnung!$B$8,FALSE),0)) -> 5.336340574e-05 | M56: =IF(AND($A56>=0,Berechnung!$B$8=0),1,IF(Berechnung!$B$8<>0,_xlfn.NORM.DIST($A56,0,Berechnung!$B$8,TRUE),0)) -> 0.9998771336 | N56: =IF(AND($A56=0,Berechnung!$B$9=0),1,IF(Berechnung!$B$9<>0,_xlfn.NORM.DIST($A56,0,Berechnung!$B$9,FALSE),0)) -> 0.0002420490082 | O56: =IF(AND($A56>=0,Berechnung!$B$9=0),1,IF(Berechnung!$B$9<>0,_xlfn.NORM.DIST($A56,0,Berechnung!$B$9,TRUE),0)) -> 0.9992738425 | P56: =IF(AND($A56=0,Berechnung!$B$10=0),1,IF(Berechnung!$B$10<>0,_xlfn.NORM.DIST($A56,0,Berechnung!$B$10,FALSE),0)) -> 0.0005522810092 | Q56: =IF(AND($A56>=0,Berechnung!$B$10=0),1,IF(Berechnung!$B$10<>0,_xlfn.NORM.DIST($A56,0,Berechnung!$B$10,TRUE),0)) -> 0.9980031335 | R56: =IF(AND($A56=0,Berechnung!$B$11=0),1,IF(Berechnung!$B$11<>0,_xlfn.NORM.DIST($A56,0,Berechnung!$B$11,FALSE),0)) -> 0 | S56: =IF(AND($A56>=0,Berechnung!$B$11=0),1,IF(Berechnung!$B$11<>0,_xlfn.NORM.DIST($A56,0,Berechnung!$B$11,TRUE),0)) -> 1 | T56: =Demonstrator!$J$19*'Daten Diagramm'!H56+Demonstrator!$J$24*'Daten Diagramm'!L56 -> 0.0004671949713 | U56: =Demonstrator!$J$19*'Daten Diagramm'!I56+Demonstrator!$J$24*'Daten Diagramm'!M56 -> 0.9975239119
A57: 34 | B57: =IF(AND(A57=0,Berechnung!$B$3=0),1,IF(Berechnung!$B$3<>0,_xlfn.NORM.DIST(A57,0,Berechnung!$B$3,FALSE),0)) -> 3.528807112e-05 | C57: =IF(AND($A57>=0,Berechnung!$B$3=0),1,IF(Berechnung!$B$3<>0,_xlfn.NORM.DIST($A57,0,Berechnung!$B$3,TRUE),0)) -> 0.999920883 | D57: =IF(AND($A57=0,Berechnung!$B$4=0),1,IF(Berechnung!$B$4<>0,_xlfn.NORM.DIST($A57,0,Berechnung!$B$4,FALSE),0)) -> 3.528807112e-05 | E57: =IF(AND($A57>=0,Berechnung!$B$4=0),1,IF(Berechnung!$B$4<>0,_xlfn.NORM.DIST($A57,0,Berechnung!$B$4,TRUE),0)) -> 0.999920883 | F57: =IF(AND($A57=0,Berechnung!$B$5=0),1,IF(Berechnung!$B$5<>0,_xlfn.NORM.DIST($A57,0,Berechnung!$B$5,FALSE),0)) -> 0.001812225485 | G57: =IF(AND($A57>=0,Berechnung!$B$5=0),1,IF(Berechnung!$B$5<>0,_xlfn.NORM.DIST($A57,0,Berechnung!$B$5,TRUE),0)) -> 0.9900874496 | H57: =IF(AND($A57=0,Berechnung!$B$6=0),1,IF(Berechnung!$B$6<>0,_xlfn.NORM.DIST($A57,0,Berechnung!$B$6,FALSE),0)) -> 0.001813732174 | I57: =IF(AND($A57>=0,Berechnung!$B$6=0),1,IF(Berechnung!$B$6<>0,_xlfn.NORM.DIST($A57,0,Berechnung!$B$6,TRUE),0)) -> 0.9900758759 | J57: =IF(AND($A57=0,Berechnung!$B$7=0),1,IF(Berechnung!$B$7<>0,_xlfn.NORM.DIST($A57,0,Berechnung!$B$7,FALSE),0)) -> 3.528807112e-05 | K57: =IF(AND($A57>=0,Berechnung!$B$7=0),1,IF(Berechnung!$B$7<>0,_xlfn.NORM.DIST($A57,0,Berechnung!$B$7,TRUE),0)) -> 0.999920883 | L57: =IF(AND($A57=0,Berechnung!$B$8=0),1,IF(Berechnung!$B$8<>0,_xlfn.NORM.DIST($A57,0,Berechnung!$B$8,FALSE),0)) -> 3.528807112e-05 | M57: =IF(AND($A57>=0,Berechnung!$B$8=0),1,IF(Berechnung!$B$8<>0,_xlfn.NORM.DIST($A57,0,Berechnung!$B$8,TRUE),0)) -> 0.999920883 | N57: =IF(AND($A57=0,Berechnung!$B$9=0),1,IF(Berechnung!$B$9<>0,_xlfn.NORM.DIST($A57,0,Berechnung!$B$9,FALSE),0)) -> 0.0001771981534 | O57: =IF(AND($A57>=0,Berechnung!$B$9=0),1,IF(Berechnung!$B$9<>0,_xlfn.NORM.DIST($A57,0,Berechnung!$B$9,TRUE),0)) -> 0.9994819445 | P57: =IF(AND($A57=0,Berechnung!$B$10=0),1,IF(Berechnung!$B$10<>0,_xlfn.NORM.DIST($A57,0,Berechnung!$B$10,FALSE),0)) -> 0.0004280077504 | Q57: =IF(AND($A57>=0,Berechnung!$B$10=0),1,IF(Berechnung!$B$10<>0,_xlfn.NORM.DIST($A57,0,Berechnung!$B$10,TRUE),0)) -> 0.9984909497 | R57: =IF(AND($A57=0,Berechnung!$B$11=0),1,IF(Berechnung!$B$11<>0,_xlfn.NORM.DIST($A57,0,Berechnung!$B$11,FALSE),0)) -> 0 | S57: =IF(AND($A57>=0,Berechnung!$B$11=0),1,IF(Berechnung!$B$11<>0,_xlfn.NORM.DIST($A57,0,Berechnung!$B$11,TRUE),0)) -> 1 | T57: =Demonstrator!$J$19*'Daten Diagramm'!H57+Demonstrator!$J$24*'Daten Diagramm'!L57 -> 0.0003909768916 | U57: =Demonstrator!$J$19*'Daten Diagramm'!I57+Demonstrator!$J$24*'Daten Diagramm'!M57 -> 0.9979518816
A58: 35 | B58: =IF(AND(A58=0,Berechnung!$B$3=0),1,IF(Berechnung!$B$3<>0,_xlfn.NORM.DIST(A58,0,Berechnung!$B$3,FALSE),0)) -> 2.30489232e-05 | C58: =IF(AND($A58>=0,Berechnung!$B$3=0),1,IF(Berechnung!$B$3<>0,_xlfn.NORM.DIST($A58,0,Berechnung!$B$3,TRUE),0)) -> 0.9999496479 | D58: =IF(AND($A58=0,Berechnung!$B$4=0),1,IF(Berechnung!$B$4<>0,_xlfn.NORM.DIST($A58,0,Berechnung!$B$4,FALSE),0)) -> 2.30489232e-05 | E58: =IF(AND($A58>=0,Berechnung!$B$4=0),1,IF(Berechnung!$B$4<>0,_xlfn.NORM.DIST($A58,0,Berechnung!$B$4,TRUE),0)) -> 0.9999496479 | F58: =IF(AND($A58=0,Berechnung!$B$5=0),1,IF(Berechnung!$B$5<>0,_xlfn.NORM.DIST($A58,0,Berechnung!$B$5,FALSE),0)) -> 0.001541234638 | G58: =IF(AND($A58>=0,Berechnung!$B$5=0),1,IF(Berechnung!$B$5<>0,_xlfn.NORM.DIST($A58,0,Berechnung!$B$5,TRUE),0)) -> 0.9917611779 | H58: =IF(AND($A58=0,Berechnung!$B$6=0),1,IF(Berechnung!$B$6<>0,_xlfn.NORM.DIST($A58,0,Berechnung!$B$6,FALSE),0)) -> 0.001542609831 | I58: =IF(AND($A58>=0,Berechnung!$B$6=0),1,IF(Berechnung!$B$6<>0,_xlfn.NORM.DIST($A58,0,Berechnung!$B$6,TRUE),0)) -> 0.9917510451 | J58: =IF(AND($A58=0,Berechnung!$B$7=0),1,IF(Berechnung!$B$7<>0,_xlfn.NORM.DIST($A58,0,Berechnung!$B$7,FALSE),0)) -> 2.30489232e-05 | K58: =IF(AND($A58>=0,Berechnung!$B$7=0),1,IF(Berechnung!$B$7<>0,_xlfn.NORM.DIST($A58,0,Berechnung!$B$7,TRUE),0)) -> 0.9999496479 | L58: =IF(AND($A58=0,Berechnung!$B$8=0),1,IF(Berechnung!$B$8<>0,_xlfn.NORM.DIST($A58,0,Berechnung!$B$8,FALSE),0)) -> 2.30489232e-05 | M58: =IF(AND($A58>=0,Berechnung!$B$8=0),1,IF(Berechnung!$B$8<>0,_xlfn.NORM.DIST($A58,0,Berechnung!$B$8,TRUE),0)) -> 0.9999496479 | N58: =IF(AND($A58=0,Berechnung!$B$9=0),1,IF(Berechnung!$B$9<>0,_xlfn.NORM.DIST($A58,0,Berechnung!$B$9,FALSE),0)) -> 0.0001285203702 | O58: =IF(AND($A58>=0,Berechnung!$B$9=0),1,IF(Berechnung!$B$9<>0,_xlfn.NORM.DIST($A58,0,Berechnung!$B$9,TRUE),0)) -> 0.9996336206 | P58: =IF(AND($A58=0,Berechnung!$B$10=0),1,IF(Berechnung!$B$10<>0,_xlfn.NORM.DIST($A58,0,Berechnung!$B$10,FALSE),0)) -> 0.0003291837787 | Q58: =IF(AND($A58>=0,Berechnung!$B$10=0),1,IF(Berechnung!$B$10<>0,_xlfn.NORM.DIST($A58,0,Berechnung!$B$10,TRUE),0)) -> 0.9988676245 | R58: =IF(AND($A58=0,Berechnung!$B$11=0),1,IF(Berechnung!$B$11<>0,_xlfn.NORM.DIST($A58,0,Berechnung!$B$11,FALSE),0)) -> 0 | S58: =IF(AND($A58>=0,Berechnung!$B$11=0),1,IF(Berechnung!$B$11<>0,_xlfn.NORM.DIST($A58,0,Berechnung!$B$11,TRUE),0)) -> 1 | T58: =Demonstrator!$J$19*'Daten Diagramm'!H58+Demonstrator!$J$24*'Daten Diagramm'!L58 -> 0.0003269611047 | U58: =Demonstrator!$J$19*'Daten Diagramm'!I58+Demonstrator!$J$24*'Daten Diagramm'!M58 -> 0.9983099273
A59: 36 | B59: =IF(AND(A59=0,Berechnung!$B$3=0),1,IF(Berechnung!$B$3<>0,_xlfn.NORM.DIST(A59,0,Berechnung!$B$3,FALSE),0)) -> 1.487002508e-05 | C59: =IF(AND($A59>=0,Berechnung!$B$3=0),1,IF(Berechnung!$B$3<>0,_xlfn.NORM.DIST($A59,0,Berechnung!$B$3,TRUE),0)) -> 0.9999683288 | D59: =IF(AND($A59=0,Berechnung!$B$4=0),1,IF(Berechnung!$B$4<>0,_xlfn.NORM.DIST($A59,0,Berechnung!$B$4,FALSE),0)) -> 1.487002508e-05 | E59: =IF(AND($A59>=0,Berechnung!$B$4=0),1,IF(Berechnung!$B$4<>0,_xlfn.NORM.DIST($A59,0,Berechnung!$B$4,TRUE),0)) -> 0.9999683288 | F59: =IF(AND($A59=0,Berechnung!$B$5=0),1,IF(Berechnung!$B$5<>0,_xlfn.NORM.DIST($A59,0,Berechnung!$B$5,FALSE),0)) -> 0.001304626955 | G59: =IF(AND($A59>=0,Berechnung!$B$5=0),1,IF(Berechnung!$B$5<>0,_xlfn.NORM.DIST($A59,0,Berechnung!$B$5,TRUE),0)) -> 0.9931813793 | H59: =IF(AND($A59=0,Berechnung!$B$6=0),1,IF(Berechnung!$B$6<>0,_xlfn.NORM.DIST($A59,0,Berechnung!$B$6,FALSE),0)) -> 0.001305872742 | I59: =IF(AND($A59>=0,Berechnung!$B$6=0),1,IF(Berechnung!$B$6<>0,_xlfn.NORM.DIST($A59,0,Berechnung!$B$6,TRUE),0)) -> 0.9931725568 | J59: =IF(AND($A59=0,Berechnung!$B$7=0),1,IF(Berechnung!$B$7<>0,_xlfn.NORM.DIST($A59,0,Berechnung!$B$7,FALSE),0)) -> 1.487002508e-05 | K59: =IF(AND($A59>=0,Berechnung!$B$7=0),1,IF(Berechnung!$B$7<>0,_xlfn.NORM.DIST($A59,0,Berechnung!$B$7,TRUE),0)) -> 0.9999683288 | L59: =IF(AND($A59=0,Berechnung!$B$8=0),1,IF(Berechnung!$B$8<>0,_xlfn.NORM.DIST($A59,0,Berechnung!$B$8,FALSE),0)) -> 1.487002508e-05 | M59: =IF(AND($A59>=0,Berechnung!$B$8=0),1,IF(Berechnung!$B$8<>0,_xlfn.NORM.DIST($A59,0,Berechnung!$B$8,TRUE),0)) -> 0.9999683288 | N59: =IF(AND($A59=0,Berechnung!$B$9=0),1,IF(Berechnung!$B$9<>0,_xlfn.NORM.DIST($A59,0,Berechnung!$B$9,FALSE),0)) -> 9.235100719e-05 | O59: =IF(AND($A59>=0,Berechnung!$B$9=0),1,IF(Berechnung!$B$9<>0,_xlfn.NORM.DIST($A59,0,Berechnung!$B$9,TRUE),0)) -> 0.9997431468 | P59: =IF(AND($A59=0,Berechnung!$B$10=0),1,IF(Berechnung!$B$10<>0,_xlfn.NORM.DIST($A59,0,Berechnung!$B$10,FALSE),0)) -> 0.0002512583413 | Q59: =IF(AND($A59>=0,Berechnung!$B$10=0),1,IF(Berechnung!$B$10<>0,_xlfn.NORM.DIST($A59,0,Berechnung!$B$10,TRUE),0)) -> 0.9991562763 | R59: =IF(AND($A59=0,Berechnung!$B$11=0),1,IF(Berechnung!$B$11<>0,_xlfn.NORM.DIST($A59,0,Berechnung!$B$11,FALSE),0)) -> 0 | S59: =IF(AND($A59>=0,Berechnung!$B$11=0),1,IF(Berechnung!$B$11<>0,_xlfn.NORM.DIST($A59,0,Berechnung!$B$11,TRUE),0)) -> 1 | T59: =Demonstrator!$J$19*'Daten Diagramm'!H59+Demonstrator!$J$24*'Daten Diagramm'!L59 -> 0.0002730705685 | U59: =Demonstrator!$J$19*'Daten Diagramm'!I59+Demonstrator!$J$24*'Daten Diagramm'!M59 -> 0.9986091744
A60: 37 | B60: =IF(AND(A60=0,Berechnung!$B$3=0),1,IF(Berechnung!$B$3<>0,_xlfn.NORM.DIST(A60,0,Berechnung!$B$3,FALSE),0)) -> 9.475695609e-06 | C60: =IF(AND($A60>=0,Berechnung!$B$3=0),1,IF(Berechnung!$B$3<>0,_xlfn.NORM.DIST($A60,0,Berechnung!$B$3,TRUE),0)) -> 0.999980312 | D60: =IF(AND($A60=0,Berechnung!$B$4=0),1,IF(Berechnung!$B$4<>0,_xlfn.NORM.DIST($A60,0,Berechnung!$B$4,FALSE),0)) -> 9.475695609e-06 | E60: =IF(AND($A60>=0,Berechnung!$B$4=0),1,IF(Berechnung!$B$4<>0,_xlfn.NORM.DIST($A60,0,Berechnung!$B$4,TRUE),0)) -> 0.999980312 | F60: =IF(AND($A60=0,Berechnung!$B$5=0),1,IF(Berechnung!$B$5<>0,_xlfn.NORM.DIST($A60,0,Berechnung!$B$5,FALSE),0)) -> 0.001099170319 | G60: =IF(AND($A60>=0,Berechnung!$B$5=0),1,IF(Berechnung!$B$5<>0,_xlfn.NORM.DIST($A60,0,Berechnung!$B$5,TRUE),0)) -> 0.9943808144 | H60: =IF(AND($A60=0,Berechnung!$B$6=0),1,IF(Berechnung!$B$6<>0,_xlfn.NORM.DIST($A60,0,Berechnung!$B$6,FALSE),0)) -> 0.001100290702 | I60: =IF(AND($A60>=0,Berechnung!$B$6=0),1,IF(Berechnung!$B$6<>0,_xlfn.NORM.DIST($A60,0,Berechnung!$B$6,TRUE),0)) -> 0.9943731745 | J60: =IF(AND($A60=0,Berechnung!$B$7=0),1,IF(Berechnung!$B$7<>0,_xlfn.NORM.DIST($A60,0,Berechnung!$B$7,FALSE),0)) -> 9.475695609e-06 | K60: =IF(AND($A60>=0,Berechnung!$B$7=0),1,IF(Berechnung!$B$7<>0,_xlfn.NORM.DIST($A60,0,Berechnung!$B$7,TRUE),0)) -> 0.999980312 | L60: =IF(AND($A60=0,Berechnung!$B$8=0),1,IF(Berechnung!$B$8<>0,_xlfn.NORM.DIST($A60,0,Berechnung!$B$8,FALSE),0)) -> 9.475695609e-06 | M60: =IF(AND($A60>=0,Berechnung!$B$8=0),1,IF(Berechnung!$B$8<>0,_xlfn.NORM.DIST($A60,0,Berechnung!$B$8,TRUE),0)) -> 0.999980312 | N60: =IF(AND($A60=0,Berechnung!$B$9=0),1,IF(Berechnung!$B$9<>0,_xlfn.NORM.DIST($A60,0,Berechnung!$B$9,FALSE),0)) -> 6.574582761e-05 | O60: =IF(AND($A60>=0,Berechnung!$B$9=0),1,IF(Berechnung!$B$9<>0,_xlfn.NORM.DIST($A60,0,Berechnung!$B$9,TRUE),0)) -> 0.9998215039 | P60: =IF(AND($A60=0,Berechnung!$B$10=0),1,IF(Berechnung!$B$10<>0,_xlfn.NORM.DIST($A60,0,Berechnung!$B$10,FALSE),0)) -> 0.0001903258684 | Q60: =IF(AND($A60>=0,Berechnung!$B$10=0),1,IF(Berechnung!$B$10<>0,_xlfn.NORM.DIST($A60,0,Berechnung!$B$10,TRUE),0)) -> 0.9993757989 | R60: =IF(AND($A60=0,Berechnung!$B$11=0),1,IF(Berechnung!$B$11<>0,_xlfn.NORM.DIST($A60,0,Berechnung!$B$11,FALSE),0)) -> 0 | S60: =IF(AND($A60>=0,Berechnung!$B$11=0),1,IF(Berechnung!$B$11<>0,_xlfn.NORM.DIST($A60,0,Berechnung!$B$11,TRUE),0)) -> 1 | T60: =Demonstrator!$J$19*'Daten Diagramm'!H60+Demonstrator!$J$24*'Daten Diagramm'!L60 -> 0.0002276386969 | U60: =Demonstrator!$J$19*'Daten Diagramm'!I60+Demonstrator!$J$24*'Daten Diagramm'!M60 -> 0.9988588845
A61: 38 | B61: =IF(AND(A61=0,Berechnung!$B$3=0),1,IF(Berechnung!$B$3<>0,_xlfn.NORM.DIST(A61,0,Berechnung!$B$3,FALSE),0)) -> 5.964153895e-06 | C61: =IF(AND($A61>=0,Berechnung!$B$3=0),1,IF(Berechnung!$B$3<>0,_xlfn.NORM.DIST($A61,0,Berechnung!$B$3,TRUE),0)) -> 0.9999879047 | D61: =IF(AND($A61=0,Berechnung!$B$4=0),1,IF(Berechnung!$B$4<>0,_xlfn.NORM.DIST($A61,0,Berechnung!$B$4,FALSE),0)) -> 5.964153895e-06 | E61: =IF(AND($A61>=0,Berechnung!$B$4=0),1,IF(Berechnung!$B$4<>0,_xlfn.NORM.DIST($A61,0,Berechnung!$B$4,TRUE),0)) -> 0.9999879047 | F61: =IF(AND($A61=0,Berechnung!$B$5=0),1,IF(Berechnung!$B$5<>0,_xlfn.NORM.DIST($A61,0,Berechnung!$B$5,FALSE),0)) -> 0.000921732066 | G61: =IF(AND($A61>=0,Berechnung!$B$5=0),1,IF(Berechnung!$B$5<>0,_xlfn.NORM.DIST($A61,0,Berechnung!$B$5,TRUE),0)) -> 0.9953890579 | H61: =IF(AND($A61=0,Berechnung!$B$6=0),1,IF(Berechnung!$B$6<>0,_xlfn.NORM.DIST($A61,0,Berechnung!$B$6,FALSE),0)) -> 0.0009227325771 | I61: =IF(AND($A61>=0,Berechnung!$B$6=0),1,IF(Berechnung!$B$6<>0,_xlfn.NORM.DIST($A61,0,Berechnung!$B$6,TRUE),0)) -> 0.9953824779 | J61: =IF(AND($A61=0,Berechnung!$B$7=0),1,IF(Berechnung!$B$7<>0,_xlfn.NORM.DIST($A61,0,Berechnung!$B$7,FALSE),0)) -> 5.964153895e-06 | K61: =IF(AND($A61>=0,Berechnung!$B$7=0),1,IF(Berechnung!$B$7<>0,_xlfn.NORM.DIST($A61,0,Berechnung!$B$7,TRUE),0)) -> 0.9999879047 | L61: =IF(AND($A61=0,Berechnung!$B$8=0),1,IF(Berechnung!$B$8<>0,_xlfn.NORM.DIST($A61,0,Berechnung!$B$8,FALSE),0)) -> 5.964153895e-06 | M61: =IF(AND($A61>=0,Berechnung!$B$8=0),1,IF(Berechnung!$B$8<>0,_xlfn.NORM.DIST($A61,0,Berechnung!$B$8,TRUE),0)) -> 0.9999879047 | N61: =IF(AND($A61=0,Berechnung!$B$9=0),1,IF(Berechnung!$B$9<>0,_xlfn.NORM.DIST($A61,0,Berechnung!$B$9,FALSE),0)) -> 4.637155388e-05 | O61: =IF(AND($A61>=0,Berechnung!$B$9=0),1,IF(Berechnung!$B$9<>0,_xlfn.NORM.DIST($A61,0,Berechnung!$B$9,TRUE),0)) -> 0.9998770431 | P61: =IF(AND($A61=0,Berechnung!$B$10=0),1,IF(Berechnung!$B$10<>0,_xlfn.NORM.DIST($A61,0,Berechnung!$B$10,FALSE),0)) -> 0.0001430771962 | Q61: =IF(AND($A61>=0,Berechnung!$B$10=0),1,IF(Berechnung!$B$10<>0,_xlfn.NORM.DIST($A61,0,Berechnung!$B$10,TRUE),0)) -> 0.9995414833 | R61: =IF(AND($A61=0,Berechnung!$B$11=0),1,IF(Berechnung!$B$11<>0,_xlfn.NORM.DIST($A61,0,Berechnung!$B$11,FALSE),0)) -> 0 | S61: =IF(AND($A61>=0,Berechnung!$B$11=0),1,IF(Berechnung!$B$11<>0,_xlfn.NORM.DIST($A61,0,Berechnung!$B$11,TRUE),0)) -> 1 | T61: =Demonstrator!$J$19*'Daten Diagramm'!H61+Demonstrator!$J$24*'Daten Diagramm'!L61 -> 0.0001893178385 | U61: =Demonstrator!$J$19*'Daten Diagramm'!I61+Demonstrator!$J$24*'Daten Diagramm'!M61 -> 0.9990668194
A62: 39 | B62: =IF(AND(A62=0,Berechnung!$B$3=0),1,IF(Berechnung!$B$3<>0,_xlfn.NORM.DIST(A62,0,Berechnung!$B$3,FALSE),0)) -> 3.7078736e-06 | C62: =IF(AND($A62>=0,Berechnung!$B$3=0),1,IF(Berechnung!$B$3<>0,_xlfn.NORM.DIST($A62,0,Berechnung!$B$3,TRUE),0)) -> 0.9999926566 | D62: =IF(AND($A62=0,Berechnung!$B$4=0),1,IF(Berechnung!$B$4<>0,_xlfn.NORM.DIST($A62,0,Berechnung!$B$4,FALSE),0)) -> 3.7078736e-06 | E62: =IF(AND($A62>=0,Berechnung!$B$4=0),1,IF(Berechnung!$B$4<>0,_xlfn.NORM.DIST($A62,0,Berechnung!$B$4,TRUE),0)) -> 0.9999926566 | F62: =IF(AND($A62=0,Berechnung!$B$5=0),1,IF(Berechnung!$B$5<>0,_xlfn.NORM.DIST($A62,0,Berechnung!$B$5,FALSE),0)) -> 0.0007693172296 | G62: =IF(AND($A62>=0,Berechnung!$B$5=0),1,IF(Berechnung!$B$5<>0,_xlfn.NORM.DIST($A62,0,Berechnung!$B$5,TRUE),0)) -> 0.9962326178 | H62: =IF(AND($A62=0,Berechnung!$B$6=0),1,IF(Berechnung!$B$6<>0,_xlfn.NORM.DIST($A62,0,Berechnung!$B$6,FALSE),0)) -> 0.0007702045653 | I62: =IF(AND($A62>=0,Berechnung!$B$6=0),1,IF(Berechnung!$B$6<>0,_xlfn.NORM.DIST($A62,0,Berechnung!$B$6,TRUE),0)) -> 0.9962269812 | J62: =IF(AND($A62=0,Berechnung!$B$7=0),1,IF(Berechnung!$B$7<>0,_xlfn.NORM.DIST($A62,0,Berechnung!$B$7,FALSE),0)) -> 3.7078736e-06 | K62: =IF(AND($A62>=0,Berechnung!$B$7=0),1,IF(Berechnung!$B$7<>0,_xlfn.NORM.DIST($A62,0,Berechnung!$B$7,TRUE),0)) -> 0.9999926566 | L62: =IF(AND($A62=0,Berechnung!$B$8=0),1,IF(Berechnung!$B$8<>0,_xlfn.NORM.DIST($A62,0,Berechnung!$B$8,FALSE),0)) -> 3.7078736e-06 | M62: =IF(AND($A62>=0,Berechnung!$B$8=0),1,IF(Berechnung!$B$8<>0,_xlfn.NORM.DIST($A62,0,Berechnung!$B$8,TRUE),0)) -> 0.9999926566 | N62: =IF(AND($A62=0,Berechnung!$B$9=0),1,IF(Berechnung!$B$9<>0,_xlfn.NORM.DIST($A62,0,Berechnung!$B$9,FALSE),0)) -> 3.240350533e-05 | O62: =IF(AND($A62>=0,Berechnung!$B$9=0),1,IF(Berechnung!$B$9<>0,_xlfn.NORM.DIST($A62,0,Berechnung!$B$9,TRUE),0)) -> 0.9999160445 | P62: =IF(AND($A62=0,Berechnung!$B$10=0),1,IF(Berechnung!$B$10<>0,_xlfn.NORM.DIST($A62,0,Berechnung!$B$10,FALSE),0)) -> 0.0001067427264 | Q62: =IF(AND($A62>=0,Berechnung!$B$10=0),1,IF(Berechnung!$B$10<>0,_xlfn.NORM.DIST($A62,0,Berechnung!$B$10,TRUE),0)) -> 0.999665586 | R62: =IF(AND($A62=0,Berechnung!$B$11=0),1,IF(Berechnung!$B$11<>0,_xlfn.NORM.DIST($A62,0,Berechnung!$B$11,FALSE),0)) -> 0 | S62: =IF(AND($A62>=0,Berechnung!$B$11=0),1,IF(Berechnung!$B$11<>0,_xlfn.NORM.DIST($A62,0,Berechnung!$B$11,TRUE),0)) -> 1 | T62: =Demonstrator!$J$19*'Daten Diagramm'!H62+Demonstrator!$J$24*'Daten Diagramm'!L62 -> 0.0001570072119 | U62: =Demonstrator!$J$19*'Daten Diagramm'!I62+Demonstrator!$J$24*'Daten Diagramm'!M62 -> 0.9992395215
A63: 40 | B63: =IF(AND(A63=0,Berechnung!$B$3=0),1,IF(Berechnung!$B$3<>0,_xlfn.NORM.DIST(A63,0,Berechnung!$B$3,FALSE),0)) -> 2.276875794e-06 | C63: =IF(AND($A63>=0,Berechnung!$B$3=0),1,IF(Berechnung!$B$3<>0,_xlfn.NORM.DIST($A63,0,Berechnung!$B$3,TRUE),0)) -> 0.999995594 | D63: =IF(AND($A63=0,Berechnung!$B$4=0),1,IF(Berechnung!$B$4<>0,_xlfn.NORM.DIST($A63,0,Berechnung!$B$4,FALSE),0)) -> 2.276875794e-06 | E63: =IF(AND($A63>=0,Berechnung!$B$4=0),1,IF(Berechnung!$B$4<>0,_xlfn.NORM.DIST($A63,0,Berechnung!$B$4,TRUE),0)) -> 0.999995594 | F63: =IF(AND($A63=0,Berechnung!$B$5=0),1,IF(Berechnung!$B$5<>0,_xlfn.NORM.DIST($A63,0,Berechnung!$B$5,FALSE),0)) -> 0.000639097738 | G63: =IF(AND($A63>=0,Berechnung!$B$5=0),1,IF(Berechnung!$B$5<>0,_xlfn.NORM.DIST($A63,0,Berechnung!$B$5,TRUE),0)) -> 0.9969350887 | H63: =IF(AND($A63=0,Berechnung!$B$6=0),1,IF(Berechnung!$B$6<>0,_xlfn.NORM.DIST($A63,0,Berechnung!$B$6,FALSE),0)) -> 0.0006398794277 | I63: =IF(AND($A63>=0,Berechnung!$B$6=0),1,IF(Berechnung!$B$6<>0,_xlfn.NORM.DIST($A63,0,Berechnung!$B$6,TRUE),0)) -> 0.9969302859 | J63: =IF(AND($A63=0,Berechnung!$B$7=0),1,IF(Berechnung!$B$7<>0,_xlfn.NORM.DIST($A63,0,Berechnung!$B$7,FALSE),0)) -> 2.276875794e-06 | K63: =IF(AND($A63>=0,Berechnung!$B$7=0),1,IF(Berechnung!$B$7<>0,_xlfn.NORM.DIST($A63,0,Berechnung!$B$7,TRUE),0)) -> 0.999995594 | L63: =IF(AND($A63=0,Berechnung!$B$8=0),1,IF(Berechnung!$B$8<>0,_xlfn.NORM.DIST($A63,0,Berechnung!$B$8,FALSE),0)) -> 2.276875794e-06 | M63: =IF(AND($A63>=0,Berechnung!$B$8=0),1,IF(Berechnung!$B$8<>0,_xlfn.NORM.DIST($A63,0,Berechnung!$B$8,TRUE),0)) -> 0.999995594 | N63: =IF(AND($A63=0,Berechnung!$B$9=0),1,IF(Berechnung!$B$9<>0,_xlfn.NORM.DIST($A63,0,Berechnung!$B$9,FALSE),0)) -> 2.243309679e-05 | O63: =IF(AND($A63>=0,Berechnung!$B$9=0),1,IF(Berechnung!$B$9<>0,_xlfn.NORM.DIST($A63,0,Berechnung!$B$9,TRUE),0)) -> 0.9999431789 | P63: =IF(AND($A63=0,Berechnung!$B$10=0),1,IF(Berechnung!$B$10<>0,_xlfn.NORM.DIST($A63,0,Berechnung!$B$10,FALSE),0)) -> 7.90317195e-05 | Q63: =IF(AND($A63>=0,Berechnung!$B$10=0),1,IF(Berechnung!$B$10<>0,_xlfn.NORM.DIST($A63,0,Berechnung!$B$10,TRUE),0)) -> 0.9997578386 | R63: =IF(AND($A63=0,Berechnung!$B$11=0),1,IF(Berechnung!$B$11<>0,_xlfn.NORM.DIST($A63,0,Berechnung!$B$11,FALSE),0)) -> 0 | S63: =IF(AND($A63>=0,Berechnung!$B$11=0),1,IF(Berechnung!$B$11<>0,_xlfn.NORM.DIST($A63,0,Berechnung!$B$11,TRUE),0)) -> 1 | T63: =Demonstrator!$J$19*'Daten Diagramm'!H63+Demonstrator!$J$24*'Daten Diagramm'!L63 -> 0.0001297973862 | U63: =Demonstrator!$J$19*'Daten Diagramm'!I63+Demonstrator!$J$24*'Daten Diagramm'!M63 -> 0.9993825324
A64: 41 | B64: =IF(AND(A64=0,Berechnung!$B$3=0),1,IF(Berechnung!$B$3<>0,_xlfn.NORM.DIST(A64,0,Berechnung!$B$3,FALSE),0)) -> 1.380994977e-06 | C64: =IF(AND($A64>=0,Berechnung!$B$3=0),1,IF(Berechnung!$B$3<>0,_xlfn.NORM.DIST($A64,0,Berechnung!$B$3,TRUE),0)) -> 0.9999973876 | D64: =IF(AND($A64=0,Berechnung!$B$4=0),1,IF(Berechnung!$B$4<>0,_xlfn.NORM.DIST($A64,0,Berechnung!$B$4,FALSE),0)) -> 1.380994977e-06 | E64: =IF(AND($A64>=0,Berechnung!$B$4=0),1,IF(Berechnung!$B$4<>0,_xlfn.NORM.DIST($A64,0,Berechnung!$B$4,TRUE),0)) -> 0.9999973876 | F64: =IF(AND($A64=0,Berechnung!$B$5=0),1,IF(Berechnung!$B$5<>0,_xlfn.NORM.DIST($A64,0,Berechnung!$B$5,FALSE),0)) -> 0.0005284332795 | G64: =IF(AND($A64>=0,Berechnung!$B$5=0),1,IF(Berechnung!$B$5<>0,_xlfn.NORM.DIST($A64,0,Berechnung!$B$5,TRUE),0)) -> 0.9975173294 | H64: =IF(AND($A64=0,Berechnung!$B$6=0),1,IF(Berechnung!$B$6<>0,_xlfn.NORM.DIST($A64,0,Berechnung!$B$6,FALSE),0)) -> 0.0005291173849 | I64: =IF(AND($A64>=0,Berechnung!$B$6=0),1,IF(Berechnung!$B$6<>0,_xlfn.NORM.DIST($A64,0,Berechnung!$B$6,TRUE),0)) -> 0.9975132588 | J64: =IF(AND($A64=0,Berechnung!$B$7=0),1,IF(Berechnung!$B$7<>0,_xlfn.NORM.DIST($A64,0,Berechnung!$B$7,FALSE),0)) -> 1.380994977e-06 | K64: =IF(AND($A64>=0,Berechnung!$B$7=0),1,IF(Berechnung!$B$7<>0,_xlfn.NORM.DIST($A64,0,Berechnung!$B$7,TRUE),0)) -> 0.9999973876 | L64: =IF(AND($A64=0,Berechnung!$B$8=0),1,IF(Berechnung!$B$8<>0,_xlfn.NORM.DIST($A64,0,Berechnung!$B$8,FALSE),0)) -> 1.380994977e-06 | M64: =IF(AND($A64>=0,Berechnung!$B$8=0),1,IF(Berechnung!$B$8<>0,_xlfn.NORM.DIST($A64,0,Berechnung!$B$8,TRUE),0)) -> 0.9999973876 | N64: =IF(AND($A64=0,Berechnung!$B$9=0),1,IF(Berechnung!$B$9<>0,_xlfn.NORM.DIST($A64,0,Berechnung!$B$9,FALSE),0)) -> 1.538662463e-05 | O64: =IF(AND($A64>=0,Berechnung!$B$9=0),1,IF(Berechnung!$B$9<>0,_xlfn.NORM.DIST($A64,0,Berechnung!$B$9,TRUE),0)) -> 0.9999618824 | P64: =IF(AND($A64=0,Berechnung!$B$10=0),1,IF(Berechnung!$B$10<>0,_xlfn.NORM.DIST($A64,0,Berechnung!$B$10,FALSE),0)) -> 5.807107158e-05 | Q64: =IF(AND($A64>=0,Berechnung!$B$10=0),1,IF(Berechnung!$B$10<>0,_xlfn.NORM.DIST($A64,0,Berechnung!$B$10,TRUE),0)) -> 0.9998258956 | R64: =IF(AND($A64=0,Berechnung!$B$11=0),1,IF(Berechnung!$B$11<>0,_xlfn.NORM.DIST($A64,0,Berechnung!$B$11,FALSE),0)) -> 0 | S64: =IF(AND($A64>=0,Berechnung!$B$11=0),1,IF(Berechnung!$B$11<>0,_xlfn.NORM.DIST($A64,0,Berechnung!$B$11,TRUE),0)) -> 1 | T64: =Demonstrator!$J$19*'Daten Diagramm'!H64+Demonstrator!$J$24*'Daten Diagramm'!L64 -> 0.000106928273 | U64: =Demonstrator!$J$19*'Daten Diagramm'!I64+Demonstrator!$J$24*'Daten Diagramm'!M64 -> 0.9995005619
A65: 42 | B65: =IF(AND(A65=0,Berechnung!$B$3=0),1,IF(Berechnung!$B$3<>0,_xlfn.NORM.DIST(A65,0,Berechnung!$B$3,FALSE),0)) -> 8.273384301e-07 | C65: =IF(AND($A65>=0,Berechnung!$B$3=0),1,IF(Berechnung!$B$3<>0,_xlfn.NORM.DIST($A65,0,Berechnung!$B$3,TRUE),0)) -> 0.9999984694 | D65: =IF(AND($A65=0,Berechnung!$B$4=0),1,IF(Berechnung!$B$4<>0,_xlfn.NORM.DIST($A65,0,Berechnung!$B$4,FALSE),0)) -> 8.273384301e-07 | E65: =IF(AND($A65>=0,Berechnung!$B$4=0),1,IF(Berechnung!$B$4<>0,_xlfn.NORM.DIST($A65,0,Berechnung!$B$4,TRUE),0)) -> 0.9999984694 | F65: =IF(AND($A65=0,Berechnung!$B$5=0),1,IF(Berechnung!$B$5<>0,_xlfn.NORM.DIST($A65,0,Berechnung!$B$5,FALSE),0)) -> 0.0004348846709 | G65: =IF(AND($A65>=0,Berechnung!$B$5=0),1,IF(Berechnung!$B$5<>0,_xlfn.NORM.DIST($A65,0,Berechnung!$B$5,TRUE),0)) -> 0.9979976582 | H65: =IF(AND($A65=0,Berechnung!$B$6=0),1,IF(Berechnung!$B$6<>0,_xlfn.NORM.DIST($A65,0,Berechnung!$B$6,FALSE),0)) -> 0.0004354795233 | I65: =IF(AND($A65>=0,Berechnung!$B$6=0),1,IF(Berechnung!$B$6<>0,_xlfn.NORM.DIST($A65,0,Berechnung!$B$6,TRUE),0)) -> 0.9979942264 | J65: =IF(AND($A65=0,Berechnung!$B$7=0),1,IF(Berechnung!$B$7<>0,_xlfn.NORM.DIST($A65,0,Berechnung!$B$7,FALSE),0)) -> 8.273384301e-07 | K65: =IF(AND($A65>=0,Berechnung!$B$7=0),1,IF(Berechnung!$B$7<>0,_xlfn.NORM.DIST($A65,0,Berechnung!$B$7,TRUE),0)) -> 0.9999984694 | L65: =IF(AND($A65=0,Berechnung!$B$8=0),1,IF(Berechnung!$B$8<>0,_xlfn.NORM.DIST($A65,0,Berechnung!$B$8,FALSE),0)) -> 8.273384301e-07 | M65: =IF(AND($A65>=0,Berechnung!$B$8=0),1,IF(Berechnung!$B$8<>0,_xlfn.NORM.DIST($A65,0,Berechnung!$B$8,TRUE),0)) -> 0.9999984694 | N65: =IF(AND($A65=0,Berechnung!$B$9=0),1,IF(Berechnung!$B$9<>0,_xlfn.NORM.DIST($A65,0,Berechnung!$B$9,FALSE),0)) -> 1.045573047e-05 | O65: =IF(AND($A65>=0,Berechnung!$B$9=0),1,IF(Berechnung!$B$9<>0,_xlfn.NORM.DIST($A65,0,Berechnung!$B$9,TRUE),0)) -> 0.9999746551 | P65: =IF(AND($A65=0,Berechnung!$B$10=0),1,IF(Berechnung!$B$10<>0,_xlfn.NORM.DIST($A65,0,Berechnung!$B$10,FALSE),0)) -> 4.234610972e-05 | Q65: =IF(AND($A65>=0,Berechnung!$B$10=0),1,IF(Berechnung!$B$10<>0,_xlfn.NORM.DIST($A65,0,Berechnung!$B$10,TRUE),0)) -> 0.9998757226 | R65: =IF(AND($A65=0,Berechnung!$B$11=0),1,IF(Berechnung!$B$11<>0,_xlfn.NORM.DIST($A65,0,Berechnung!$B$11,FALSE),0)) -> 0 | S65: =IF(AND($A65>=0,Berechnung!$B$11=0),1,IF(Berechnung!$B$11<>0,_xlfn.NORM.DIST($A65,0,Berechnung!$B$11,TRUE),0)) -> 1 | T65: =Demonstrator!$J$19*'Daten Diagramm'!H65+Demonstrator!$J$24*'Daten Diagramm'!L65 -> 8.775777541e-05 | U65: =Demonstrator!$J$19*'Daten Diagramm'!I65+Demonstrator!$J$24*'Daten Diagramm'!M65 -> 0.9995976208
A66: 43 | B66: =IF(AND(A66=0,Berechnung!$B$3=0),1,IF(Berechnung!$B$3<>0,_xlfn.NORM.DIST(A66,0,Berechnung!$B$3,FALSE),0)) -> 4.895675642e-07 | C66: =IF(AND($A66>=0,Berechnung!$B$3=0),1,IF(Berechnung!$B$3<>0,_xlfn.NORM.DIST($A66,0,Berechnung!$B$3,TRUE),0)) -> 0.9999991138 | D66: =IF(AND($A66=0,Berechnung!$B$4=0),1,IF(Berechnung!$B$4<>0,_xlfn.NORM.DIST($A66,0,Berechnung!$B$4,FALSE),0)) -> 4.895675642e-07 | E66: =IF(AND($A66>=0,Berechnung!$B$4=0),1,IF(Berechnung!$B$4<>0,_xlfn.NORM.DIST($A66,0,Berechnung!$B$4,TRUE),0)) -> 0.9999991138 | F66: =IF(AND($A66=0,Berechnung!$B$5=0),1,IF(Berechnung!$B$5<>0,_xlfn.NORM.DIST($A66,0,Berechnung!$B$5,FALSE),0)) -> 0.0003562206546 | G66: =IF(AND($A66>=0,Berechnung!$B$5=0),1,IF(Berechnung!$B$5<>0,_xlfn.NORM.DIST($A66,0,Berechnung!$B$5,TRUE),0)) -> 0.9983920579 | H66: =IF(AND($A66=0,Berechnung!$B$6=0),1,IF(Berechnung!$B$6<>0,_xlfn.NORM.DIST($A66,0,Berechnung!$B$6,FALSE),0)) -> 0.0003567346303 | I66: =IF(AND($A66>=0,Berechnung!$B$6=0),1,IF(Berechnung!$B$6<>0,_xlfn.NORM.DIST($A66,0,Berechnung!$B$6,TRUE),0)) -> 0.9983891799 | J66: =IF(AND($A66=0,Berechnung!$B$7=0),1,IF(Berechnung!$B$7<>0,_xlfn.NORM.DIST($A66,0,Berechnung!$B$7,FALSE),0)) -> 4.895675642e-07 | K66: =IF(AND($A66>=0,Berechnung!$B$7=0),1,IF(Berechnung!$B$7<>0,_xlfn.NORM.DIST($A66,0,Berechnung!$B$7,TRUE),0)) -> 0.9999991138 | L66: =IF(AND($A66=0,Berechnung!$B$8=0),1,IF(Berechnung!$B$8<>0,_xlfn.NORM.DIST($A66,0,Berechnung!$B$8,FALSE),0)) -> 4.895675642e-07 | M66: =IF(AND($A66>=0,Berechnung!$B$8=0),1,IF(Berechnung!$B$8<>0,_xlfn.NORM.DIST($A66,0,Berechnung!$B$8,TRUE),0)) -> 0.9999991138 | N66: =IF(AND($A66=0,Berechnung!$B$9=0),1,IF(Berechnung!$B$9<>0,_xlfn.NORM.DIST($A66,0,Berechnung!$B$9,FALSE),0)) -> 7.039183591e-06 | O66: =IF(AND($A66>=0,Berechnung!$B$9=0),1,IF(Berechnung!$B$9<>0,_xlfn.NORM.DIST($A66,0,Berechnung!$B$9,TRUE),0)) -> 0.9999832969 | P66: =IF(AND($A66=0,Berechnung!$B$10=0),1,IF(Berechnung!$B$10<>0,_xlfn.NORM.DIST($A66,0,Berechnung!$B$10,FALSE),0)) -> 3.064520044e-05 | Q66: =IF(AND($A66>=0,Berechnung!$B$10=0),1,IF(Berechnung!$B$10<>0,_xlfn.NORM.DIST($A66,0,Berechnung!$B$10,TRUE),0)) -> 0.9999119264 | R66: =IF(AND($A66=0,Berechnung!$B$11=0),1,IF(Berechnung!$B$11<>0,_xlfn.NORM.DIST($A66,0,Berechnung!$B$11,FALSE),0)) -> 0 | S66: =IF(AND($A66>=0,Berechnung!$B$11=0),1,IF(Berechnung!$B$11<>0,_xlfn.NORM.DIST($A66,0,Berechnung!$B$11,TRUE),0)) -> 1 | T66: =Demonstrator!$J$19*'Daten Diagramm'!H66+Demonstrator!$J$24*'Daten Diagramm'!L66 -> 7.173858011e-05 | U66: =Demonstrator!$J$19*'Daten Diagramm'!I66+Demonstrator!$J$24*'Daten Diagramm'!M66 -> 0.999677127
A67: 44 | B67: =IF(AND(A67=0,Berechnung!$B$3=0),1,IF(Berechnung!$B$3<>0,_xlfn.NORM.DIST(A67,0,Berechnung!$B$3,FALSE),0)) -> 2.861412135e-07 | C67: =IF(AND($A67>=0,Berechnung!$B$3=0),1,IF(Berechnung!$B$3<>0,_xlfn.NORM.DIST($A67,0,Berechnung!$B$3,TRUE),0)) -> 0.999999493 | D67: =IF(AND($A67=0,Berechnung!$B$4=0),1,IF(Berechnung!$B$4<>0,_xlfn.NORM.DIST($A67,0,Berechnung!$B$4,FALSE),0)) -> 2.861412135e-07 | E67: =IF(AND($A67>=0,Berechnung!$B$4=0),1,IF(Berechnung!$B$4<>0,_xlfn.NORM.DIST($A67,0,Berechnung!$B$4,TRUE),0)) -> 0.999999493 | F67: =IF(AND($A67=0,Berechnung!$B$5=0),1,IF(Berechnung!$B$5<>0,_xlfn.NORM.DIST($A67,0,Berechnung!$B$5,FALSE),0)) -> 0.0002904190857 | G67: =IF(AND($A67>=0,Berechnung!$B$5=0),1,IF(Berechnung!$B$5<>0,_xlfn.NORM.DIST($A67,0,Berechnung!$B$5,TRUE),0)) -> 0.9987143847 | H67: =IF(AND($A67=0,Berechnung!$B$6=0),1,IF(Berechnung!$B$6<>0,_xlfn.NORM.DIST($A67,0,Berechnung!$B$6,FALSE),0)) -> 0.0002908604202 | I67: =IF(AND($A67>=0,Berechnung!$B$6=0),1,IF(Berechnung!$B$6<>0,_xlfn.NORM.DIST($A67,0,Berechnung!$B$6,TRUE),0)) -> 0.9987119836 | J67: =IF(AND($A67=0,Berechnung!$B$7=0),1,IF(Berechnung!$B$7<>0,_xlfn.NORM.DIST($A67,0,Berechnung!$B$7,FALSE),0)) -> 2.861412135e-07 | K67: =IF(AND($A67>=0,Berechnung!$B$7=0),1,IF(Berechnung!$B$7<>0,_xlfn.NORM.DIST($A67,0,Berechnung!$B$7,TRUE),0)) -> 0.999999493 | L67: =IF(AND($A67=0,Berechnung!$B$8=0),1,IF(Berechnung!$B$8<>0,_xlfn.NORM.DIST($A67,0,Berechnung!$B$8,FALSE),0)) -> 2.861412135e-07 | M67: =IF(AND($A67>=0,Berechnung!$B$8=0),1,IF(Berechnung!$B$8<>0,_xlfn.NORM.DIST($A67,0,Berechnung!$B$8,TRUE),0)) -> 0.999999493 | N67: =IF(AND($A67=0,Berechnung!$B$9=0),1,IF(Berechnung!$B$9<>0,_xlfn.NORM.DIST($A67,0,Berechnung!$B$9,FALSE),0)) -> 4.69512433e-06 | O67: =IF(AND($A67>=0,Berechnung!$B$9=0),1,IF(Berechnung!$B$9<>0,_xlfn.NORM.DIST($A67,0,Berechnung!$B$9,TRUE),0)) -> 0.9999890896 | P67: =IF(AND($A67=0,Berechnung!$B$10=0),1,IF(Berechnung!$B$10<>0,_xlfn.NORM.DIST($A67,0,Berechnung!$B$10,FALSE),0)) -> 2.200932297e-05 | Q67: =IF(AND($A67>=0,Berechnung!$B$10=0),1,IF(Berechnung!$B$10<>0,_xlfn.NORM.DIST($A67,0,Berechnung!$B$10,TRUE),0)) -> 0.9999380324 | R67: =IF(AND($A67=0,Berechnung!$B$11=0),1,IF(Berechnung!$B$11<>0,_xlfn.NORM.DIST($A67,0,Berechnung!$B$11,FALSE),0)) -> 0 | S67: =IF(AND($A67>=0,Berechnung!$B$11=0),1,IF(Berechnung!$B$11<>0,_xlfn.NORM.DIST($A67,0,Berechnung!$B$11,TRUE),0)) -> 1 | T67: =Demonstrator!$J$19*'Daten Diagramm'!H67+Demonstrator!$J$24*'Daten Diagramm'!L67 -> 5.8400997e-05 | U67: =Demonstrator!$J$19*'Daten Diagramm'!I67+Demonstrator!$J$24*'Daten Diagramm'!M67 -> 0.9997419911
A68: 45 | B68: =IF(AND(A68=0,Berechnung!$B$3=0),1,IF(Berechnung!$B$3<>0,_xlfn.NORM.DIST(A68,0,Berechnung!$B$3,FALSE),0)) -> 1.651910572e-07 | C68: =IF(AND($A68>=0,Berechnung!$B$3=0),1,IF(Berechnung!$B$3<>0,_xlfn.NORM.DIST($A68,0,Berechnung!$B$3,TRUE),0)) -> 0.9999997133 | D68: =IF(AND($A68=0,Berechnung!$B$4=0),1,IF(Berechnung!$B$4<>0,_xlfn.NORM.DIST($A68,0,Berechnung!$B$4,FALSE),0)) -> 1.651910572e-07 | E68: =IF(AND($A68>=0,Berechnung!$B$4=0),1,IF(Berechnung!$B$4<>0,_xlfn.NORM.DIST($A68,0,Berechnung!$B$4,TRUE),0)) -> 0.9999997133 | F68: =IF(AND($A68=0,Berechnung!$B$5=0),1,IF(Berechnung!$B$5<>0,_xlfn.NORM.DIST($A68,0,Berechnung!$B$5,FALSE),0)) -> 0.0002356634706 | G68: =IF(AND($A68>=0,Berechnung!$B$5=0),1,IF(Berechnung!$B$5<>0,_xlfn.NORM.DIST($A68,0,Berechnung!$B$5,TRUE),0)) -> 0.9989765759 | H68: =IF(AND($A68=0,Berechnung!$B$6=0),1,IF(Berechnung!$B$6<>0,_xlfn.NORM.DIST($A68,0,Berechnung!$B$6,FALSE),0)) -> 0.0002360401096 | I68: =IF(AND($A68>=0,Berechnung!$B$6=0),1,IF(Berechnung!$B$6<>0,_xlfn.NORM.DIST($A68,0,Berechnung!$B$6,TRUE),0)) -> 0.9989745831 | J68: =IF(AND($A68=0,Berechnung!$B$7=0),1,IF(Berechnung!$B$7<>0,_xlfn.NORM.DIST($A68,0,Berechnung!$B$7,FALSE),0)) -> 1.651910572e-07 | K68: =IF(AND($A68>=0,Berechnung!$B$7=0),1,IF(Berechnung!$B$7<>0,_xlfn.NORM.DIST($A68,0,Berechnung!$B$7,TRUE),0)) -> 0.9999997133 | L68: =IF(AND($A68=0,Berechnung!$B$8=0),1,IF(Berechnung!$B$8<>0,_xlfn.NORM.DIST($A68,0,Berechnung!$B$8,FALSE),0)) -> 1.651910572e-07 | M68: =IF(AND($A68>=0,Berechnung!$B$8=0),1,IF(Berechnung!$B$8<>0,_xlfn.NORM.DIST($A68,0,Berechnung!$B$8,TRUE),0)) -> 0.9999997133 | N68: =IF(AND($A68=0,Berechnung!$B$9=0),1,IF(Berechnung!$B$9<>0,_xlfn.NORM.DIST($A68,0,Berechnung!$B$9,FALSE),0)) -> 3.102621474e-06 | O68: =IF(AND($A68>=0,Berechnung!$B$9=0),1,IF(Berechnung!$B$9<>0,_xlfn.NORM.DIST($A68,0,Berechnung!$B$9,TRUE),0)) -> 0.9999929366 | P68: =IF(AND($A68=0,Berechnung!$B$10=0),1,IF(Berechnung!$B$10<>0,_xlfn.NORM.DIST($A68,0,Berechnung!$B$10,FALSE),0)) -> 1.56872266e-05 | Q68: =IF(AND($A68>=0,Berechnung!$B$10=0),1,IF(Berechnung!$B$10<>0,_xlfn.NORM.DIST($A68,0,Berechnung!$B$10,TRUE),0)) -> 0.9999567144 | R68: =IF(AND($A68=0,Berechnung!$B$11=0),1,IF(Berechnung!$B$11<>0,_xlfn.NORM.DIST($A68,0,Berechnung!$B$11,FALSE),0)) -> 0 | S68: =IF(AND($A68>=0,Berechnung!$B$11=0),1,IF(Berechnung!$B$11<>0,_xlfn.NORM.DIST($A68,0,Berechnung!$B$11,TRUE),0)) -> 1 | T68: =Demonstrator!$J$19*'Daten Diagramm'!H68+Demonstrator!$J$24*'Daten Diagramm'!L68 -> 4.734017478e-05 | U68: =Demonstrator!$J$19*'Daten Diagramm'!I68+Demonstrator!$J$24*'Daten Diagramm'!M68 -> 0.9997946873
A69: 46 | B69: =IF(AND(A69=0,Berechnung!$B$3=0),1,IF(Berechnung!$B$3<>0,_xlfn.NORM.DIST(A69,0,Berechnung!$B$3,FALSE),0)) -> 9.419568101e-08 | C69: =IF(AND($A69>=0,Berechnung!$B$3=0),1,IF(Berechnung!$B$3<>0,_xlfn.NORM.DIST($A69,0,Berechnung!$B$3,TRUE),0)) -> 0.9999998399 | D69: =IF(AND($A69=0,Berechnung!$B$4=0),1,IF(Berechnung!$B$4<>0,_xlfn.NORM.DIST($A69,0,Berechnung!$B$4,FALSE),0)) -> 9.419568101e-08 | E69: =IF(AND($A69>=0,Berechnung!$B$4=0),1,IF(Berechnung!$B$4<>0,_xlfn.NORM.DIST($A69,0,Berechnung!$B$4,TRUE),0)) -> 0.9999998399 | F69: =IF(AND($A69=0,Berechnung!$B$5=0),1,IF(Berechnung!$B$5<>0,_xlfn.NORM.DIST($A69,0,Berechnung!$B$5,FALSE),0)) -> 0.0001903357831 | G69: =IF(AND($A69>=0,Berechnung!$B$5=0),1,IF(Berechnung!$B$5<>0,_xlfn.NORM.DIST($A69,0,Berechnung!$B$5,TRUE),0)) -> 0.9991888522 | H69: =IF(AND($A69=0,Berechnung!$B$6=0),1,IF(Berechnung!$B$6<>0,_xlfn.NORM.DIST($A69,0,Berechnung!$B$6,FALSE),0)) -> 0.0001906552692 | I69: =IF(AND($A69>=0,Berechnung!$B$6=0),1,IF(Berechnung!$B$6<>0,_xlfn.NORM.DIST($A69,0,Berechnung!$B$6,TRUE),0)) -> 0.9991872069 | J69: =IF(AND($A69=0,Berechnung!$B$7=0),1,IF(Berechnung!$B$7<>0,_xlfn.NORM.DIST($A69,0,Berechnung!$B$7,FALSE),0)) -> 9.419568101e-08 | K69: =IF(AND($A69>=0,Berechnung!$B$7=0),1,IF(Berechnung!$B$7<>0,_xlfn.NORM.DIST($A69,0,Berechnung!$B$7,TRUE),0)) -> 0.9999998399 | L69: =IF(AND($A69=0,Berechnung!$B$8=0),1,IF(Berechnung!$B$8<>0,_xlfn.NORM.DIST($A69,0,Berechnung!$B$8,FALSE),0)) -> 9.419568101e-08 | M69: =IF(AND($A69>=0,Berechnung!$B$8=0),1,IF(Berechnung!$B$8<>0,_xlfn.NORM.DIST($A69,0,Berechnung!$B$8,TRUE),0)) -> 0.9999998399 | N69: =IF(AND($A69=0,Berechnung!$B$9=0),1,IF(Berechnung!$B$9<>0,_xlfn.NORM.DIST($A69,0,Berechnung!$B$9,FALSE),0)) -> 2.031268731e-06 | O69: =IF(AND($A69>=0,Berechnung!$B$9=0),1,IF(Berechnung!$B$9<>0,_xlfn.NORM.DIST($A69,0,Berechnung!$B$9,TRUE),0)) -> 0.9999954678 | P69: =IF(AND($A69=0,Berechnung!$B$10=0),1,IF(Berechnung!$B$10<>0,_xlfn.NORM.DIST($A69,0,Berechnung!$B$10,FALSE),0)) -> 1.10963699e-05 | Q69: =IF(AND($A69>=0,Berechnung!$B$10=0),1,IF(Berechnung!$B$10<>0,_xlfn.NORM.DIST($A69,0,Berechnung!$B$10,TRUE),0)) -> 0.9999699824 | R69: =IF(AND($A69=0,Berechnung!$B$11=0),1,IF(Berechnung!$B$11<>0,_xlfn.NORM.DIST($A69,0,Berechnung!$B$11,FALSE),0)) -> 0 | S69: =IF(AND($A69>=0,Berechnung!$B$11=0),1,IF(Berechnung!$B$11<>0,_xlfn.NORM.DIST($A69,0,Berechnung!$B$11,TRUE),0)) -> 1 | T69: =Demonstrator!$J$19*'Daten Diagramm'!H69+Demonstrator!$J$24*'Daten Diagramm'!L69 -> 3.820641039e-05 | U69: =Demonstrator!$J$19*'Daten Diagramm'!I69+Demonstrator!$J$24*'Daten Diagramm'!M69 -> 0.9998373133
A70: 47 | B70: =IF(AND(A70=0,Berechnung!$B$3=0),1,IF(Berechnung!$B$3<>0,_xlfn.NORM.DIST(A70,0,Berechnung!$B$3,FALSE),0)) -> 5.305346917e-08 | C70: =IF(AND($A70>=0,Berechnung!$B$3=0),1,IF(Berechnung!$B$3<>0,_xlfn.NORM.DIST($A70,0,Berechnung!$B$3,TRUE),0)) -> 0.9999999116 | D70: =IF(AND($A70=0,Berechnung!$B$4=0),1,IF(Berechnung!$B$4<>0,_xlfn.NORM.DIST($A70,0,Berechnung!$B$4,FALSE),0)) -> 5.305346917e-08 | E70: =IF(AND($A70>=0,Berechnung!$B$4=0),1,IF(Berechnung!$B$4<>0,_xlfn.NORM.DIST($A70,0,Berechnung!$B$4,TRUE),0)) -> 0.9999999116 | F70: =IF(AND($A70=0,Berechnung!$B$5=0),1,IF(Berechnung!$B$5<>0,_xlfn.NORM.DIST($A70,0,Berechnung!$B$5,FALSE),0)) -> 0.0001530064278 | G70: =IF(AND($A70>=0,Berechnung!$B$5=0),1,IF(Berechnung!$B$5<>0,_xlfn.NORM.DIST($A70,0,Berechnung!$B$5,TRUE),0)) -> 0.9993599116 | H70: =IF(AND($A70=0,Berechnung!$B$6=0),1,IF(Berechnung!$B$6<>0,_xlfn.NORM.DIST($A70,0,Berechnung!$B$6,FALSE),0)) -> 0.0001532758177 | I70: =IF(AND($A70>=0,Berechnung!$B$6=0),1,IF(Berechnung!$B$6<>0,_xlfn.NORM.DIST($A70,0,Berechnung!$B$6,TRUE),0)) -> 0.9993585602 | J70: =IF(AND($A70=0,Berechnung!$B$7=0),1,IF(Berechnung!$B$7<>0,_xlfn.NORM.DIST($A70,0,Berechnung!$B$7,FALSE),0)) -> 5.305346917e-08 | K70: =IF(AND($A70>=0,Berechnung!$B$7=0),1,IF(Berechnung!$B$7<>0,_xlfn.NORM.DIST($A70,0,Berechnung!$B$7,TRUE),0)) -> 0.9999999116 | L70: =IF(AND($A70=0,Berechnung!$B$8=0),1,IF(Berechnung!$B$8<>0,_xlfn.NORM.DIST($A70,0,Berechnung!$B$8,FALSE),0)) -> 5.305346917e-08 | M70: =IF(AND($A70>=0,Berechnung!$B$8=0),1,IF(Berechnung!$B$8<>0,_xlfn.NORM.DIST($A70,0,Berechnung!$B$8,TRUE),0)) -> 0.9999999116 | N70: =IF(AND($A70=0,Berechnung!$B$9=0),1,IF(Berechnung!$B$9<>0,_xlfn.NORM.DIST($A70,0,Berechnung!$B$9,FALSE),0)) -> 1.317537133e-06 | O70: =IF(AND($A70>=0,Berechnung!$B$9=0),1,IF(Berechnung!$B$9<>0,_xlfn.NORM.DIST($A70,0,Berechnung!$B$9,TRUE),0)) -> 0.9999971178 | P70: =IF(AND($A70=0,Berechnung!$B$10=0),1,IF(Berechnung!$B$10<>0,_xlfn.NORM.DIST($A70,0,Berechnung!$B$10,FALSE),0)) -> 7.789524559e-06 | Q70: =IF(AND($A70>=0,Berechnung!$B$10=0),1,IF(Berechnung!$B$10<>0,_xlfn.NORM.DIST($A70,0,Berechnung!$B$10,TRUE),0)) -> 0.999979334 | R70: =IF(AND($A70=0,Berechnung!$B$11=0),1,IF(Berechnung!$B$11<>0,_xlfn.NORM.DIST($A70,0,Berechnung!$B$11,FALSE),0)) -> 0 | S70: =IF(AND($A70>=0,Berechnung!$B$11=0),1,IF(Berechnung!$B$11<>0,_xlfn.NORM.DIST($A70,0,Berechnung!$B$11,TRUE),0)) -> 1 | T70: =Demonstrator!$J$19*'Daten Diagramm'!H70+Demonstrator!$J$24*'Daten Diagramm'!L70 -> 3.069760632e-05 | U70: =Demonstrator!$J$19*'Daten Diagramm'!I70+Demonstrator!$J$24*'Daten Diagramm'!M70 -> 0.9998716413
A71: 48 | B71: =IF(AND(A71=0,Berechnung!$B$3=0),1,IF(Berechnung!$B$3<>0,_xlfn.NORM.DIST(A71,0,Berechnung!$B$3,FALSE),0)) -> 2.951446565e-08 | C71: =IF(AND($A71>=0,Berechnung!$B$3=0),1,IF(Berechnung!$B$3<>0,_xlfn.NORM.DIST($A71,0,Berechnung!$B$3,TRUE),0)) -> 0.9999999518 | D71: =IF(AND($A71=0,Berechnung!$B$4=0),1,IF(Berechnung!$B$4<>0,_xlfn.NORM.DIST($A71,0,Berechnung!$B$4,FALSE),0)) -> 2.951446565e-08 | E71: =IF(AND($A71>=0,Berechnung!$B$4=0),1,IF(Berechnung!$B$4<>0,_xlfn.NORM.DIST($A71,0,Berechnung!$B$4,TRUE),0)) -> 0.9999999518 | F71: =IF(AND($A71=0,Berechnung!$B$5=0),1,IF(Berechnung!$B$5<>0,_xlfn.NORM.DIST($A71,0,Berechnung!$B$5,FALSE),0)) -> 0.0001224221402 | G71: =IF(AND($A71>=0,Berechnung!$B$5=0),1,IF(Berechnung!$B$5<>0,_xlfn.NORM.DIST($A71,0,Berechnung!$B$5,TRUE),0)) -> 0.9994971116 | H71: =IF(AND($A71=0,Berechnung!$B$6=0),1,IF(Berechnung!$B$6<>0,_xlfn.NORM.DIST($A71,0,Berechnung!$B$6,FALSE),0)) -> 0.0001226479504 | I71: =IF(AND($A71>=0,Berechnung!$B$6=0),1,IF(Berechnung!$B$6<>0,_xlfn.NORM.DIST($A71,0,Berechnung!$B$6,TRUE),0)) -> 0.9994960073 | J71: =IF(AND($A71=0,Berechnung!$B$7=0),1,IF(Berechnung!$B$7<>0,_xlfn.NORM.DIST($A71,0,Berechnung!$B$7,FALSE),0)) -> 2.951446565e-08 | K71: =IF(AND($A71>=0,Berechnung!$B$7=0),1,IF(Berechnung!$B$7<>0,_xlfn.NORM.DIST($A71,0,Berechnung!$B$7,TRUE),0)) -> 0.9999999518 | L71: =IF(AND($A71=0,Berechnung!$B$8=0),1,IF(Berechnung!$B$8<>0,_xlfn.NORM.DIST($A71,0,Berechnung!$B$8,FALSE),0)) -> 2.951446565e-08 | M71: =IF(AND($A71>=0,Berechnung!$B$8=0),1,IF(Berechnung!$B$8<>0,_xlfn.NORM.DIST($A71,0,Berechnung!$B$8,TRUE),0)) -> 0.9999999518 | N71: =IF(AND($A71=0,Berechnung!$B$9=0),1,IF(Berechnung!$B$9<>0,_xlfn.NORM.DIST($A71,0,Berechnung!$B$9,FALSE),0)) -> 8.466720772e-07 | O71: =IF(AND($A71>=0,Berechnung!$B$9=0),1,IF(Berechnung!$B$9<>0,_xlfn.NORM.DIST($A71,0,Berechnung!$B$9,TRUE),0)) -> 0.9999981835 | P71: =IF(AND($A71=0,Berechnung!$B$10=0),1,IF(Berechnung!$B$10<>0,_xlfn.NORM.DIST($A71,0,Berechnung!$B$10,FALSE),0)) -> 5.426705398e-06 | Q71: =IF(AND($A71>=0,Berechnung!$B$10=0),1,IF(Berechnung!$B$10<>0,_xlfn.NORM.DIST($A71,0,Berechnung!$B$10,TRUE),0)) -> 0.9999858752 | R71: =IF(AND($A71=0,Berechnung!$B$11=0),1,IF(Berechnung!$B$11<>0,_xlfn.NORM.DIST($A71,0,Berechnung!$B$11,FALSE),0)) -> 0 | S71: =IF(AND($A71>=0,Berechnung!$B$11=0),1,IF(Berechnung!$B$11<>0,_xlfn.NORM.DIST($A71,0,Berechnung!$B$11,TRUE),0)) -> 1 | T71: =Demonstrator!$J$19*'Daten Diagramm'!H71+Demonstrator!$J$24*'Daten Diagramm'!L71 -> 2.455320166e-05 | U71: =Demonstrator!$J$19*'Daten Diagramm'!I71+Demonstrator!$J$24*'Daten Diagramm'!M71 -> 0.9998991629
A72: 49 | B72: =IF(AND(A72=0,Berechnung!$B$3=0),1,IF(Berechnung!$B$3<>0,_xlfn.NORM.DIST(A72,0,Berechnung!$B$3,FALSE),0)) -> 1.621789192e-08 | C72: =IF(AND($A72>=0,Berechnung!$B$3=0),1,IF(Berechnung!$B$3<>0,_xlfn.NORM.DIST($A72,0,Berechnung!$B$3,TRUE),0)) -> 0.999999974 | D72: =IF(AND($A72=0,Berechnung!$B$4=0),1,IF(Berechnung!$B$4<>0,_xlfn.NORM.DIST($A72,0,Berechnung!$B$4,FALSE),0)) -> 1.621789192e-08 | E72: =IF(AND($A72>=0,Berechnung!$B$4=0),1,IF(Berechnung!$B$4<>0,_xlfn.NORM.DIST($A72,0,Berechnung!$B$4,TRUE),0)) -> 0.999999974 | F72: =IF(AND($A72=0,Berechnung!$B$5=0),1,IF(Berechnung!$B$5<>0,_xlfn.NORM.DIST($A72,0,Berechnung!$B$5,FALSE),0)) -> 9.749252488e-05 | G72: =IF(AND($A72>=0,Berechnung!$B$5=0),1,IF(Berechnung!$B$5<>0,_xlfn.NORM.DIST($A72,0,Berechnung!$B$5,TRUE),0)) -> 0.9996066391 | H72: =IF(AND($A72=0,Berechnung!$B$6=0),1,IF(Berechnung!$B$6<>0,_xlfn.NORM.DIST($A72,0,Berechnung!$B$6,FALSE),0)) -> 9.768070216e-05 | I72: =IF(AND($A72>=0,Berechnung!$B$6=0),1,IF(Berechnung!$B$6<>0,_xlfn.NORM.DIST($A72,0,Berechnung!$B$6,TRUE),0)) -> 0.9996057413 | J72: =IF(AND($A72=0,Berechnung!$B$7=0),1,IF(Berechnung!$B$7<>0,_xlfn.NORM.DIST($A72,0,Berechnung!$B$7,FALSE),0)) -> 1.621789192e-08 | K72: =IF(AND($A72>=0,Berechnung!$B$7=0),1,IF(Berechnung!$B$7<>0,_xlfn.NORM.DIST($A72,0,Berechnung!$B$7,TRUE),0)) -> 0.999999974 | L72: =IF(AND($A72=0,Berechnung!$B$8=0),1,IF(Berechnung!$B$8<>0,_xlfn.NORM.DIST($A72,0,Berechnung!$B$8,FALSE),0)) -> 1.621789192e-08 | M72: =IF(AND($A72>=0,Berechnung!$B$8=0),1,IF(Berechnung!$B$8<>0,_xlfn.NORM.DIST($A72,0,Berechnung!$B$8,TRUE),0)) -> 0.999999974 | N72: =IF(AND($A72=0,Berechnung!$B$9=0),1,IF(Berechnung!$B$9<>0,_xlfn.NORM.DIST($A72,0,Berechnung!$B$9,FALSE),0)) -> 5.39044355e-07 | O72: =IF(AND($A72>=0,Berechnung!$B$9=0),1,IF(Berechnung!$B$9<>0,_xlfn.NORM.DIST($A72,0,Berechnung!$B$9,TRUE),0)) -> 0.9999988653 | P72: =IF(AND($A72=0,Berechnung!$B$10=0),1,IF(Berechnung!$B$10<>0,_xlfn.NORM.DIST($A72,0,Berechnung!$B$10,FALSE),0)) -> 3.751947989e-06 | Q72: =IF(AND($A72>=0,Berechnung!$B$10=0),1,IF(Berechnung!$B$10<>0,_xlfn.NORM.DIST($A72,0,Berechnung!$B$10,TRUE),0)) -> 0.999990416 | R72: =IF(AND($A72=0,Berechnung!$B$11=0),1,IF(Berechnung!$B$11<>0,_xlfn.NORM.DIST($A72,0,Berechnung!$B$11,FALSE),0)) -> 0 | S72: =IF(AND($A72>=0,Berechnung!$B$11=0),1,IF(Berechnung!$B$11<>0,_xlfn.NORM.DIST($A72,0,Berechnung!$B$11,TRUE),0)) -> 1 | T72: =Demonstrator!$J$19*'Daten Diagramm'!H72+Demonstrator!$J$24*'Daten Diagramm'!L72 -> 1.954911475e-05 | U72: =Demonstrator!$J$19*'Daten Diagramm'!I72+Demonstrator!$J$24*'Daten Diagramm'!M72 -> 0.9999211275
A73: 50 | B73: =IF(AND(A73=0,Berechnung!$B$3=0),1,IF(Berechnung!$B$3<>0,_xlfn.NORM.DIST(A73,0,Berechnung!$B$3,FALSE),0)) -> 8.802219987e-09 | C73: =IF(AND($A73>=0,Berechnung!$B$3=0),1,IF(Berechnung!$B$3<>0,_xlfn.NORM.DIST($A73,0,Berechnung!$B$3,TRUE),0)) -> 0.9999999862 | D73: =IF(AND($A73=0,Berechnung!$B$4=0),1,IF(Berechnung!$B$4<>0,_xlfn.NORM.DIST($A73,0,Berechnung!$B$4,FALSE),0)) -> 8.802219987e-09 | E73: =IF(AND($A73>=0,Berechnung!$B$4=0),1,IF(Berechnung!$B$4<>0,_xlfn.NORM.DIST($A73,0,Berechnung!$B$4,TRUE),0)) -> 0.9999999862 | F73: =IF(AND($A73=0,Berechnung!$B$5=0),1,IF(Berechnung!$B$5<>0,_xlfn.NORM.DIST($A73,0,Berechnung!$B$5,FALSE),0)) -> 7.727583867e-05 | G73: =IF(AND($A73>=0,Berechnung!$B$5=0),1,IF(Berechnung!$B$5<>0,_xlfn.NORM.DIST($A73,0,Berechnung!$B$5,TRUE),0)) -> 0.9996936661 | H73: =IF(AND($A73=0,Berechnung!$B$6=0),1,IF(Berechnung!$B$6<>0,_xlfn.NORM.DIST($A73,0,Berechnung!$B$6,FALSE),0)) -> 7.743175002e-05 | I73: =IF(AND($A73>=0,Berechnung!$B$6=0),1,IF(Berechnung!$B$6<>0,_xlfn.NORM.DIST($A73,0,Berechnung!$B$6,TRUE),0)) -> 0.99969294 | J73: =IF(AND($A73=0,Berechnung!$B$7=0),1,IF(Berechnung!$B$7<>0,_xlfn.NORM.DIST($A73,0,Berechnung!$B$7,FALSE),0)) -> 8.802219987e-09 | K73: =IF(AND($A73>=0,Berechnung!$B$7=0),1,IF(Berechnung!$B$7<>0,_xlfn.NORM.DIST($A73,0,Berechnung!$B$7,TRUE),0)) -> 0.9999999862 | L73: =IF(AND($A73=0,Berechnung!$B$8=0),1,IF(Berechnung!$B$8<>0,_xlfn.NORM.DIST($A73,0,Berechnung!$B$8,FALSE),0)) -> 8.802219987e-09 | M73: =IF(AND($A73>=0,Berechnung!$B$8=0),1,IF(Berechnung!$B$8<>0,_xlfn.NORM.DIST($A73,0,Berechnung!$B$8,TRUE),0)) -> 0.9999999862 | N73: =IF(AND($A73=0,Berechnung!$B$9=0),1,IF(Berechnung!$B$9<>0,_xlfn.NORM.DIST($A73,0,Berechnung!$B$9,FALSE),0)) -> 3.400091931e-07 | O73: =IF(AND($A73>=0,Berechnung!$B$9=0),1,IF(Berechnung!$B$9<>0,_xlfn.NORM.DIST($A73,0,Berechnung!$B$9,TRUE),0)) -> 0.9999992976 | P73: =IF(AND($A73=0,Berechnung!$B$10=0),1,IF(Berechnung!$B$10<>0,_xlfn.NORM.DIST($A73,0,Berechnung!$B$10,FALSE),0)) -> 2.57437994e-06 | Q73: =IF(AND($A73>=0,Berechnung!$B$10=0),1,IF(Berechnung!$B$10<>0,_xlfn.NORM.DIST($A73,0,Berechnung!$B$10,TRUE),0)) -> 0.9999935443 | R73: =IF(AND($A73=0,Berechnung!$B$11=0),1,IF(Berechnung!$B$11<>0,_xlfn.NORM.DIST($A73,0,Berechnung!$B$11,FALSE),0)) -> 0 | S73: =IF(AND($A73>=0,Berechnung!$B$11=0),1,IF(Berechnung!$B$11<>0,_xlfn.NORM.DIST($A73,0,Berechnung!$B$11,TRUE),0)) -> 1 | T73: =Demonstrator!$J$19*'Daten Diagramm'!H73+Demonstrator!$J$24*'Daten Diagramm'!L73 -> 1.549339178e-05 | U73: =Demonstrator!$J$19*'Daten Diagramm'!I73+Demonstrator!$J$24*'Daten Diagramm'!M73 -> 0.9999385769
A74: 51 | B74: =IF(AND(A74=0,Berechnung!$B$3=0),1,IF(Berechnung!$B$3<>0,_xlfn.NORM.DIST(A74,0,Berechnung!$B$3,FALSE),0)) -> 4.718765274e-09 | C74: =IF(AND($A74>=0,Berechnung!$B$3=0),1,IF(Berechnung!$B$3<>0,_xlfn.NORM.DIST($A74,0,Berechnung!$B$3,TRUE),0)) -> 0.9999999927 | D74: =IF(AND($A74=0,Berechnung!$B$4=0),1,IF(Berechnung!$B$4<>0,_xlfn.NORM.DIST($A74,0,Berechnung!$B$4,FALSE),0)) -> 4.718765274e-09 | E74: =IF(AND($A74>=0,Berechnung!$B$4=0),1,IF(Berechnung!$B$4<>0,_xlfn.NORM.DIST($A74,0,Berechnung!$B$4,TRUE),0)) -> 0.9999999927 | F74: =IF(AND($A74=0,Berechnung!$B$5=0),1,IF(Berechnung!$B$5<>0,_xlfn.NORM.DIST($A74,0,Berechnung!$B$5,FALSE),0)) -> 6.096452509e-05 | G74: =IF(AND($A74>=0,Berechnung!$B$5=0),1,IF(Berechnung!$B$5<>0,_xlfn.NORM.DIST($A74,0,Berechnung!$B$5,TRUE),0)) -> 0.9997624913 | H74: =IF(AND($A74=0,Berechnung!$B$6=0),1,IF(Berechnung!$B$6<>0,_xlfn.NORM.DIST($A74,0,Berechnung!$B$6,FALSE),0)) -> 6.109296471e-05 | I74: =IF(AND($A74>=0,Berechnung!$B$6=0),1,IF(Berechnung!$B$6<>0,_xlfn.NORM.DIST($A74,0,Berechnung!$B$6,TRUE),0)) -> 0.9997619069 | J74: =IF(AND($A74=0,Berechnung!$B$7=0),1,IF(Berechnung!$B$7<>0,_xlfn.NORM.DIST($A74,0,Berechnung!$B$7,FALSE),0)) -> 4.718765274e-09 | K74: =IF(AND($A74>=0,Berechnung!$B$7=0),1,IF(Berechnung!$B$7<>0,_xlfn.NORM.DIST($A74,0,Berechnung!$B$7,TRUE),0)) -> 0.9999999927 | L74: =IF(AND($A74=0,Berechnung!$B$8=0),1,IF(Berechnung!$B$8<>0,_xlfn.NORM.DIST($A74,0,Berechnung!$B$8,FALSE),0)) -> 4.718765274e-09 | M74: =IF(AND($A74>=0,Berechnung!$B$8=0),1,IF(Berechnung!$B$8<>0,_xlfn.NORM.DIST($A74,0,Berechnung!$B$8,TRUE),0)) -> 0.9999999927 | N74: =IF(AND($A74=0,Berechnung!$B$9=0),1,IF(Berechnung!$B$9<>0,_xlfn.NORM.DIST($A74,0,Berechnung!$B$9,FALSE),0)) -> 2.124778724e-07 | O74: =IF(AND($A74>=0,Berechnung!$B$9=0),1,IF(Berechnung!$B$9<>0,_xlfn.NORM.DIST($A74,0,Berechnung!$B$9,TRUE),0)) -> 0.999999569 | P74: =IF(AND($A74=0,Berechnung!$B$10=0),1,IF(Berechnung!$B$10<>0,_xlfn.NORM.DIST($A74,0,Berechnung!$B$10,FALSE),0)) -> 1.753007383e-06 | Q74: =IF(AND($A74>=0,Berechnung!$B$10=0),1,IF(Berechnung!$B$10<>0,_xlfn.NORM.DIST($A74,0,Berechnung!$B$10,TRUE),0)) -> 0.9999956831 | R74: =IF(AND($A74=0,Berechnung!$B$11=0),1,IF(Berechnung!$B$11<>0,_xlfn.NORM.DIST($A74,0,Berechnung!$B$11,FALSE),0)) -> 0 | S74: =IF(AND($A74>=0,Berechnung!$B$11=0),1,IF(Berechnung!$B$11<>0,_xlfn.NORM.DIST($A74,0,Berechnung!$B$11,TRUE),0)) -> 1 | T74: =Demonstrator!$J$19*'Daten Diagramm'!H74+Demonstrator!$J$24*'Daten Diagramm'!L74 -> 1.222236795e-05 | U74: =Demonstrator!$J$19*'Daten Diagramm'!I74+Demonstrator!$J$24*'Daten Diagramm'!M74 -> 0.9999523755
A75: 52 | B75: =IF(AND(A75=0,Berechnung!$B$3=0),1,IF(Berechnung!$B$3<>0,_xlfn.NORM.DIST(A75,0,Berechnung!$B$3,FALSE),0)) -> 2.498635297e-09 | C75: =IF(AND($A75>=0,Berechnung!$B$3=0),1,IF(Berechnung!$B$3<>0,_xlfn.NORM.DIST($A75,0,Berechnung!$B$3,TRUE),0)) -> 0.9999999962 | D75: =IF(AND($A75=0,Berechnung!$B$4=0),1,IF(Berechnung!$B$4<>0,_xlfn.NORM.DIST($A75,0,Berechnung!$B$4,FALSE),0)) -> 2.498635297e-09 | E75: =IF(AND($A75>=0,Berechnung!$B$4=0),1,IF(Berechnung!$B$4<>0,_xlfn.NORM.DIST($A75,0,Berechnung!$B$4,TRUE),0)) -> 0.9999999962 | F75: =IF(AND($A75=0,Berechnung!$B$5=0),1,IF(Berechnung!$B$5<>0,_xlfn.NORM.DIST($A75,0,Berechnung!$B$5,FALSE),0)) -> 4.787091424e-05 | G75: =IF(AND($A75>=0,Berechnung!$B$5=0),1,IF(Berechnung!$B$5<>0,_xlfn.NORM.DIST($A75,0,Berechnung!$B$5,TRUE),0)) -> 0.9998166666 | H75: =IF(AND($A75=0,Berechnung!$B$6=0),1,IF(Berechnung!$B$6<>0,_xlfn.NORM.DIST($A75,0,Berechnung!$B$6,FALSE),0)) -> 4.797612326e-05 | I75: =IF(AND($A75>=0,Berechnung!$B$6=0),1,IF(Berechnung!$B$6<>0,_xlfn.NORM.DIST($A75,0,Berechnung!$B$6,TRUE),0)) -> 0.9998161987 | J75: =IF(AND($A75=0,Berechnung!$B$7=0),1,IF(Berechnung!$B$7<>0,_xlfn.NORM.DIST($A75,0,Berechnung!$B$7,FALSE),0)) -> 2.498635297e-09 | K75: =IF(AND($A75>=0,Berechnung!$B$7=0),1,IF(Berechnung!$B$7<>0,_xlfn.NORM.DIST($A75,0,Berechnung!$B$7,TRUE),0)) -> 0.9999999962 | L75: =IF(AND($A75=0,Berechnung!$B$8=0),1,IF(Berechnung!$B$8<>0,_xlfn.NORM.DIST($A75,0,Berechnung!$B$8,FALSE),0)) -> 2.498635297e-09 | M75: =IF(AND($A75>=0,Berechnung!$B$8=0),1,IF(Berechnung!$B$8<>0,_xlfn.NORM.DIST($A75,0,Berechnung!$B$8,TRUE),0)) -> 0.9999999962 | N75: =IF(AND($A75=0,Berechnung!$B$9=0),1,IF(Berechnung!$B$9<>0,_xlfn.NORM.DIST($A75,0,Berechnung!$B$9,FALSE),0)) -> 1.315508475e-07 | O75: =IF(AND($A75>=0,Berechnung!$B$9=0),1,IF(Berechnung!$B$9<>0,_xlfn.NORM.DIST($A75,0,Berechnung!$B$9,TRUE),0)) -> 0.999999738 | P75: =IF(AND($A75=0,Berechnung!$B$10=0),1,IF(Berechnung!$B$10<>0,_xlfn.NORM.DIST($A75,0,Berechnung!$B$10,FALSE),0)) -> 1.18465016e-06 | Q75: =IF(AND($A75>=0,Berechnung!$B$10=0),1,IF(Berechnung!$B$10<>0,_xlfn.NORM.DIST($A75,0,Berechnung!$B$10,TRUE),0)) -> 0.9999971343 | R75: =IF(AND($A75=0,Berechnung!$B$11=0),1,IF(Berechnung!$B$11<>0,_xlfn.NORM.DIST($A75,0,Berechnung!$B$11,FALSE),0)) -> 0 | S75: =IF(AND($A75>=0,Berechnung!$B$11=0),1,IF(Berechnung!$B$11<>0,_xlfn.NORM.DIST($A75,0,Berechnung!$B$11,TRUE),0)) -> 1 | T75: =Demonstrator!$J$19*'Daten Diagramm'!H75+Demonstrator!$J$24*'Daten Diagramm'!L75 -> 9.59722356e-06 | U75: =Demonstrator!$J$19*'Daten Diagramm'!I75+Demonstrator!$J$24*'Daten Diagramm'!M75 -> 0.9999632367
A76: 53 | B76: =IF(AND(A76=0,Berechnung!$B$3=0),1,IF(Berechnung!$B$3<>0,_xlfn.NORM.DIST(A76,0,Berechnung!$B$3,FALSE),0)) -> 1.306819802e-09 | C76: =IF(AND($A76>=0,Berechnung!$B$3=0),1,IF(Berechnung!$B$3<>0,_xlfn.NORM.DIST($A76,0,Berechnung!$B$3,TRUE),0)) -> 0.9999999981 | D76: =IF(AND($A76=0,Berechnung!$B$4=0),1,IF(Berechnung!$B$4<>0,_xlfn.NORM.DIST($A76,0,Berechnung!$B$4,FALSE),0)) -> 1.306819802e-09 | E76: =IF(AND($A76>=0,Berechnung!$B$4=0),1,IF(Berechnung!$B$4<>0,_xlfn.NORM.DIST($A76,0,Berechnung!$B$4,TRUE),0)) -> 0.9999999981 | F76: =IF(AND($A76=0,Berechnung!$B$5=0),1,IF(Berechnung!$B$5<>0,_xlfn.NORM.DIST($A76,0,Berechnung!$B$5,FALSE),0)) -> 3.74134112e-05 | G76: =IF(AND($A76>=0,Berechnung!$B$5=0),1,IF(Berechnung!$B$5<>0,_xlfn.NORM.DIST($A76,0,Berechnung!$B$5,TRUE),0)) -> 0.9998591108 | H76: =IF(AND($A76=0,Berechnung!$B$6=0),1,IF(Berechnung!$B$6<>0,_xlfn.NORM.DIST($A76,0,Berechnung!$B$6,FALSE),0)) -> 3.749910707e-05 | I76: =IF(AND($A76>=0,Berechnung!$B$6=0),1,IF(Berechnung!$B$6<>0,_xlfn.NORM.DIST($A76,0,Berechnung!$B$6,TRUE),0)) -> 0.999858738 | J76: =IF(AND($A76=0,Berechnung!$B$7=0),1,IF(Berechnung!$B$7<>0,_xlfn.NORM.DIST($A76,0,Berechnung!$B$7,FALSE),0)) -> 1.306819802e-09 | K76: =IF(AND($A76>=0,Berechnung!$B$7=0),1,IF(Berechnung!$B$7<>0,_xlfn.NORM.DIST($A76,0,Berechnung!$B$7,TRUE),0)) -> 0.9999999981 | L76: =IF(AND($A76=0,Berechnung!$B$8=0),1,IF(Berechnung!$B$8<>0,_xlfn.NORM.DIST($A76,0,Berechnung!$B$8,FALSE),0)) -> 1.306819802e-09 | M76: =IF(AND($A76>=0,Berechnung!$B$8=0),1,IF(Berechnung!$B$8<>0,_xlfn.NORM.DIST($A76,0,Berechnung!$B$8,TRUE),0)) -> 0.9999999981 | N76: =IF(AND($A76=0,Berechnung!$B$9=0),1,IF(Berechnung!$B$9<>0,_xlfn.NORM.DIST($A76,0,Berechnung!$B$9,FALSE),0)) -> 8.069200072e-08 | O76: =IF(AND($A76>=0,Berechnung!$B$9=0),1,IF(Berechnung!$B$9<>0,_xlfn.NORM.DIST($A76,0,Berechnung!$B$9,TRUE),0)) -> 0.9999998421 | P76: =IF(AND($A76=0,Berechnung!$B$10=0),1,IF(Berechnung!$B$10<>0,_xlfn.NORM.DIST($A76,0,Berechnung!$B$10,FALSE),0)) -> 7.944960797e-07 | Q76: =IF(AND($A76>=0,Berechnung!$B$10=0),1,IF(Berechnung!$B$10<>0,_xlfn.NORM.DIST($A76,0,Berechnung!$B$10,TRUE),0)) -> 0.9999981116 | R76: =IF(AND($A76=0,Berechnung!$B$11=0),1,IF(Berechnung!$B$11<>0,_xlfn.NORM.DIST($A76,0,Berechnung!$B$11,FALSE),0)) -> 0 | S76: =IF(AND($A76>=0,Berechnung!$B$11=0),1,IF(Berechnung!$B$11<>0,_xlfn.NORM.DIST($A76,0,Berechnung!$B$11,TRUE),0)) -> 1 | T76: =Demonstrator!$J$19*'Daten Diagramm'!H76+Demonstrator!$J$24*'Daten Diagramm'!L76 -> 7.50086687e-06 | U76: =Demonstrator!$J$19*'Daten Diagramm'!I76+Demonstrator!$J$24*'Daten Diagramm'!M76 -> 0.999971746
A77: 54 | B77: =IF(AND(A77=0,Berechnung!$B$3=0),1,IF(Berechnung!$B$3<>0,_xlfn.NORM.DIST(A77,0,Berechnung!$B$3,FALSE),0)) -> 6.750980944e-10 | C77: =IF(AND($A77>=0,Berechnung!$B$3=0),1,IF(Berechnung!$B$3<>0,_xlfn.NORM.DIST($A77,0,Berechnung!$B$3,TRUE),0)) -> 0.999999999 | D77: =IF(AND($A77=0,Berechnung!$B$4=0),1,IF(Berechnung!$B$4<>0,_xlfn.NORM.DIST($A77,0,Berechnung!$B$4,FALSE),0)) -> 6.750980944e-10 | E77: =IF(AND($A77>=0,Berechnung!$B$4=0),1,IF(Berechnung!$B$4<>0,_xlfn.NORM.DIST($A77,0,Berechnung!$B$4,TRUE),0)) -> 0.999999999 | F77: =IF(AND($A77=0,Berechnung!$B$5=0),1,IF(Berechnung!$B$5<>0,_xlfn.NORM.DIST($A77,0,Berechnung!$B$5,FALSE),0)) -> 2.910341495e-05 | G77: =IF(AND($A77>=0,Berechnung!$B$5=0),1,IF(Berechnung!$B$5<>0,_xlfn.NORM.DIST($A77,0,Berechnung!$B$5,TRUE),0)) -> 0.9998922084 | H77: =IF(AND($A77=0,Berechnung!$B$6=0),1,IF(Berechnung!$B$6<>0,_xlfn.NORM.DIST($A77,0,Berechnung!$B$6,FALSE),0)) -> 2.91728276e-05 | I77: =IF(AND($A77>=0,Berechnung!$B$6=0),1,IF(Berechnung!$B$6<>0,_xlfn.NORM.DIST($A77,0,Berechnung!$B$6,TRUE),0)) -> 0.9998919129 | J77: =IF(AND($A77=0,Berechnung!$B$7=0),1,IF(Berechnung!$B$7<>0,_xlfn.NORM.DIST($A77,0,Berechnung!$B$7,FALSE),0)) -> 6.750980944e-10 | K77: =IF(AND($A77>=0,Berechnung!$B$7=0),1,IF(Berechnung!$B$7<>0,_xlfn.NORM.DIST($A77,0,Berechnung!$B$7,TRUE),0)) -> 0.999999999 | L77: =IF(AND($A77=0,Berechnung!$B$8=0),1,IF(Berechnung!$B$8<>0,_xlfn.NORM.DIST($A77,0,Berechnung!$B$8,FALSE),0)) -> 6.750980944e-10 | M77: =IF(AND($A77>=0,Berechnung!$B$8=0),1,IF(Berechnung!$B$8<>0,_xlfn.NORM.DIST($A77,0,Berechnung!$B$8,TRUE),0)) -> 0.999999999 | N77: =IF(AND($A77=0,Berechnung!$B$9=0),1,IF(Berechnung!$B$9<>0,_xlfn.NORM.DIST($A77,0,Berechnung!$B$9,FALSE),0)) -> 4.903703571e-08 | O77: =IF(AND($A77>=0,Berechnung!$B$9=0),1,IF(Berechnung!$B$9<>0,_xlfn.NORM.DIST($A77,0,Berechnung!$B$9,TRUE),0)) -> 0.9999999057 | P77: =IF(AND($A77=0,Berechnung!$B$10=0),1,IF(Berechnung!$B$10<>0,_xlfn.NORM.DIST($A77,0,Berechnung!$B$10,FALSE),0)) -> 5.287966185e-07 | Q77: =IF(AND($A77>=0,Berechnung!$B$10=0),1,IF(Berechnung!$B$10<>0,_xlfn.NORM.DIST($A77,0,Berechnung!$B$10,TRUE),0)) -> 0.9999987646 | R77: =IF(AND($A77=0,Berechnung!$B$11=0),1,IF(Berechnung!$B$11<>0,_xlfn.NORM.DIST($A77,0,Berechnung!$B$11,FALSE),0)) -> 0 | S77: =IF(AND($A77>=0,Berechnung!$B$11=0),1,IF(Berechnung!$B$11<>0,_xlfn.NORM.DIST($A77,0,Berechnung!$B$11,TRUE),0)) -> 1 | T77: =Demonstrator!$J$19*'Daten Diagramm'!H77+Demonstrator!$J$24*'Daten Diagramm'!L77 -> 5.835105599e-06 | U77: =Demonstrator!$J$19*'Daten Diagramm'!I77+Demonstrator!$J$24*'Daten Diagramm'!M77 -> 0.9999783818
A78: 55 | B78: =IF(AND(A78=0,Berechnung!$B$3=0),1,IF(Berechnung!$B$3<>0,_xlfn.NORM.DIST(A78,0,Berechnung!$B$3,FALSE),0)) -> 3.444739598e-10 | C78: =IF(AND($A78>=0,Berechnung!$B$3=0),1,IF(Berechnung!$B$3<>0,_xlfn.NORM.DIST($A78,0,Berechnung!$B$3,TRUE),0)) -> 0.9999999995 | D78: =IF(AND($A78=0,Berechnung!$B$4=0),1,IF(Berechnung!$B$4<>0,_xlfn.NORM.DIST($A78,0,Berechnung!$B$4,FALSE),0)) -> 3.444739598e-10 | E78: =IF(AND($A78>=0,Berechnung!$B$4=0),1,IF(Berechnung!$B$4<>0,_xlfn.NORM.DIST($A78,0,Berechnung!$B$4,TRUE),0)) -> 0.9999999995 | F78: =IF(AND($A78=0,Berechnung!$B$5=0),1,IF(Berechnung!$B$5<>0,_xlfn.NORM.DIST($A78,0,Berechnung!$B$5,FALSE),0)) -> 2.253313685e-05 | G78: =IF(AND($A78>=0,Berechnung!$B$5=0),1,IF(Berechnung!$B$5<>0,_xlfn.NORM.DIST($A78,0,Berechnung!$B$5,TRUE),0)) -> 0.9999178967 | H78: =IF(AND($A78=0,Berechnung!$B$6=0),1,IF(Berechnung!$B$6<>0,_xlfn.NORM.DIST($A78,0,Berechnung!$B$6,FALSE),0)) -> 2.258904907e-05 | I78: =IF(AND($A78>=0,Berechnung!$B$6=0),1,IF(Berechnung!$B$6<>0,_xlfn.NORM.DIST($A78,0,Berechnung!$B$6,TRUE),0)) -> 0.9999176637 | J78: =IF(AND($A78=0,Berechnung!$B$7=0),1,IF(Berechnung!$B$7<>0,_xlfn.NORM.DIST($A78,0,Berechnung!$B$7,FALSE),0)) -> 3.444739598e-10 | K78: =IF(AND($A78>=0,Berechnung!$B$7=0),1,IF(Berechnung!$B$7<>0,_xlfn.NORM.DIST($A78,0,Berechnung!$B$7,TRUE),0)) -> 0.9999999995 | L78: =IF(AND($A78=0,Berechnung!$B$8=0),1,IF(Berechnung!$B$8<>0,_xlfn.NORM.DIST($A78,0,Berechnung!$B$8,FALSE),0)) -> 3.444739598e-10 | M78: =IF(AND($A78>=0,Berechnung!$B$8=0),1,IF(Berechnung!$B$8<>0,_xlfn.NORM.DIST($A78,0,Berechnung!$B$8,TRUE),0)) -> 0.9999999995 | N78: =IF(AND($A78=0,Berechnung!$B$9=0),1,IF(Berechnung!$B$9<>0,_xlfn.NORM.DIST($A78,0,Berechnung!$B$9,FALSE),0)) -> 2.952397486e-08 | O78: =IF(AND($A78>=0,Berechnung!$B$9=0),1,IF(Berechnung!$B$9<>0,_xlfn.NORM.DIST($A78,0,Berechnung!$B$9,TRUE),0)) -> 0.9999999442 | P78: =IF(AND($A78=0,Berechnung!$B$10=0),1,IF(Berechnung!$B$10<>0,_xlfn.NORM.DIST($A78,0,Berechnung!$B$10,FALSE),0)) -> 3.492857352e-07 | Q78: =IF(AND($A78>=0,Berechnung!$B$10=0),1,IF(Berechnung!$B$10<>0,_xlfn.NORM.DIST($A78,0,Berechnung!$B$10,TRUE),0)) -> 0.9999991978 | R78: =IF(AND($A78=0,Berechnung!$B$11=0),1,IF(Berechnung!$B$11<>0,_xlfn.NORM.DIST($A78,0,Berechnung!$B$11,FALSE),0)) -> 0 | S78: =IF(AND($A78>=0,Berechnung!$B$11=0),1,IF(Berechnung!$B$11<>0,_xlfn.NORM.DIST($A78,0,Berechnung!$B$11,TRUE),0)) -> 1 | T78: =Demonstrator!$J$19*'Daten Diagramm'!H78+Demonstrator!$J$24*'Daten Diagramm'!L78 -> 4.518085394e-06 | U78: =Demonstrator!$J$19*'Daten Diagramm'!I78+Demonstrator!$J$24*'Daten Diagramm'!M78 -> 0.9999835324
A79: 56 | B79: =IF(AND(A79=0,Berechnung!$B$3=0),1,IF(Berechnung!$B$3<>0,_xlfn.NORM.DIST(A79,0,Berechnung!$B$3,FALSE),0)) -> 1.736138038e-10 | C79: =IF(AND($A79>=0,Berechnung!$B$3=0),1,IF(Berechnung!$B$3<>0,_xlfn.NORM.DIST($A79,0,Berechnung!$B$3,TRUE),0)) -> 0.9999999998 | D79: =IF(AND($A79=0,Berechnung!$B$4=0),1,IF(Berechnung!$B$4<>0,_xlfn.NORM.DIST($A79,0,Berechnung!$B$4,FALSE),0)) -> 1.736138038e-10 | E79: =IF(AND($A79>=0,Berechnung!$B$4=0),1,IF(Berechnung!$B$4<>0,_xlfn.NORM.DIST($A79,0,Berechnung!$B$4,TRUE),0)) -> 0.9999999998 | F79: =IF(AND($A79=0,Berechnung!$B$5=0),1,IF(Berechnung!$B$5<>0,_xlfn.NORM.DIST($A79,0,Berechnung!$B$5,FALSE),0)) -> 1.736442537e-05 | G79: =IF(AND($A79>=0,Berechnung!$B$5=0),1,IF(Berechnung!$B$5<>0,_xlfn.NORM.DIST($A79,0,Berechnung!$B$5,TRUE),0)) -> 0.9999377412 | H79: =IF(AND($A79=0,Berechnung!$B$6=0),1,IF(Berechnung!$B$6<>0,_xlfn.NORM.DIST($A79,0,Berechnung!$B$6,FALSE),0)) -> 1.740921531e-05 | I79: =IF(AND($A79>=0,Berechnung!$B$6=0),1,IF(Berechnung!$B$6<>0,_xlfn.NORM.DIST($A79,0,Berechnung!$B$6,TRUE),0)) -> 0.9999375583 | J79: =IF(AND($A79=0,Berechnung!$B$7=0),1,IF(Berechnung!$B$7<>0,_xlfn.NORM.DIST($A79,0,Berechnung!$B$7,FALSE),0)) -> 1.736138038e-10 | K79: =IF(AND($A79>=0,Berechnung!$B$7=0),1,IF(Berechnung!$B$7<>0,_xlfn.NORM.DIST($A79,0,Berechnung!$B$7,TRUE),0)) -> 0.9999999998 | L79: =IF(AND($A79=0,Berechnung!$B$8=0),1,IF(Berechnung!$B$8<>0,_xlfn.NORM.DIST($A79,0,Berechnung!$B$8,FALSE),0)) -> 1.736138038e-10 | M79: =IF(AND($A79>=0,Berechnung!$B$8=0),1,IF(Berechnung!$B$8<>0,_xlfn.NORM.DIST($A79,0,Berechnung!$B$8,TRUE),0)) -> 0.9999999998 | N79: =IF(AND($A79=0,Berechnung!$B$9=0),1,IF(Berechnung!$B$9<>0,_xlfn.NORM.DIST($A79,0,Berechnung!$B$9,FALSE),0)) -> 1.761093185e-08 | O79: =IF(AND($A79>=0,Berechnung!$B$9=0),1,IF(Berechnung!$B$9<>0,_xlfn.NORM.DIST($A79,0,Berechnung!$B$9,TRUE),0)) -> 0.9999999673 | P79: =IF(AND($A79=0,Berechnung!$B$10=0),1,IF(Berechnung!$B$10<>0,_xlfn.NORM.DIST($A79,0,Berechnung!$B$10,FALSE),0)) -> 2.289645774e-07 | Q79: =IF(AND($A79>=0,Berechnung!$B$10=0),1,IF(Berechnung!$B$10<>0,_xlfn.NORM.DIST($A79,0,Berechnung!$B$10,TRUE),0)) -> 0.9999994828 | R79: =IF(AND($A79=0,Berechnung!$B$11=0),1,IF(Berechnung!$B$11<>0,_xlfn.NORM.DIST($A79,0,Berechnung!$B$11,FALSE),0)) -> 0 | S79: =IF(AND($A79>=0,Berechnung!$B$11=0),1,IF(Berechnung!$B$11<>0,_xlfn.NORM.DIST($A79,0,Berechnung!$B$11,TRUE),0)) -> 1 | T79: =Demonstrator!$J$19*'Daten Diagramm'!H79+Demonstrator!$J$24*'Daten Diagramm'!L79 -> 3.481981954e-06 | U79: =Demonstrator!$J$19*'Daten Diagramm'!I79+Demonstrator!$J$24*'Daten Diagramm'!M79 -> 0.9999875115
A80: 57 | B80: =IF(AND(A80=0,Berechnung!$B$3=0),1,IF(Berechnung!$B$3<>0,_xlfn.NORM.DIST(A80,0,Berechnung!$B$3,FALSE),0)) -> 8.642720076e-11 | C80: =IF(AND($A80>=0,Berechnung!$B$3=0),1,IF(Berechnung!$B$3<>0,_xlfn.NORM.DIST($A80,0,Berechnung!$B$3,TRUE),0)) -> 0.9999999999 | D80: =IF(AND($A80=0,Berechnung!$B$4=0),1,IF(Berechnung!$B$4<>0,_xlfn.NORM.DIST($A80,0,Berechnung!$B$4,FALSE),0)) -> 8.642720076e-11 | E80: =IF(AND($A80>=0,Berechnung!$B$4=0),1,IF(Berechnung!$B$4<>0,_xlfn.NORM.DIST($A80,0,Berechnung!$B$4,TRUE),0)) -> 0.9999999999 | F80: =IF(AND($A80=0,Berechnung!$B$5=0),1,IF(Berechnung!$B$5<>0,_xlfn.NORM.DIST($A80,0,Berechnung!$B$5,FALSE),0)) -> 1.331865093e-05 | G80: =IF(AND($A80>=0,Berechnung!$B$5=0),1,IF(Berechnung!$B$5<>0,_xlfn.NORM.DIST($A80,0,Berechnung!$B$5,TRUE),0)) -> 0.9999529993 | H80: =IF(AND($A80=0,Berechnung!$B$6=0),1,IF(Berechnung!$B$6<>0,_xlfn.NORM.DIST($A80,0,Berechnung!$B$6,FALSE),0)) -> 1.335433506e-05 | I80: =IF(AND($A80>=0,Berechnung!$B$6=0),1,IF(Berechnung!$B$6<>0,_xlfn.NORM.DIST($A80,0,Berechnung!$B$6,TRUE),0)) -> 0.9999528566 | J80: =IF(AND($A80=0,Berechnung!$B$7=0),1,IF(Berechnung!$B$7<>0,_xlfn.NORM.DIST($A80,0,Berechnung!$B$7,FALSE),0)) -> 8.642720076e-11 | K80: =IF(AND($A80>=0,Berechnung!$B$7=0),1,IF(Berechnung!$B$7<>0,_xlfn.NORM.DIST($A80,0,Berechnung!$B$7,TRUE),0)) -> 0.9999999999 | L80: =IF(AND($A80=0,Berechnung!$B$8=0),1,IF(Berechnung!$B$8<>0,_xlfn.NORM.DIST($A80,0,Berechnung!$B$8,FALSE),0)) -> 8.642720076e-11 | M80: =IF(AND($A80>=0,Berechnung!$B$8=0),1,IF(Berechnung!$B$8<>0,_xlfn.NORM.DIST($A80,0,Berechnung!$B$8,TRUE),0)) -> 0.9999999999 | N80: =IF(AND($A80=0,Berechnung!$B$9=0),1,IF(Berechnung!$B$9<>0,_xlfn.NORM.DIST($A80,0,Berechnung!$B$9,FALSE),0)) -> 1.040750763e-08 | O80: =IF(AND($A80>=0,Berechnung!$B$9=0),1,IF(Berechnung!$B$9<>0,_xlfn.NORM.DIST($A80,0,Berechnung!$B$9,TRUE),0)) -> 0.999999981 | P80: =IF(AND($A80=0,Berechnung!$B$10=0),1,IF(Berechnung!$B$10<>0,_xlfn.NORM.DIST($A80,0,Berechnung!$B$10,FALSE),0)) -> 1.489536047e-07 | Q80: =IF(AND($A80>=0,Berechnung!$B$10=0),1,IF(Berechnung!$B$10<>0,_xlfn.NORM.DIST($A80,0,Berechnung!$B$10,TRUE),0)) -> 0.9999996691 | R80: =IF(AND($A80=0,Berechnung!$B$11=0),1,IF(Berechnung!$B$11<>0,_xlfn.NORM.DIST($A80,0,Berechnung!$B$11,FALSE),0)) -> 0 | S80: =IF(AND($A80>=0,Berechnung!$B$11=0),1,IF(Berechnung!$B$11<>0,_xlfn.NORM.DIST($A80,0,Berechnung!$B$11,TRUE),0)) -> 1 | T80: =Demonstrator!$J$19*'Daten Diagramm'!H80+Demonstrator!$J$24*'Daten Diagramm'!L80 -> 2.670936154e-06 | U80: =Demonstrator!$J$19*'Daten Diagramm'!I80+Demonstrator!$J$24*'Daten Diagramm'!M80 -> 0.9999905712
A81: 58 | B81: =IF(AND(A81=0,Berechnung!$B$3=0),1,IF(Berechnung!$B$3<>0,_xlfn.NORM.DIST(A81,0,Berechnung!$B$3,FALSE),0)) -> 4.249667793e-11 | C81: =IF(AND($A81>=0,Berechnung!$B$3=0),1,IF(Berechnung!$B$3<>0,_xlfn.NORM.DIST($A81,0,Berechnung!$B$3,TRUE),0)) -> 0.9999999999 | D81: =IF(AND($A81=0,Berechnung!$B$4=0),1,IF(Berechnung!$B$4<>0,_xlfn.NORM.DIST($A81,0,Berechnung!$B$4,FALSE),0)) -> 4.249667793e-11 | E81: =IF(AND($A81>=0,Berechnung!$B$4=0),1,IF(Berechnung!$B$4<>0,_xlfn.NORM.DIST($A81,0,Berechnung!$B$4,TRUE),0)) -> 0.9999999999 | F81: =IF(AND($A81=0,Berechnung!$B$5=0),1,IF(Berechnung!$B$5<>0,_xlfn.NORM.DIST($A81,0,Berechnung!$B$5,FALSE),0)) -> 1.016766236e-05 | G81: =IF(AND($A81>=0,Berechnung!$B$5=0),1,IF(Berechnung!$B$5<>0,_xlfn.NORM.DIST($A81,0,Berechnung!$B$5,TRUE),0)) -> 0.9999646762 | H81: =IF(AND($A81=0,Berechnung!$B$6=0),1,IF(Berechnung!$B$6<>0,_xlfn.NORM.DIST($A81,0,Berechnung!$B$6,FALSE),0)) -> 1.01959375e-05 | I81: =IF(AND($A81>=0,Berechnung!$B$6=0),1,IF(Berechnung!$B$6<>0,_xlfn.NORM.DIST($A81,0,Berechnung!$B$6,TRUE),0)) -> 0.9999645654 | J81: =IF(AND($A81=0,Berechnung!$B$7=0),1,IF(Berechnung!$B$7<>0,_xlfn.NORM.DIST($A81,0,Berechnung!$B$7,FALSE),0)) -> 4.249667793e-11 | K81: =IF(AND($A81>=0,Berechnung!$B$7=0),1,IF(Berechnung!$B$7<>0,_xlfn.NORM.DIST($A81,0,Berechnung!$B$7,TRUE),0)) -> 0.9999999999 | L81: =IF(AND($A81=0,Berechnung!$B$8=0),1,IF(Berechnung!$B$8<>0,_xlfn.NORM.DIST($A81,0,Berechnung!$B$8,FALSE),0)) -> 4.249667793e-11 | M81: =IF(AND($A81>=0,Berechnung!$B$8=0),1,IF(Berechnung!$B$8<>0,_xlfn.NORM.DIST($A81,0,Berechnung!$B$8,TRUE),0)) -> 0.9999999999 | N81: =IF(AND($A81=0,Berechnung!$B$9=0),1,IF(Berechnung!$B$9<>0,_xlfn.NORM.DIST($A81,0,Berechnung!$B$9,FALSE),0)) -> 6.093517067e-09 | O81: =IF(AND($A81>=0,Berechnung!$B$9=0),1,IF(Berechnung!$B$9<>0,_xlfn.NORM.DIST($A81,0,Berechnung!$B$9,TRUE),0)) -> 0.999999989 | P81: =IF(AND($A81=0,Berechnung!$B$10=0),1,IF(Berechnung!$B$10<>0,_xlfn.NORM.DIST($A81,0,Berechnung!$B$10,FALSE),0)) -> 9.616765049e-08 | Q81: =IF(AND($A81>=0,Berechnung!$B$10=0),1,IF(Berechnung!$B$10<>0,_xlfn.NORM.DIST($A81,0,Berechnung!$B$10,TRUE),0)) -> 0.9999997898 | R81: =IF(AND($A81=0,Berechnung!$B$11=0),1,IF(Berechnung!$B$11<>0,_xlfn.NORM.DIST($A81,0,Berechnung!$B$11,FALSE),0)) -> 0 | S81: =IF(AND($A81>=0,Berechnung!$B$11=0),1,IF(Berechnung!$B$11<>0,_xlfn.NORM.DIST($A81,0,Berechnung!$B$11,TRUE),0)) -> 1 | T81: =Demonstrator!$J$19*'Daten Diagramm'!H81+Demonstrator!$J$24*'Daten Diagramm'!L81 -> 2.039221498e-06 | U81: =Demonstrator!$J$19*'Daten Diagramm'!I81+Demonstrator!$J$24*'Daten Diagramm'!M81 -> 0.999992913
A82: 59 | B82: =IF(AND(A82=0,Berechnung!$B$3=0),1,IF(Berechnung!$B$3<>0,_xlfn.NORM.DIST(A82,0,Berechnung!$B$3,FALSE),0)) -> 2.063943744e-11 | C82: =IF(AND($A82>=0,Berechnung!$B$3=0),1,IF(Berechnung!$B$3<>0,_xlfn.NORM.DIST($A82,0,Berechnung!$B$3,TRUE),0)) -> 1 | D82: =IF(AND($A82=0,Berechnung!$B$4=0),1,IF(Berechnung!$B$4<>0,_xlfn.NORM.DIST($A82,0,Berechnung!$B$4,FALSE),0)) -> 2.063943744e-11 | E82: =IF(AND($A82>=0,Berechnung!$B$4=0),1,IF(Berechnung!$B$4<>0,_xlfn.NORM.DIST($A82,0,Berechnung!$B$4,TRUE),0)) -> 1 | F82: =IF(AND($A82=0,Berechnung!$B$5=0),1,IF(Berechnung!$B$5<>0,_xlfn.NORM.DIST($A82,0,Berechnung!$B$5,FALSE),0)) -> 7.725792755e-06 | G82: =IF(AND($A82>=0,Berechnung!$B$5=0),1,IF(Berechnung!$B$5<>0,_xlfn.NORM.DIST($A82,0,Berechnung!$B$5,TRUE),0)) -> 0.9999735706 | H82: =IF(AND($A82=0,Berechnung!$B$6=0),1,IF(Berechnung!$B$6<>0,_xlfn.NORM.DIST($A82,0,Berechnung!$B$6,FALSE),0)) -> 7.748076237e-06 | I82: =IF(AND($A82>=0,Berechnung!$B$6=0),1,IF(Berechnung!$B$6<>0,_xlfn.NORM.DIST($A82,0,Berechnung!$B$6,TRUE),0)) -> 0.9999734849 | J82: =IF(AND($A82=0,Berechnung!$B$7=0),1,IF(Berechnung!$B$7<>0,_xlfn.NORM.DIST($A82,0,Berechnung!$B$7,FALSE),0)) -> 2.063943744e-11 | K82: =IF(AND($A82>=0,Berechnung!$B$7=0),1,IF(Berechnung!$B$7<>0,_xlfn.NORM.DIST($A82,0,Berechnung!$B$7,TRUE),0)) -> 1 | L82: =IF(AND($A82=0,Berechnung!$B$8=0),1,IF(Berechnung!$B$8<>0,_xlfn.NORM.DIST($A82,0,Berechnung!$B$8,FALSE),0)) -> 2.063943744e-11 | M82: =IF(AND($A82>=0,Berechnung!$B$8=0),1,IF(Berechnung!$B$8<>0,_xlfn.NORM.DIST($A82,0,Berechnung!$B$8,TRUE),0)) -> 1 | N82: =IF(AND($A82=0,Berechnung!$B$9=0),1,IF(Berechnung!$B$9<>0,_xlfn.NORM.DIST($A82,0,Berechnung!$B$9,FALSE),0)) -> 3.534648382e-09 | O82: =IF(AND($A82>=0,Berechnung!$B$9=0),1,IF(Berechnung!$B$9<>0,_xlfn.NORM.DIST($A82,0,Berechnung!$B$9,TRUE),0)) -> 0.9999999937 | P82: =IF(AND($A82=0,Berechnung!$B$10=0),1,IF(Berechnung!$B$10<>0,_xlfn.NORM.DIST($A82,0,Berechnung!$B$10,FALSE),0)) -> 6.161724313e-08 | Q82: =IF(AND($A82>=0,Berechnung!$B$10=0),1,IF(Berechnung!$B$10<>0,_xlfn.NORM.DIST($A82,0,Berechnung!$B$10,TRUE),0)) -> 0.9999998674 | R82: =IF(AND($A82=0,Berechnung!$B$11=0),1,IF(Berechnung!$B$11<>0,_xlfn.NORM.DIST($A82,0,Berechnung!$B$11,FALSE),0)) -> 0 | S82: =IF(AND($A82>=0,Berechnung!$B$11=0),1,IF(Berechnung!$B$11<>0,_xlfn.NORM.DIST($A82,0,Berechnung!$B$11,TRUE),0)) -> 1 | T82: =Demonstrator!$J$19*'Daten Diagramm'!H82+Demonstrator!$J$24*'Daten Diagramm'!L82 -> 1.549631759e-06 | U82: =Demonstrator!$J$19*'Daten Diagramm'!I82+Demonstrator!$J$24*'Daten Diagramm'!M82 -> 0.999994697
A83: 60 | B83: =IF(AND(A83=0,Berechnung!$B$3=0),1,IF(Berechnung!$B$3<>0,_xlfn.NORM.DIST(A83,0,Berechnung!$B$3,FALSE),0)) -> 9.901000208e-12 | C83: =IF(AND($A83>=0,Berechnung!$B$3=0),1,IF(Berechnung!$B$3<>0,_xlfn.NORM.DIST($A83,0,Berechnung!$B$3,TRUE),0)) -> 1 | D83: =IF(AND($A83=0,Berechnung!$B$4=0),1,IF(Berechnung!$B$4<>0,_xlfn.NORM.DIST($A83,0,Berechnung!$B$4,FALSE),0)) -> 9.901000208e-12 | E83: =IF(AND($A83>=0,Berechnung!$B$4=0),1,IF(Berechnung!$B$4<>0,_xlfn.NORM.DIST($A83,0,Berechnung!$B$4,TRUE),0)) -> 1 | F83: =IF(AND($A83=0,Berechnung!$B$5=0),1,IF(Berechnung!$B$5<>0,_xlfn.NORM.DIST($A83,0,Berechnung!$B$5,FALSE),0)) -> 5.842867675e-06 | G83: =IF(AND($A83>=0,Berechnung!$B$5=0),1,IF(Berechnung!$B$5<>0,_xlfn.NORM.DIST($A83,0,Berechnung!$B$5,TRUE),0)) -> 0.9999803138 | H83: =IF(AND($A83=0,Berechnung!$B$6=0),1,IF(Berechnung!$B$6<>0,_xlfn.NORM.DIST($A83,0,Berechnung!$B$6,FALSE),0)) -> 5.86033483e-06 | I83: =IF(AND($A83>=0,Berechnung!$B$6=0),1,IF(Berechnung!$B$6<>0,_xlfn.NORM.DIST($A83,0,Berechnung!$B$6,TRUE),0)) -> 0.9999802479 | J83: =IF(AND($A83=0,Berechnung!$B$7=0),1,IF(Berechnung!$B$7<>0,_xlfn.NORM.DIST($A83,0,Berechnung!$B$7,FALSE),0)) -> 9.901000208e-12 | K83: =IF(AND($A83>=0,Berechnung!$B$7=0),1,IF(Berechnung!$B$7<>0,_xlfn.NORM.DIST($A83,0,Berechnung!$B$7,TRUE),0)) -> 1 | L83: =IF(AND($A83=0,Berechnung!$B$8=0),1,IF(Berechnung!$B$8<>0,_xlfn.NORM.DIST($A83,0,Berechnung!$B$8,FALSE),0)) -> 9.901000208e-12 | M83: =IF(AND($A83>=0,Berechnung!$B$8=0),1,IF(Berechnung!$B$8<>0,_xlfn.NORM.DIST($A83,0,Berechnung!$B$8,TRUE),0)) -> 1 | N83: =IF(AND($A83=0,Berechnung!$B$9=0),1,IF(Berechnung!$B$9<>0,_xlfn.NORM.DIST($A83,0,Berechnung!$B$9,FALSE),0)) -> 2.031333803e-09 | O83: =IF(AND($A83>=0,Berechnung!$B$9=0),1,IF(Berechnung!$B$9<>0,_xlfn.NORM.DIST($A83,0,Berechnung!$B$9,TRUE),0)) -> 0.9999999965 | P83: =IF(AND($A83=0,Berechnung!$B$10=0),1,IF(Berechnung!$B$10<>0,_xlfn.NORM.DIST($A83,0,Berechnung!$B$10,FALSE),0)) -> 3.918057364e-08 | Q83: =IF(AND($A83>=0,Berechnung!$B$10=0),1,IF(Berechnung!$B$10<>0,_xlfn.NORM.DIST($A83,0,Berechnung!$B$10,TRUE),0)) -> 0.999999917 | R83: =IF(AND($A83=0,Berechnung!$B$11=0),1,IF(Berechnung!$B$11<>0,_xlfn.NORM.DIST($A83,0,Berechnung!$B$11,FALSE),0)) -> 0 | S83: =IF(AND($A83>=0,Berechnung!$B$11=0),1,IF(Berechnung!$B$11<>0,_xlfn.NORM.DIST($A83,0,Berechnung!$B$11,TRUE),0)) -> 1 | T83: =Demonstrator!$J$19*'Daten Diagramm'!H83+Demonstrator!$J$24*'Daten Diagramm'!L83 -> 1.172074887e-06 | U83: =Demonstrator!$J$19*'Daten Diagramm'!I83+Demonstrator!$J$24*'Daten Diagramm'!M83 -> 0.9999960496
A84: 61 | B84: =IF(AND(A84=0,Berechnung!$B$3=0),1,IF(Berechnung!$B$3<>0,_xlfn.NORM.DIST(A84,0,Berechnung!$B$3,FALSE),0)) -> 4.691358517e-12 | C84: =IF(AND($A84>=0,Berechnung!$B$3=0),1,IF(Berechnung!$B$3<>0,_xlfn.NORM.DIST($A84,0,Berechnung!$B$3,TRUE),0)) -> 1 | D84: =IF(AND($A84=0,Berechnung!$B$4=0),1,IF(Berechnung!$B$4<>0,_xlfn.NORM.DIST($A84,0,Berechnung!$B$4,FALSE),0)) -> 4.691358517e-12 | E84: =IF(AND($A84>=0,Berechnung!$B$4=0),1,IF(Berechnung!$B$4<>0,_xlfn.NORM.DIST($A84,0,Berechnung!$B$4,TRUE),0)) -> 1 | F84: =IF(AND($A84=0,Berechnung!$B$5=0),1,IF(Berechnung!$B$5<>0,_xlfn.NORM.DIST($A84,0,Berechnung!$B$5,FALSE),0)) -> 4.398150703e-06 | G84: =IF(AND($A84>=0,Berechnung!$B$5=0),1,IF(Berechnung!$B$5<>0,_xlfn.NORM.DIST($A84,0,Berechnung!$B$5,TRUE),0)) -> 0.9999854022 | H84: =IF(AND($A84=0,Berechnung!$B$6=0),1,IF(Berechnung!$B$6<>0,_xlfn.NORM.DIST($A84,0,Berechnung!$B$6,FALSE),0)) -> 4.41176935e-06 | I84: =IF(AND($A84>=0,Berechnung!$B$6=0),1,IF(Berechnung!$B$6<>0,_xlfn.NORM.DIST($A84,0,Berechnung!$B$6,TRUE),0)) -> 0.9999853517 | J84: =IF(AND($A84=0,Berechnung!$B$7=0),1,IF(Berechnung!$B$7<>0,_xlfn.NORM.DIST($A84,0,Berechnung!$B$7,FALSE),0)) -> 4.691358517e-12 | K84: =IF(AND($A84>=0,Berechnung!$B$7=0),1,IF(Berechnung!$B$7<>0,_xlfn.NORM.DIST($A84,0,Berechnung!$B$7,TRUE),0)) -> 1 | L84: =IF(AND($A84=0,Berechnung!$B$8=0),1,IF(Berechnung!$B$8<>0,_xlfn.NORM.DIST($A84,0,Berechnung!$B$8,FALSE),0)) -> 4.691358517e-12 | M84: =IF(AND($A84>=0,Berechnung!$B$8=0),1,IF(Berechnung!$B$8<>0,_xlfn.NORM.DIST($A84,0,Berechnung!$B$8,TRUE),0)) -> 1 | N84: =IF(AND($A84=0,Berechnung!$B$9=0),1,IF(Berechnung!$B$9<>0,_xlfn.NORM.DIST($A84,0,Berechnung!$B$9,FALSE),0)) -> 1.156573575e-09 | O84: =IF(AND($A84>=0,Berechnung!$B$9=0),1,IF(Berechnung!$B$9<>0,_xlfn.NORM.DIST($A84,0,Berechnung!$B$9,TRUE),0)) -> 0.999999998 | P84: =IF(AND($A84=0,Berechnung!$B$10=0),1,IF(Berechnung!$B$10<>0,_xlfn.NORM.DIST($A84,0,Berechnung!$B$10,FALSE),0)) -> 2.472490243e-08 | Q84: =IF(AND($A84>=0,Berechnung!$B$10=0),1,IF(Berechnung!$B$10<>0,_xlfn.NORM.DIST($A84,0,Berechnung!$B$10,TRUE),0)) -> 0.9999999484 | R84: =IF(AND($A84=0,Berechnung!$B$11=0),1,IF(Berechnung!$B$11<>0,_xlfn.NORM.DIST($A84,0,Berechnung!$B$11,FALSE),0)) -> 0 | S84: =IF(AND($A84>=0,Berechnung!$B$11=0),1,IF(Berechnung!$B$11<>0,_xlfn.NORM.DIST($A84,0,Berechnung!$B$11,TRUE),0)) -> 1 | T84: =Demonstrator!$J$19*'Daten Diagramm'!H84+Demonstrator!$J$24*'Daten Diagramm'!L84 -> 8.823576231e-07 | U84: =Demonstrator!$J$19*'Daten Diagramm'!I84+Demonstrator!$J$24*'Daten Diagramm'!M84 -> 0.9999970703
A85: 62 | B85: =IF(AND(A85=0,Berechnung!$B$3=0),1,IF(Berechnung!$B$3<>0,_xlfn.NORM.DIST(A85,0,Berechnung!$B$3,FALSE),0)) -> 2.195616656e-12 | C85: =IF(AND($A85>=0,Berechnung!$B$3=0),1,IF(Berechnung!$B$3<>0,_xlfn.NORM.DIST($A85,0,Berechnung!$B$3,TRUE),0)) -> 1 | D85: =IF(AND($A85=0,Berechnung!$B$4=0),1,IF(Berechnung!$B$4<>0,_xlfn.NORM.DIST($A85,0,Berechnung!$B$4,FALSE),0)) -> 2.195616656e-12 | E85: =IF(AND($A85>=0,Berechnung!$B$4=0),1,IF(Berechnung!$B$4<>0,_xlfn.NORM.DIST($A85,0,Berechnung!$B$4,TRUE),0)) -> 1 | F85: =IF(AND($A85=0,Berechnung!$B$5=0),1,IF(Berechnung!$B$5<>0,_xlfn.NORM.DIST($A85,0,Berechnung!$B$5,FALSE),0)) -> 3.295150241e-06 | G85: =IF(AND($A85>=0,Berechnung!$B$5=0),1,IF(Berechnung!$B$5<>0,_xlfn.NORM.DIST($A85,0,Berechnung!$B$5,TRUE),0)) -> 0.9999892238 | H85: =IF(AND($A85=0,Berechnung!$B$6=0),1,IF(Berechnung!$B$6<>0,_xlfn.NORM.DIST($A85,0,Berechnung!$B$6,FALSE),0)) -> 3.305711834e-06 | I85: =IF(AND($A85>=0,Berechnung!$B$6=0),1,IF(Berechnung!$B$6<>0,_xlfn.NORM.DIST($A85,0,Berechnung!$B$6,TRUE),0)) -> 0.9999891854 | J85: =IF(AND($A85=0,Berechnung!$B$7=0),1,IF(Berechnung!$B$7<>0,_xlfn.NORM.DIST($A85,0,Berechnung!$B$7,FALSE),0)) -> 2.195616656e-12 | K85: =IF(AND($A85>=0,Berechnung!$B$7=0),1,IF(Berechnung!$B$7<>0,_xlfn.NORM.DIST($A85,0,Berechnung!$B$7,TRUE),0)) -> 1 | L85: =IF(AND($A85=0,Berechnung!$B$8=0),1,IF(Berechnung!$B$8<>0,_xlfn.NORM.DIST($A85,0,Berechnung!$B$8,FALSE),0)) -> 2.195616656e-12 | M85: =IF(AND($A85>=0,Berechnung!$B$8=0),1,IF(Berechnung!$B$8<>0,_xlfn.NORM.DIST($A85,0,Berechnung!$B$8,TRUE),0)) -> 1 | N85: =IF(AND($A85=0,Berechnung!$B$9=0),1,IF(Berechnung!$B$9<>0,_xlfn.NORM.DIST($A85,0,Berechnung!$B$9,FALSE),0)) -> 6.524122809e-10 | O85: =IF(AND($A85>=0,Berechnung!$B$9=0),1,IF(Berechnung!$B$9<>0,_xlfn.NORM.DIST($A85,0,Berechnung!$B$9,TRUE),0)) -> 0.9999999989 | P85: =IF(AND($A85=0,Berechnung!$B$10=0),1,IF(Berechnung!$B$10<>0,_xlfn.NORM.DIST($A85,0,Berechnung!$B$10,FALSE),0)) -> 1.548437398e-08 | Q85: =IF(AND($A85>=0,Berechnung!$B$10=0),1,IF(Berechnung!$B$10<>0,_xlfn.NORM.DIST($A85,0,Berechnung!$B$10,TRUE),0)) -> 0.9999999682 | R85: =IF(AND($A85=0,Berechnung!$B$11=0),1,IF(Berechnung!$B$11<>0,_xlfn.NORM.DIST($A85,0,Berechnung!$B$11,FALSE),0)) -> 0 | S85: =IF(AND($A85>=0,Berechnung!$B$11=0),1,IF(Berechnung!$B$11<>0,_xlfn.NORM.DIST($A85,0,Berechnung!$B$11,TRUE),0)) -> 1 | T85: =Demonstrator!$J$19*'Daten Diagramm'!H85+Demonstrator!$J$24*'Daten Diagramm'!L85 -> 6.611441234e-07 | U85: =Demonstrator!$J$19*'Daten Diagramm'!I85+Demonstrator!$J$24*'Daten Diagramm'!M85 -> 0.9999978371
A86: 63 | B86: =IF(AND(A86=0,Berechnung!$B$3=0),1,IF(Berechnung!$B$3<>0,_xlfn.NORM.DIST(A86,0,Berechnung!$B$3,FALSE),0)) -> 1.014968934e-12 | C86: =IF(AND($A86>=0,Berechnung!$B$3=0),1,IF(Berechnung!$B$3<>0,_xlfn.NORM.DIST($A86,0,Berechnung!$B$3,TRUE),0)) -> 1 | D86: =IF(AND($A86=0,Berechnung!$B$4=0),1,IF(Berechnung!$B$4<>0,_xlfn.NORM.DIST($A86,0,Berechnung!$B$4,FALSE),0)) -> 1.014968934e-12 | E86: =IF(AND($A86>=0,Berechnung!$B$4=0),1,IF(Berechnung!$B$4<>0,_xlfn.NORM.DIST($A86,0,Berechnung!$B$4,TRUE),0)) -> 1 | F86: =IF(AND($A86=0,Berechnung!$B$5=0),1,IF(Berechnung!$B$5<>0,_xlfn.NORM.DIST($A86,0,Berechnung!$B$5,FALSE),0)) -> 2.45720502e-06 | G86: =IF(AND($A86>=0,Berechnung!$B$5=0),1,IF(Berechnung!$B$5<>0,_xlfn.NORM.DIST($A86,0,Berechnung!$B$5,TRUE),0)) -> 0.9999920806 | H86: =IF(AND($A86=0,Berechnung!$B$6=0),1,IF(Berechnung!$B$6<>0,_xlfn.NORM.DIST($A86,0,Berechnung!$B$6,FALSE),0)) -> 2.465352421e-06 | I86: =IF(AND($A86>=0,Berechnung!$B$6=0),1,IF(Berechnung!$B$6<>0,_xlfn.NORM.DIST($A86,0,Berechnung!$B$6,TRUE),0)) -> 0.9999920515 | J86: =IF(AND($A86=0,Berechnung!$B$7=0),1,IF(Berechnung!$B$7<>0,_xlfn.NORM.DIST($A86,0,Berechnung!$B$7,FALSE),0)) -> 1.014968934e-12 | K86: =IF(AND($A86>=0,Berechnung!$B$7=0),1,IF(Berechnung!$B$7<>0,_xlfn.NORM.DIST($A86,0,Berechnung!$B$7,TRUE),0)) -> 1 | L86: =IF(AND($A86=0,Berechnung!$B$8=0),1,IF(Berechnung!$B$8<>0,_xlfn.NORM.DIST($A86,0,Berechnung!$B$8,FALSE),0)) -> 1.014968934e-12 | M86: =IF(AND($A86>=0,Berechnung!$B$8=0),1,IF(Berechnung!$B$8<>0,_xlfn.NORM.DIST($A86,0,Berechnung!$B$8,TRUE),0)) -> 1 | N86: =IF(AND($A86=0,Berechnung!$B$9=0),1,IF(Berechnung!$B$9<>0,_xlfn.NORM.DIST($A86,0,Berechnung!$B$9,FALSE),0)) -> 3.646094173e-10 | O86: =IF(AND($A86>=0,Berechnung!$B$9=0),1,IF(Berechnung!$B$9<>0,_xlfn.NORM.DIST($A86,0,Berechnung!$B$9,TRUE),0)) -> 0.9999999994 | P86: =IF(AND($A86=0,Berechnung!$B$10=0),1,IF(Berechnung!$B$10<>0,_xlfn.NORM.DIST($A86,0,Berechnung!$B$10,FALSE),0)) -> 9.623830977e-09 | Q86: =IF(AND($A86>=0,Berechnung!$B$10=0),1,IF(Berechnung!$B$10<>0,_xlfn.NORM.DIST($A86,0,Berechnung!$B$10,TRUE),0)) -> 0.9999999805 | R86: =IF(AND($A86=0,Berechnung!$B$11=0),1,IF(Berechnung!$B$11<>0,_xlfn.NORM.DIST($A86,0,Berechnung!$B$11,FALSE),0)) -> 0 | S86: =IF(AND($A86>=0,Berechnung!$B$11=0),1,IF(Berechnung!$B$11<>0,_xlfn.NORM.DIST($A86,0,Berechnung!$B$11,TRUE),0)) -> 1 | T86: =Demonstrator!$J$19*'Daten Diagramm'!H86+Demonstrator!$J$24*'Daten Diagramm'!L86 -> 4.930712961e-07 | U86: =Demonstrator!$J$19*'Daten Diagramm'!I86+Demonstrator!$J$24*'Daten Diagramm'!M86 -> 0.9999984103
A87: 64 | B87: =IF(AND(A87=0,Berechnung!$B$3=0),1,IF(Berechnung!$B$3<>0,_xlfn.NORM.DIST(A87,0,Berechnung!$B$3,FALSE),0)) -> 4.634333915e-13 | C87: =IF(AND($A87>=0,Berechnung!$B$3=0),1,IF(Berechnung!$B$3<>0,_xlfn.NORM.DIST($A87,0,Berechnung!$B$3,TRUE),0)) -> 1 | D87: =IF(AND($A87=0,Berechnung!$B$4=0),1,IF(Berechnung!$B$4<>0,_xlfn.NORM.DIST($A87,0,Berechnung!$B$4,FALSE),0)) -> 4.634333915e-13 | E87: =IF(AND($A87>=0,Berechnung!$B$4=0),1,IF(Berechnung!$B$4<>0,_xlfn.NORM.DIST($A87,0,Berechnung!$B$4,TRUE),0)) -> 1 | F87: =IF(AND($A87=0,Berechnung!$B$5=0),1,IF(Berechnung!$B$5<>0,_xlfn.NORM.DIST($A87,0,Berechnung!$B$5,FALSE),0)) -> 1.823763946e-06 | G87: =IF(AND($A87>=0,Berechnung!$B$5=0),1,IF(Berechnung!$B$5<>0,_xlfn.NORM.DIST($A87,0,Berechnung!$B$5,TRUE),0)) -> 0.9999942062 | H87: =IF(AND($A87=0,Berechnung!$B$6=0),1,IF(Berechnung!$B$6<>0,_xlfn.NORM.DIST($A87,0,Berechnung!$B$6,FALSE),0)) -> 1.830015854e-06 | I87: =IF(AND($A87>=0,Berechnung!$B$6=0),1,IF(Berechnung!$B$6<>0,_xlfn.NORM.DIST($A87,0,Berechnung!$B$6,TRUE),0)) -> 0.9999941843 | J87: =IF(AND($A87=0,Berechnung!$B$7=0),1,IF(Berechnung!$B$7<>0,_xlfn.NORM.DIST($A87,0,Berechnung!$B$7,FALSE),0)) -> 4.634333915e-13 | K87: =IF(AND($A87>=0,Berechnung!$B$7=0),1,IF(Berechnung!$B$7<>0,_xlfn.NORM.DIST($A87,0,Berechnung!$B$7,TRUE),0)) -> 1 | L87: =IF(AND($A87=0,Berechnung!$B$8=0),1,IF(Berechnung!$B$8<>0,_xlfn.NORM.DIST($A87,0,Berechnung!$B$8,FALSE),0)) -> 4.634333915e-13 | M87: =IF(AND($A87>=0,Berechnung!$B$8=0),1,IF(Berechnung!$B$8<>0,_xlfn.NORM.DIST($A87,0,Berechnung!$B$8,TRUE),0)) -> 1 | N87: =IF(AND($A87=0,Berechnung!$B$9=0),1,IF(Berechnung!$B$9<>0,_xlfn.NORM.DIST($A87,0,Berechnung!$B$9,FALSE),0)) -> 2.018787132e-10 | O87: =IF(AND($A87>=0,Berechnung!$B$9=0),1,IF(Berechnung!$B$9<>0,_xlfn.NORM.DIST($A87,0,Berechnung!$B$9,TRUE),0)) -> 0.9999999997 | P87: =IF(AND($A87=0,Berechnung!$B$10=0),1,IF(Berechnung!$B$10<>0,_xlfn.NORM.DIST($A87,0,Berechnung!$B$10,FALSE),0)) -> 5.936050558e-09 | Q87: =IF(AND($A87>=0,Berechnung!$B$10=0),1,IF(Berechnung!$B$10<>0,_xlfn.NORM.DIST($A87,0,Berechnung!$B$10,TRUE),0)) -> 0.9999999882 | R87: =IF(AND($A87=0,Berechnung!$B$11=0),1,IF(Berechnung!$B$11<>0,_xlfn.NORM.DIST($A87,0,Berechnung!$B$11,FALSE),0)) -> 0 | S87: =IF(AND($A87>=0,Berechnung!$B$11=0),1,IF(Berechnung!$B$11<>0,_xlfn.NORM.DIST($A87,0,Berechnung!$B$11,TRUE),0)) -> 1 | T87: =Demonstrator!$J$19*'Daten Diagramm'!H87+Demonstrator!$J$24*'Daten Diagramm'!L87 -> 3.660035415e-07 | U87: =Demonstrator!$J$19*'Daten Diagramm'!I87+Demonstrator!$J$24*'Daten Diagramm'!M87 -> 0.9999988369
A88: 65 | B88: =IF(AND(A88=0,Berechnung!$B$3=0),1,IF(Berechnung!$B$3<>0,_xlfn.NORM.DIST(A88,0,Berechnung!$B$3,FALSE),0)) -> 2.090067129e-13 | C88: =IF(AND($A88>=0,Berechnung!$B$3=0),1,IF(Berechnung!$B$3<>0,_xlfn.NORM.DIST($A88,0,Berechnung!$B$3,TRUE),0)) -> 1 | D88: =IF(AND($A88=0,Berechnung!$B$4=0),1,IF(Berechnung!$B$4<>0,_xlfn.NORM.DIST($A88,0,Berechnung!$B$4,FALSE),0)) -> 2.090067129e-13 | E88: =IF(AND($A88>=0,Berechnung!$B$4=0),1,IF(Berechnung!$B$4<>0,_xlfn.NORM.DIST($A88,0,Berechnung!$B$4,TRUE),0)) -> 1 | F88: =IF(AND($A88=0,Berechnung!$B$5=0),1,IF(Berechnung!$B$5<>0,_xlfn.NORM.DIST($A88,0,Berechnung!$B$5,FALSE),0)) -> 1.347277064e-06 | G88: =IF(AND($A88>=0,Berechnung!$B$5=0),1,IF(Berechnung!$B$5<>0,_xlfn.NORM.DIST($A88,0,Berechnung!$B$5,TRUE),0)) -> 0.9999957804 | H88: =IF(AND($A88=0,Berechnung!$B$6=0),1,IF(Berechnung!$B$6<>0,_xlfn.NORM.DIST($A88,0,Berechnung!$B$6,FALSE),0)) -> 1.352049271e-06 | I88: =IF(AND($A88>=0,Berechnung!$B$6=0),1,IF(Berechnung!$B$6<>0,_xlfn.NORM.DIST($A88,0,Berechnung!$B$6,TRUE),0)) -> 0.9999957639 | J88: =IF(AND($A88=0,Berechnung!$B$7=0),1,IF(Berechnung!$B$7<>0,_xlfn.NORM.DIST($A88,0,Berechnung!$B$7,FALSE),0)) -> 2.090067129e-13 | K88: =IF(AND($A88>=0,Berechnung!$B$7=0),1,IF(Berechnung!$B$7<>0,_xlfn.NORM.DIST($A88,0,Berechnung!$B$7,TRUE),0)) -> 1 | L88: =IF(AND($A88=0,Berechnung!$B$8=0),1,IF(Berechnung!$B$8<>0,_xlfn.NORM.DIST($A88,0,Berechnung!$B$8,FALSE),0)) -> 2.090067129e-13 | M88: =IF(AND($A88>=0,Berechnung!$B$8=0),1,IF(Berechnung!$B$8<>0,_xlfn.NORM.DIST($A88,0,Berechnung!$B$8,TRUE),0)) -> 1 | N88: =IF(AND($A88=0,Berechnung!$B$9=0),1,IF(Berechnung!$B$9<>0,_xlfn.NORM.DIST($A88,0,Berechnung!$B$9,FALSE),0)) -> 1.107414144e-10 | O88: =IF(AND($A88>=0,Berechnung!$B$9=0),1,IF(Berechnung!$B$9<>0,_xlfn.NORM.DIST($A88,0,Berechnung!$B$9,TRUE),0)) -> 0.9999999998 | P88: =IF(AND($A88=0,Berechnung!$B$10=0),1,IF(Berechnung!$B$10<>0,_xlfn.NORM.DIST($A88,0,Berechnung!$B$10,FALSE),0)) -> 3.633644745e-09 | Q88: =IF(AND($A88>=0,Berechnung!$B$10=0),1,IF(Berechnung!$B$10<>0,_xlfn.NORM.DIST($A88,0,Berechnung!$B$10,TRUE),0)) -> 0.9999999929 | R88: =IF(AND($A88=0,Berechnung!$B$11=0),1,IF(Berechnung!$B$11<>0,_xlfn.NORM.DIST($A88,0,Berechnung!$B$11,FALSE),0)) -> 0 | S88: =IF(AND($A88>=0,Berechnung!$B$11=0),1,IF(Berechnung!$B$11<>0,_xlfn.NORM.DIST($A88,0,Berechnung!$B$11,TRUE),0)) -> 1 | T88: =Demonstrator!$J$19*'Daten Diagramm'!H88+Demonstrator!$J$24*'Daten Diagramm'!L88 -> 2.704100214e-07 | U88: =Demonstrator!$J$19*'Daten Diagramm'!I88+Demonstrator!$J$24*'Daten Diagramm'!M88 -> 0.9999991528
A89: 66 | B89: =IF(AND(A89=0,Berechnung!$B$3=0),1,IF(Berechnung!$B$3<>0,_xlfn.NORM.DIST(A89,0,Berechnung!$B$3,FALSE),0)) -> 9.310467478e-14 | C89: =IF(AND($A89>=0,Berechnung!$B$3=0),1,IF(Berechnung!$B$3<>0,_xlfn.NORM.DIST($A89,0,Berechnung!$B$3,TRUE),0)) -> 1 | D89: =IF(AND($A89=0,Berechnung!$B$4=0),1,IF(Berechnung!$B$4<>0,_xlfn.NORM.DIST($A89,0,Berechnung!$B$4,FALSE),0)) -> 9.310467478e-14 | E89: =IF(AND($A89>=0,Berechnung!$B$4=0),1,IF(Berechnung!$B$4<>0,_xlfn.NORM.DIST($A89,0,Berechnung!$B$4,TRUE),0)) -> 1 | F89: =IF(AND($A89=0,Berechnung!$B$5=0),1,IF(Berechnung!$B$5<>0,_xlfn.NORM.DIST($A89,0,Berechnung!$B$5,FALSE),0)) -> 9.906181163e-07 | G89: =IF(AND($A89>=0,Berechnung!$B$5=0),1,IF(Berechnung!$B$5<>0,_xlfn.NORM.DIST($A89,0,Berechnung!$B$5,TRUE),0)) -> 0.9999969406 | H89: =IF(AND($A89=0,Berechnung!$B$6=0),1,IF(Berechnung!$B$6<>0,_xlfn.NORM.DIST($A89,0,Berechnung!$B$6,FALSE),0)) -> 9.942417795e-07 | I89: =IF(AND($A89>=0,Berechnung!$B$6=0),1,IF(Berechnung!$B$6<>0,_xlfn.NORM.DIST($A89,0,Berechnung!$B$6,TRUE),0)) -> 0.9999969283 | J89: =IF(AND($A89=0,Berechnung!$B$7=0),1,IF(Berechnung!$B$7<>0,_xlfn.NORM.DIST($A89,0,Berechnung!$B$7,FALSE),0)) -> 9.310467478e-14 | K89: =IF(AND($A89>=0,Berechnung!$B$7=0),1,IF(Berechnung!$B$7<>0,_xlfn.NORM.DIST($A89,0,Berechnung!$B$7,TRUE),0)) -> 1 | L89: =IF(AND($A89=0,Berechnung!$B$8=0),1,IF(Berechnung!$B$8<>0,_xlfn.NORM.DIST($A89,0,Berechnung!$B$8,FALSE),0)) -> 9.310467478e-14 | M89: =IF(AND($A89>=0,Berechnung!$B$8=0),1,IF(Berechnung!$B$8<>0,_xlfn.NORM.DIST($A89,0,Berechnung!$B$8,TRUE),0)) -> 1 | N89: =IF(AND($A89=0,Berechnung!$B$9=0),1,IF(Berechnung!$B$9<>0,_xlfn.NORM.DIST($A89,0,Berechnung!$B$9,FALSE),0)) -> 6.018475491e-11 | O89: =IF(AND($A89>=0,Berechnung!$B$9=0),1,IF(Berechnung!$B$9<>0,_xlfn.NORM.DIST($A89,0,Berechnung!$B$9,TRUE),0)) -> 0.9999999999 | P89: =IF(AND($A89=0,Berechnung!$B$10=0),1,IF(Berechnung!$B$10<>0,_xlfn.NORM.DIST($A89,0,Berechnung!$B$10,FALSE),0)) -> 2.207407978e-09 | Q89: =IF(AND($A89>=0,Berechnung!$B$10=0),1,IF(Berechnung!$B$10<>0,_xlfn.NORM.DIST($A89,0,Berechnung!$B$10,TRUE),0)) -> 0.9999999957 | R89: =IF(AND($A89=0,Berechnung!$B$11=0),1,IF(Berechnung!$B$11<>0,_xlfn.NORM.DIST($A89,0,Berechnung!$B$11,FALSE),0)) -> 0 | S89: =IF(AND($A89>=0,Berechnung!$B$11=0),1,IF(Berechnung!$B$11<>0,_xlfn.NORM.DIST($A89,0,Berechnung!$B$11,TRUE),0)) -> 1 | T89: =Demonstrator!$J$19*'Daten Diagramm'!H89+Demonstrator!$J$24*'Daten Diagramm'!L89 -> 1.988484304e-07 | U89: =Demonstrator!$J$19*'Daten Diagramm'!I89+Demonstrator!$J$24*'Daten Diagramm'!M89 -> 0.9999993857
A90: 67 | B90: =IF(AND(A90=0,Berechnung!$B$3=0),1,IF(Berechnung!$B$3<>0,_xlfn.NORM.DIST(A90,0,Berechnung!$B$3,FALSE),0)) -> 4.096576595e-14 | C90: =IF(AND($A90>=0,Berechnung!$B$3=0),1,IF(Berechnung!$B$3<>0,_xlfn.NORM.DIST($A90,0,Berechnung!$B$3,TRUE),0)) -> 1 | D90: =IF(AND($A90=0,Berechnung!$B$4=0),1,IF(Berechnung!$B$4<>0,_xlfn.NORM.DIST($A90,0,Berechnung!$B$4,FALSE),0)) -> 4.096576595e-14 | E90: =IF(AND($A90>=0,Berechnung!$B$4=0),1,IF(Berechnung!$B$4<>0,_xlfn.NORM.DIST($A90,0,Berechnung!$B$4,TRUE),0)) -> 1 | F90: =IF(AND($A90=0,Berechnung!$B$5=0),1,IF(Berechnung!$B$5<>0,_xlfn.NORM.DIST($A90,0,Berechnung!$B$5,FALSE),0)) -> 7.249643893e-07 | G90: =IF(AND($A90>=0,Berechnung!$B$5=0),1,IF(Berechnung!$B$5<>0,_xlfn.NORM.DIST($A90,0,Berechnung!$B$5,TRUE),0)) -> 0.9999977919 | H90: =IF(AND($A90=0,Berechnung!$B$6=0),1,IF(Berechnung!$B$6<>0,_xlfn.NORM.DIST($A90,0,Berechnung!$B$6,FALSE),0)) -> 7.277015897e-07 | I90: =IF(AND($A90>=0,Berechnung!$B$6=0),1,IF(Berechnung!$B$6<>0,_xlfn.NORM.DIST($A90,0,Berechnung!$B$6,TRUE),0)) -> 0.9999977827 | J90: =IF(AND($A90=0,Berechnung!$B$7=0),1,IF(Berechnung!$B$7<>0,_xlfn.NORM.DIST($A90,0,Berechnung!$B$7,FALSE),0)) -> 4.096576595e-14 | K90: =IF(AND($A90>=0,Berechnung!$B$7=0),1,IF(Berechnung!$B$7<>0,_xlfn.NORM.DIST($A90,0,Berechnung!$B$7,TRUE),0)) -> 1 | L90: =IF(AND($A90=0,Berechnung!$B$8=0),1,IF(Berechnung!$B$8<>0,_xlfn.NORM.DIST($A90,0,Berechnung!$B$8,FALSE),0)) -> 4.096576595e-14 | M90: =IF(AND($A90>=0,Berechnung!$B$8=0),1,IF(Berechnung!$B$8<>0,_xlfn.NORM.DIST($A90,0,Berechnung!$B$8,TRUE),0)) -> 1 | N90: =IF(AND($A90=0,Berechnung!$B$9=0),1,IF(Berechnung!$B$9<>0,_xlfn.NORM.DIST($A90,0,Berechnung!$B$9,FALSE),0)) -> 3.240558147e-11 | O90: =IF(AND($A90>=0,Berechnung!$B$9=0),1,IF(Berechnung!$B$9<>0,_xlfn.NORM.DIST($A90,0,Berechnung!$B$9,TRUE),0)) -> 0.9999999999 | P90: =IF(AND($A90=0,Berechnung!$B$10=0),1,IF(Berechnung!$B$10<>0,_xlfn.NORM.DIST($A90,0,Berechnung!$B$10,FALSE),0)) -> 1.33081602e-09 | Q90: =IF(AND($A90>=0,Berechnung!$B$10=0),1,IF(Berechnung!$B$10<>0,_xlfn.NORM.DIST($A90,0,Berechnung!$B$10,TRUE),0)) -> 0.9999999975 | R90: =IF(AND($A90=0,Berechnung!$B$11=0),1,IF(Berechnung!$B$11<>0,_xlfn.NORM.DIST($A90,0,Berechnung!$B$11,FALSE),0)) -> 0 | S90: =IF(AND($A90>=0,Berechnung!$B$11=0),1,IF(Berechnung!$B$11<>0,_xlfn.NORM.DIST($A90,0,Berechnung!$B$11,TRUE),0)) -> 1 | T90: =Demonstrator!$J$19*'Daten Diagramm'!H90+Demonstrator!$J$24*'Daten Diagramm'!L90 -> 1.455403507e-07 | U90: =Demonstrator!$J$19*'Daten Diagramm'!I90+Demonstrator!$J$24*'Daten Diagramm'!M90 -> 0.9999995565
A91: 68 | B91: =IF(AND(A91=0,Berechnung!$B$3=0),1,IF(Berechnung!$B$3<>0,_xlfn.NORM.DIST(A91,0,Berechnung!$B$3,FALSE),0)) -> 1.780364849e-14 | C91: =IF(AND($A91>=0,Berechnung!$B$3=0),1,IF(Berechnung!$B$3<>0,_xlfn.NORM.DIST($A91,0,Berechnung!$B$3,TRUE),0)) -> 1 | D91: =IF(AND($A91=0,Berechnung!$B$4=0),1,IF(Berechnung!$B$4<>0,_xlfn.NORM.DIST($A91,0,Berechnung!$B$4,FALSE),0)) -> 1.780364849e-14 | E91: =IF(AND($A91>=0,Berechnung!$B$4=0),1,IF(Berechnung!$B$4<>0,_xlfn.NORM.DIST($A91,0,Berechnung!$B$4,TRUE),0)) -> 1 | F91: =IF(AND($A91=0,Berechnung!$B$5=0),1,IF(Berechnung!$B$5<>0,_xlfn.NORM.DIST($A91,0,Berechnung!$B$5,FALSE),0)) -> 5.280659214e-07 | G91: =IF(AND($A91>=0,Berechnung!$B$5=0),1,IF(Berechnung!$B$5<>0,_xlfn.NORM.DIST($A91,0,Berechnung!$B$5,TRUE),0)) -> 0.9999984134 | H91: =IF(AND($A91=0,Berechnung!$B$6=0),1,IF(Berechnung!$B$6<>0,_xlfn.NORM.DIST($A91,0,Berechnung!$B$6,FALSE),0)) -> 5.30122775e-07 | I91: =IF(AND($A91>=0,Berechnung!$B$6=0),1,IF(Berechnung!$B$6<>0,_xlfn.NORM.DIST($A91,0,Berechnung!$B$6,TRUE),0)) -> 0.9999984067 | J91: =IF(AND($A91=0,Berechnung!$B$7=0),1,IF(Berechnung!$B$7<>0,_xlfn.NORM.DIST($A91,0,Berechnung!$B$7,FALSE),0)) -> 1.780364849e-14 | K91: =IF(AND($A91>=0,Berechnung!$B$7=0),1,IF(Berechnung!$B$7<>0,_xlfn.NORM.DIST($A91,0,Berechnung!$B$7,TRUE),0)) -> 1 | L91: =IF(AND($A91=0,Berechnung!$B$8=0),1,IF(Berechnung!$B$8<>0,_xlfn.NORM.DIST($A91,0,Berechnung!$B$8,FALSE),0)) -> 1.780364849e-14 | M91: =IF(AND($A91>=0,Berechnung!$B$8=0),1,IF(Berechnung!$B$8<>0,_xlfn.NORM.DIST($A91,0,Berechnung!$B$8,TRUE),0)) -> 1 | N91: =IF(AND($A91=0,Berechnung!$B$9=0),1,IF(Berechnung!$B$9<>0,_xlfn.NORM.DIST($A91,0,Berechnung!$B$9,FALSE),0)) -> 1.728661792e-11 | O91: =IF(AND($A91>=0,Berechnung!$B$9=0),1,IF(Berechnung!$B$9<>0,_xlfn.NORM.DIST($A91,0,Berechnung!$B$9,TRUE),0)) -> 1 | P91: =IF(AND($A91=0,Berechnung!$B$10=0),1,IF(Berechnung!$B$10<>0,_xlfn.NORM.DIST($A91,0,Berechnung!$B$10,FALSE),0)) -> 7.962486372e-10 | Q91: =IF(AND($A91>=0,Berechnung!$B$10=0),1,IF(Berechnung!$B$10<>0,_xlfn.NORM.DIST($A91,0,Berechnung!$B$10,TRUE),0)) -> 0.9999999985 | R91: =IF(AND($A91=0,Berechnung!$B$11=0),1,IF(Berechnung!$B$11<>0,_xlfn.NORM.DIST($A91,0,Berechnung!$B$11,FALSE),0)) -> 0 | S91: =IF(AND($A91>=0,Berechnung!$B$11=0),1,IF(Berechnung!$B$11<>0,_xlfn.NORM.DIST($A91,0,Berechnung!$B$11,TRUE),0)) -> 1 | T91: =Demonstrator!$J$19*'Daten Diagramm'!H91+Demonstrator!$J$24*'Daten Diagramm'!L91 -> 1.060245692e-07 | U91: =Demonstrator!$J$19*'Daten Diagramm'!I91+Demonstrator!$J$24*'Daten Diagramm'!M91 -> 0.9999996813
A92: 69 | B92: =IF(AND(A92=0,Berechnung!$B$3=0),1,IF(Berechnung!$B$3<>0,_xlfn.NORM.DIST(A92,0,Berechnung!$B$3,FALSE),0)) -> 7.642497101e-15 | C92: =IF(AND($A92>=0,Berechnung!$B$3=0),1,IF(Berechnung!$B$3<>0,_xlfn.NORM.DIST($A92,0,Berechnung!$B$3,TRUE),0)) -> 1 | D92: =IF(AND($A92=0,Berechnung!$B$4=0),1,IF(Berechnung!$B$4<>0,_xlfn.NORM.DIST($A92,0,Berechnung!$B$4,FALSE),0)) -> 7.642497101e-15 | E92: =IF(AND($A92>=0,Berechnung!$B$4=0),1,IF(Berechnung!$B$4<>0,_xlfn.NORM.DIST($A92,0,Berechnung!$B$4,TRUE),0)) -> 1 | F92: =IF(AND($A92=0,Berechnung!$B$5=0),1,IF(Berechnung!$B$5<>0,_xlfn.NORM.DIST($A92,0,Berechnung!$B$5,FALSE),0)) -> 3.828429615e-07 | G92: =IF(AND($A92>=0,Berechnung!$B$5=0),1,IF(Berechnung!$B$5<>0,_xlfn.NORM.DIST($A92,0,Berechnung!$B$5,TRUE),0)) -> 0.9999988652 | H92: =IF(AND($A92=0,Berechnung!$B$6=0),1,IF(Berechnung!$B$6<>0,_xlfn.NORM.DIST($A92,0,Berechnung!$B$6,FALSE),0)) -> 3.843805696e-07 | I92: =IF(AND($A92>=0,Berechnung!$B$6=0),1,IF(Berechnung!$B$6<>0,_xlfn.NORM.DIST($A92,0,Berechnung!$B$6,TRUE),0)) -> 0.9999988602 | J92: =IF(AND($A92=0,Berechnung!$B$7=0),1,IF(Berechnung!$B$7<>0,_xlfn.NORM.DIST($A92,0,Berechnung!$B$7,FALSE),0)) -> 7.642497101e-15 | K92: =IF(AND($A92>=0,Berechnung!$B$7=0),1,IF(Berechnung!$B$7<>0,_xlfn.NORM.DIST($A92,0,Berechnung!$B$7,TRUE),0)) -> 1 | L92: =IF(AND($A92=0,Berechnung!$B$8=0),1,IF(Berechnung!$B$8<>0,_xlfn.NORM.DIST($A92,0,Berechnung!$B$8,FALSE),0)) -> 7.642497101e-15 | M92: =IF(AND($A92>=0,Berechnung!$B$8=0),1,IF(Berechnung!$B$8<>0,_xlfn.NORM.DIST($A92,0,Berechnung!$B$8,TRUE),0)) -> 1 | N92: =IF(AND($A92=0,Berechnung!$B$9=0),1,IF(Berechnung!$B$9<>0,_xlfn.NORM.DIST($A92,0,Berechnung!$B$9,FALSE),0)) -> 9.13602206e-12 | O92: =IF(AND($A92>=0,Berechnung!$B$9=0),1,IF(Berechnung!$B$9<>0,_xlfn.NORM.DIST($A92,0,Berechnung!$B$9,TRUE),0)) -> 1 | P92: =IF(AND($A92=0,Berechnung!$B$10=0),1,IF(Berechnung!$B$10<>0,_xlfn.NORM.DIST($A92,0,Berechnung!$B$10,FALSE),0)) -> 4.727969357e-10 | Q92: =IF(AND($A92>=0,Berechnung!$B$10=0),1,IF(Berechnung!$B$10<>0,_xlfn.NORM.DIST($A92,0,Berechnung!$B$10,TRUE),0)) -> 0.9999999991 | R92: =IF(AND($A92=0,Berechnung!$B$11=0),1,IF(Berechnung!$B$11<>0,_xlfn.NORM.DIST($A92,0,Berechnung!$B$11,FALSE),0)) -> 0 | S92: =IF(AND($A92>=0,Berechnung!$B$11=0),1,IF(Berechnung!$B$11<>0,_xlfn.NORM.DIST($A92,0,Berechnung!$B$11,TRUE),0)) -> 1 | T92: =Demonstrator!$J$19*'Daten Diagramm'!H92+Demonstrator!$J$24*'Daten Diagramm'!L92 -> 7.687612004e-08 | U92: =Demonstrator!$J$19*'Daten Diagramm'!I92+Demonstrator!$J$24*'Daten Diagramm'!M92 -> 0.999999772
A93: 70 | B93: =IF(AND(A93=0,Berechnung!$B$3=0),1,IF(Berechnung!$B$3<>0,_xlfn.NORM.DIST(A93,0,Berechnung!$B$3,FALSE),0)) -> 3.240409479e-15 | C93: =IF(AND($A93>=0,Berechnung!$B$3=0),1,IF(Berechnung!$B$3<>0,_xlfn.NORM.DIST($A93,0,Berechnung!$B$3,TRUE),0)) -> 1 | D93: =IF(AND($A93=0,Berechnung!$B$4=0),1,IF(Berechnung!$B$4<>0,_xlfn.NORM.DIST($A93,0,Berechnung!$B$4,FALSE),0)) -> 3.240409479e-15 | E93: =IF(AND($A93>=0,Berechnung!$B$4=0),1,IF(Berechnung!$B$4<>0,_xlfn.NORM.DIST($A93,0,Berechnung!$B$4,TRUE),0)) -> 1 | F93: =IF(AND($A93=0,Berechnung!$B$5=0),1,IF(Berechnung!$B$5<>0,_xlfn.NORM.DIST($A93,0,Berechnung!$B$5,FALSE),0)) -> 2.762576109e-07 | G93: =IF(AND($A93>=0,Berechnung!$B$5=0),1,IF(Berechnung!$B$5<>0,_xlfn.NORM.DIST($A93,0,Berechnung!$B$5,TRUE),0)) -> 0.999999192 | H93: =IF(AND($A93=0,Berechnung!$B$6=0),1,IF(Berechnung!$B$6<>0,_xlfn.NORM.DIST($A93,0,Berechnung!$B$6,FALSE),0)) -> 2.774011222e-07 | I93: =IF(AND($A93>=0,Berechnung!$B$6=0),1,IF(Berechnung!$B$6<>0,_xlfn.NORM.DIST($A93,0,Berechnung!$B$6,TRUE),0)) -> 0.9999991883 | J93: =IF(AND($A93=0,Berechnung!$B$7=0),1,IF(Berechnung!$B$7<>0,_xlfn.NORM.DIST($A93,0,Berechnung!$B$7,FALSE),0)) -> 3.240409479e-15 | K93: =IF(AND($A93>=0,Berechnung!$B$7=0),1,IF(Berechnung!$B$7<>0,_xlfn.NORM.DIST($A93,0,Berechnung!$B$7,TRUE),0)) -> 1 | L93: =IF(AND($A93=0,Berechnung!$B$8=0),1,IF(Berechnung!$B$8<>0,_xlfn.NORM.DIST($A93,0,Berechnung!$B$8,FALSE),0)) -> 3.240409479e-15 | M93: =IF(AND($A93>=0,Berechnung!$B$8=0),1,IF(Berechnung!$B$8<>0,_xlfn.NORM.DIST($A93,0,Berechnung!$B$8,TRUE),0)) -> 1 | N93: =IF(AND($A93=0,Berechnung!$B$9=0),1,IF(Berechnung!$B$9<>0,_xlfn.NORM.DIST($A93,0,Berechnung!$B$9,FALSE),0)) -> 4.783669182e-12 | O93: =IF(AND($A93>=0,Berechnung!$B$9=0),1,IF(Berechnung!$B$9<>0,_xlfn.NORM.DIST($A93,0,Berechnung!$B$9,TRUE),0)) -> 1 | P93: =IF(AND($A93=0,Berechnung!$B$10=0),1,IF(Berechnung!$B$10<>0,_xlfn.NORM.DIST($A93,0,Berechnung!$B$10,FALSE),0)) -> 2.786094697e-10 | Q93: =IF(AND($A93>=0,Berechnung!$B$10=0),1,IF(Berechnung!$B$10<>0,_xlfn.NORM.DIST($A93,0,Berechnung!$B$10,TRUE),0)) -> 0.9999999995 | R93: =IF(AND($A93=0,Berechnung!$B$11=0),1,IF(Berechnung!$B$11<>0,_xlfn.NORM.DIST($A93,0,Berechnung!$B$11,FALSE),0)) -> 0 | S93: =IF(AND($A93>=0,Berechnung!$B$11=0),1,IF(Berechnung!$B$11<>0,_xlfn.NORM.DIST($A93,0,Berechnung!$B$11,TRUE),0)) -> 1 | T93: =Demonstrator!$J$19*'Daten Diagramm'!H93+Demonstrator!$J$24*'Daten Diagramm'!L93 -> 5.548022704e-08 | U93: =Demonstrator!$J$19*'Daten Diagramm'!I93+Demonstrator!$J$24*'Daten Diagramm'!M93 -> 0.9999998377
A94: 71 | B94: =IF(AND(A94=0,Berechnung!$B$3=0),1,IF(Berechnung!$B$3<>0,_xlfn.NORM.DIST(A94,0,Berechnung!$B$3,FALSE),0)) -> 1.357071859e-15 | C94: =IF(AND($A94>=0,Berechnung!$B$3=0),1,IF(Berechnung!$B$3<>0,_xlfn.NORM.DIST($A94,0,Berechnung!$B$3,TRUE),0)) -> 1 | D94: =IF(AND($A94=0,Berechnung!$B$4=0),1,IF(Berechnung!$B$4<>0,_xlfn.NORM.DIST($A94,0,Berechnung!$B$4,FALSE),0)) -> 1.357071859e-15 | E94: =IF(AND($A94>=0,Berechnung!$B$4=0),1,IF(Berechnung!$B$4<>0,_xlfn.NORM.DIST($A94,0,Berechnung!$B$4,TRUE),0)) -> 1 | F94: =IF(AND($A94=0,Berechnung!$B$5=0),1,IF(Berechnung!$B$5<>0,_xlfn.NORM.DIST($A94,0,Berechnung!$B$5,FALSE),0)) -> 1.984124386e-07 | G94: =IF(AND($A94>=0,Berechnung!$B$5=0),1,IF(Berechnung!$B$5<>0,_xlfn.NORM.DIST($A94,0,Berechnung!$B$5,TRUE),0)) -> 0.9999994273 | H94: =IF(AND($A94=0,Berechnung!$B$6=0),1,IF(Berechnung!$B$6<>0,_xlfn.NORM.DIST($A94,0,Berechnung!$B$6,FALSE),0)) -> 1.992584857e-07 | I94: =IF(AND($A94>=0,Berechnung!$B$6=0),1,IF(Berechnung!$B$6<>0,_xlfn.NORM.DIST($A94,0,Berechnung!$B$6,TRUE),0)) -> 0.9999994246 | J94: =IF(AND($A94=0,Berechnung!$B$7=0),1,IF(Berechnung!$B$7<>0,_xlfn.NORM.DIST($A94,0,Berechnung!$B$7,FALSE),0)) -> 1.357071859e-15 | K94: =IF(AND($A94>=0,Berechnung!$B$7=0),1,IF(Berechnung!$B$7<>0,_xlfn.NORM.DIST($A94,0,Berechnung!$B$7,TRUE),0)) -> 1 | L94: =IF(AND($A94=0,Berechnung!$B$8=0),1,IF(Berechnung!$B$8<>0,_xlfn.NORM.DIST($A94,0,Berechnung!$B$8,FALSE),0)) -> 1.357071859e-15 | M94: =IF(AND($A94>=0,Berechnung!$B$8=0),1,IF(Berechnung!$B$8<>0,_xlfn.NORM.DIST($A94,0,Berechnung!$B$8,TRUE),0)) -> 1 | N94: =IF(AND($A94=0,Berechnung!$B$9=0),1,IF(Berechnung!$B$9<>0,_xlfn.NORM.DIST($A94,0,Berechnung!$B$9,FALSE),0)) -> 2.481544278e-12 | O94: =IF(AND($A94>=0,Berechnung!$B$9=0),1,IF(Berechnung!$B$9<>0,_xlfn.NORM.DIST($A94,0,Berechnung!$B$9,TRUE),0)) -> 1 | P94: =IF(AND($A94=0,Berechnung!$B$10=0),1,IF(Berechnung!$B$10<>0,_xlfn.NORM.DIST($A94,0,Berechnung!$B$10,FALSE),0)) -> 1.629342416e-10 | Q94: =IF(AND($A94>=0,Berechnung!$B$10=0),1,IF(Berechnung!$B$10<>0,_xlfn.NORM.DIST($A94,0,Berechnung!$B$10,TRUE),0)) -> 0.9999999997 | R94: =IF(AND($A94=0,Berechnung!$B$11=0),1,IF(Berechnung!$B$11<>0,_xlfn.NORM.DIST($A94,0,Berechnung!$B$11,FALSE),0)) -> 0 | S94: =IF(AND($A94>=0,Berechnung!$B$11=0),1,IF(Berechnung!$B$11<>0,_xlfn.NORM.DIST($A94,0,Berechnung!$B$11,TRUE),0)) -> 1 | T94: =Demonstrator!$J$19*'Daten Diagramm'!H94+Demonstrator!$J$24*'Daten Diagramm'!L94 -> 3.985169823e-08 | U94: =Demonstrator!$J$19*'Daten Diagramm'!I94+Demonstrator!$J$24*'Daten Diagramm'!M94 -> 0.9999998849
A95: 72 | B95: =IF(AND(A95=0,Berechnung!$B$3=0),1,IF(Berechnung!$B$3<>0,_xlfn.NORM.DIST(A95,0,Berechnung!$B$3,FALSE),0)) -> 5.613634537e-16 | C95: =IF(AND($A95>=0,Berechnung!$B$3=0),1,IF(Berechnung!$B$3<>0,_xlfn.NORM.DIST($A95,0,Berechnung!$B$3,TRUE),0)) -> 1 | D95: =IF(AND($A95=0,Berechnung!$B$4=0),1,IF(Berechnung!$B$4<>0,_xlfn.NORM.DIST($A95,0,Berechnung!$B$4,FALSE),0)) -> 5.613634537e-16 | E95: =IF(AND($A95>=0,Berechnung!$B$4=0),1,IF(Berechnung!$B$4<>0,_xlfn.NORM.DIST($A95,0,Berechnung!$B$4,TRUE),0)) -> 1 | F95: =IF(AND($A95=0,Berechnung!$B$5=0),1,IF(Berechnung!$B$5<>0,_xlfn.NORM.DIST($A95,0,Berechnung!$B$5,FALSE),0)) -> 1.418353867e-07 | G95: =IF(AND($A95>=0,Berechnung!$B$5=0),1,IF(Berechnung!$B$5<>0,_xlfn.NORM.DIST($A95,0,Berechnung!$B$5,TRUE),0)) -> 0.9999995959 | H95: =IF(AND($A95=0,Berechnung!$B$6=0),1,IF(Berechnung!$B$6<>0,_xlfn.NORM.DIST($A95,0,Berechnung!$B$6,FALSE),0)) -> 1.424581374e-07 | I95: =IF(AND($A95>=0,Berechnung!$B$6=0),1,IF(Berechnung!$B$6<>0,_xlfn.NORM.DIST($A95,0,Berechnung!$B$6,TRUE),0)) -> 0.9999995939 | J95: =IF(AND($A95=0,Berechnung!$B$7=0),1,IF(Berechnung!$B$7<>0,_xlfn.NORM.DIST($A95,0,Berechnung!$B$7,FALSE),0)) -> 5.613634537e-16 | K95: =IF(AND($A95>=0,Berechnung!$B$7=0),1,IF(Berechnung!$B$7<>0,_xlfn.NORM.DIST($A95,0,Berechnung!$B$7,TRUE),0)) -> 1 | L95: =IF(AND($A95=0,Berechnung!$B$8=0),1,IF(Berechnung!$B$8<>0,_xlfn.NORM.DIST($A95,0,Berechnung!$B$8,FALSE),0)) -> 5.613634537e-16 | M95: =IF(AND($A95>=0,Berechnung!$B$8=0),1,IF(Berechnung!$B$8<>0,_xlfn.NORM.DIST($A95,0,Berechnung!$B$8,TRUE),0)) -> 1 | N95: =IF(AND($A95=0,Berechnung!$B$9=0),1,IF(Berechnung!$B$9<>0,_xlfn.NORM.DIST($A95,0,Berechnung!$B$9,FALSE),0)) -> 1.275380614e-12 | O95: =IF(AND($A95>=0,Berechnung!$B$9=0),1,IF(Berechnung!$B$9<>0,_xlfn.NORM.DIST($A95,0,Berechnung!$B$9,TRUE),0)) -> 1 | P95: =IF(AND($A95=0,Berechnung!$B$10=0),1,IF(Berechnung!$B$10<>0,_xlfn.NORM.DIST($A95,0,Berechnung!$B$10,FALSE),0)) -> 9.456362728e-11 | Q95: =IF(AND($A95>=0,Berechnung!$B$10=0),1,IF(Berechnung!$B$10<>0,_xlfn.NORM.DIST($A95,0,Berechnung!$B$10,TRUE),0)) -> 0.9999999998 | R95: =IF(AND($A95=0,Berechnung!$B$11=0),1,IF(Berechnung!$B$11<>0,_xlfn.NORM.DIST($A95,0,Berechnung!$B$11,FALSE),0)) -> 0 | S95: =IF(AND($A95>=0,Berechnung!$B$11=0),1,IF(Berechnung!$B$11<>0,_xlfn.NORM.DIST($A95,0,Berechnung!$B$11,TRUE),0)) -> 1 | T95: =Demonstrator!$J$19*'Daten Diagramm'!H95+Demonstrator!$J$24*'Daten Diagramm'!L95 -> 2.849162793e-08 | U95: =Demonstrator!$J$19*'Daten Diagramm'!I95+Demonstrator!$J$24*'Daten Diagramm'!M95 -> 0.9999999188
A96: 73 | B96: =IF(AND(A96=0,Berechnung!$B$3=0),1,IF(Berechnung!$B$3<>0,_xlfn.NORM.DIST(A96,0,Berechnung!$B$3,FALSE),0)) -> 2.293632141e-16 | C96: =IF(AND($A96>=0,Berechnung!$B$3=0),1,IF(Berechnung!$B$3<>0,_xlfn.NORM.DIST($A96,0,Berechnung!$B$3,TRUE),0)) -> 1 | D96: =IF(AND($A96=0,Berechnung!$B$4=0),1,IF(Berechnung!$B$4<>0,_xlfn.NORM.DIST($A96,0,Berechnung!$B$4,FALSE),0)) -> 2.293632141e-16 | E96: =IF(AND($A96>=0,Berechnung!$B$4=0),1,IF(Berechnung!$B$4<>0,_xlfn.NORM.DIST($A96,0,Berechnung!$B$4,TRUE),0)) -> 1 | F96: =IF(AND($A96=0,Berechnung!$B$5=0),1,IF(Berechnung!$B$5<>0,_xlfn.NORM.DIST($A96,0,Berechnung!$B$5,FALSE),0)) -> 1.00916309e-07 | G96: =IF(AND($A96>=0,Berechnung!$B$5=0),1,IF(Berechnung!$B$5<>0,_xlfn.NORM.DIST($A96,0,Berechnung!$B$5,TRUE),0)) -> 0.9999997161 | H96: =IF(AND($A96=0,Berechnung!$B$6=0),1,IF(Berechnung!$B$6<>0,_xlfn.NORM.DIST($A96,0,Berechnung!$B$6,FALSE),0)) -> 1.013723518e-07 | I96: =IF(AND($A96>=0,Berechnung!$B$6=0),1,IF(Berechnung!$B$6<>0,_xlfn.NORM.DIST($A96,0,Berechnung!$B$6,TRUE),0)) -> 0.9999997147 | J96: =IF(AND($A96=0,Berechnung!$B$7=0),1,IF(Berechnung!$B$7<>0,_xlfn.NORM.DIST($A96,0,Berechnung!$B$7,FALSE),0)) -> 2.293632141e-16 | K96: =IF(AND($A96>=0,Berechnung!$B$7=0),1,IF(Berechnung!$B$7<>0,_xlfn.NORM.DIST($A96,0,Berechnung!$B$7,TRUE),0)) -> 1 | L96: =IF(AND($A96=0,Berechnung!$B$8=0),1,IF(Berechnung!$B$8<>0,_xlfn.NORM.DIST($A96,0,Berechnung!$B$8,FALSE),0)) -> 2.293632141e-16 | M96: =IF(AND($A96>=0,Berechnung!$B$8=0),1,IF(Berechnung!$B$8<>0,_xlfn.NORM.DIST($A96,0,Berechnung!$B$8,TRUE),0)) -> 1 | N96: =IF(AND($A96=0,Berechnung!$B$9=0),1,IF(Berechnung!$B$9<>0,_xlfn.NORM.DIST($A96,0,Berechnung!$B$9,FALSE),0)) -> 6.494032924e-13 | O96: =IF(AND($A96>=0,Berechnung!$B$9=0),1,IF(Berechnung!$B$9<>0,_xlfn.NORM.DIST($A96,0,Berechnung!$B$9,TRUE),0)) -> 1 | P96: =IF(AND($A96=0,Berechnung!$B$10=0),1,IF(Berechnung!$B$10<>0,_xlfn.NORM.DIST($A96,0,Berechnung!$B$10,FALSE),0)) -> 5.446671102e-11 | Q96: =IF(AND($A96>=0,Berechnung!$B$10=0),1,IF(Berechnung!$B$10<>0,_xlfn.NORM.DIST($A96,0,Berechnung!$B$10,TRUE),0)) -> 0.9999999999 | R96: =IF(AND($A96=0,Berechnung!$B$11=0),1,IF(Berechnung!$B$11<>0,_xlfn.NORM.DIST($A96,0,Berechnung!$B$11,FALSE),0)) -> 0 | S96: =IF(AND($A96>=0,Berechnung!$B$11=0),1,IF(Berechnung!$B$11<>0,_xlfn.NORM.DIST($A96,0,Berechnung!$B$11,TRUE),0)) -> 1 | T96: =Demonstrator!$J$19*'Daten Diagramm'!H96+Demonstrator!$J$24*'Daten Diagramm'!L96 -> 2.027447055e-08 | U96: =Demonstrator!$J$19*'Daten Diagramm'!I96+Demonstrator!$J$24*'Daten Diagramm'!M96 -> 0.9999999429
A97: 74 | B97: =IF(AND(A97=0,Berechnung!$B$3=0),1,IF(Berechnung!$B$3<>0,_xlfn.NORM.DIST(A97,0,Berechnung!$B$3,FALSE),0)) -> 9.256391951e-17 | C97: =IF(AND($A97>=0,Berechnung!$B$3=0),1,IF(Berechnung!$B$3<>0,_xlfn.NORM.DIST($A97,0,Berechnung!$B$3,TRUE),0)) -> 1 | D97: =IF(AND($A97=0,Berechnung!$B$4=0),1,IF(Berechnung!$B$4<>0,_xlfn.NORM.DIST($A97,0,Berechnung!$B$4,FALSE),0)) -> 9.256391951e-17 | E97: =IF(AND($A97>=0,Berechnung!$B$4=0),1,IF(Berechnung!$B$4<>0,_xlfn.NORM.DIST($A97,0,Berechnung!$B$4,TRUE),0)) -> 1 | F97: =IF(AND($A97=0,Berechnung!$B$5=0),1,IF(Berechnung!$B$5<>0,_xlfn.NORM.DIST($A97,0,Berechnung!$B$5,FALSE),0)) -> 7.146595104e-08 | G97: =IF(AND($A97>=0,Berechnung!$B$5=0),1,IF(Berechnung!$B$5<>0,_xlfn.NORM.DIST($A97,0,Berechnung!$B$5,TRUE),0)) -> 0.9999998015 | H97: =IF(AND($A97=0,Berechnung!$B$6=0),1,IF(Berechnung!$B$6<>0,_xlfn.NORM.DIST($A97,0,Berechnung!$B$6,FALSE),0)) -> 7.179820835e-08 | I97: =IF(AND($A97>=0,Berechnung!$B$6=0),1,IF(Berechnung!$B$6<>0,_xlfn.NORM.DIST($A97,0,Berechnung!$B$6,TRUE),0)) -> 0.9999998005 | J97: =IF(AND($A97=0,Berechnung!$B$7=0),1,IF(Berechnung!$B$7<>0,_xlfn.NORM.DIST($A97,0,Berechnung!$B$7,FALSE),0)) -> 9.256391951e-17 | K97: =IF(AND($A97>=0,Berechnung!$B$7=0),1,IF(Berechnung!$B$7<>0,_xlfn.NORM.DIST($A97,0,Berechnung!$B$7,TRUE),0)) -> 1 | L97: =IF(AND($A97=0,Berechnung!$B$8=0),1,IF(Berechnung!$B$8<>0,_xlfn.NORM.DIST($A97,0,Berechnung!$B$8,FALSE),0)) -> 9.256391951e-17 | M97: =IF(AND($A97>=0,Berechnung!$B$8=0),1,IF(Berechnung!$B$8<>0,_xlfn.NORM.DIST($A97,0,Berechnung!$B$8,TRUE),0)) -> 1 | N97: =IF(AND($A97=0,Berechnung!$B$9=0),1,IF(Berechnung!$B$9<>0,_xlfn.NORM.DIST($A97,0,Berechnung!$B$9,FALSE),0)) -> 3.276016292e-13 | O97: =IF(AND($A97>=0,Berechnung!$B$9=0),1,IF(Berechnung!$B$9<>0,_xlfn.NORM.DIST($A97,0,Berechnung!$B$9,TRUE),0)) -> 1 | P97: =IF(AND($A97=0,Berechnung!$B$10=0),1,IF(Berechnung!$B$10<>0,_xlfn.NORM.DIST($A97,0,Berechnung!$B$10,FALSE),0)) -> 3.113389447e-11 | Q97: =IF(AND($A97>=0,Berechnung!$B$10=0),1,IF(Berechnung!$B$10<>0,_xlfn.NORM.DIST($A97,0,Berechnung!$B$10,TRUE),0)) -> 0.9999999999 | R97: =IF(AND($A97=0,Berechnung!$B$11=0),1,IF(Berechnung!$B$11<>0,_xlfn.NORM.DIST($A97,0,Berechnung!$B$11,FALSE),0)) -> 0 | S97: =IF(AND($A97>=0,Berechnung!$B$11=0),1,IF(Berechnung!$B$11<>0,_xlfn.NORM.DIST($A97,0,Berechnung!$B$11,TRUE),0)) -> 1 | T97: =Demonstrator!$J$19*'Daten Diagramm'!H97+Demonstrator!$J$24*'Daten Diagramm'!L97 -> 1.435964174e-08 | U97: =Demonstrator!$J$19*'Daten Diagramm'!I97+Demonstrator!$J$24*'Daten Diagramm'!M97 -> 0.9999999601
A98: 75 | B98: =IF(AND(A98=0,Berechnung!$B$3=0),1,IF(Berechnung!$B$3<>0,_xlfn.NORM.DIST(A98,0,Berechnung!$B$3,FALSE),0)) -> 3.689759383e-17 | C98: =IF(AND($A98>=0,Berechnung!$B$3=0),1,IF(Berechnung!$B$3<>0,_xlfn.NORM.DIST($A98,0,Berechnung!$B$3,TRUE),0)) -> 1 | D98: =IF(AND($A98=0,Berechnung!$B$4=0),1,IF(Berechnung!$B$4<>0,_xlfn.NORM.DIST($A98,0,Berechnung!$B$4,FALSE),0)) -> 3.689759383e-17 | E98: =IF(AND($A98>=0,Berechnung!$B$4=0),1,IF(Berechnung!$B$4<>0,_xlfn.NORM.DIST($A98,0,Berechnung!$B$4,TRUE),0)) -> 1 | F98: =IF(AND($A98=0,Berechnung!$B$5=0),1,IF(Berechnung!$B$5<>0,_xlfn.NORM.DIST($A98,0,Berechnung!$B$5,FALSE),0)) -> 5.037302778e-08 | G98: =IF(AND($A98>=0,Berechnung!$B$5=0),1,IF(Berechnung!$B$5<>0,_xlfn.NORM.DIST($A98,0,Berechnung!$B$5,TRUE),0)) -> 0.9999998618 | H98: =IF(AND($A98=0,Berechnung!$B$6=0),1,IF(Berechnung!$B$6<>0,_xlfn.NORM.DIST($A98,0,Berechnung!$B$6,FALSE),0)) -> 5.061386659e-08 | I98: =IF(AND($A98>=0,Berechnung!$B$6=0),1,IF(Berechnung!$B$6<>0,_xlfn.NORM.DIST($A98,0,Berechnung!$B$6,TRUE),0)) -> 0.9999998611 | J98: =IF(AND($A98=0,Berechnung!$B$7=0),1,IF(Berechnung!$B$7<>0,_xlfn.NORM.DIST($A98,0,Berechnung!$B$7,FALSE),0)) -> 3.689759383e-17 | K98: =IF(AND($A98>=0,Berechnung!$B$7=0),1,IF(Berechnung!$B$7<>0,_xlfn.NORM.DIST($A98,0,Berechnung!$B$7,TRUE),0)) -> 1 | L98: =IF(AND($A98=0,Berechnung!$B$8=0),1,IF(Berechnung!$B$8<>0,_xlfn.NORM.DIST($A98,0,Berechnung!$B$8,FALSE),0)) -> 3.689759383e-17 | M98: =IF(AND($A98>=0,Berechnung!$B$8=0),1,IF(Berechnung!$B$8<>0,_xlfn.NORM.DIST($A98,0,Berechnung!$B$8,TRUE),0)) -> 1 | N98: =IF(AND($A98=0,Berechnung!$B$9=0),1,IF(Berechnung!$B$9<>0,_xlfn.NORM.DIST($A98,0,Berechnung!$B$9,FALSE),0)) -> 1.637323563e-13 | O98: =IF(AND($A98>=0,Berechnung!$B$9=0),1,IF(Berechnung!$B$9<>0,_xlfn.NORM.DIST($A98,0,Berechnung!$B$9,TRUE),0)) -> 1 | P98: =IF(AND($A98=0,Berechnung!$B$10=0),1,IF(Berechnung!$B$10<>0,_xlfn.NORM.DIST($A98,0,Berechnung!$B$10,FALSE),0)) -> 1.766163951e-11 | Q98: =IF(AND($A98>=0,Berechnung!$B$10=0),1,IF(Berechnung!$B$10<>0,_xlfn.NORM.DIST($A98,0,Berechnung!$B$10,TRUE),0)) -> 1 | R98: =IF(AND($A98=0,Berechnung!$B$11=0),1,IF(Berechnung!$B$11<>0,_xlfn.NORM.DIST($A98,0,Berechnung!$B$11,FALSE),0)) -> 0 | S98: =IF(AND($A98>=0,Berechnung!$B$11=0),1,IF(Berechnung!$B$11<>0,_xlfn.NORM.DIST($A98,0,Berechnung!$B$11,TRUE),0)) -> 1 | T98: =Demonstrator!$J$19*'Daten Diagramm'!H98+Demonstrator!$J$24*'Daten Diagramm'!L98 -> 1.012277335e-08 | U98: =Demonstrator!$J$19*'Daten Diagramm'!I98+Demonstrator!$J$24*'Daten Diagramm'!M98 -> 0.9999999722
A99: 76 | B99: =IF(AND(A99=0,Berechnung!$B$3=0),1,IF(Berechnung!$B$3<>0,_xlfn.NORM.DIST(A99,0,Berechnung!$B$3,FALSE),0)) -> 1.452756059e-17 | C99: =IF(AND($A99>=0,Berechnung!$B$3=0),1,IF(Berechnung!$B$3<>0,_xlfn.NORM.DIST($A99,0,Berechnung!$B$3,TRUE),0)) -> 1 | D99: =IF(AND($A99=0,Berechnung!$B$4=0),1,IF(Berechnung!$B$4<>0,_xlfn.NORM.DIST($A99,0,Berechnung!$B$4,FALSE),0)) -> 1.452756059e-17 | E99: =IF(AND($A99>=0,Berechnung!$B$4=0),1,IF(Berechnung!$B$4<>0,_xlfn.NORM.DIST($A99,0,Berechnung!$B$4,TRUE),0)) -> 1 | F99: =IF(AND($A99=0,Berechnung!$B$5=0),1,IF(Berechnung!$B$5<>0,_xlfn.NORM.DIST($A99,0,Berechnung!$B$5,FALSE),0)) -> 3.533930409e-08 | G99: =IF(AND($A99>=0,Berechnung!$B$5=0),1,IF(Berechnung!$B$5<>0,_xlfn.NORM.DIST($A99,0,Berechnung!$B$5,TRUE),0)) -> 0.9999999043 | H99: =IF(AND($A99=0,Berechnung!$B$6=0),1,IF(Berechnung!$B$6<>0,_xlfn.NORM.DIST($A99,0,Berechnung!$B$6,FALSE),0)) -> 3.551299084e-08 | I99: =IF(AND($A99>=0,Berechnung!$B$6=0),1,IF(Berechnung!$B$6<>0,_xlfn.NORM.DIST($A99,0,Berechnung!$B$6,TRUE),0)) -> 0.9999999038 | J99: =IF(AND($A99=0,Berechnung!$B$7=0),1,IF(Berechnung!$B$7<>0,_xlfn.NORM.DIST($A99,0,Berechnung!$B$7,FALSE),0)) -> 1.452756059e-17 | K99: =IF(AND($A99>=0,Berechnung!$B$7=0),1,IF(Berechnung!$B$7<>0,_xlfn.NORM.DIST($A99,0,Berechnung!$B$7,TRUE),0)) -> 1 | L99: =IF(AND($A99=0,Berechnung!$B$8=0),1,IF(Berechnung!$B$8<>0,_xlfn.NORM.DIST($A99,0,Berechnung!$B$8,FALSE),0)) -> 1.452756059e-17 | M99: =IF(AND($A99>=0,Berechnung!$B$8=0),1,IF(Berechnung!$B$8<>0,_xlfn.NORM.DIST($A99,0,Berechnung!$B$8,TRUE),0)) -> 1 | N99: =IF(AND($A99=0,Berechnung!$B$9=0),1,IF(Berechnung!$B$9<>0,_xlfn.NORM.DIST($A99,0,Berechnung!$B$9,FALSE),0)) -> 8.107367557e-14 | O99: =IF(AND($A99>=0,Berechnung!$B$9=0),1,IF(Berechnung!$B$9<>0,_xlfn.NORM.DIST($A99,0,Berechnung!$B$9,TRUE),0)) -> 1 | P99: =IF(AND($A99=0,Berechnung!$B$10=0),1,IF(Berechnung!$B$10<>0,_xlfn.NORM.DIST($A99,0,Berechnung!$B$10,FALSE),0)) -> 9.943146834e-12 | Q99: =IF(AND($A99>=0,Berechnung!$B$10=0),1,IF(Berechnung!$B$10<>0,_xlfn.NORM.DIST($A99,0,Berechnung!$B$10,TRUE),0)) -> 1 | R99: =IF(AND($A99=0,Berechnung!$B$11=0),1,IF(Berechnung!$B$11<>0,_xlfn.NORM.DIST($A99,0,Berechnung!$B$11,FALSE),0)) -> 0 | S99: =IF(AND($A99>=0,Berechnung!$B$11=0),1,IF(Berechnung!$B$11<>0,_xlfn.NORM.DIST($A99,0,Berechnung!$B$11,TRUE),0)) -> 1 | T99: =Demonstrator!$J$19*'Daten Diagramm'!H99+Demonstrator!$J$24*'Daten Diagramm'!L99 -> 7.10259818e-09 | U99: =Demonstrator!$J$19*'Daten Diagramm'!I99+Demonstrator!$J$24*'Daten Diagramm'!M99 -> 0.9999999808
A100: 77 | B100: =IF(AND(A100=0,Berechnung!$B$3=0),1,IF(Berechnung!$B$3<>0,_xlfn.NORM.DIST(A100,0,Berechnung!$B$3,FALSE),0)) -> 5.649703869e-18 | C100: =IF(AND($A100>=0,Berechnung!$B$3=0),1,IF(Berechnung!$B$3<>0,_xlfn.NORM.DIST($A100,0,Berechnung!$B$3,TRUE),0)) -> 1 | D100: =IF(AND($A100=0,Berechnung!$B$4=0),1,IF(Berechnung!$B$4<>0,_xlfn.NORM.DIST($A100,0,Berechnung!$B$4,FALSE),0)) -> 5.649703869e-18 | E100: =IF(AND($A100>=0,Berechnung!$B$4=0),1,IF(Berechnung!$B$4<>0,_xlfn.NORM.DIST($A100,0,Berechnung!$B$4,TRUE),0)) -> 1 | F100: =IF(AND($A100=0,Berechnung!$B$5=0),1,IF(Berechnung!$B$5<>0,_xlfn.NORM.DIST($A100,0,Berechnung!$B$5,FALSE),0)) -> 2.46762402e-08 | G100: =IF(AND($A100>=0,Berechnung!$B$5=0),1,IF(Berechnung!$B$5<>0,_xlfn.NORM.DIST($A100,0,Berechnung!$B$5,TRUE),0)) -> 0.999999934 | H100: =IF(AND($A100=0,Berechnung!$B$6=0),1,IF(Berechnung!$B$6<>0,_xlfn.NORM.DIST($A100,0,Berechnung!$B$6,FALSE),0)) -> 2.480086378e-08 | I100: =IF(AND($A100>=0,Berechnung!$B$6=0),1,IF(Berechnung!$B$6<>0,_xlfn.NORM.DIST($A100,0,Berechnung!$B$6,TRUE),0)) -> 0.9999999336 | J100: =IF(AND($A100=0,Berechnung!$B$7=0),1,IF(Berechnung!$B$7<>0,_xlfn.NORM.DIST($A100,0,Berechnung!$B$7,FALSE),0)) -> 5.649703869e-18 | K100: =IF(AND($A100>=0,Berechnung!$B$7=0),1,IF(Berechnung!$B$7<>0,_xlfn.NORM.DIST($A100,0,Berechnung!$B$7,TRUE),0)) -> 1 | L100: =IF(AND($A100=0,Berechnung!$B$8=0),1,IF(Berechnung!$B$8<>0,_xlfn.NORM.DIST($A100,0,Berechnung!$B$8,FALSE),0)) -> 5.649703869e-18 | M100: =IF(AND($A100>=0,Berechnung!$B$8=0),1,IF(Berechnung!$B$8<>0,_xlfn.NORM.DIST($A100,0,Berechnung!$B$8,TRUE),0)) -> 1 | N100: =IF(AND($A100=0,Berechnung!$B$9=0),1,IF(Berechnung!$B$9<>0,_xlfn.NORM.DIST($A100,0,Berechnung!$B$9,FALSE),0)) -> 3.977242813e-14 | O100: =IF(AND($A100>=0,Berechnung!$B$9=0),1,IF(Berechnung!$B$9<>0,_xlfn.NORM.DIST($A100,0,Berechnung!$B$9,TRUE),0)) -> 1 | P100: =IF(AND($A100=0,Berechnung!$B$10=0),1,IF(Berechnung!$B$10<>0,_xlfn.NORM.DIST($A100,0,Berechnung!$B$10,FALSE),0)) -> 5.55535682e-12 | Q100: =IF(AND($A100>=0,Berechnung!$B$10=0),1,IF(Berechnung!$B$10<>0,_xlfn.NORM.DIST($A100,0,Berechnung!$B$10,TRUE),0)) -> 1 | R100: =IF(AND($A100=0,Berechnung!$B$11=0),1,IF(Berechnung!$B$11<>0,_xlfn.NORM.DIST($A100,0,Berechnung!$B$11,FALSE),0)) -> 0 | S100: =IF(AND($A100>=0,Berechnung!$B$11=0),1,IF(Berechnung!$B$11<>0,_xlfn.NORM.DIST($A100,0,Berechnung!$B$11,TRUE),0)) -> 1 | T100: =Demonstrator!$J$19*'Daten Diagramm'!H100+Demonstrator!$J$24*'Daten Diagramm'!L100 -> 4.960172761e-09 | U100: =Demonstrator!$J$19*'Daten Diagramm'!I100+Demonstrator!$J$24*'Daten Diagramm'!M100 -> 0.9999999867
A101: 78 | B101: =IF(AND(A101=0,Berechnung!$B$3=0),1,IF(Berechnung!$B$3<>0,_xlfn.NORM.DIST(A101,0,Berechnung!$B$3,FALSE),0)) -> 2.170186281e-18 | C101: =IF(AND($A101>=0,Berechnung!$B$3=0),1,IF(Berechnung!$B$3<>0,_xlfn.NORM.DIST($A101,0,Berechnung!$B$3,TRUE),0)) -> 1 | D101: =IF(AND($A101=0,Berechnung!$B$4=0),1,IF(Berechnung!$B$4<>0,_xlfn.NORM.DIST($A101,0,Berechnung!$B$4,FALSE),0)) -> 2.170186281e-18 | E101: =IF(AND($A101>=0,Berechnung!$B$4=0),1,IF(Berechnung!$B$4<>0,_xlfn.NORM.DIST($A101,0,Berechnung!$B$4,TRUE),0)) -> 1 | F101: =IF(AND($A101=0,Berechnung!$B$5=0),1,IF(Berechnung!$B$5<>0,_xlfn.NORM.DIST($A101,0,Berechnung!$B$5,FALSE),0)) -> 1.714987835e-08 | G101: =IF(AND($A101>=0,Berechnung!$B$5=0),1,IF(Berechnung!$B$5<>0,_xlfn.NORM.DIST($A101,0,Berechnung!$B$5,TRUE),0)) -> 0.9999999547 | H101: =IF(AND($A101=0,Berechnung!$B$6=0),1,IF(Berechnung!$B$6<>0,_xlfn.NORM.DIST($A101,0,Berechnung!$B$6,FALSE),0)) -> 1.723884596e-08 | I101: =IF(AND($A101>=0,Berechnung!$B$6=0),1,IF(Berechnung!$B$6<>0,_xlfn.NORM.DIST($A101,0,Berechnung!$B$6,TRUE),0)) -> 0.9999999544 | J101: =IF(AND($A101=0,Berechnung!$B$7=0),1,IF(Berechnung!$B$7<>0,_xlfn.NORM.DIST($A101,0,Berechnung!$B$7,FALSE),0)) -> 2.170186281e-18 | K101: =IF(AND($A101>=0,Berechnung!$B$7=0),1,IF(Berechnung!$B$7<>0,_xlfn.NORM.DIST($A101,0,Berechnung!$B$7,TRUE),0)) -> 1 | L101: =IF(AND($A101=0,Berechnung!$B$8=0),1,IF(Berechnung!$B$8<>0,_xlfn.NORM.DIST($A101,0,Berechnung!$B$8,FALSE),0)) -> 2.170186281e-18 | M101: =IF(AND($A101>=0,Berechnung!$B$8=0),1,IF(Berechnung!$B$8<>0,_xlfn.NORM.DIST($A101,0,Berechnung!$B$8,TRUE),0)) -> 1 | N101: =IF(AND($A101=0,Berechnung!$B$9=0),1,IF(Berechnung!$B$9<>0,_xlfn.NORM.DIST($A101,0,Berechnung!$B$9,FALSE),0)) -> 1.93304178e-14 | O101: =IF(AND($A101>=0,Berechnung!$B$9=0),1,IF(Berechnung!$B$9<>0,_xlfn.NORM.DIST($A101,0,Berechnung!$B$9,TRUE),0)) -> 1 | P101: =IF(AND($A101=0,Berechnung!$B$10=0),1,IF(Berechnung!$B$10<>0,_xlfn.NORM.DIST($A101,0,Berechnung!$B$10,FALSE),0)) -> 3.080316443e-12 | Q101: =IF(AND($A101>=0,Berechnung!$B$10=0),1,IF(Berechnung!$B$10<>0,_xlfn.NORM.DIST($A101,0,Berechnung!$B$10,TRUE),0)) -> 1 | R101: =IF(AND($A101=0,Berechnung!$B$11=0),1,IF(Berechnung!$B$11<>0,_xlfn.NORM.DIST($A101,0,Berechnung!$B$11,FALSE),0)) -> 0 | S101: =IF(AND($A101>=0,Berechnung!$B$11=0),1,IF(Berechnung!$B$11<>0,_xlfn.NORM.DIST($A101,0,Berechnung!$B$11,TRUE),0)) -> 1 | T101: =Demonstrator!$J$19*'Daten Diagramm'!H101+Demonstrator!$J$24*'Daten Diagramm'!L101 -> 3.447769193e-09 | U101: =Demonstrator!$J$19*'Daten Diagramm'!I101+Demonstrator!$J$24*'Daten Diagramm'!M101 -> 0.9999999909
A102: 79 | B102: =IF(AND(A102=0,Berechnung!$B$3=0),1,IF(Berechnung!$B$3<>0,_xlfn.NORM.DIST(A102,0,Berechnung!$B$3,FALSE),0)) -> 8.233920748e-19 | C102: =IF(AND($A102>=0,Berechnung!$B$3=0),1,IF(Berechnung!$B$3<>0,_xlfn.NORM.DIST($A102,0,Berechnung!$B$3,TRUE),0)) -> 1 | D102: =IF(AND($A102=0,Berechnung!$B$4=0),1,IF(Berechnung!$B$4<>0,_xlfn.NORM.DIST($A102,0,Berechnung!$B$4,FALSE),0)) -> 8.233920748e-19 | E102: =IF(AND($A102>=0,Berechnung!$B$4=0),1,IF(Berechnung!$B$4<>0,_xlfn.NORM.DIST($A102,0,Berechnung!$B$4,TRUE),0)) -> 1 | F102: =IF(AND($A102=0,Berechnung!$B$5=0),1,IF(Berechnung!$B$5<>0,_xlfn.NORM.DIST($A102,0,Berechnung!$B$5,FALSE),0)) -> 1.186326296e-08 | G102: =IF(AND($A102>=0,Berechnung!$B$5=0),1,IF(Berechnung!$B$5<>0,_xlfn.NORM.DIST($A102,0,Berechnung!$B$5,TRUE),0)) -> 0.999999969 | H102: =IF(AND($A102=0,Berechnung!$B$6=0),1,IF(Berechnung!$B$6<>0,_xlfn.NORM.DIST($A102,0,Berechnung!$B$6,FALSE),0)) -> 1.192645558e-08 | I102: =IF(AND($A102>=0,Berechnung!$B$6=0),1,IF(Berechnung!$B$6<>0,_xlfn.NORM.DIST($A102,0,Berechnung!$B$6,TRUE),0)) -> 0.9999999688 | J102: =IF(AND($A102=0,Berechnung!$B$7=0),1,IF(Berechnung!$B$7<>0,_xlfn.NORM.DIST($A102,0,Berechnung!$B$7,FALSE),0)) -> 8.233920748e-19 | K102: =IF(AND($A102>=0,Berechnung!$B$7=0),1,IF(Berechnung!$B$7<>0,_xlfn.NORM.DIST($A102,0,Berechnung!$B$7,TRUE),0)) -> 1 | L102: =IF(AND($A102=0,Berechnung!$B$8=0),1,IF(Berechnung!$B$8<>0,_xlfn.NORM.DIST($A102,0,Berechnung!$B$8,FALSE),0)) -> 8.233920748e-19 | M102: =IF(AND($A102>=0,Berechnung!$B$8=0),1,IF(Berechnung!$B$8<>0,_xlfn.NORM.DIST($A102,0,Berechnung!$B$8,TRUE),0)) -> 1 | N102: =IF(AND($A102=0,Berechnung!$B$9=0),1,IF(Berechnung!$B$9<>0,_xlfn.NORM.DIST($A102,0,Berechnung!$B$9,FALSE),0)) -> 9.308019146e-15 | O102: =IF(AND($A102>=0,Berechnung!$B$9=0),1,IF(Berechnung!$B$9<>0,_xlfn.NORM.DIST($A102,0,Berechnung!$B$9,TRUE),0)) -> 1 | P102: =IF(AND($A102=0,Berechnung!$B$10=0),1,IF(Berechnung!$B$10<>0,_xlfn.NORM.DIST($A102,0,Berechnung!$B$10,FALSE),0)) -> 1.69501669e-12 | Q102: =IF(AND($A102>=0,Berechnung!$B$10=0),1,IF(Berechnung!$B$10<>0,_xlfn.NORM.DIST($A102,0,Berechnung!$B$10,TRUE),0)) -> 1 | R102: =IF(AND($A102=0,Berechnung!$B$11=0),1,IF(Berechnung!$B$11<>0,_xlfn.NORM.DIST($A102,0,Berechnung!$B$11,FALSE),0)) -> 0 | S102: =IF(AND($A102>=0,Berechnung!$B$11=0),1,IF(Berechnung!$B$11<>0,_xlfn.NORM.DIST($A102,0,Berechnung!$B$11,TRUE),0)) -> 1 | T102: =Demonstrator!$J$19*'Daten Diagramm'!H102+Demonstrator!$J$24*'Daten Diagramm'!L102 -> 2.385291117e-09 | U102: =Demonstrator!$J$19*'Daten Diagramm'!I102+Demonstrator!$J$24*'Daten Diagramm'!M102 -> 0.9999999938
A103: 80 | B103: =IF(AND(A103=0,Berechnung!$B$3=0),1,IF(Berechnung!$B$3<>0,_xlfn.NORM.DIST(A103,0,Berechnung!$B$3,FALSE),0)) -> 3.085707038e-19 | C103: =IF(AND($A103>=0,Berechnung!$B$3=0),1,IF(Berechnung!$B$3<>0,_xlfn.NORM.DIST($A103,0,Berechnung!$B$3,TRUE),0)) -> 1 | D103: =IF(AND($A103=0,Berechnung!$B$4=0),1,IF(Berechnung!$B$4<>0,_xlfn.NORM.DIST($A103,0,Berechnung!$B$4,FALSE),0)) -> 3.085707038e-19 | E103: =IF(AND($A103>=0,Berechnung!$B$4=0),1,IF(Berechnung!$B$4<>0,_xlfn.NORM.DIST($A103,0,Berechnung!$B$4,TRUE),0)) -> 1 | F103: =IF(AND($A103=0,Berechnung!$B$5=0),1,IF(Berechnung!$B$5<>0,_xlfn.NORM.DIST($A103,0,Berechnung!$B$5,FALSE),0)) -> 8.167860832e-09 | G103: =IF(AND($A103>=0,Berechnung!$B$5=0),1,IF(Berechnung!$B$5<>0,_xlfn.NORM.DIST($A103,0,Berechnung!$B$5,TRUE),0)) -> 0.9999999789 | H103: =IF(AND($A103=0,Berechnung!$B$6=0),1,IF(Berechnung!$B$6<>0,_xlfn.NORM.DIST($A103,0,Berechnung!$B$6,FALSE),0)) -> 8.212519722e-09 | I103: =IF(AND($A103>=0,Berechnung!$B$6=0),1,IF(Berechnung!$B$6<>0,_xlfn.NORM.DIST($A103,0,Berechnung!$B$6,TRUE),0)) -> 0.9999999788 | J103: =IF(AND($A103=0,Berechnung!$B$7=0),1,IF(Berechnung!$B$7<>0,_xlfn.NORM.DIST($A103,0,Berechnung!$B$7,FALSE),0)) -> 3.085707038e-19 | K103: =IF(AND($A103>=0,Berechnung!$B$7=0),1,IF(Berechnung!$B$7<>0,_xlfn.NORM.DIST($A103,0,Berechnung!$B$7,TRUE),0)) -> 1 | L103: =IF(AND($A103=0,Berechnung!$B$8=0),1,IF(Berechnung!$B$8<>0,_xlfn.NORM.DIST($A103,0,Berechnung!$B$8,FALSE),0)) -> 3.085707038e-19 | M103: =IF(AND($A103>=0,Berechnung!$B$8=0),1,IF(Berechnung!$B$8<>0,_xlfn.NORM.DIST($A103,0,Berechnung!$B$8,TRUE),0)) -> 1 | N103: =IF(AND($A103=0,Berechnung!$B$9=0),1,IF(Berechnung!$B$9<>0,_xlfn.NORM.DIST($A103,0,Berechnung!$B$9,FALSE),0)) -> 4.440482748e-15 | O103: =IF(AND($A103>=0,Berechnung!$B$9=0),1,IF(Berechnung!$B$9<>0,_xlfn.NORM.DIST($A103,0,Berechnung!$B$9,TRUE),0)) -> 1 | P103: =IF(AND($A103=0,Berechnung!$B$10=0),1,IF(Berechnung!$B$10<>0,_xlfn.NORM.DIST($A103,0,Berechnung!$B$10,FALSE),0)) -> 9.256523177e-13 | Q103: =IF(AND($A103>=0,Berechnung!$B$10=0),1,IF(Berechnung!$B$10<>0,_xlfn.NORM.DIST($A103,0,Berechnung!$B$10,TRUE),0)) -> 1 | R103: =IF(AND($A103=0,Berechnung!$B$11=0),1,IF(Berechnung!$B$11<>0,_xlfn.NORM.DIST($A103,0,Berechnung!$B$11,FALSE),0)) -> 0 | S103: =IF(AND($A103>=0,Berechnung!$B$11=0),1,IF(Berechnung!$B$11<>0,_xlfn.NORM.DIST($A103,0,Berechnung!$B$11,TRUE),0)) -> 1 | T103: =Demonstrator!$J$19*'Daten Diagramm'!H103+Demonstrator!$J$24*'Daten Diagramm'!L103 -> 1.642503945e-09 | U103: =Demonstrator!$J$19*'Daten Diagramm'!I103+Demonstrator!$J$24*'Daten Diagramm'!M103 -> 0.9999999958
A104: 81 | B104: =IF(AND(A104=0,Berechnung!$B$3=0),1,IF(Berechnung!$B$3<>0,_xlfn.NORM.DIST(A104,0,Berechnung!$B$3,FALSE),0)) -> 1.142197064e-19 | C104: =IF(AND($A104>=0,Berechnung!$B$3=0),1,IF(Berechnung!$B$3<>0,_xlfn.NORM.DIST($A104,0,Berechnung!$B$3,TRUE),0)) -> 1 | D104: =IF(AND($A104=0,Berechnung!$B$4=0),1,IF(Berechnung!$B$4<>0,_xlfn.NORM.DIST($A104,0,Berechnung!$B$4,FALSE),0)) -> 1.142197064e-19 | E104: =IF(AND($A104>=0,Berechnung!$B$4=0),1,IF(Berechnung!$B$4<>0,_xlfn.NORM.DIST($A104,0,Berechnung!$B$4,TRUE),0)) -> 1 | F104: =IF(AND($A104=0,Berechnung!$B$5=0),1,IF(Berechnung!$B$5<>0,_xlfn.NORM.DIST($A104,0,Berechnung!$B$5,FALSE),0)) -> 5.597235248e-09 | G104: =IF(AND($A104>=0,Berechnung!$B$5=0),1,IF(Berechnung!$B$5<>0,_xlfn.NORM.DIST($A104,0,Berechnung!$B$5,TRUE),0)) -> 0.9999999857 | H104: =IF(AND($A104=0,Berechnung!$B$6=0),1,IF(Berechnung!$B$6<>0,_xlfn.NORM.DIST($A104,0,Berechnung!$B$6,FALSE),0)) -> 5.628637506e-09 | I104: =IF(AND($A104>=0,Berechnung!$B$6=0),1,IF(Berechnung!$B$6<>0,_xlfn.NORM.DIST($A104,0,Berechnung!$B$6,TRUE),0)) -> 0.9999999856 | J104: =IF(AND($A104=0,Berechnung!$B$7=0),1,IF(Berechnung!$B$7<>0,_xlfn.NORM.DIST($A104,0,Berechnung!$B$7,FALSE),0)) -> 1.142197064e-19 | K104: =IF(AND($A104>=0,Berechnung!$B$7=0),1,IF(Berechnung!$B$7<>0,_xlfn.NORM.DIST($A104,0,Berechnung!$B$7,TRUE),0)) -> 1 | L104: =IF(AND($A104=0,Berechnung!$B$8=0),1,IF(Berechnung!$B$8<>0,_xlfn.NORM.DIST($A104,0,Berechnung!$B$8,FALSE),0)) -> 1.142197064e-19 | M104: =IF(AND($A104>=0,Berechnung!$B$8=0),1,IF(Berechnung!$B$8<>0,_xlfn.NORM.DIST($A104,0,Berechnung!$B$8,TRUE),0)) -> 1 | N104: =IF(AND($A104=0,Berechnung!$B$9=0),1,IF(Berechnung!$B$9<>0,_xlfn.NORM.DIST($A104,0,Berechnung!$B$9,FALSE),0)) -> 2.098746565e-15 | O104: =IF(AND($A104>=0,Berechnung!$B$9=0),1,IF(Berechnung!$B$9<>0,_xlfn.NORM.DIST($A104,0,Berechnung!$B$9,TRUE),0)) -> 1 | P104: =IF(AND($A104=0,Berechnung!$B$10=0),1,IF(Berechnung!$B$10<>0,_xlfn.NORM.DIST($A104,0,Berechnung!$B$10,FALSE),0)) -> 5.016687818e-13 | Q104: =IF(AND($A104>=0,Berechnung!$B$10=0),1,IF(Berechnung!$B$10<>0,_xlfn.NORM.DIST($A104,0,Berechnung!$B$10,TRUE),0)) -> 1 | R104: =IF(AND($A104=0,Berechnung!$B$11=0),1,IF(Berechnung!$B$11<>0,_xlfn.NORM.DIST($A104,0,Berechnung!$B$11,FALSE),0)) -> 0 | S104: =IF(AND($A104>=0,Berechnung!$B$11=0),1,IF(Berechnung!$B$11<>0,_xlfn.NORM.DIST($A104,0,Berechnung!$B$11,TRUE),0)) -> 1 | T104: =Demonstrator!$J$19*'Daten Diagramm'!H104+Demonstrator!$J$24*'Daten Diagramm'!L104 -> 1.125727501e-09 | U104: =Demonstrator!$J$19*'Daten Diagramm'!I104+Demonstrator!$J$24*'Daten Diagramm'!M104 -> 0.9999999971
A105: 82 | B105: =IF(AND(A105=0,Berechnung!$B$3=0),1,IF(Berechnung!$B$3<>0,_xlfn.NORM.DIST(A105,0,Berechnung!$B$3,FALSE),0)) -> 4.17605036e-20 | C105: =IF(AND($A105>=0,Berechnung!$B$3=0),1,IF(Berechnung!$B$3<>0,_xlfn.NORM.DIST($A105,0,Berechnung!$B$3,TRUE),0)) -> 1 | D105: =IF(AND($A105=0,Berechnung!$B$4=0),1,IF(Berechnung!$B$4<>0,_xlfn.NORM.DIST($A105,0,Berechnung!$B$4,FALSE),0)) -> 4.17605036e-20 | E105: =IF(AND($A105>=0,Berechnung!$B$4=0),1,IF(Berechnung!$B$4<>0,_xlfn.NORM.DIST($A105,0,Berechnung!$B$4,TRUE),0)) -> 1 | F105: =IF(AND($A105=0,Berechnung!$B$5=0),1,IF(Berechnung!$B$5<>0,_xlfn.NORM.DIST($A105,0,Berechnung!$B$5,FALSE),0)) -> 3.817682878e-09 | G105: =IF(AND($A105>=0,Berechnung!$B$5=0),1,IF(Berechnung!$B$5<>0,_xlfn.NORM.DIST($A105,0,Berechnung!$B$5,TRUE),0)) -> 0.9999999904 | H105: =IF(AND($A105=0,Berechnung!$B$6=0),1,IF(Berechnung!$B$6<>0,_xlfn.NORM.DIST($A105,0,Berechnung!$B$6,FALSE),0)) -> 3.839652836e-09 | I105: =IF(AND($A105>=0,Berechnung!$B$6=0),1,IF(Berechnung!$B$6<>0,_xlfn.NORM.DIST($A105,0,Berechnung!$B$6,TRUE),0)) -> 0.9999999903 | J105: =IF(AND($A105=0,Berechnung!$B$7=0),1,IF(Berechnung!$B$7<>0,_xlfn.NORM.DIST($A105,0,Berechnung!$B$7,FALSE),0)) -> 4.17605036e-20 | K105: =IF(AND($A105>=0,Berechnung!$B$7=0),1,IF(Berechnung!$B$7<>0,_xlfn.NORM.DIST($A105,0,Berechnung!$B$7,TRUE),0)) -> 1 | L105: =IF(AND($A105=0,Berechnung!$B$8=0),1,IF(Berechnung!$B$8<>0,_xlfn.NORM.DIST($A105,0,Berechnung!$B$8,FALSE),0)) -> 4.17605036e-20 | M105: =IF(AND($A105>=0,Berechnung!$B$8=0),1,IF(Berechnung!$B$8<>0,_xlfn.NORM.DIST($A105,0,Berechnung!$B$8,TRUE),0)) -> 1 | N105: =IF(AND($A105=0,Berechnung!$B$9=0),1,IF(Berechnung!$B$9<>0,_xlfn.NORM.DIST($A105,0,Berechnung!$B$9,FALSE),0)) -> 9.827582578e-16 | O105: =IF(AND($A105>=0,Berechnung!$B$9=0),1,IF(Berechnung!$B$9<>0,_xlfn.NORM.DIST($A105,0,Berechnung!$B$9,TRUE),0)) -> 1 | P105: =IF(AND($A105=0,Berechnung!$B$10=0),1,IF(Berechnung!$B$10<>0,_xlfn.NORM.DIST($A105,0,Berechnung!$B$10,FALSE),0)) -> 2.69824592e-13 | Q105: =IF(AND($A105>=0,Berechnung!$B$10=0),1,IF(Berechnung!$B$10<>0,_xlfn.NORM.DIST($A105,0,Berechnung!$B$10,TRUE),0)) -> 1 | R105: =IF(AND($A105=0,Berechnung!$B$11=0),1,IF(Berechnung!$B$11<>0,_xlfn.NORM.DIST($A105,0,Berechnung!$B$11,FALSE),0)) -> 0 | S105: =IF(AND($A105>=0,Berechnung!$B$11=0),1,IF(Berechnung!$B$11<>0,_xlfn.NORM.DIST($A105,0,Berechnung!$B$11,TRUE),0)) -> 1 | T105: =Demonstrator!$J$19*'Daten Diagramm'!H105+Demonstrator!$J$24*'Daten Diagramm'!L105 -> 7.679305673e-10 | U105: =Demonstrator!$J$19*'Daten Diagramm'!I105+Demonstrator!$J$24*'Daten Diagramm'!M105 -> 0.9999999981
A106: 83 | B106: =IF(AND(A106=0,Berechnung!$B$3=0),1,IF(Berechnung!$B$3<>0,_xlfn.NORM.DIST(A106,0,Berechnung!$B$3,FALSE),0)) -> 1.508095191e-20 | C106: =IF(AND($A106>=0,Berechnung!$B$3=0),1,IF(Berechnung!$B$3<>0,_xlfn.NORM.DIST($A106,0,Berechnung!$B$3,TRUE),0)) -> 1 | D106: =IF(AND($A106=0,Berechnung!$B$4=0),1,IF(Berechnung!$B$4<>0,_xlfn.NORM.DIST($A106,0,Berechnung!$B$4,FALSE),0)) -> 1.508095191e-20 | E106: =IF(AND($A106>=0,Berechnung!$B$4=0),1,IF(Berechnung!$B$4<>0,_xlfn.NORM.DIST($A106,0,Berechnung!$B$4,TRUE),0)) -> 1 | F106: =IF(AND($A106=0,Berechnung!$B$5=0),1,IF(Berechnung!$B$5<>0,_xlfn.NORM.DIST($A106,0,Berechnung!$B$5,FALSE),0)) -> 2.59171474e-09 | G106: =IF(AND($A106>=0,Berechnung!$B$5=0),1,IF(Berechnung!$B$5<>0,_xlfn.NORM.DIST($A106,0,Berechnung!$B$5,TRUE),0)) -> 0.9999999935 | H106: =IF(AND($A106=0,Berechnung!$B$6=0),1,IF(Berechnung!$B$6<>0,_xlfn.NORM.DIST($A106,0,Berechnung!$B$6,FALSE),0)) -> 2.607008592e-09 | I106: =IF(AND($A106>=0,Berechnung!$B$6=0),1,IF(Berechnung!$B$6<>0,_xlfn.NORM.DIST($A106,0,Berechnung!$B$6,TRUE),0)) -> 0.9999999935 | J106: =IF(AND($A106=0,Berechnung!$B$7=0),1,IF(Berechnung!$B$7<>0,_xlfn.NORM.DIST($A106,0,Berechnung!$B$7,FALSE),0)) -> 1.508095191e-20 | K106: =IF(AND($A106>=0,Berechnung!$B$7=0),1,IF(Berechnung!$B$7<>0,_xlfn.NORM.DIST($A106,0,Berechnung!$B$7,TRUE),0)) -> 1 | L106: =IF(AND($A106=0,Berechnung!$B$8=0),1,IF(Berechnung!$B$8<>0,_xlfn.NORM.DIST($A106,0,Berechnung!$B$8,FALSE),0)) -> 1.508095191e-20 | M106: =IF(AND($A106>=0,Berechnung!$B$8=0),1,IF(Berechnung!$B$8<>0,_xlfn.NORM.DIST($A106,0,Berechnung!$B$8,TRUE),0)) -> 1 | N106: =IF(AND($A106=0,Berechnung!$B$9=0),1,IF(Berechnung!$B$9<>0,_xlfn.NORM.DIST($A106,0,Berechnung!$B$9,FALSE),0)) -> 4.559217355e-16 | O106: =IF(AND($A106>=0,Berechnung!$B$9=0),1,IF(Berechnung!$B$9<>0,_xlfn.NORM.DIST($A106,0,Berechnung!$B$9,TRUE),0)) -> 1 | P106: =IF(AND($A106=0,Berechnung!$B$10=0),1,IF(Berechnung!$B$10<>0,_xlfn.NORM.DIST($A106,0,Berechnung!$B$10,FALSE),0)) -> 1.440261167e-13 | Q106: =IF(AND($A106>=0,Berechnung!$B$10=0),1,IF(Berechnung!$B$10<>0,_xlfn.NORM.DIST($A106,0,Berechnung!$B$10,TRUE),0)) -> 1 | R106: =IF(AND($A106=0,Berechnung!$B$11=0),1,IF(Berechnung!$B$11<>0,_xlfn.NORM.DIST($A106,0,Berechnung!$B$11,FALSE),0)) -> 0 | S106: =IF(AND($A106>=0,Berechnung!$B$11=0),1,IF(Berechnung!$B$11<>0,_xlfn.NORM.DIST($A106,0,Berechnung!$B$11,TRUE),0)) -> 1 | T106: =Demonstrator!$J$19*'Daten Diagramm'!H106+Demonstrator!$J$24*'Daten Diagramm'!L106 -> 5.214017185e-10 | U106: =Demonstrator!$J$19*'Daten Diagramm'!I106+Demonstrator!$J$24*'Daten Diagramm'!M106 -> 0.9999999987
A107: 84 | B107: =IF(AND(A107=0,Berechnung!$B$3=0),1,IF(Berechnung!$B$3<>0,_xlfn.NORM.DIST(A107,0,Berechnung!$B$3,FALSE),0)) -> 5.379353969e-21 | C107: =IF(AND($A107>=0,Berechnung!$B$3=0),1,IF(Berechnung!$B$3<>0,_xlfn.NORM.DIST($A107,0,Berechnung!$B$3,TRUE),0)) -> 1 | D107: =IF(AND($A107=0,Berechnung!$B$4=0),1,IF(Berechnung!$B$4<>0,_xlfn.NORM.DIST($A107,0,Berechnung!$B$4,FALSE),0)) -> 5.379353969e-21 | E107: =IF(AND($A107>=0,Berechnung!$B$4=0),1,IF(Berechnung!$B$4<>0,_xlfn.NORM.DIST($A107,0,Berechnung!$B$4,TRUE),0)) -> 1 | F107: =IF(AND($A107=0,Berechnung!$B$5=0),1,IF(Berechnung!$B$5<>0,_xlfn.NORM.DIST($A107,0,Berechnung!$B$5,FALSE),0)) -> 1.751199426e-09 | G107: =IF(AND($A107>=0,Berechnung!$B$5=0),1,IF(Berechnung!$B$5<>0,_xlfn.NORM.DIST($A107,0,Berechnung!$B$5,TRUE),0)) -> 0.9999999957 | H107: =IF(AND($A107=0,Berechnung!$B$6=0),1,IF(Berechnung!$B$6<>0,_xlfn.NORM.DIST($A107,0,Berechnung!$B$6,FALSE),0)) -> 1.761792635e-09 | I107: =IF(AND($A107>=0,Berechnung!$B$6=0),1,IF(Berechnung!$B$6<>0,_xlfn.NORM.DIST($A107,0,Berechnung!$B$6,TRUE),0)) -> 0.9999999957 | J107: =IF(AND($A107=0,Berechnung!$B$7=0),1,IF(Berechnung!$B$7<>0,_xlfn.NORM.DIST($A107,0,Berechnung!$B$7,FALSE),0)) -> 5.379353969e-21 | K107: =IF(AND($A107>=0,Berechnung!$B$7=0),1,IF(Berechnung!$B$7<>0,_xlfn.NORM.DIST($A107,0,Berechnung!$B$7,TRUE),0)) -> 1 | L107: =IF(AND($A107=0,Berechnung!$B$8=0),1,IF(Berechnung!$B$8<>0,_xlfn.NORM.DIST($A107,0,Berechnung!$B$8,FALSE),0)) -> 5.379353969e-21 | M107: =IF(AND($A107>=0,Berechnung!$B$8=0),1,IF(Berechnung!$B$8<>0,_xlfn.NORM.DIST($A107,0,Berechnung!$B$8,TRUE),0)) -> 1 | N107: =IF(AND($A107=0,Berechnung!$B$9=0),1,IF(Berechnung!$B$9<>0,_xlfn.NORM.DIST($A107,0,Berechnung!$B$9,FALSE),0)) -> 2.095515051e-16 | O107: =IF(AND($A107>=0,Berechnung!$B$9=0),1,IF(Berechnung!$B$9<>0,_xlfn.NORM.DIST($A107,0,Berechnung!$B$9,TRUE),0)) -> 1 | P107: =IF(AND($A107=0,Berechnung!$B$10=0),1,IF(Berechnung!$B$10<>0,_xlfn.NORM.DIST($A107,0,Berechnung!$B$10,FALSE),0)) -> 7.629502905e-14 | Q107: =IF(AND($A107>=0,Berechnung!$B$10=0),1,IF(Berechnung!$B$10<>0,_xlfn.NORM.DIST($A107,0,Berechnung!$B$10,TRUE),0)) -> 1 | R107: =IF(AND($A107=0,Berechnung!$B$11=0),1,IF(Berechnung!$B$11<>0,_xlfn.NORM.DIST($A107,0,Berechnung!$B$11,FALSE),0)) -> 0 | S107: =IF(AND($A107>=0,Berechnung!$B$11=0),1,IF(Berechnung!$B$11<>0,_xlfn.NORM.DIST($A107,0,Berechnung!$B$11,TRUE),0)) -> 1 | T107: =Demonstrator!$J$19*'Daten Diagramm'!H107+Demonstrator!$J$24*'Daten Diagramm'!L107 -> 3.52358527e-10 | U107: =Demonstrator!$J$19*'Daten Diagramm'!I107+Demonstrator!$J$24*'Daten Diagramm'!M107 -> 0.9999999991
A108: 85 | B108: =IF(AND(A108=0,Berechnung!$B$3=0),1,IF(Berechnung!$B$3<>0,_xlfn.NORM.DIST(A108,0,Berechnung!$B$3,FALSE),0)) -> 1.895264507e-21 | C108: =IF(AND($A108>=0,Berechnung!$B$3=0),1,IF(Berechnung!$B$3<>0,_xlfn.NORM.DIST($A108,0,Berechnung!$B$3,TRUE),0)) -> 1 | D108: =IF(AND($A108=0,Berechnung!$B$4=0),1,IF(Berechnung!$B$4<>0,_xlfn.NORM.DIST($A108,0,Berechnung!$B$4,FALSE),0)) -> 1.895264507e-21 | E108: =IF(AND($A108>=0,Berechnung!$B$4=0),1,IF(Berechnung!$B$4<>0,_xlfn.NORM.DIST($A108,0,Berechnung!$B$4,TRUE),0)) -> 1 | F108: =IF(AND($A108=0,Berechnung!$B$5=0),1,IF(Berechnung!$B$5<>0,_xlfn.NORM.DIST($A108,0,Berechnung!$B$5,FALSE),0)) -> 1.177728195e-09 | G108: =IF(AND($A108>=0,Berechnung!$B$5=0),1,IF(Berechnung!$B$5<>0,_xlfn.NORM.DIST($A108,0,Berechnung!$B$5,TRUE),0)) -> 0.9999999971 | H108: =IF(AND($A108=0,Berechnung!$B$6=0),1,IF(Berechnung!$B$6<>0,_xlfn.NORM.DIST($A108,0,Berechnung!$B$6,FALSE),0)) -> 1.1850289e-09 | I108: =IF(AND($A108>=0,Berechnung!$B$6=0),1,IF(Berechnung!$B$6<>0,_xlfn.NORM.DIST($A108,0,Berechnung!$B$6,TRUE),0)) -> 0.9999999971 | J108: =IF(AND($A108=0,Berechnung!$B$7=0),1,IF(Berechnung!$B$7<>0,_xlfn.NORM.DIST($A108,0,Berechnung!$B$7,FALSE),0)) -> 1.895264507e-21 | K108: =IF(AND($A108>=0,Berechnung!$B$7=0),1,IF(Berechnung!$B$7<>0,_xlfn.NORM.DIST($A108,0,Berechnung!$B$7,TRUE),0)) -> 1 | L108: =IF(AND($A108=0,Berechnung!$B$8=0),1,IF(Berechnung!$B$8<>0,_xlfn.NORM.DIST($A108,0,Berechnung!$B$8,FALSE),0)) -> 1.895264507e-21 | M108: =IF(AND($A108>=0,Berechnung!$B$8=0),1,IF(Berechnung!$B$8<>0,_xlfn.NORM.DIST($A108,0,Berechnung!$B$8,TRUE),0)) -> 1 | N108: =IF(AND($A108=0,Berechnung!$B$9=0),1,IF(Berechnung!$B$9<>0,_xlfn.NORM.DIST($A108,0,Berechnung!$B$9,FALSE),0)) -> 9.542192292e-17 | O108: =IF(AND($A108>=0,Berechnung!$B$9=0),1,IF(Berechnung!$B$9<>0,_xlfn.NORM.DIST($A108,0,Berechnung!$B$9,TRUE),0)) -> 1 | P108: =IF(AND($A108=0,Berechnung!$B$10=0),1,IF(Berechnung!$B$10<>0,_xlfn.NORM.DIST($A108,0,Berechnung!$B$10,FALSE),0)) -> 4.010943123e-14 | Q108: =IF(AND($A108>=0,Berechnung!$B$10=0),1,IF(Berechnung!$B$10<>0,_xlfn.NORM.DIST($A108,0,Berechnung!$B$10,TRUE),0)) -> 1 | R108: =IF(AND($A108=0,Berechnung!$B$11=0),1,IF(Berechnung!$B$11<>0,_xlfn.NORM.DIST($A108,0,Berechnung!$B$11,FALSE),0)) -> 0 | S108: =IF(AND($A108>=0,Berechnung!$B$11=0),1,IF(Berechnung!$B$11<>0,_xlfn.NORM.DIST($A108,0,Berechnung!$B$11,TRUE),0)) -> 1 | T108: =Demonstrator!$J$19*'Daten Diagramm'!H108+Demonstrator!$J$24*'Daten Diagramm'!L108 -> 2.370057801e-10 | U108: =Demonstrator!$J$19*'Daten Diagramm'!I108+Demonstrator!$J$24*'Daten Diagramm'!M108 -> 0.9999999994
A109: 86 | B109: =IF(AND(A109=0,Berechnung!$B$3=0),1,IF(Berechnung!$B$3<>0,_xlfn.NORM.DIST(A109,0,Berechnung!$B$3,FALSE),0)) -> 6.595502304e-22 | C109: =IF(AND($A109>=0,Berechnung!$B$3=0),1,IF(Berechnung!$B$3<>0,_xlfn.NORM.DIST($A109,0,Berechnung!$B$3,TRUE),0)) -> 1 | D109: =IF(AND($A109=0,Berechnung!$B$4=0),1,IF(Berechnung!$B$4<>0,_xlfn.NORM.DIST($A109,0,Berechnung!$B$4,FALSE),0)) -> 6.595502304e-22 | E109: =IF(AND($A109>=0,Berechnung!$B$4=0),1,IF(Berechnung!$B$4<>0,_xlfn.NORM.DIST($A109,0,Berechnung!$B$4,TRUE),0)) -> 1 | F109: =IF(AND($A109=0,Berechnung!$B$5=0),1,IF(Berechnung!$B$5<>0,_xlfn.NORM.DIST($A109,0,Berechnung!$B$5,FALSE),0)) -> 7.883436923e-10 | G109: =IF(AND($A109>=0,Berechnung!$B$5=0),1,IF(Berechnung!$B$5<>0,_xlfn.NORM.DIST($A109,0,Berechnung!$B$5,TRUE),0)) -> 0.9999999981 | H109: =IF(AND($A109=0,Berechnung!$B$6=0),1,IF(Berechnung!$B$6<>0,_xlfn.NORM.DIST($A109,0,Berechnung!$B$6,FALSE),0)) -> 7.933501682e-10 | I109: =IF(AND($A109>=0,Berechnung!$B$6=0),1,IF(Berechnung!$B$6<>0,_xlfn.NORM.DIST($A109,0,Berechnung!$B$6,TRUE),0)) -> 0.9999999981 | J109: =IF(AND($A109=0,Berechnung!$B$7=0),1,IF(Berechnung!$B$7<>0,_xlfn.NORM.DIST($A109,0,Berechnung!$B$7,FALSE),0)) -> 6.595502304e-22 | K109: =IF(AND($A109>=0,Berechnung!$B$7=0),1,IF(Berechnung!$B$7<>0,_xlfn.NORM.DIST($A109,0,Berechnung!$B$7,TRUE),0)) -> 1 | L109: =IF(AND($A109=0,Berechnung!$B$8=0),1,IF(Berechnung!$B$8<>0,_xlfn.NORM.DIST($A109,0,Berechnung!$B$8,FALSE),0)) -> 6.595502304e-22 | M109: =IF(AND($A109>=0,Berechnung!$B$8=0),1,IF(Berechnung!$B$8<>0,_xlfn.NORM.DIST($A109,0,Berechnung!$B$8,TRUE),0)) -> 1 | N109: =IF(AND($A109=0,Berechnung!$B$9=0),1,IF(Berechnung!$B$9<>0,_xlfn.NORM.DIST($A109,0,Berechnung!$B$9,FALSE),0)) -> 4.304893737e-17 | O109: =IF(AND($A109>=0,Berechnung!$B$9=0),1,IF(Berechnung!$B$9<>0,_xlfn.NORM.DIST($A109,0,Berechnung!$B$9,TRUE),0)) -> 1 | P109: =IF(AND($A109=0,Berechnung!$B$10=0),1,IF(Berechnung!$B$10<>0,_xlfn.NORM.DIST($A109,0,Berechnung!$B$10,FALSE),0)) -> 2.092628008e-14 | Q109: =IF(AND($A109>=0,Berechnung!$B$10=0),1,IF(Berechnung!$B$10<>0,_xlfn.NORM.DIST($A109,0,Berechnung!$B$10,TRUE),0)) -> 1 | R109: =IF(AND($A109=0,Berechnung!$B$11=0),1,IF(Berechnung!$B$11<>0,_xlfn.NORM.DIST($A109,0,Berechnung!$B$11,FALSE),0)) -> 0 | S109: =IF(AND($A109>=0,Berechnung!$B$11=0),1,IF(Berechnung!$B$11<>0,_xlfn.NORM.DIST($A109,0,Berechnung!$B$11,TRUE),0)) -> 1 | T109: =Demonstrator!$J$19*'Daten Diagramm'!H109+Demonstrator!$J$24*'Daten Diagramm'!L109 -> 1.586700336e-10 | U109: =Demonstrator!$J$19*'Daten Diagramm'!I109+Demonstrator!$J$24*'Daten Diagramm'!M109 -> 0.9999999996
A110: 87 | B110: =IF(AND(A110=0,Berechnung!$B$3=0),1,IF(Berechnung!$B$3<>0,_xlfn.NORM.DIST(A110,0,Berechnung!$B$3,FALSE),0)) -> 2.267066518e-22 | C110: =IF(AND($A110>=0,Berechnung!$B$3=0),1,IF(Berechnung!$B$3<>0,_xlfn.NORM.DIST($A110,0,Berechnung!$B$3,TRUE),0)) -> 1 | D110: =IF(AND($A110=0,Berechnung!$B$4=0),1,IF(Berechnung!$B$4<>0,_xlfn.NORM.DIST($A110,0,Berechnung!$B$4,FALSE),0)) -> 2.267066518e-22 | E110: =IF(AND($A110>=0,Berechnung!$B$4=0),1,IF(Berechnung!$B$4<>0,_xlfn.NORM.DIST($A110,0,Berechnung!$B$4,TRUE),0)) -> 1 | F110: =IF(AND($A110=0,Berechnung!$B$5=0),1,IF(Berechnung!$B$5<>0,_xlfn.NORM.DIST($A110,0,Berechnung!$B$5,FALSE),0)) -> 5.25227166e-10 | G110: =IF(AND($A110>=0,Berechnung!$B$5=0),1,IF(Berechnung!$B$5<>0,_xlfn.NORM.DIST($A110,0,Berechnung!$B$5,TRUE),0)) -> 0.9999999987 | H110: =IF(AND($A110=0,Berechnung!$B$6=0),1,IF(Berechnung!$B$6<>0,_xlfn.NORM.DIST($A110,0,Berechnung!$B$6,FALSE),0)) -> 5.286432832e-10 | I110: =IF(AND($A110>=0,Berechnung!$B$6=0),1,IF(Berechnung!$B$6<>0,_xlfn.NORM.DIST($A110,0,Berechnung!$B$6,TRUE),0)) -> 0.9999999987 | J110: =IF(AND($A110=0,Berechnung!$B$7=0),1,IF(Berechnung!$B$7<>0,_xlfn.NORM.DIST($A110,0,Berechnung!$B$7,FALSE),0)) -> 2.267066518e-22 | K110: =IF(AND($A110>=0,Berechnung!$B$7=0),1,IF(Berechnung!$B$7<>0,_xlfn.NORM.DIST($A110,0,Berechnung!$B$7,TRUE),0)) -> 1 | L110: =IF(AND($A110=0,Berechnung!$B$8=0),1,IF(Berechnung!$B$8<>0,_xlfn.NORM.DIST($A110,0,Berechnung!$B$8,FALSE),0)) -> 2.267066518e-22 | M110: =IF(AND($A110>=0,Berechnung!$B$8=0),1,IF(Berechnung!$B$8<>0,_xlfn.NORM.DIST($A110,0,Berechnung!$B$8,TRUE),0)) -> 1 | N110: =IF(AND($A110=0,Berechnung!$B$9=0),1,IF(Berechnung!$B$9<>0,_xlfn.NORM.DIST($A110,0,Berechnung!$B$9,FALSE),0)) -> 1.924126404e-17 | O110: =IF(AND($A110>=0,Berechnung!$B$9=0),1,IF(Berechnung!$B$9<>0,_xlfn.NORM.DIST($A110,0,Berechnung!$B$9,TRUE),0)) -> 1 | P110: =IF(AND($A110=0,Berechnung!$B$10=0),1,IF(Berechnung!$B$10<>0,_xlfn.NORM.DIST($A110,0,Berechnung!$B$10,FALSE),0)) -> 1.083509774e-14 | Q110: =IF(AND($A110>=0,Berechnung!$B$10=0),1,IF(Berechnung!$B$10<>0,_xlfn.NORM.DIST($A110,0,Berechnung!$B$10,TRUE),0)) -> 1 | R110: =IF(AND($A110=0,Berechnung!$B$11=0),1,IF(Berechnung!$B$11<>0,_xlfn.NORM.DIST($A110,0,Berechnung!$B$11,FALSE),0)) -> 0 | S110: =IF(AND($A110>=0,Berechnung!$B$11=0),1,IF(Berechnung!$B$11<>0,_xlfn.NORM.DIST($A110,0,Berechnung!$B$11,TRUE),0)) -> 1 | T110: =Demonstrator!$J$19*'Daten Diagramm'!H110+Demonstrator!$J$24*'Daten Diagramm'!L110 -> 1.057286566e-10 | U110: =Demonstrator!$J$19*'Daten Diagramm'!I110+Demonstrator!$J$24*'Daten Diagramm'!M110 -> 0.9999999997
A111: 88 | B111: =IF(AND(A111=0,Berechnung!$B$3=0),1,IF(Berechnung!$B$3<>0,_xlfn.NORM.DIST(A111,0,Berechnung!$B$3,FALSE),0)) -> 7.696955742e-23 | C111: =IF(AND($A111>=0,Berechnung!$B$3=0),1,IF(Berechnung!$B$3<>0,_xlfn.NORM.DIST($A111,0,Berechnung!$B$3,TRUE),0)) -> 1 | D111: =IF(AND($A111=0,Berechnung!$B$4=0),1,IF(Berechnung!$B$4<>0,_xlfn.NORM.DIST($A111,0,Berechnung!$B$4,FALSE),0)) -> 7.696955742e-23 | E111: =IF(AND($A111>=0,Berechnung!$B$4=0),1,IF(Berechnung!$B$4<>0,_xlfn.NORM.DIST($A111,0,Berechnung!$B$4,TRUE),0)) -> 1 | F111: =IF(AND($A111=0,Berechnung!$B$5=0),1,IF(Berechnung!$B$5<>0,_xlfn.NORM.DIST($A111,0,Berechnung!$B$5,FALSE),0)) -> 3.482890519e-10 | G111: =IF(AND($A111>=0,Berechnung!$B$5=0),1,IF(Berechnung!$B$5<>0,_xlfn.NORM.DIST($A111,0,Berechnung!$B$5,TRUE),0)) -> 0.9999999992 | H111: =IF(AND($A111=0,Berechnung!$B$6=0),1,IF(Berechnung!$B$6<>0,_xlfn.NORM.DIST($A111,0,Berechnung!$B$6,FALSE),0)) -> 3.506084213e-10 | I111: =IF(AND($A111>=0,Berechnung!$B$6=0),1,IF(Berechnung!$B$6<>0,_xlfn.NORM.DIST($A111,0,Berechnung!$B$6,TRUE),0)) -> 0.9999999992 | J111: =IF(AND($A111=0,Berechnung!$B$7=0),1,IF(Berechnung!$B$7<>0,_xlfn.NORM.DIST($A111,0,Berechnung!$B$7,FALSE),0)) -> 7.696955742e-23 | K111: =IF(AND($A111>=0,Berechnung!$B$7=0),1,IF(Berechnung!$B$7<>0,_xlfn.NORM.DIST($A111,0,Berechnung!$B$7,TRUE),0)) -> 1 | L111: =IF(AND($A111=0,Berechnung!$B$8=0),1,IF(Berechnung!$B$8<>0,_xlfn.NORM.DIST($A111,0,Berechnung!$B$8,FALSE),0)) -> 7.696955742e-23 | M111: =IF(AND($A111>=0,Berechnung!$B$8=0),1,IF(Berechnung!$B$8<>0,_xlfn.NORM.DIST($A111,0,Berechnung!$B$8,TRUE),0)) -> 1 | N111: =IF(AND($A111=0,Berechnung!$B$9=0),1,IF(Berechnung!$B$9<>0,_xlfn.NORM.DIST($A111,0,Berechnung!$B$9,FALSE),0)) -> 8.520432791e-18 | O111: =IF(AND($A111>=0,Berechnung!$B$9=0),1,IF(Berechnung!$B$9<>0,_xlfn.NORM.DIST($A111,0,Berechnung!$B$9,TRUE),0)) -> 1 | P111: =IF(AND($A111=0,Berechnung!$B$10=0),1,IF(Berechnung!$B$10<>0,_xlfn.NORM.DIST($A111,0,Berechnung!$B$10,FALSE),0)) -> 5.567611231e-15 | Q111: =IF(AND($A111>=0,Berechnung!$B$10=0),1,IF(Berechnung!$B$10<>0,_xlfn.NORM.DIST($A111,0,Berechnung!$B$10,TRUE),0)) -> 1 | R111: =IF(AND($A111=0,Berechnung!$B$11=0),1,IF(Berechnung!$B$11<>0,_xlfn.NORM.DIST($A111,0,Berechnung!$B$11,FALSE),0)) -> 0 | S111: =IF(AND($A111>=0,Berechnung!$B$11=0),1,IF(Berechnung!$B$11<>0,_xlfn.NORM.DIST($A111,0,Berechnung!$B$11,TRUE),0)) -> 1 | T111: =Demonstrator!$J$19*'Daten Diagramm'!H111+Demonstrator!$J$24*'Daten Diagramm'!L111 -> 7.012168426e-11 | U111: =Demonstrator!$J$19*'Daten Diagramm'!I111+Demonstrator!$J$24*'Daten Diagramm'!M111 -> 0.9999999998
A112: 89 | B112: =IF(AND(A112=0,Berechnung!$B$3=0),1,IF(Berechnung!$B$3<>0,_xlfn.NORM.DIST(A112,0,Berechnung!$B$3,FALSE),0)) -> 2.581142938e-23 | C112: =IF(AND($A112>=0,Berechnung!$B$3=0),1,IF(Berechnung!$B$3<>0,_xlfn.NORM.DIST($A112,0,Berechnung!$B$3,TRUE),0)) -> 1 | D112: =IF(AND($A112=0,Berechnung!$B$4=0),1,IF(Berechnung!$B$4<>0,_xlfn.NORM.DIST($A112,0,Berechnung!$B$4,FALSE),0)) -> 2.581142938e-23 | E112: =IF(AND($A112>=0,Berechnung!$B$4=0),1,IF(Berechnung!$B$4<>0,_xlfn.NORM.DIST($A112,0,Berechnung!$B$4,TRUE),0)) -> 1 | F112: =IF(AND($A112=0,Berechnung!$B$5=0),1,IF(Berechnung!$B$5<>0,_xlfn.NORM.DIST($A112,0,Berechnung!$B$5,FALSE),0)) -> 2.298759433e-10 | G112: =IF(AND($A112>=0,Berechnung!$B$5=0),1,IF(Berechnung!$B$5<>0,_xlfn.NORM.DIST($A112,0,Berechnung!$B$5,TRUE),0)) -> 0.9999999995 | H112: =IF(AND($A112=0,Berechnung!$B$6=0),1,IF(Berechnung!$B$6<>0,_xlfn.NORM.DIST($A112,0,Berechnung!$B$6,FALSE),0)) -> 2.314428626e-10 | I112: =IF(AND($A112>=0,Berechnung!$B$6=0),1,IF(Berechnung!$B$6<>0,_xlfn.NORM.DIST($A112,0,Berechnung!$B$6,TRUE),0)) -> 0.9999999995 | J112: =IF(AND($A112=0,Berechnung!$B$7=0),1,IF(Berechnung!$B$7<>0,_xlfn.NORM.DIST($A112,0,Berechnung!$B$7,FALSE),0)) -> 2.581142938e-23 | K112: =IF(AND($A112>=0,Berechnung!$B$7=0),1,IF(Berechnung!$B$7<>0,_xlfn.NORM.DIST($A112,0,Berechnung!$B$7,TRUE),0)) -> 1 | L112: =IF(AND($A112=0,Berechnung!$B$8=0),1,IF(Berechnung!$B$8<>0,_xlfn.NORM.DIST($A112,0,Berechnung!$B$8,FALSE),0)) -> 2.581142938e-23 | M112: =IF(AND($A112>=0,Berechnung!$B$8=0),1,IF(Berechnung!$B$8<>0,_xlfn.NORM.DIST($A112,0,Berechnung!$B$8,TRUE),0)) -> 1 | N112: =IF(AND($A112=0,Berechnung!$B$9=0),1,IF(Berechnung!$B$9<>0,_xlfn.NORM.DIST($A112,0,Berechnung!$B$9,FALSE),0)) -> 3.738062882e-18 | O112: =IF(AND($A112>=0,Berechnung!$B$9=0),1,IF(Berechnung!$B$9<>0,_xlfn.NORM.DIST($A112,0,Berechnung!$B$9,TRUE),0)) -> 1 | P112: =IF(AND($A112=0,Berechnung!$B$10=0),1,IF(Berechnung!$B$10<>0,_xlfn.NORM.DIST($A112,0,Berechnung!$B$10,FALSE),0)) -> 2.839227812e-15 | Q112: =IF(AND($A112>=0,Berechnung!$B$10=0),1,IF(Berechnung!$B$10<>0,_xlfn.NORM.DIST($A112,0,Berechnung!$B$10,TRUE),0)) -> 1 | R112: =IF(AND($A112=0,Berechnung!$B$11=0),1,IF(Berechnung!$B$11<>0,_xlfn.NORM.DIST($A112,0,Berechnung!$B$11,FALSE),0)) -> 0 | S112: =IF(AND($A112>=0,Berechnung!$B$11=0),1,IF(Berechnung!$B$11<>0,_xlfn.NORM.DIST($A112,0,Berechnung!$B$11,TRUE),0)) -> 1 | T112: =Demonstrator!$J$19*'Daten Diagramm'!H112+Demonstrator!$J$24*'Daten Diagramm'!L112 -> 4.628857252e-11 | U112: =Demonstrator!$J$19*'Daten Diagramm'!I112+Demonstrator!$J$24*'Daten Diagramm'!M112 -> 0.9999999999
A113: 90 | B113: =IF(AND(A113=0,Berechnung!$B$3=0),1,IF(Berechnung!$B$3<>0,_xlfn.NORM.DIST(A113,0,Berechnung!$B$3,FALSE),0)) -> 8.54955403e-24 | C113: =IF(AND($A113>=0,Berechnung!$B$3=0),1,IF(Berechnung!$B$3<>0,_xlfn.NORM.DIST($A113,0,Berechnung!$B$3,TRUE),0)) -> 1 | D113: =IF(AND($A113=0,Berechnung!$B$4=0),1,IF(Berechnung!$B$4<>0,_xlfn.NORM.DIST($A113,0,Berechnung!$B$4,FALSE),0)) -> 8.54955403e-24 | E113: =IF(AND($A113>=0,Berechnung!$B$4=0),1,IF(Berechnung!$B$4<>0,_xlfn.NORM.DIST($A113,0,Berechnung!$B$4,TRUE),0)) -> 1 | F113: =IF(AND($A113=0,Berechnung!$B$5=0),1,IF(Berechnung!$B$5<>0,_xlfn.NORM.DIST($A113,0,Berechnung!$B$5,FALSE),0)) -> 1.51010896e-10 | G113: =IF(AND($A113>=0,Berechnung!$B$5=0),1,IF(Berechnung!$B$5<>0,_xlfn.NORM.DIST($A113,0,Berechnung!$B$5,TRUE),0)) -> 0.9999999997 | H113: =IF(AND($A113=0,Berechnung!$B$6=0),1,IF(Berechnung!$B$6<>0,_xlfn.NORM.DIST($A113,0,Berechnung!$B$6,FALSE),0)) -> 1.520642294e-10 | I113: =IF(AND($A113>=0,Berechnung!$B$6=0),1,IF(Berechnung!$B$6<>0,_xlfn.NORM.DIST($A113,0,Berechnung!$B$6,TRUE),0)) -> 0.9999999996 | J113: =IF(AND($A113=0,Berechnung!$B$7=0),1,IF(Berechnung!$B$7<>0,_xlfn.NORM.DIST($A113,0,Berechnung!$B$7,FALSE),0)) -> 8.54955403e-24 | K113: =IF(AND($A113>=0,Berechnung!$B$7=0),1,IF(Berechnung!$B$7<>0,_xlfn.NORM.DIST($A113,0,Berechnung!$B$7,TRUE),0)) -> 1 | L113: =IF(AND($A113=0,Berechnung!$B$8=0),1,IF(Berechnung!$B$8<>0,_xlfn.NORM.DIST($A113,0,Berechnung!$B$8,FALSE),0)) -> 8.54955403e-24 | M113: =IF(AND($A113>=0,Berechnung!$B$8=0),1,IF(Berechnung!$B$8<>0,_xlfn.NORM.DIST($A113,0,Berechnung!$B$8,TRUE),0)) -> 1 | N113: =IF(AND($A113=0,Berechnung!$B$9=0),1,IF(Berechnung!$B$9<>0,_xlfn.NORM.DIST($A113,0,Berechnung!$B$9,FALSE),0)) -> 1.624757097e-18 | O113: =IF(AND($A113>=0,Berechnung!$B$9=0),1,IF(Berechnung!$B$9<>0,_xlfn.NORM.DIST($A113,0,Berechnung!$B$9,TRUE),0)) -> 1 | P113: =IF(AND($A113=0,Berechnung!$B$10=0),1,IF(Berechnung!$B$10<>0,_xlfn.NORM.DIST($A113,0,Berechnung!$B$10,FALSE),0)) -> 1.436901004e-15 | Q113: =IF(AND($A113>=0,Berechnung!$B$10=0),1,IF(Berechnung!$B$10<>0,_xlfn.NORM.DIST($A113,0,Berechnung!$B$10,TRUE),0)) -> 1 | R113: =IF(AND($A113=0,Berechnung!$B$11=0),1,IF(Berechnung!$B$11<>0,_xlfn.NORM.DIST($A113,0,Berechnung!$B$11,FALSE),0)) -> 0 | S113: =IF(AND($A113>=0,Berechnung!$B$11=0),1,IF(Berechnung!$B$11<>0,_xlfn.NORM.DIST($A113,0,Berechnung!$B$11,TRUE),0)) -> 1 | T113: =Demonstrator!$J$19*'Daten Diagramm'!H113+Demonstrator!$J$24*'Daten Diagramm'!L113 -> 3.041284589e-11 | U113: =Demonstrator!$J$19*'Daten Diagramm'!I113+Demonstrator!$J$24*'Daten Diagramm'!M113 -> 0.9999999999
A114: 91 | B114: =IF(AND(A114=0,Berechnung!$B$3=0),1,IF(Berechnung!$B$3<>0,_xlfn.NORM.DIST(A114,0,Berechnung!$B$3,FALSE),0)) -> 2.797133578e-24 | C114: =IF(AND($A114>=0,Berechnung!$B$3=0),1,IF(Berechnung!$B$3<>0,_xlfn.NORM.DIST($A114,0,Berechnung!$B$3,TRUE),0)) -> 1 | D114: =IF(AND($A114=0,Berechnung!$B$4=0),1,IF(Berechnung!$B$4<>0,_xlfn.NORM.DIST($A114,0,Berechnung!$B$4,FALSE),0)) -> 2.797133578e-24 | E114: =IF(AND($A114>=0,Berechnung!$B$4=0),1,IF(Berechnung!$B$4<>0,_xlfn.NORM.DIST($A114,0,Berechnung!$B$4,TRUE),0)) -> 1 | F114: =IF(AND($A114=0,Berechnung!$B$5=0),1,IF(Berechnung!$B$5<>0,_xlfn.NORM.DIST($A114,0,Berechnung!$B$5,FALSE),0)) -> 9.873794928e-11 | G114: =IF(AND($A114>=0,Berechnung!$B$5=0),1,IF(Berechnung!$B$5<>0,_xlfn.NORM.DIST($A114,0,Berechnung!$B$5,TRUE),0)) -> 0.9999999998 | H114: =IF(AND($A114=0,Berechnung!$B$6=0),1,IF(Berechnung!$B$6<>0,_xlfn.NORM.DIST($A114,0,Berechnung!$B$6,FALSE),0)) -> 9.944252956e-11 | I114: =IF(AND($A114>=0,Berechnung!$B$6=0),1,IF(Berechnung!$B$6<>0,_xlfn.NORM.DIST($A114,0,Berechnung!$B$6,TRUE),0)) -> 0.9999999998 | J114: =IF(AND($A114=0,Berechnung!$B$7=0),1,IF(Berechnung!$B$7<>0,_xlfn.NORM.DIST($A114,0,Berechnung!$B$7,FALSE),0)) -> 2.797133578e-24 | K114: =IF(AND($A114>=0,Berechnung!$B$7=0),1,IF(Berechnung!$B$7<>0,_xlfn.NORM.DIST($A114,0,Berechnung!$B$7,TRUE),0)) -> 1 | L114: =IF(AND($A114=0,Berechnung!$B$8=0),1,IF(Berechnung!$B$8<>0,_xlfn.NORM.DIST($A114,0,Berechnung!$B$8,FALSE),0)) -> 2.797133578e-24 | M114: =IF(AND($A114>=0,Berechnung!$B$8=0),1,IF(Berechnung!$B$8<>0,_xlfn.NORM.DIST($A114,0,Berechnung!$B$8,TRUE),0)) -> 1 | N114: =IF(AND($A114=0,Berechnung!$B$9=0),1,IF(Berechnung!$B$9<>0,_xlfn.NORM.DIST($A114,0,Berechnung!$B$9,FALSE),0)) -> 6.996602077e-19 | O114: =IF(AND($A114>=0,Berechnung!$B$9=0),1,IF(Berechnung!$B$9<>0,_xlfn.NORM.DIST($A114,0,Berechnung!$B$9,TRUE),0)) -> 1 | P114: =IF(AND($A114=0,Berechnung!$B$10=0),1,IF(Berechnung!$B$10<>0,_xlfn.NORM.DIST($A114,0,Berechnung!$B$10,FALSE),0)) -> 7.216867389e-16 | Q114: =IF(AND($A114>=0,Berechnung!$B$10=0),1,IF(Berechnung!$B$10<>0,_xlfn.NORM.DIST($A114,0,Berechnung!$B$10,TRUE),0)) -> 1 | R114: =IF(AND($A114=0,Berechnung!$B$11=0),1,IF(Berechnung!$B$11<>0,_xlfn.NORM.DIST($A114,0,Berechnung!$B$11,FALSE),0)) -> 0 | S114: =IF(AND($A114>=0,Berechnung!$B$11=0),1,IF(Berechnung!$B$11<>0,_xlfn.NORM.DIST($A114,0,Berechnung!$B$11,TRUE),0)) -> 1 | T114: =Demonstrator!$J$19*'Daten Diagramm'!H114+Demonstrator!$J$24*'Daten Diagramm'!L114 -> 1.988850591e-11 | U114: =Demonstrator!$J$19*'Daten Diagramm'!I114+Demonstrator!$J$24*'Daten Diagramm'!M114 -> 1
